Workbook

Sheet General
B1: =Translation!B6 -> Rearing Period | E1: =Translation!B4 -> LOHMANN BROWN Parent Stock
A3: =Translation!B8 -> Country: | G3: =Translation!B12 -> Hatch Date:
A4: =Translation!B9 -> Owner: | G4: =Translation!B13 -> Date of Housing:
A5: =Translation!B10 -> Farm: | G5: =Translation!B14 -> No. of Females Housed:
A6: =Translation!B11 -> Flock: | G6: =Translation!B15 -> No. of Males Housed:
A8: =Translation!B16 -> Remarks:
B25: =Translation!B7 -> Production Period | E25: =Translation!B4 -> LOHMANN BROWN Parent Stock
A27: =Translation!B12 -> Hatch Date: | D27: =IF($J$3>0,J3, ) -> 00:00:00
A28: =Translation!B17 -> Date 18 wks + 0: | D28: =J3+126 -> 1900-05-05 | G28: =Translation!B13 -> Date of Housing: | J28: =D28 -> 1900-05-05
A29: =Translation!B18 -> No. of hens with 18 weeks: | D29: =' Out rearing'!C26 -> 0 | G29: =Translation!B14 -> No. of Females Housed: | J29: =D29 -> 0
A30: =Translation!B19 -> No. of males with 18 weeks: | D30: =' Out rearing'!D28 -> 0 | G30: =Translation!B15 -> No. of Males Housed: | J30: =D30 -> 0
A32: =Translation!B16 -> Remarks:

Sheet In rearing (daily)
A1: =Translation!B22 -> Date | B1: =Translation!B23 -> Age (days) | C1: =Translation!B27 -> No. of dead females | D1: =Translation!B29 -> No. of dead males | E1: =Translation!B31 -> Female Body Wt (g) | F1: =Translation!B32 -> Male Body Wt (g) | G1: =Translation!B33 -> Feed cons. (kg/day) | H1: =Translation!B36 -> Water cons. (l/day) | I1: =Translation!B39 -> Uniformity (%) | J1: =Translation!B40 -> a trait you like | K1: =Translation!B16 -> Remarks:
A2: =IF(General!$J$3>0,General!$J$3+B2, ) -> 00:00:00 | B2: 1 | K2: 0
A3: =IF(General!$J$3>0,General!$J$3+B3, ) -> 00:00:00 | B3: 2
A4: =IF(General!$J$3>0,General!$J$3+B4, ) -> 00:00:00 | B4: 3
A5: =IF(General!$J$3>0,General!$J$3+B5, ) -> 00:00:00 | B5: 4
A6: =IF(General!$J$3>0,General!$J$3+B6, ) -> 00:00:00 | B6: 5
A7: =IF(General!$J$3>0,General!$J$3+B7, ) -> 00:00:00 | B7: 6
A8: =IF(General!$J$3>0,General!$J$3+B8, ) -> 00:00:00 | B8: 7
A9: =A8 -> 00:00:00 | B9: =Translation!$B$26&" 1" -> Wk 1 | C9: =SUM(C2:C8) -> 0 | D9: =SUM(D2:D8) -> 0 | E9: =IFERROR(AVERAGE(E2:E8), ) -> 0 | F9: =IFERROR(AVERAGE(F2:F8), ) -> 0 | G9: =SUM(G2:G8) -> 0 | H9: =SUM(H2:H8) -> 0 | I9: =IFERROR(AVERAGE(I2:I8), ) -> 0 | J9: =IFERROR(AVERAGE(J2:J8), ) -> 0
A10: =IF(General!$J$3>0,General!$J$3+B10, ) -> 00:00:00 | B10: 8
A11: =IF(General!$J$3>0,General!$J$3+B11, ) -> 00:00:00 | B11: 9 | K11: 0
A12: =IF(General!$J$3>0,General!$J$3+B12, ) -> 00:00:00 | B12: 10
A13: =IF(General!$J$3>0,General!$J$3+B13, ) -> 00:00:00 | B13: 11
A14: =IF(General!$J$3>0,General!$J$3+B14, ) -> 00:00:00 | B14: 12
A15: =IF(General!$J$3>0,General!$J$3+B15, ) -> 00:00:00 | B15: 13
A16: =IF(General!$J$3>0,General!$J$3+B16, ) -> 00:00:00 | B16: 14
A17: =A16 -> 00:00:00 | B17: =Translation!$B$26&" 2" -> Wk 2 | C17: =SUM(C10:C16) -> 0 | D17: =SUM(D10:D16) -> 0 | E17: =IFERROR(AVERAGE(E10:E16), ) -> 0 | F17: =IFERROR(AVERAGE(F10:F16), ) -> 0 | G17: =SUM(G10:G16) -> 0 | H17: =SUM(H10:H16) -> 0 | I17: =IFERROR(AVERAGE(I10:I16), ) -> 0 | J17: =IFERROR(AVERAGE(J10:J16), ) -> 0
A18: =IF(General!$J$3>0,General!$J$3+B18, ) -> 00:00:00 | B18: 15
A19: =IF(General!$J$3>0,General!$J$3+B19, ) -> 00:00:00 | B19: 16
A20: =IF(General!$J$3>0,General!$J$3+B20, ) -> 00:00:00 | B20: 17
A21: =IF(General!$J$3>0,General!$J$3+B21, ) -> 00:00:00 | B21: 18
A22: =IF(General!$J$3>0,General!$J$3+B22, ) -> 00:00:00 | B22: 19
A23: =IF(General!$J$3>0,General!$J$3+B23, ) -> 00:00:00 | B23: 20
A24: =IF(General!$J$3>0,General!$J$3+B24, ) -> 00:00:00 | B24: 21
A25: =A24 -> 00:00:00 | B25: =Translation!$B$26&" 3" -> Wk 3 | C25: =SUM(C18:C24) -> 0 | D25: =SUM(D18:D24) -> 0 | E25: =IFERROR(AVERAGE(E18:E24), ) -> 0 | F25: =IFERROR(AVERAGE(F18:F24), ) -> 0 | G25: =SUM(G18:G24) -> 0 | H25: =SUM(H18:H24) -> 0 | I25: =IFERROR(AVERAGE(I18:I24), ) -> 0 | J25: =IFERROR(AVERAGE(J18:J24), ) -> 0
A26: =IF(General!$J$3>0,General!$J$3+B26, ) -> 00:00:00 | B26: 22
A27: =IF(General!$J$3>0,General!$J$3+B27, ) -> 00:00:00 | B27: 23
A28: =IF(General!$J$3>0,General!$J$3+B28, ) -> 00:00:00 | B28: 24
A29: =IF(General!$J$3>0,General!$J$3+B29, ) -> 00:00:00 | B29: 25
A30: =IF(General!$J$3>0,General!$J$3+B30, ) -> 00:00:00 | B30: 26
A31: =IF(General!$J$3>0,General!$J$3+B31, ) -> 00:00:00 | B31: 27
A32: =IF(General!$J$3>0,General!$J$3+B32, ) -> 00:00:00 | B32: 28
A33: =A32 -> 00:00:00 | B33: =Translation!$B$26&" 4" -> Wk 4 | C33: =SUM(C26:C32) -> 0 | D33: =SUM(D26:D32) -> 0 | E33: =IFERROR(AVERAGE(E26:E32), ) -> 0 | F33: =IFERROR(AVERAGE(F26:F32), ) -> 0 | G33: =SUM(G26:G32) -> 0 | H33: =SUM(H26:H32) -> 0 | I33: =IFERROR(AVERAGE(I26:I32), ) -> 0 | J33: =IFERROR(AVERAGE(J26:J32), ) -> 0
A34: =IF(General!$J$3>0,General!$J$3+B34, ) -> 00:00:00 | B34: 29
A35: =IF(General!$J$3>0,General!$J$3+B35, ) -> 00:00:00 | B35: 30
A36: =IF(General!$J$3>0,General!$J$3+B36, ) -> 00:00:00 | B36: 31
A37: =IF(General!$J$3>0,General!$J$3+B37, ) -> 00:00:00 | B37: 32
A38: =IF(General!$J$3>0,General!$J$3+B38, ) -> 00:00:00 | B38: 33
A39: =IF(General!$J$3>0,General!$J$3+B39, ) -> 00:00:00 | B39: 34
A40: =IF(General!$J$3>0,General!$J$3+B40, ) -> 00:00:00 | B40: 35
A41: =A40 -> 00:00:00 | B41: =Translation!$B$26&" 5" -> Wk 5 | C41: =SUM(C34:C40) -> 0 | D41: =SUM(D34:D40) -> 0 | E41: =IFERROR(AVERAGE(E34:E40), ) -> 0 | F41: =IFERROR(AVERAGE(F34:F40), ) -> 0 | G41: =SUM(G34:G40) -> 0 | H41: =SUM(H34:H40) -> 0 | I41: =IFERROR(AVERAGE(I34:I40), ) -> 0 | J41: =IFERROR(AVERAGE(J34:J40), ) -> 0
A42: =IF(General!$J$3>0,General!$J$3+B42, ) -> 00:00:00 | B42: 36
A43: =IF(General!$J$3>0,General!$J$3+B43, ) -> 00:00:00 | B43: 37
A44: =IF(General!$J$3>0,General!$J$3+B44, ) -> 00:00:00 | B44: 38
A45: =IF(General!$J$3>0,General!$J$3+B45, ) -> 00:00:00 | B45: 39
A46: =IF(General!$J$3>0,General!$J$3+B46, ) -> 00:00:00 | B46: 40
A47: =IF(General!$J$3>0,General!$J$3+B47, ) -> 00:00:00 | B47: 41
A48: =IF(General!$J$3>0,General!$J$3+B48, ) -> 00:00:00 | B48: 42
A49: =A48 -> 00:00:00 | B49: =Translation!$B$26&" 6" -> Wk 6 | C49: =SUM(C42:C48) -> 0 | D49: =SUM(D42:D48) -> 0 | E49: =IFERROR(AVERAGE(E42:E48), ) -> 0 | F49: =IFERROR(AVERAGE(F42:F48), ) -> 0 | G49: =SUM(G42:G48) -> 0 | H49: =SUM(H42:H48) -> 0 | I49: =IFERROR(AVERAGE(I42:I48), ) -> 0 | J49: =IFERROR(AVERAGE(J42:J48), ) -> 0
A50: =IF(General!$J$3>0,General!$J$3+B50, ) -> 00:00:00 | B50: 43
A51: =IF(General!$J$3>0,General!$J$3+B51, ) -> 00:00:00 | B51: 44
A52: =IF(General!$J$3>0,General!$J$3+B52, ) -> 00:00:00 | B52: 45
A53: =IF(General!$J$3>0,General!$J$3+B53, ) -> 00:00:00 | B53: 46
A54: =IF(General!$J$3>0,General!$J$3+B54, ) -> 00:00:00 | B54: 47
A55: =IF(General!$J$3>0,General!$J$3+B55, ) -> 00:00:00 | B55: 48
A56: =IF(General!$J$3>0,General!$J$3+B56, ) -> 00:00:00 | B56: 49
A57: =A56 -> 00:00:00 | B57: =Translation!$B$26&" 7" -> Wk 7 | C57: =SUM(C50:C56) -> 0 | D57: =SUM(D50:D56) -> 0 | E57: =IFERROR(AVERAGE(E50:E56), ) -> 0 | F57: =IFERROR(AVERAGE(F50:F56), ) -> 0 | G57: =SUM(G50:G56) -> 0 | H57: =SUM(H50:H56) -> 0 | I57: =IFERROR(AVERAGE(I50:I56), ) -> 0 | J57: =IFERROR(AVERAGE(J50:J56), ) -> 0
A58: =IF(General!$J$3>0,General!$J$3+B58, ) -> 00:00:00 | B58: 50
A59: =IF(General!$J$3>0,General!$J$3+B59, ) -> 00:00:00 | B59: 51
A60: =IF(General!$J$3>0,General!$J$3+B60, ) -> 00:00:00 | B60: 52
A61: =IF(General!$J$3>0,General!$J$3+B61, ) -> 00:00:00 | B61: 53
A62: =IF(General!$J$3>0,General!$J$3+B62, ) -> 00:00:00 | B62: 54
A63: =IF(General!$J$3>0,General!$J$3+B63, ) -> 00:00:00 | B63: 55
A64: =IF(General!$J$3>0,General!$J$3+B64, ) -> 00:00:00 | B64: 56
A65: =A64 -> 00:00:00 | B65: =Translation!$B$26&" 8" -> Wk 8 | C65: =SUM(C58:C64) -> 0 | D65: =SUM(D58:D64) -> 0 | E65: =IFERROR(AVERAGE(E58:E64), ) -> 0 | F65: =IFERROR(AVERAGE(F58:F64), ) -> 0 | G65: =SUM(G58:G64) -> 0 | H65: =SUM(H58:H64) -> 0 | I65: =IFERROR(AVERAGE(I58:I64), ) -> 0 | J65: =IFERROR(AVERAGE(J58:J64), ) -> 0
A66: =IF(General!$J$3>0,General!$J$3+B66, ) -> 00:00:00 | B66: 57
A67: =IF(General!$J$3>0,General!$J$3+B67, ) -> 00:00:00 | B67: 58
A68: =IF(General!$J$3>0,General!$J$3+B68, ) -> 00:00:00 | B68: 59
A69: =IF(General!$J$3>0,General!$J$3+B69, ) -> 00:00:00 | B69: 60
A70: =IF(General!$J$3>0,General!$J$3+B70, ) -> 00:00:00 | B70: 61
A71: =IF(General!$J$3>0,General!$J$3+B71, ) -> 00:00:00 | B71: 62
A72: =IF(General!$J$3>0,General!$J$3+B72, ) -> 00:00:00 | B72: 63
A73: =A72 -> 00:00:00 | B73: =Translation!$B$26&" 9" -> Wk 9 | C73: =SUM(C66:C72) -> 0 | D73: =SUM(D66:D72) -> 0 | E73: =IFERROR(AVERAGE(E66:E72), ) -> 0 | F73: =IFERROR(AVERAGE(F66:F72), ) -> 0 | G73: =SUM(G66:G72) -> 0 | H73: =SUM(H66:H72) -> 0 | I73: =IFERROR(AVERAGE(I66:I72), ) -> 0 | J73: =IFERROR(AVERAGE(J66:J72), ) -> 0
A74: =IF(General!$J$3>0,General!$J$3+B74, ) -> 00:00:00 | B74: 64
A75: =IF(General!$J$3>0,General!$J$3+B75, ) -> 00:00:00 | B75: 65
A76: =IF(General!$J$3>0,General!$J$3+B76, ) -> 00:00:00 | B76: 66
A77: =IF(General!$J$3>0,General!$J$3+B77, ) -> 00:00:00 | B77: 67
A78: =IF(General!$J$3>0,General!$J$3+B78, ) -> 00:00:00 | B78: 68
A79: =IF(General!$J$3>0,General!$J$3+B79, ) -> 00:00:00 | B79: 69
A80: =IF(General!$J$3>0,General!$J$3+B80, ) -> 00:00:00 | B80: 70
A81: =A80 -> 00:00:00 | B81: =Translation!$B$26&" 10" -> Wk 10 | C81: =SUM(C74:C80) -> 0 | D81: =SUM(D74:D80) -> 0 | E81: =IFERROR(AVERAGE(E74:E80), ) -> 0 | F81: =IFERROR(AVERAGE(F74:F80), ) -> 0 | G81: =SUM(G74:G80) -> 0 | H81: =SUM(H74:H80) -> 0 | I81: =IFERROR(AVERAGE(I74:I80), ) -> 0 | J81: =IFERROR(AVERAGE(J74:J80), ) -> 0
A82: =IF(General!$J$3>0,General!$J$3+B82, ) -> 00:00:00 | B82: 71
A83: =IF(General!$J$3>0,General!$J$3+B83, ) -> 00:00:00 | B83: 72
A84: =IF(General!$J$3>0,General!$J$3+B84, ) -> 00:00:00 | B84: 73
A85: =IF(General!$J$3>0,General!$J$3+B85, ) -> 00:00:00 | B85: 74
A86: =IF(General!$J$3>0,General!$J$3+B86, ) -> 00:00:00 | B86: 75
A87: =IF(General!$J$3>0,General!$J$3+B87, ) -> 00:00:00 | B87: 76
A88: =IF(General!$J$3>0,General!$J$3+B88, ) -> 00:00:00 | B88: 77
A89: =A88 -> 00:00:00 | B89: =Translation!$B$26&" 11" -> Wk 11 | C89: =SUM(C82:C88) -> 0 | D89: =SUM(D82:D88) -> 0 | E89: =IFERROR(AVERAGE(E82:E88), ) -> 0 | F89: =IFERROR(AVERAGE(F82:F88), ) -> 0 | G89: =SUM(G82:G88) -> 0 | H89: =SUM(H82:H88) -> 0 | I89: =IFERROR(AVERAGE(I82:I88), ) -> 0 | J89: =IFERROR(AVERAGE(J82:J88), ) -> 0
A90: =IF(General!$J$3>0,General!$J$3+B90, ) -> 00:00:00 | B90: 78
A91: =IF(General!$J$3>0,General!$J$3+B91, ) -> 00:00:00 | B91: 79
A92: =IF(General!$J$3>0,General!$J$3+B92, ) -> 00:00:00 | B92: 80
A93: =IF(General!$J$3>0,General!$J$3+B93, ) -> 00:00:00 | B93: 81
A94: =IF(General!$J$3>0,General!$J$3+B94, ) -> 00:00:00 | B94: 82
A95: =IF(General!$J$3>0,General!$J$3+B95, ) -> 00:00:00 | B95: 83
A96: =IF(General!$J$3>0,General!$J$3+B96, ) -> 00:00:00 | B96: 84
A97: =A96 -> 00:00:00 | B97: =Translation!$B$26&" 12" -> Wk 12 | C97: =SUM(C90:C96) -> 0 | D97: =SUM(D90:D96) -> 0 | E97: =IFERROR(AVERAGE(E90:E96), ) -> 0 | F97: =IFERROR(AVERAGE(F90:F96), ) -> 0 | G97: =SUM(G90:G96) -> 0 | H97: =SUM(H90:H96) -> 0 | I97: =IFERROR(AVERAGE(I90:I96), ) -> 0 | J97: =IFERROR(AVERAGE(J90:J96), ) -> 0
A98: =IF(General!$J$3>0,General!$J$3+B98, ) -> 00:00:00 | B98: 85
A99: =IF(General!$J$3>0,General!$J$3+B99, ) -> 00:00:00 | B99: 86
A100: =IF(General!$J$3>0,General!$J$3+B100, ) -> 00:00:00 | B100: 87
A101: =IF(General!$J$3>0,General!$J$3+B101, ) -> 00:00:00 | B101: 88
A102: =IF(General!$J$3>0,General!$J$3+B102, ) -> 00:00:00 | B102: 89
A103: =IF(General!$J$3>0,General!$J$3+B103, ) -> 00:00:00 | B103: 90
A104: =IF(General!$J$3>0,General!$J$3+B104, ) -> 00:00:00 | B104: 91
A105: =A104 -> 00:00:00 | B105: =Translation!$B$26&" 13" -> Wk 13 | C105: =SUM(C98:C104) -> 0 | D105: =SUM(D98:D104) -> 0 | E105: =IFERROR(AVERAGE(E98:E104), ) -> 0 | F105: =IFERROR(AVERAGE(F98:F104), ) -> 0 | G105: =SUM(G98:G104) -> 0 | H105: =SUM(H98:H104) -> 0 | I105: =IFERROR(AVERAGE(I98:I104), ) -> 0 | J105: =IFERROR(AVERAGE(J98:J104), ) -> 0
A106: =IF(General!$J$3>0,General!$J$3+B106, ) -> 00:00:00 | B106: 92
A107: =IF(General!$J$3>0,General!$J$3+B107, ) -> 00:00:00 | B107: 93
A108: =IF(General!$J$3>0,General!$J$3+B108, ) -> 00:00:00 | B108: 94
A109: =IF(General!$J$3>0,General!$J$3+B109, ) -> 00:00:00 | B109: 95
A110: =IF(General!$J$3>0,General!$J$3+B110, ) -> 00:00:00 | B110: 96
A111: =IF(General!$J$3>0,General!$J$3+B111, ) -> 00:00:00 | B111: 97
A112: =IF(General!$J$3>0,General!$J$3+B112, ) -> 00:00:00 | B112: 98
A113: =A112 -> 00:00:00 | B113: =Translation!$B$26&" 14" -> Wk 14 | C113: =SUM(C106:C112) -> 0 | D113: =SUM(D106:D112) -> 0 | E113: =IFERROR(AVERAGE(E106:E112), ) -> 0 | F113: =IFERROR(AVERAGE(F106:F112), ) -> 0 | G113: =SUM(G106:G112) -> 0 | H113: =SUM(H106:H112) -> 0 | I113: =IFERROR(AVERAGE(I106:I112), ) -> 0 | J113: =IFERROR(AVERAGE(J106:J112), ) -> 0
A114: =IF(General!$J$3>0,General!$J$3+B114, ) -> 00:00:00 | B114: 99
A115: =IF(General!$J$3>0,General!$J$3+B115, ) -> 00:00:00 | B115: 100
A116: =IF(General!$J$3>0,General!$J$3+B116, ) -> 00:00:00 | B116: 101
A117: =IF(General!$J$3>0,General!$J$3+B117, ) -> 00:00:00 | B117: 102
A118: =IF(General!$J$3>0,General!$J$3+B118, ) -> 00:00:00 | B118: 103
A119: =IF(General!$J$3>0,General!$J$3+B119, ) -> 00:00:00 | B119: 104
A120: =IF(General!$J$3>0,General!$J$3+B120, ) -> 00:00:00 | B120: 105
A121: =A120 -> 00:00:00 | B121: =Translation!$B$26&" 15" -> Wk 15 | C121: =SUM(C114:C120) -> 0 | D121: =SUM(D114:D120) -> 0 | E121: =IFERROR(AVERAGE(E114:E120), ) -> 0 | F121: =IFERROR(AVERAGE(F114:F120), ) -> 0 | G121: =SUM(G114:G120) -> 0 | H121: =SUM(H114:H120) -> 0 | I121: =IFERROR(AVERAGE(I114:I120), ) -> 0 | J121: =IFERROR(AVERAGE(J114:J120), ) -> 0
A122: =IF(General!$J$3>0,General!$J$3+B122, ) -> 00:00:00 | B122: 106
A123: =IF(General!$J$3>0,General!$J$3+B123, ) -> 00:00:00 | B123: 107
A124: =IF(General!$J$3>0,General!$J$3+B124, ) -> 00:00:00 | B124: 108
A125: =IF(General!$J$3>0,General!$J$3+B125, ) -> 00:00:00 | B125: 109
A126: =IF(General!$J$3>0,General!$J$3+B126, ) -> 00:00:00 | B126: 110
A127: =IF(General!$J$3>0,General!$J$3+B127, ) -> 00:00:00 | B127: 111
A128: =IF(General!$J$3>0,General!$J$3+B128, ) -> 00:00:00 | B128: 112
A129: =A128 -> 00:00:00 | B129: =Translation!$B$26&" 16" -> Wk 16 | C129: =SUM(C122:C128) -> 0 | D129: =SUM(D122:D128) -> 0 | E129: =IFERROR(AVERAGE(E122:E128), ) -> 0 | F129: =IFERROR(AVERAGE(F122:F128), ) -> 0 | G129: =SUM(G122:G128) -> 0 | H129: =SUM(H122:H128) -> 0 | I129: =IFERROR(AVERAGE(I122:I128), ) -> 0 | J129: =IFERROR(AVERAGE(J122:J128), ) -> 0
A130: =IF(General!$J$3>0,General!$J$3+B130, ) -> 00:00:00 | B130: 113
A131: =IF(General!$J$3>0,General!$J$3+B131, ) -> 00:00:00 | B131: 114
A132: =IF(General!$J$3>0,General!$J$3+B132, ) -> 00:00:00 | B132: 115
A133: =IF(General!$J$3>0,General!$J$3+B133, ) -> 00:00:00 | B133: 116
A134: =IF(General!$J$3>0,General!$J$3+B134, ) -> 00:00:00 | B134: 117
A135: =IF(General!$J$3>0,General!$J$3+B135, ) -> 00:00:00 | B135: 118
A136: =IF(General!$J$3>0,General!$J$3+B136, ) -> 00:00:00 | B136: 119
A137: =A136 -> 00:00:00 | B137: =Translation!$B$26&" 17" -> Wk 17 | C137: =SUM(C130:C136) -> 0 | D137: =SUM(D130:D136) -> 0 | E137: =IFERROR(AVERAGE(E130:E136), ) -> 0 | F137: =IFERROR(AVERAGE(F130:F136), ) -> 0 | G137: =SUM(G130:G136) -> 0 | H137: =SUM(H130:H136) -> 0 | I137: =IFERROR(AVERAGE(I130:I136), ) -> 0 | J137: =IFERROR(AVERAGE(J130:J136), ) -> 0
A138: =IF(General!$J$3>0,General!$J$3+B138, ) -> 00:00:00 | B138: 120
A139: =IF(General!$J$3>0,General!$J$3+B139, ) -> 00:00:00 | B139: 121
A140: =IF(General!$J$3>0,General!$J$3+B140, ) -> 00:00:00 | B140: 122
A141: =IF(General!$J$3>0,General!$J$3+B141, ) -> 00:00:00 | B141: 123
A142: =IF(General!$J$3>0,General!$J$3+B142, ) -> 00:00:00 | B142: 124
A143: =IF(General!$J$3>0,General!$J$3+B143, ) -> 00:00:00 | B143: 125
A144: =IF(General!$J$3>0,General!$J$3+B144, ) -> 00:00:00 | B144: 126
A145: =A144 -> 00:00:00 | B145: =Translation!$B$26&" 18" -> Wk 18 | C145: =SUM(C138:C144) -> 0 | D145: =SUM(D138:D144) -> 0 | E145: =IFERROR(AVERAGE(E138:E144), ) -> 0 | F145: =IFERROR(AVERAGE(F138:F144), ) -> 0 | G145: =SUM(G138:G144) -> 0 | H145: =SUM(H138:H144) -> 0 | I145: =IFERROR(AVERAGE(I138:I144), ) -> 0 | J145: =IFERROR(AVERAGE(J138:J144), ) -> 0
A146: =IF(General!$J$3>0,General!$J$3+B146, ) -> 00:00:00 | B146: 127
A147: =IF(General!$J$3>0,General!$J$3+B147, ) -> 00:00:00 | B147: 128
A148: =IF(General!$J$3>0,General!$J$3+B148, ) -> 00:00:00 | B148: 129
A149: =IF(General!$J$3>0,General!$J$3+B149, ) -> 00:00:00 | B149: 130
A150: =IF(General!$J$3>0,General!$J$3+B150, ) -> 00:00:00 | B150: 131
A151: =IF(General!$J$3>0,General!$J$3+B151, ) -> 00:00:00 | B151: 132
A152: =IF(General!$J$3>0,General!$J$3+B152, ) -> 00:00:00 | B152: 133
A153: =A152 -> 00:00:00 | B153: =Translation!$B$26&" 19" -> Wk 19 | C153: =SUM(C146:C152) -> 0 | D153: =SUM(D146:D152) -> 0 | E153: =IFERROR(AVERAGE(E146:E152), ) -> 0 | F153: =IFERROR(AVERAGE(F146:F152), ) -> 0 | G153: =SUM(G146:G152) -> 0 | H153: =SUM(H146:H152) -> 0 | I153: =IFERROR(AVERAGE(I146:I152), ) -> 0 | J153: =IFERROR(AVERAGE(J146:J152), ) -> 0
A154: =IF(General!$J$3>0,General!$J$3+B154, ) -> 00:00:00 | B154: 134
A155: =IF(General!$J$3>0,General!$J$3+B155, ) -> 00:00:00 | B155: 135
A156: =IF(General!$J$3>0,General!$J$3+B156, ) -> 00:00:00 | B156: 136
A157: =IF(General!$J$3>0,General!$J$3+B157, ) -> 00:00:00 | B157: 137
A158: =IF(General!$J$3>0,General!$J$3+B158, ) -> 00:00:00 | B158: 138
A159: =IF(General!$J$3>0,General!$J$3+B159, ) -> 00:00:00 | B159: 139
A160: =IF(General!$J$3>0,General!$J$3+B160, ) -> 00:00:00 | B160: 140
A161: =A160 -> 00:00:00 | B161: =Translation!$B$26&" 20" -> Wk 20 | C161: =SUM(C154:C160) -> 0 | D161: =SUM(D154:D160) -> 0 | E161: =IFERROR(AVERAGE(E154:E160), ) -> 0 | F161: =IFERROR(AVERAGE(F154:F160), ) -> 0 | G161: =SUM(G154:G160) -> 0 | H161: =SUM(H154:H160) -> 0 | I161: =IFERROR(AVERAGE(I154:I160), ) -> 0 | J161: =IFERROR(AVERAGE(J154:J160), ) -> 0

Sheet In rearing (weekly)
C1: =Translation!B21 -> alternative | E1: =Translation!B21 -> alternative | I1: =Translation!B21 -> alternative | K1: =Translation!B21 -> alternative
A2: =Translation!B22 -> Date | B2: =Translation!B24 -> Week of Age | C2: =Translation!B27 -> No. of dead females | D2: =Translation!B28 -> % fem. mortality / week | E2: =Translation!B29 -> No. of dead males | F2: =Translation!B30 -> % male mortality / week | G2: =Translation!B31 -> Female Body Wt (g) | H2: =Translation!B32 -> Male Body Wt (g) | I2: =Translation!B34 -> Feed cons. (kg/wk) | J2: =Translation!B35 -> Feed cons. (g/bd/d) | K2: =Translation!B37 -> Water cons. (l/wk) | L2: =Translation!B38 -> Water cons. (ml/bd/d) | M2: =Translation!B39 -> Uniformity (%) | N2: =Translation!B40 -> a trait you like | O2: =Translation!B16 -> Remarks:
A3: ='In rearing (daily)'!$A$9 -> 00:00:00 | B3: 1 | C3: ='In rearing (daily)'!$C$9 -> 0 | E3: ='In rearing (daily)'!$D$9 -> 0 | G3: ='In rearing (daily)'!$E$9 -> 0 | H3: ='In rearing (daily)'!$F$9 -> 0 | I3: ='In rearing (daily)'!$G$9 -> 0 | K3: ='In rearing (daily)'!$H$9 -> 0 | M3: ='In rearing (daily)'!$I$9 -> 0 | N3: ='In rearing (daily)'!$J$9 -> 0
A4: ='In rearing (daily)'!$A$17 -> 00:00:00 | B4: 2 | C4: ='In rearing (daily)'!$C$17 -> 0 | E4: ='In rearing (daily)'!$D$17 -> 0 | G4: ='In rearing (daily)'!$E$17 -> 0 | H4: ='In rearing (daily)'!$F$17 -> 0 | I4: ='In rearing (daily)'!$G$17 -> 0 | K4: ='In rearing (daily)'!$H$17 -> 0 | M4: ='In rearing (daily)'!$I$17 -> 0 | N4: ='In rearing (daily)'!$J$17 -> 0
A5: ='In rearing (daily)'!$A$25 -> 00:00:00 | B5: 3 | C5: ='In rearing (daily)'!$C$25 -> 0 | E5: ='In rearing (daily)'!$D$25 -> 0 | G5: ='In rearing (daily)'!$E$25 -> 0 | H5: ='In rearing (daily)'!$F$25 -> 0 | I5: ='In rearing (daily)'!$G$25 -> 0 | K5: ='In rearing (daily)'!$H$25 -> 0 | M5: ='In rearing (daily)'!$I$25 -> 0 | N5: ='In rearing (daily)'!$J$25 -> 0
A6: ='In rearing (daily)'!$A$33 -> 00:00:00 | B6: 4 | C6: ='In rearing (daily)'!$C$33 -> 0 | E6: ='In rearing (daily)'!$D$33 -> 0 | G6: ='In rearing (daily)'!$E$33 -> 0 | H6: ='In rearing (daily)'!$F$33 -> 0 | I6: ='In rearing (daily)'!$G$33 -> 0 | K6: ='In rearing (daily)'!$H$33 -> 0 | M6: ='In rearing (daily)'!$I$33 -> 0 | N6: ='In rearing (daily)'!$J$33 -> 0
A7: ='In rearing (daily)'!$A$41 -> 00:00:00 | B7: 5 | C7: ='In rearing (daily)'!$C$41 -> 0 | E7: ='In rearing (daily)'!$D$41 -> 0 | G7: ='In rearing (daily)'!$E$41 -> 0 | H7: ='In rearing (daily)'!$F$41 -> 0 | I7: ='In rearing (daily)'!$G$41 -> 0 | K7: ='In rearing (daily)'!$H$41 -> 0 | M7: ='In rearing (daily)'!$I$41 -> 0 | N7: ='In rearing (daily)'!$J$41 -> 0
A8: ='In rearing (daily)'!$A$49 -> 00:00:00 | B8: 6 | C8: ='In rearing (daily)'!$C$49 -> 0 | E8: ='In rearing (daily)'!$D$49 -> 0 | G8: ='In rearing (daily)'!$E$49 -> 0 | H8: ='In rearing (daily)'!$F$49 -> 0 | I8: ='In rearing (daily)'!$G$49 -> 0 | K8: ='In rearing (daily)'!$H$49 -> 0 | M8: ='In rearing (daily)'!$I$49 -> 0 | N8: ='In rearing (daily)'!$J$49 -> 0
A9: ='In rearing (daily)'!$A$57 -> 00:00:00 | B9: 7 | C9: ='In rearing (daily)'!$C$57 -> 0 | E9: ='In rearing (daily)'!$D$57 -> 0 | G9: ='In rearing (daily)'!$E$57 -> 0 | H9: ='In rearing (daily)'!$F$57 -> 0 | I9: ='In rearing (daily)'!$G$57 -> 0 | K9: ='In rearing (daily)'!$H$57 -> 0 | M9: ='In rearing (daily)'!$I$57 -> 0 | N9: ='In rearing (daily)'!$J$57 -> 0
A10: ='In rearing (daily)'!$A$65 -> 00:00:00 | B10: 8 | C10: ='In rearing (daily)'!$C$65 -> 0 | E10: ='In rearing (daily)'!$D$65 -> 0 | G10: ='In rearing (daily)'!$E$65 -> 0 | H10: ='In rearing (daily)'!$F$65 -> 0 | I10: ='In rearing (daily)'!$G$65 -> 0 | K10: ='In rearing (daily)'!$H$65 -> 0 | M10: ='In rearing (daily)'!$I$65 -> 0 | N10: ='In rearing (daily)'!$J$65 -> 0
A11: ='In rearing (daily)'!$A$73 -> 00:00:00 | B11: 9 | C11: ='In rearing (daily)'!$C$73 -> 0 | E11: ='In rearing (daily)'!$D$73 -> 0 | G11: ='In rearing (daily)'!$E$73 -> 0 | H11: ='In rearing (daily)'!$F$73 -> 0 | I11: ='In rearing (daily)'!$G$73 -> 0 | K11: ='In rearing (daily)'!$H$73 -> 0 | M11: ='In rearing (daily)'!$I$73 -> 0 | N11: ='In rearing (daily)'!$J$73 -> 0
A12: ='In rearing (daily)'!$A$81 -> 00:00:00 | B12: 10 | C12: ='In rearing (daily)'!$C$81 -> 0 | E12: ='In rearing (daily)'!$D$81 -> 0 | G12: ='In rearing (daily)'!$E$81 -> 0 | H12: ='In rearing (daily)'!$F$81 -> 0 | I12: ='In rearing (daily)'!$G$81 -> 0 | K12: ='In rearing (daily)'!$H$81 -> 0 | M12: ='In rearing (daily)'!$I$81 -> 0 | N12: ='In rearing (daily)'!$J$81 -> 0
A13: ='In rearing (daily)'!$A$89 -> 00:00:00 | B13: 11 | C13: ='In rearing (daily)'!$C$89 -> 0 | E13: ='In rearing (daily)'!$D$89 -> 0 | G13: ='In rearing (daily)'!$E$89 -> 0 | H13: ='In rearing (daily)'!$F$89 -> 0 | I13: ='In rearing (daily)'!$G$89 -> 0 | K13: ='In rearing (daily)'!$H$89 -> 0 | M13: ='In rearing (daily)'!$I$89 -> 0 | N13: ='In rearing (daily)'!$J$89 -> 0
A14: ='In rearing (daily)'!$A$97 -> 00:00:00 | B14: 12 | C14: ='In rearing (daily)'!$C$97 -> 0 | E14: ='In rearing (daily)'!$D$97 -> 0 | G14: ='In rearing (daily)'!$E$97 -> 0 | H14: ='In rearing (daily)'!$F$97 -> 0 | I14: ='In rearing (daily)'!$G$97 -> 0 | K14: ='In rearing (daily)'!$H$97 -> 0 | M14: ='In rearing (daily)'!$I$97 -> 0 | N14: ='In rearing (daily)'!$J$97 -> 0
A15: ='In rearing (daily)'!$A$105 -> 00:00:00 | B15: 13 | C15: ='In rearing (daily)'!$C$105 -> 0 | E15: ='In rearing (daily)'!$D$105 -> 0 | G15: ='In rearing (daily)'!$E$105 -> 0 | H15: ='In rearing (daily)'!$F$105 -> 0 | I15: ='In rearing (daily)'!$G$105 -> 0 | K15: ='In rearing (daily)'!$H$105 -> 0 | M15: ='In rearing (daily)'!$I$105 -> 0 | N15: ='In rearing (daily)'!$J$105 -> 0
A16: ='In rearing (daily)'!$A$113 -> 00:00:00 | B16: 14 | C16: ='In rearing (daily)'!$C$113 -> 0 | E16: ='In rearing (daily)'!$D$113 -> 0 | G16: ='In rearing (daily)'!$E$113 -> 0 | H16: ='In rearing (daily)'!$F$113 -> 0 | I16: ='In rearing (daily)'!$G$113 -> 0 | K16: ='In rearing (daily)'!$H$113 -> 0 | M16: ='In rearing (daily)'!$I$113 -> 0 | N16: ='In rearing (daily)'!$J$113 -> 0
A17: ='In rearing (daily)'!$A$121 -> 00:00:00 | B17: 15 | C17: ='In rearing (daily)'!$C$121 -> 0 | E17: ='In rearing (daily)'!$D$121 -> 0 | G17: ='In rearing (daily)'!$E$121 -> 0 | H17: ='In rearing (daily)'!$F$121 -> 0 | I17: ='In rearing (daily)'!$G$121 -> 0 | K17: ='In rearing (daily)'!$H$121 -> 0 | M17: ='In rearing (daily)'!$I$121 -> 0 | N17: ='In rearing (daily)'!$J$121 -> 0
A18: ='In rearing (daily)'!$A$129 -> 00:00:00 | B18: 16 | C18: ='In rearing (daily)'!$C$129 -> 0 | E18: ='In rearing (daily)'!$D$129 -> 0 | G18: ='In rearing (daily)'!$E$129 -> 0 | H18: ='In rearing (daily)'!$F$129 -> 0 | I18: ='In rearing (daily)'!$G$129 -> 0 | K18: ='In rearing (daily)'!$H$129 -> 0 | M18: ='In rearing (daily)'!$I$129 -> 0 | N18: ='In rearing (daily)'!$J$129 -> 0
A19: ='In rearing (daily)'!$A$137 -> 00:00:00 | B19: 17 | C19: ='In rearing (daily)'!$C$137 -> 0 | E19: ='In rearing (daily)'!$D$137 -> 0 | G19: ='In rearing (daily)'!$E$137 -> 0 | H19: ='In rearing (daily)'!$F$137 -> 0 | I19: ='In rearing (daily)'!$G$137 -> 0 | K19: ='In rearing (daily)'!$H$137 -> 0 | M19: ='In rearing (daily)'!$I$137 -> 0 | N19: ='In rearing (daily)'!$J$137 -> 0
A20: ='In rearing (daily)'!$A$145 -> 00:00:00 | B20: 18 | C20: ='In rearing (daily)'!$C$145 -> 0 | E20: ='In rearing (daily)'!$D$145 -> 0 | G20: ='In rearing (daily)'!$E$145 -> 0 | H20: ='In rearing (daily)'!$F$145 -> 0 | I20: ='In rearing (daily)'!$G$145 -> 0 | K20: ='In rearing (daily)'!$H$145 -> 0 | M20: ='In rearing (daily)'!$I$145 -> 0 | N20: ='In rearing (daily)'!$J$145 -> 0
A21: ='In rearing (daily)'!$A$153 -> 00:00:00 | B21: 19 | C21: ='In rearing (daily)'!$C$153 -> 0 | E21: ='In rearing (daily)'!$D$153 -> 0 | G21: ='In rearing (daily)'!$E$153 -> 0 | H21: ='In rearing (daily)'!$F$153 -> 0 | I21: ='In rearing (daily)'!$G$153 -> 0 | K21: ='In rearing (daily)'!$H$153 -> 0 | M21: ='In rearing (daily)'!$I$153 -> 0 | N21: ='In rearing (daily)'!$J$153 -> 0
A22: ='In rearing (daily)'!$A$161 -> 00:00:00 | B22: 20 | C22: ='In rearing (daily)'!$C$161 -> 0 | E22: ='In rearing (daily)'!$D$161 -> 0 | G22: ='In rearing (daily)'!$E$161 -> 0 | H22: ='In rearing (daily)'!$F$161 -> 0 | I22: ='In rearing (daily)'!$G$161 -> 0 | K22: ='In rearing (daily)'!$H$161 -> 0 | M22: ='In rearing (daily)'!$I$161 -> 0 | N22: ='In rearing (daily)'!$J$161 -> 0

Sheet In prod (daily)
A1: =Translation!B22 -> Date | B1: =Translation!B23 -> Age (days) | C1: =Translation!B27 -> No. of dead females | D1: =Translation!B29 -> No. of dead males | E1: =Translation!B55 -> No. of eggs/ week | F1: =Translation!B57 -> No. of hatching eggs/wk | G1: =Translation!B59 -> No. of eggs set | H1: =Translation!B60 -> No. of fem. chicks hatched | I1: =Translation!B31 -> Female Body Wt (g) | J1: =Translation!B32 -> Male Body Wt (g) | K1: =Translation!B33 -> Feed cons. (kg/day) | L1: =Translation!B36 -> Water cons. (l/day) | M1: =Translation!B40 -> a trait you like | N1: =Translation!B16 -> Remarks: | O1: KW
A2: =IF(General!$J$3>0,General!$J$3+B2, ) -> 00:00:00 | B2: 99 | O2: 105
A3: =IF(General!$J$3>0,General!$J$3+B3, ) -> 00:00:00 | B3: 100 | O3: 112
A4: =IF(General!$J$3>0,General!$J$3+B4, ) -> 00:00:00 | B4: 101 | O4: 119
A5: =IF(General!$J$3>0,General!$J$3+B5, ) -> 00:00:00 | B5: 102 | O5: 126
A6: =IF(General!$J$3>0,General!$J$3+B6, ) -> 00:00:00 | B6: 103 | O6: 133
A7: =IF(General!$J$3>0,General!$J$3+B7, ) -> 00:00:00 | B7: 104 | O7: 140
A8: =IF(General!$J$3>0,General!$J$3+B8, ) -> 00:00:00 | B8: 105 | O8: 147
A9: =A8 -> 00:00:00 | B9: =Translation!$B$26&" 15" -> Wk 15 | C9: =SUM(C2:C8) -> 0 | D9: 0 | E9: 0 | F9: 0 | G9: 0 | H9: 0 | I9: =IFERROR(AVERAGE(I2:I8), ) -> 0 | J9: =IFERROR(AVERAGE(J2:J8), ) -> 0 | K9: =SUM(K2:K8) -> 0 | L9: =SUM(L2:L8) -> 0 | M9: =IFERROR(AVERAGE(M2:M8), ) -> 0 | O9: 154
A10: =IF(General!$J$3>0,General!$J$3+B10, ) -> 00:00:00 | B10: 106 | O10: 161
A11: =IF(General!$J$3>0,General!$J$3+B11, ) -> 00:00:00 | B11: 107 | O11: 168
A12: =IF(General!$J$3>0,General!$J$3+B12, ) -> 00:00:00 | B12: 108 | O12: 175
A13: =IF(General!$J$3>0,General!$J$3+B13, ) -> 00:00:00 | B13: 109 | O13: 182
A14: =IF(General!$J$3>0,General!$J$3+B14, ) -> 00:00:00 | B14: 110 | O14: 189
A15: =IF(General!$J$3>0,General!$J$3+B15, ) -> 00:00:00 | B15: 111 | O15: 196
A16: =IF(General!$J$3>0,General!$J$3+B16, ) -> 00:00:00 | B16: 112 | O16: 203
A17: =A16 -> 00:00:00 | B17: =Translation!$B$26&" 16" -> Wk 16 | C17: =SUM(C10:C16) -> 0 | D17: 0 | E17: 0 | F17: 0 | G17: 0 | H17: 0 | I17: =IFERROR(AVERAGE(I10:I16), ) -> 0 | J17: =IFERROR(AVERAGE(J10:J16), ) -> 0 | K17: =SUM(K10:K16) -> 0 | L17: =SUM(L10:L16) -> 0 | M17: =IFERROR(AVERAGE(M10:M16), ) -> 0 | O17: 210
A18: =IF(General!$J$3>0,General!$J$3+B18, ) -> 00:00:00 | B18: 113 | O18: 217
A19: =IF(General!$J$3>0,General!$J$3+B19, ) -> 00:00:00 | B19: 114 | O19: 224
A20: =IF(General!$J$3>0,General!$J$3+B20, ) -> 00:00:00 | B20: 115 | O20: 231
A21: =IF(General!$J$3>0,General!$J$3+B21, ) -> 00:00:00 | B21: 116 | O21: 238
A22: =IF(General!$J$3>0,General!$J$3+B22, ) -> 00:00:00 | B22: 117 | O22: 245
A23: =IF(General!$J$3>0,General!$J$3+B23, ) -> 00:00:00 | B23: 118 | O23: 252
A24: =IF(General!$J$3>0,General!$J$3+B24, ) -> 00:00:00 | B24: 119 | O24: 259
A25: =A24 -> 00:00:00 | B25: =Translation!$B$26&" 17" -> Wk 17 | C25: =SUM(C18:C24) -> 0 | D25: 0 | E25: 0 | F25: 0 | G25: 0 | H25: 0 | I25: =IFERROR(AVERAGE(I18:I24), ) -> 0 | J25: =IFERROR(AVERAGE(J18:J24), ) -> 0 | K25: =SUM(K18:K24) -> 0 | L25: =SUM(L18:L24) -> 0 | M25: =IFERROR(AVERAGE(M18:M24), ) -> 0 | O25: 266
A26: =IF(General!$J$3>0,General!$J$3+B26, ) -> 00:00:00 | B26: 120 | O26: 273
A27: =IF(General!$J$3>0,General!$J$3+B27, ) -> 00:00:00 | B27: 121 | O27: 280
A28: =IF(General!$J$3>0,General!$J$3+B28, ) -> 00:00:00 | B28: 122 | O28: 287
A29: =IF(General!$J$3>0,General!$J$3+B29, ) -> 00:00:00 | B29: 123 | O29: 294
A30: =IF(General!$J$3>0,General!$J$3+B30, ) -> 00:00:00 | B30: 124 | O30: 301
A31: =IF(General!$J$3>0,General!$J$3+B31, ) -> 00:00:00 | B31: 125 | O31: 308
A32: =IF(General!$J$3>0,General!$J$3+B32, ) -> 00:00:00 | B32: 126 | O32: 315
A33: =A32 -> 00:00:00 | B33: =Translation!$B$26&" 18" -> Wk 18 | C33: =SUM(C26:C32) -> 0 | D33: 0 | E33: 0 | F33: 0 | G33: 0 | H33: 0 | I33: =IFERROR(AVERAGE(I26:I32), ) -> 0 | J33: =IFERROR(AVERAGE(J26:J32), ) -> 0 | K33: =SUM(K26:K32) -> 0 | L33: =SUM(L26:L32) -> 0 | M33: =IFERROR(AVERAGE(M26:M32), ) -> 0 | O33: 322
A34: =IF(General!$J$3>0,General!$J$3+B34, ) -> 00:00:00 | B34: 127 | O34: 329
A35: =IF(General!$J$3>0,General!$J$3+B35, ) -> 00:00:00 | B35: 128 | O35: 336
A36: =IF(General!$J$3>0,General!$J$3+B36, ) -> 00:00:00 | B36: 129 | O36: 343
A37: =IF(General!$J$3>0,General!$J$3+B37, ) -> 00:00:00 | B37: 130 | O37: 350
A38: =IF(General!$J$3>0,General!$J$3+B38, ) -> 00:00:00 | B38: 131 | O38: 357
A39: =IF(General!$J$3>0,General!$J$3+B39, ) -> 00:00:00 | B39: 132 | O39: 364
A40: =IF(General!$J$3>0,General!$J$3+B40, ) -> 00:00:00 | B40: 133 | O40: 371
A41: =A40 -> 00:00:00 | B41: =Translation!$B$26&" 19" -> Wk 19 | C41: =SUM(C34:C40) -> 0 | D41: 0 | E41: 0 | F41: 0 | G41: 0 | H41: 0 | I41: =IFERROR(AVERAGE(I34:I40), ) -> 0 | J41: =IFERROR(AVERAGE(J34:J40), ) -> 0 | K41: =SUM(K34:K40) -> 0 | L41: =SUM(L34:L40) -> 0 | M41: =IFERROR(AVERAGE(M34:M40), ) -> 0 | O41: 378
A42: =IF(General!$J$3>0,General!$J$3+B42, ) -> 00:00:00 | B42: 134 | O42: 385
A43: =IF(General!$J$3>0,General!$J$3+B43, ) -> 00:00:00 | B43: 135 | O43: 392
A44: =IF(General!$J$3>0,General!$J$3+B44, ) -> 00:00:00 | B44: 136 | O44: 399
A45: =IF(General!$J$3>0,General!$J$3+B45, ) -> 00:00:00 | B45: 137 | O45: 406
A46: =IF(General!$J$3>0,General!$J$3+B46, ) -> 00:00:00 | B46: 138 | O46: 413
A47: =IF(General!$J$3>0,General!$J$3+B47, ) -> 00:00:00 | B47: 139 | O47: 420
A48: =IF(General!$J$3>0,General!$J$3+B48, ) -> 00:00:00 | B48: 140 | O48: 427
A49: =A48 -> 00:00:00 | B49: =Translation!$B$26&" 20" -> Wk 20 | C49: =SUM(C42:C48) -> 0 | D49: 0 | E49: 0 | F49: 0 | G49: 0 | H49: 0 | I49: =IFERROR(AVERAGE(I42:I48), ) -> 0 | J49: =IFERROR(AVERAGE(J42:J48), ) -> 0 | K49: =SUM(K42:K48) -> 0 | L49: =SUM(L42:L48) -> 0 | M49: =IFERROR(AVERAGE(M42:M48), ) -> 0 | O49: 434
A50: =IF(General!$J$3>0,General!$J$3+B50, ) -> 00:00:00 | B50: 141 | O50: 441
A51: =IF(General!$J$3>0,General!$J$3+B51, ) -> 00:00:00 | B51: 142 | O51: 448
A52: =IF(General!$J$3>0,General!$J$3+B52, ) -> 00:00:00 | B52: 143 | O52: 455
A53: =IF(General!$J$3>0,General!$J$3+B53, ) -> 00:00:00 | B53: 144 | O53: 462
A54: =IF(General!$J$3>0,General!$J$3+B54, ) -> 00:00:00 | B54: 145 | O54: 469
A55: =IF(General!$J$3>0,General!$J$3+B55, ) -> 00:00:00 | B55: 146 | O55: 476
A56: =IF(General!$J$3>0,General!$J$3+B56, ) -> 00:00:00 | B56: 147 | O56: 483
A57: =A56 -> 00:00:00 | B57: =Translation!$B$26&" 21" -> Wk 21 | C57: =SUM(C50:C56) -> 0 | D57: 0 | E57: 0 | F57: 0 | G57: 0 | H57: 0 | I57: =IFERROR(AVERAGE(I50:I56), ) -> 0 | J57: =IFERROR(AVERAGE(J50:J56), ) -> 0 | K57: =SUM(K50:K56) -> 0 | L57: =SUM(L50:L56) -> 0 | M57: =IFERROR(AVERAGE(M50:M56), ) -> 0 | O57: 490
A58: =IF(General!$J$3>0,General!$J$3+B58, ) -> 00:00:00 | B58: 148 | O58: 497
A59: =IF(General!$J$3>0,General!$J$3+B59, ) -> 00:00:00 | B59: 149 | O59: 504
A60: =IF(General!$J$3>0,General!$J$3+B60, ) -> 00:00:00 | B60: 150 | O60: 511
A61: =IF(General!$J$3>0,General!$J$3+B61, ) -> 00:00:00 | B61: 151 | O61: 518
A62: =IF(General!$J$3>0,General!$J$3+B62, ) -> 00:00:00 | B62: 152 | O62: 525
A63: =IF(General!$J$3>0,General!$J$3+B63, ) -> 00:00:00 | B63: 153 | O63: 532
A64: =IF(General!$J$3>0,General!$J$3+B64, ) -> 00:00:00 | B64: 154 | O64: 539
A65: =A64 -> 00:00:00 | B65: =Translation!$B$26&" 22" -> Wk 22 | C65: =SUM(C58:C64) -> 0 | D65: 0 | E65: 0 | F65: 0 | G65: 0 | H65: 0 | I65: =IFERROR(AVERAGE(I58:I64), ) -> 0 | J65: =IFERROR(AVERAGE(J58:J64), ) -> 0 | K65: =SUM(K58:K64) -> 0 | L65: =SUM(L58:L64) -> 0 | M65: =IFERROR(AVERAGE(M58:M64), ) -> 0 | O65: 546
A66: =IF(General!$J$3>0,General!$J$3+B66, ) -> 00:00:00 | B66: 155 | O66: 553
A67: =IF(General!$J$3>0,General!$J$3+B67, ) -> 00:00:00 | B67: 156 | O67: 560
A68: =IF(General!$J$3>0,General!$J$3+B68, ) -> 00:00:00 | B68: 157
A69: =IF(General!$J$3>0,General!$J$3+B69, ) -> 00:00:00 | B69: 158
A70: =IF(General!$J$3>0,General!$J$3+B70, ) -> 00:00:00 | B70: 159
A71: =IF(General!$J$3>0,General!$J$3+B71, ) -> 00:00:00 | B71: 160
A72: =IF(General!$J$3>0,General!$J$3+B72, ) -> 00:00:00 | B72: 161
A73: =A72 -> 00:00:00 | B73: =Translation!$B$26&" 23" -> Wk 23 | C73: =SUM(C66:C72) -> 0 | D73: 0 | E73: 0 | F73: 0 | G73: 0 | H73: 0 | I73: =IFERROR(AVERAGE(I66:I72), ) -> 0 | J73: =IFERROR(AVERAGE(J66:J72), ) -> 0 | K73: =SUM(K66:K72) -> 0 | L73: =SUM(L66:L72) -> 0 | M73: =IFERROR(AVERAGE(M66:M72), ) -> 0
A74: =IF(General!$J$3>0,General!$J$3+B74, ) -> 00:00:00 | B74: 162
A75: =IF(General!$J$3>0,General!$J$3+B75, ) -> 00:00:00 | B75: 163
A76: =IF(General!$J$3>0,General!$J$3+B76, ) -> 00:00:00 | B76: 164
A77: =IF(General!$J$3>0,General!$J$3+B77, ) -> 00:00:00 | B77: 165
A78: =IF(General!$J$3>0,General!$J$3+B78, ) -> 00:00:00 | B78: 166
A79: =IF(General!$J$3>0,General!$J$3+B79, ) -> 00:00:00 | B79: 167
A80: =IF(General!$J$3>0,General!$J$3+B80, ) -> 00:00:00 | B80: 168
A81: =A80 -> 00:00:00 | B81: =Translation!$B$26&" 24" -> Wk 24 | C81: =SUM(C74:C80) -> 0 | D81: 0 | E81: 0 | F81: 0 | G81: 0 | H81: 0 | I81: =IFERROR(AVERAGE(I74:I80), ) -> 0 | J81: =IFERROR(AVERAGE(J74:J80), ) -> 0 | K81: =SUM(K74:K80) -> 0 | L81: =SUM(L74:L80) -> 0 | M81: =IFERROR(AVERAGE(M74:M80), ) -> 0
A82: =IF(General!$J$3>0,General!$J$3+B82, ) -> 00:00:00 | B82: 169
A83: =IF(General!$J$3>0,General!$J$3+B83, ) -> 00:00:00 | B83: 170
A84: =IF(General!$J$3>0,General!$J$3+B84, ) -> 00:00:00 | B84: 171
A85: =IF(General!$J$3>0,General!$J$3+B85, ) -> 00:00:00 | B85: 172
A86: =IF(General!$J$3>0,General!$J$3+B86, ) -> 00:00:00 | B86: 173
A87: =IF(General!$J$3>0,General!$J$3+B87, ) -> 00:00:00 | B87: 174
A88: =IF(General!$J$3>0,General!$J$3+B88, ) -> 00:00:00 | B88: 175
A89: =A88 -> 00:00:00 | B89: =Translation!$B$26&" 25" -> Wk 25 | C89: =SUM(C82:C88) -> 0 | D89: 0 | E89: 0 | F89: 0 | G89: 0 | H89: 0 | I89: =IFERROR(AVERAGE(I82:I88), ) -> 0 | J89: =IFERROR(AVERAGE(J82:J88), ) -> 0 | K89: =SUM(K82:K88) -> 0 | L89: =SUM(L82:L88) -> 0 | M89: =IFERROR(AVERAGE(M82:M88), ) -> 0
A90: =IF(General!$J$3>0,General!$J$3+B90, ) -> 00:00:00 | B90: 176
A91: =IF(General!$J$3>0,General!$J$3+B91, ) -> 00:00:00 | B91: 177
A92: =IF(General!$J$3>0,General!$J$3+B92, ) -> 00:00:00 | B92: 178
A93: =IF(General!$J$3>0,General!$J$3+B93, ) -> 00:00:00 | B93: 179
A94: =IF(General!$J$3>0,General!$J$3+B94, ) -> 00:00:00 | B94: 180
A95: =IF(General!$J$3>0,General!$J$3+B95, ) -> 00:00:00 | B95: 181
A96: =IF(General!$J$3>0,General!$J$3+B96, ) -> 00:00:00 | B96: 182
A97: =A96 -> 00:00:00 | B97: =Translation!$B$26&" 26" -> Wk 26 | C97: =SUM(C90:C96) -> 0 | D97: 0 | E97: 0 | F97: 0 | G97: 0 | H97: 0 | I97: =IFERROR(AVERAGE(I90:I96), ) -> 0 | J97: =IFERROR(AVERAGE(J90:J96), ) -> 0 | K97: =SUM(K90:K96) -> 0 | L97: =SUM(L90:L96) -> 0 | M97: =IFERROR(AVERAGE(M90:M96), ) -> 0
A98: =IF(General!$J$3>0,General!$J$3+B98, ) -> 00:00:00 | B98: 183
A99: =IF(General!$J$3>0,General!$J$3+B99, ) -> 00:00:00 | B99: 184
A100: =IF(General!$J$3>0,General!$J$3+B100, ) -> 00:00:00 | B100: 185
A101: =IF(General!$J$3>0,General!$J$3+B101, ) -> 00:00:00 | B101: 186
A102: =IF(General!$J$3>0,General!$J$3+B102, ) -> 00:00:00 | B102: 187
A103: =IF(General!$J$3>0,General!$J$3+B103, ) -> 00:00:00 | B103: 188
A104: =IF(General!$J$3>0,General!$J$3+B104, ) -> 00:00:00 | B104: 189
A105: =A104 -> 00:00:00 | B105: =Translation!$B$26&" 27" -> Wk 27 | C105: =SUM(C98:C104) -> 0 | D105: 0 | E105: 0 | F105: 0 | G105: 0 | H105: 0 | I105: =IFERROR(AVERAGE(I98:I104), ) -> 0 | J105: =IFERROR(AVERAGE(J98:J104), ) -> 0 | K105: =SUM(K98:K104) -> 0 | L105: =SUM(L98:L104) -> 0 | M105: =IFERROR(AVERAGE(M98:M104), ) -> 0
A106: =IF(General!$J$3>0,General!$J$3+B106, ) -> 00:00:00 | B106: 190
A107: =IF(General!$J$3>0,General!$J$3+B107, ) -> 00:00:00 | B107: 191
A108: =IF(General!$J$3>0,General!$J$3+B108, ) -> 00:00:00 | B108: 192
A109: =IF(General!$J$3>0,General!$J$3+B109, ) -> 00:00:00 | B109: 193
A110: =IF(General!$J$3>0,General!$J$3+B110, ) -> 00:00:00 | B110: 194
A111: =IF(General!$J$3>0,General!$J$3+B111, ) -> 00:00:00 | B111: 195
A112: =IF(General!$J$3>0,General!$J$3+B112, ) -> 00:00:00 | B112: 196
A113: =A112 -> 00:00:00 | B113: =Translation!$B$26&" 28" -> Wk 28 | C113: =SUM(C106:C112) -> 0 | D113: 0 | E113: 0 | F113: 0 | G113: 0 | H113: 0 | I113: =IFERROR(AVERAGE(I106:I112), ) -> 0 | J113: =IFERROR(AVERAGE(J106:J112), ) -> 0 | K113: =SUM(K106:K112) -> 0 | L113: =SUM(L106:L112) -> 0 | M113: =IFERROR(AVERAGE(M106:M112), ) -> 0
A114: =IF(General!$J$3>0,General!$J$3+B114, ) -> 00:00:00 | B114: 197
A115: =IF(General!$J$3>0,General!$J$3+B115, ) -> 00:00:00 | B115: 198
A116: =IF(General!$J$3>0,General!$J$3+B116, ) -> 00:00:00 | B116: 199
A117: =IF(General!$J$3>0,General!$J$3+B117, ) -> 00:00:00 | B117: 200
A118: =IF(General!$J$3>0,General!$J$3+B118, ) -> 00:00:00 | B118: 201
A119: =IF(General!$J$3>0,General!$J$3+B119, ) -> 00:00:00 | B119: 202
A120: =IF(General!$J$3>0,General!$J$3+B120, ) -> 00:00:00 | B120: 203
A121: =A120 -> 00:00:00 | B121: =Translation!$B$26&" 29" -> Wk 29 | C121: =SUM(C114:C120) -> 0 | D121: 0 | E121: 0 | F121: 0 | G121: 0 | H121: 0 | I121: =IFERROR(AVERAGE(I114:I120), ) -> 0 | J121: =IFERROR(AVERAGE(J114:J120), ) -> 0 | K121: =SUM(K114:K120) -> 0 | L121: =SUM(L114:L120) -> 0 | M121: =IFERROR(AVERAGE(M114:M120), ) -> 0
A122: =IF(General!$J$3>0,General!$J$3+B122, ) -> 00:00:00 | B122: 204
A123: =IF(General!$J$3>0,General!$J$3+B123, ) -> 00:00:00 | B123: 205
A124: =IF(General!$J$3>0,General!$J$3+B124, ) -> 00:00:00 | B124: 206
A125: =IF(General!$J$3>0,General!$J$3+B125, ) -> 00:00:00 | B125: 207
A126: =IF(General!$J$3>0,General!$J$3+B126, ) -> 00:00:00 | B126: 208
A127: =IF(General!$J$3>0,General!$J$3+B127, ) -> 00:00:00 | B127: 209
A128: =IF(General!$J$3>0,General!$J$3+B128, ) -> 00:00:00 | B128: 210
A129: =A128 -> 00:00:00 | B129: =Translation!$B$26&" 30" -> Wk 30 | C129: =SUM(C122:C128) -> 0 | D129: 0 | E129: 0 | F129: 0 | G129: 0 | H129: 0 | I129: =IFERROR(AVERAGE(I122:I128), ) -> 0 | J129: =IFERROR(AVERAGE(J122:J128), ) -> 0 | K129: =SUM(K122:K128) -> 0 | L129: =SUM(L122:L128) -> 0 | M129: =IFERROR(AVERAGE(M122:M128), ) -> 0
A130: =IF(General!$J$3>0,General!$J$3+B130, ) -> 00:00:00 | B130: 211
A131: =IF(General!$J$3>0,General!$J$3+B131, ) -> 00:00:00 | B131: 212
A132: =IF(General!$J$3>0,General!$J$3+B132, ) -> 00:00:00 | B132: 213
A133: =IF(General!$J$3>0,General!$J$3+B133, ) -> 00:00:00 | B133: 214
A134: =IF(General!$J$3>0,General!$J$3+B134, ) -> 00:00:00 | B134: 215
A135: =IF(General!$J$3>0,General!$J$3+B135, ) -> 00:00:00 | B135: 216
A136: =IF(General!$J$3>0,General!$J$3+B136, ) -> 00:00:00 | B136: 217
A137: =A136 -> 00:00:00 | B137: =Translation!$B$26&" 31" -> Wk 31 | C137: =SUM(C130:C136) -> 0 | D137: 0 | E137: 0 | F137: 0 | G137: 0 | H137: 0 | I137: =IFERROR(AVERAGE(I130:I136), ) -> 0 | J137: =IFERROR(AVERAGE(J130:J136), ) -> 0 | K137: =SUM(K130:K136) -> 0 | L137: =SUM(L130:L136) -> 0 | M137: =IFERROR(AVERAGE(M130:M136), ) -> 0
A138: =IF(General!$J$3>0,General!$J$3+B138, ) -> 00:00:00 | B138: 218
A139: =IF(General!$J$3>0,General!$J$3+B139, ) -> 00:00:00 | B139: 219
A140: =IF(General!$J$3>0,General!$J$3+B140, ) -> 00:00:00 | B140: 220
A141: =IF(General!$J$3>0,General!$J$3+B141, ) -> 00:00:00 | B141: 221
A142: =IF(General!$J$3>0,General!$J$3+B142, ) -> 00:00:00 | B142: 222
A143: =IF(General!$J$3>0,General!$J$3+B143, ) -> 00:00:00 | B143: 223
A144: =IF(General!$J$3>0,General!$J$3+B144, ) -> 00:00:00 | B144: 224
A145: =A144 -> 00:00:00 | B145: =Translation!$B$26&" 32" -> Wk 32 | C145: =SUM(C138:C144) -> 0 | D145: 0 | E145: 0 | F145: 0 | G145: 0 | H145: 0 | I145: =IFERROR(AVERAGE(I138:I144), ) -> 0 | J145: =IFERROR(AVERAGE(J138:J144), ) -> 0 | K145: =SUM(K138:K144) -> 0 | L145: =SUM(L138:L144) -> 0 | M145: =IFERROR(AVERAGE(M138:M144), ) -> 0
A146: =IF(General!$J$3>0,General!$J$3+B146, ) -> 00:00:00 | B146: 225
A147: =IF(General!$J$3>0,General!$J$3+B147, ) -> 00:00:00 | B147: 226
A148: =IF(General!$J$3>0,General!$J$3+B148, ) -> 00:00:00 | B148: 227
A149: =IF(General!$J$3>0,General!$J$3+B149, ) -> 00:00:00 | B149: 228
A150: =IF(General!$J$3>0,General!$J$3+B150, ) -> 00:00:00 | B150: 229
A151: =IF(General!$J$3>0,General!$J$3+B151, ) -> 00:00:00 | B151: 230
A152: =IF(General!$J$3>0,General!$J$3+B152, ) -> 00:00:00 | B152: 231
A153: =A152 -> 00:00:00 | B153: =Translation!$B$26&" 33" -> Wk 33 | C153: =SUM(C146:C152) -> 0 | D153: 0 | E153: 0 | F153: 0 | G153: 0 | H153: 0 | I153: =IFERROR(AVERAGE(I146:I152), ) -> 0 | J153: =IFERROR(AVERAGE(J146:J152), ) -> 0 | K153: =SUM(K146:K152) -> 0 | L153: =SUM(L146:L152) -> 0 | M153: =IFERROR(AVERAGE(M146:M152), ) -> 0
A154: =IF(General!$J$3>0,General!$J$3+B154, ) -> 00:00:00 | B154: 232
A155: =IF(General!$J$3>0,General!$J$3+B155, ) -> 00:00:00 | B155: 233
A156: =IF(General!$J$3>0,General!$J$3+B156, ) -> 00:00:00 | B156: 234
A157: =IF(General!$J$3>0,General!$J$3+B157, ) -> 00:00:00 | B157: 235
A158: =IF(General!$J$3>0,General!$J$3+B158, ) -> 00:00:00 | B158: 236
A159: =IF(General!$J$3>0,General!$J$3+B159, ) -> 00:00:00 | B159: 237
A160: =IF(General!$J$3>0,General!$J$3+B160, ) -> 00:00:00 | B160: 238
A161: =A160 -> 00:00:00 | B161: =Translation!$B$26&" 34" -> Wk 34 | C161: =SUM(C154:C160) -> 0 | D161: 0 | E161: 0 | F161: 0 | G161: 0 | H161: 0 | I161: =IFERROR(AVERAGE(I154:I160), ) -> 0 | J161: =IFERROR(AVERAGE(J154:J160), ) -> 0 | K161: =SUM(K154:K160) -> 0 | L161: =SUM(L154:L160) -> 0 | M161: =IFERROR(AVERAGE(M154:M160), ) -> 0
A162: =IF(General!$J$3>0,General!$J$3+B162, ) -> 00:00:00 | B162: 239
A163: =IF(General!$J$3>0,General!$J$3+B163, ) -> 00:00:00 | B163: 240
A164: =IF(General!$J$3>0,General!$J$3+B164, ) -> 00:00:00 | B164: 241
A165: =IF(General!$J$3>0,General!$J$3+B165, ) -> 00:00:00 | B165: 242
A166: =IF(General!$J$3>0,General!$J$3+B166, ) -> 00:00:00 | B166: 243
A167: =IF(General!$J$3>0,General!$J$3+B167, ) -> 00:00:00 | B167: 244
A168: =IF(General!$J$3>0,General!$J$3+B168, ) -> 00:00:00 | B168: 245
A169: =A168 -> 00:00:00 | B169: =Translation!$B$26&" 35" -> Wk 35 | C169: =SUM(C162:C168) -> 0 | D169: 0 | E169: 0 | F169: 0 | G169: 0 | H169: 0 | I169: =IFERROR(AVERAGE(I162:I168), ) -> 0 | J169: =IFERROR(AVERAGE(J162:J168), ) -> 0 | K169: =SUM(K162:K168) -> 0 | L169: =SUM(L162:L168) -> 0 | M169: =IFERROR(AVERAGE(M162:M168), ) -> 0
A170: =IF(General!$J$3>0,General!$J$3+B170, ) -> 00:00:00 | B170: 246
A171: =IF(General!$J$3>0,General!$J$3+B171, ) -> 00:00:00 | B171: 247
A172: =IF(General!$J$3>0,General!$J$3+B172, ) -> 00:00:00 | B172: 248
A173: =IF(General!$J$3>0,General!$J$3+B173, ) -> 00:00:00 | B173: 249
A174: =IF(General!$J$3>0,General!$J$3+B174, ) -> 00:00:00 | B174: 250
A175: =IF(General!$J$3>0,General!$J$3+B175, ) -> 00:00:00 | B175: 251
A176: =IF(General!$J$3>0,General!$J$3+B176, ) -> 00:00:00 | B176: 252
A177: =A176 -> 00:00:00 | B177: =Translation!$B$26&" 36" -> Wk 36 | C177: =SUM(C170:C176) -> 0 | D177: 0 | E177: 0 | F177: 0 | G177: 0 | H177: 0 | I177: =IFERROR(AVERAGE(I170:I176), ) -> 0 | J177: =IFERROR(AVERAGE(J170:J176), ) -> 0 | K177: =SUM(K170:K176) -> 0 | L177: =SUM(L170:L176) -> 0 | M177: =IFERROR(AVERAGE(M170:M176), ) -> 0
A178: =IF(General!$J$3>0,General!$J$3+B178, ) -> 00:00:00 | B178: 253
A179: =IF(General!$J$3>0,General!$J$3+B179, ) -> 00:00:00 | B179: 254
A180: =IF(General!$J$3>0,General!$J$3+B180, ) -> 00:00:00 | B180: 255
A181: =IF(General!$J$3>0,General!$J$3+B181, ) -> 00:00:00 | B181: 256
A182: =IF(General!$J$3>0,General!$J$3+B182, ) -> 00:00:00 | B182: 257
A183: =IF(General!$J$3>0,General!$J$3+B183, ) -> 00:00:00 | B183: 258
A184: =IF(General!$J$3>0,General!$J$3+B184, ) -> 00:00:00 | B184: 259
A185: =A184 -> 00:00:00 | B185: =Translation!$B$26&" 37" -> Wk 37 | C185: =SUM(C178:C184) -> 0 | D185: 0 | E185: 0 | F185: 0 | G185: 0 | H185: 0 | I185: =IFERROR(AVERAGE(I178:I184), ) -> 0 | J185: =IFERROR(AVERAGE(J178:J184), ) -> 0 | K185: =SUM(K178:K184) -> 0 | L185: =SUM(L178:L184) -> 0 | M185: =IFERROR(AVERAGE(M178:M184), ) -> 0
A186: =IF(General!$J$3>0,General!$J$3+B186, ) -> 00:00:00 | B186: 260
A187: =IF(General!$J$3>0,General!$J$3+B187, ) -> 00:00:00 | B187: 261
A188: =IF(General!$J$3>0,General!$J$3+B188, ) -> 00:00:00 | B188: 262
A189: =IF(General!$J$3>0,General!$J$3+B189, ) -> 00:00:00 | B189: 263
A190: =IF(General!$J$3>0,General!$J$3+B190, ) -> 00:00:00 | B190: 264
A191: =IF(General!$J$3>0,General!$J$3+B191, ) -> 00:00:00 | B191: 265
A192: =IF(General!$J$3>0,General!$J$3+B192, ) -> 00:00:00 | B192: 266
A193: =A192 -> 00:00:00 | B193: =Translation!$B$26&" 38" -> Wk 38 | C193: =SUM(C186:C192) -> 0 | D193: 0 | E193: 0 | F193: 0 | G193: 0 | H193: 0 | I193: =IFERROR(AVERAGE(I186:I192), ) -> 0 | J193: =IFERROR(AVERAGE(J186:J192), ) -> 0 | K193: =SUM(K186:K192) -> 0 | L193: =SUM(L186:L192) -> 0 | M193: =IFERROR(AVERAGE(M186:M192), ) -> 0
A194: =IF(General!$J$3>0,General!$J$3+B194, ) -> 00:00:00 | B194: 267
A195: =IF(General!$J$3>0,General!$J$3+B195, ) -> 00:00:00 | B195: 268
A196: =IF(General!$J$3>0,General!$J$3+B196, ) -> 00:00:00 | B196: 269
A197: =IF(General!$J$3>0,General!$J$3+B197, ) -> 00:00:00 | B197: 270
A198: =IF(General!$J$3>0,General!$J$3+B198, ) -> 00:00:00 | B198: 271
A199: =IF(General!$J$3>0,General!$J$3+B199, ) -> 00:00:00 | B199: 272
A200: =IF(General!$J$3>0,General!$J$3+B200, ) -> 00:00:00 | B200: 273
... 329 more rows

Sheet In prod (weekly)
C1: =Translation!B21 -> alternative | E1: =Translation!$B$21 -> alternative | G1: =Translation!$B$21 -> alternative | I1: =Translation!$B$21 -> alternative | L1: =Translation!$B$21 -> alternative | P1: =Translation!$B$21 -> alternative | R1: =Translation!$B$21 -> alternative
A2: =Translation!B22 -> Date | B2: =Translation!B25 -> Wk of Age | C2: =Translation!B27 -> No. of dead females | D2: =Translation!B28 -> % fem. mortality / week | E2: =Translation!B29 -> No. of dead males | F2: =Translation!B30 -> % male mortality / week | G2: =Translation!B55 -> No. of eggs/ week | H2: =Translation!B56 -> % prod. /HD | I2: =Translation!B57 -> No. of hatching eggs/wk | J2: =Translation!B58 -> % hatching eggs / wk | K2: =Translation!B59 -> No. of eggs set | L2: =Translation!B60 -> No. of fem. chicks hatched | M2: =Translation!B61 -> % fem. hatch | N2: =Translation!B31 -> Female Body Wt (g) | O2: =Translation!B32 -> Male Body Wt (g) | P2: =Translation!B34 -> Feed cons. (kg/wk) | Q2: =Translation!B35 -> Feed cons. (g/bd/d) | R2: =Translation!B37 -> Water cons. (l/wk) | S2: =Translation!B38 -> Water cons. (ml/bd/d) | T2: =Translation!B40 -> a trait you like | U2: =Translation!B16 -> Remarks: | V2: Days
A3: =IF(General!$J$29>0,'In prod (daily)'!$A$9, ) -> 00:00:00 | B3: 15 | C3: ='In prod (daily)'!$C$9 -> 0 | E3: ='In prod (daily)'!$D$9 -> 0 | G3: ='In prod (daily)'!$E$9 -> 0 | I3: ='In prod (daily)'!$F$9 -> 0 | K3: ='In prod (daily)'!$G$9 -> 0 | L3: ='In prod (daily)'!$H$9 -> 0 | N3: ='In prod (daily)'!$I$9 -> 0 | O3: ='In prod (daily)'!$J$9 -> 0 | P3: ='In prod (daily)'!$K$9 -> 0 | R3: ='In prod (daily)'!$L$9 -> 0 | T3: ='In prod (daily)'!$M$9 -> 0 | V3: 105
A4: =IF(General!$J$29>0,A3+7, ) -> 00:00:00 | B4: 16 | C4: ='In prod (daily)'!$C$17 -> 0 | E4: ='In prod (daily)'!$D$17 -> 0 | G4: ='In prod (daily)'!$E$17 -> 0 | I4: ='In prod (daily)'!$F$17 -> 0 | K4: ='In prod (daily)'!$G$17 -> 0 | L4: ='In prod (daily)'!$H$17 -> 0 | N4: ='In prod (daily)'!$I$17 -> 0 | O4: ='In prod (daily)'!$J$17 -> 0 | P4: ='In prod (daily)'!$K$17 -> 0 | R4: ='In prod (daily)'!$L$17 -> 0 | T4: ='In prod (daily)'!$M$17 -> 0 | V4: 112
A5: =IF(General!$J$29>0,A4+7, ) -> 00:00:00 | B5: 17 | C5: ='In prod (daily)'!$C$25 -> 0 | E5: ='In prod (daily)'!$D$25 -> 0 | G5: ='In prod (daily)'!$E$25 -> 0 | I5: ='In prod (daily)'!$F$25 -> 0 | K5: ='In prod (daily)'!$G$25 -> 0 | L5: ='In prod (daily)'!$H$25 -> 0 | N5: ='In prod (daily)'!$I$25 -> 0 | O5: ='In prod (daily)'!$J$25 -> 0 | P5: ='In prod (daily)'!$K$25 -> 0 | R5: ='In prod (daily)'!$L$25 -> 0 | T5: ='In prod (daily)'!$M$25 -> 0 | V5: 119
A6: =IF(General!$J$29>0,A5+7, ) -> 00:00:00 | B6: 18 | C6: ='In prod (daily)'!$C$33 -> 0 | E6: ='In prod (daily)'!$D$33 -> 0 | G6: ='In prod (daily)'!$E$33 -> 0 | I6: ='In prod (daily)'!$F$33 -> 0 | K6: ='In prod (daily)'!$G$33 -> 0 | L6: ='In prod (daily)'!$H$33 -> 0 | N6: ='In prod (daily)'!$I$33 -> 0 | O6: ='In prod (daily)'!$J$33 -> 0 | P6: ='In prod (daily)'!$K$33 -> 0 | R6: ='In prod (daily)'!$L$33 -> 0 | T6: ='In prod (daily)'!$M$33 -> 0 | V6: 126
A7: =IF(General!$J$29>0,A6+7, ) -> 00:00:00 | B7: 19 | C7: ='In prod (daily)'!$C$41 -> 0 | E7: ='In prod (daily)'!$D$41 -> 0 | G7: ='In prod (daily)'!$E$41 -> 0 | I7: ='In prod (daily)'!$F$41 -> 0 | K7: ='In prod (daily)'!$G$41 -> 0 | L7: ='In prod (daily)'!$H$41 -> 0 | N7: ='In prod (daily)'!$I$41 -> 0 | O7: ='In prod (daily)'!$J$41 -> 0 | P7: ='In prod (daily)'!$K$41 -> 0 | R7: ='In prod (daily)'!$L$41 -> 0 | T7: ='In prod (daily)'!$M$41 -> 0 | V7: 133
A8: =IF(General!$J$29>0,A7+7, ) -> 00:00:00 | B8: 20 | C8: ='In prod (daily)'!$C$49 -> 0 | E8: ='In prod (daily)'!$D$49 -> 0 | G8: ='In prod (daily)'!$E$49 -> 0 | I8: ='In prod (daily)'!$F$49 -> 0 | K8: ='In prod (daily)'!$G$49 -> 0 | L8: ='In prod (daily)'!$H$49 -> 0 | N8: ='In prod (daily)'!$I$49 -> 0 | O8: ='In prod (daily)'!$J$49 -> 0 | P8: ='In prod (daily)'!$K$49 -> 0 | R8: ='In prod (daily)'!$L$49 -> 0 | T8: ='In prod (daily)'!$M$49 -> 0 | V8: 140
A9: =IF(General!$J$29>0,A8+7, ) -> 00:00:00 | B9: 21 | C9: ='In prod (daily)'!$C$57 -> 0 | E9: ='In prod (daily)'!$D$57 -> 0 | G9: ='In prod (daily)'!$E$57 -> 0 | I9: ='In prod (daily)'!$F$57 -> 0 | K9: ='In prod (daily)'!$G$57 -> 0 | L9: ='In prod (daily)'!$H$57 -> 0 | N9: ='In prod (daily)'!$I$57 -> 0 | O9: ='In prod (daily)'!$J$57 -> 0 | P9: ='In prod (daily)'!$K$57 -> 0 | R9: ='In prod (daily)'!$L$57 -> 0 | T9: ='In prod (daily)'!$M$57 -> 0 | V9: 147
A10: =IF(General!$J$29>0,A9+7, ) -> 00:00:00 | B10: 22 | C10: ='In prod (daily)'!$C$65 -> 0 | E10: ='In prod (daily)'!$D$65 -> 0 | G10: ='In prod (daily)'!$E$65 -> 0 | I10: ='In prod (daily)'!$F$65 -> 0 | K10: ='In prod (daily)'!$G$65 -> 0 | L10: ='In prod (daily)'!$H$65 -> 0 | N10: ='In prod (daily)'!$I$65 -> 0 | O10: ='In prod (daily)'!$J$65 -> 0 | P10: ='In prod (daily)'!$K$65 -> 0 | R10: ='In prod (daily)'!$L$65 -> 0 | T10: ='In prod (daily)'!$M$65 -> 0 | V10: 154
A11: =IF(General!$J$29>0,A10+7, ) -> 00:00:00 | B11: 23 | C11: ='In prod (daily)'!$C$73 -> 0 | E11: ='In prod (daily)'!$D$73 -> 0 | G11: ='In prod (daily)'!$E$73 -> 0 | I11: ='In prod (daily)'!$F$73 -> 0 | K11: ='In prod (daily)'!$G$73 -> 0 | L11: ='In prod (daily)'!$H$73 -> 0 | N11: ='In prod (daily)'!$I$73 -> 0 | O11: ='In prod (daily)'!$J$73 -> 0 | P11: ='In prod (daily)'!$K$73 -> 0 | R11: ='In prod (daily)'!$L$73 -> 0 | T11: ='In prod (daily)'!$M$73 -> 0 | V11: 161
A12: =IF(General!$J$29>0,A11+7, ) -> 00:00:00 | B12: 24 | C12: ='In prod (daily)'!$C$81 -> 0 | E12: ='In prod (daily)'!$D$81 -> 0 | G12: ='In prod (daily)'!$E$81 -> 0 | I12: ='In prod (daily)'!$F$81 -> 0 | K12: ='In prod (daily)'!$G$81 -> 0 | L12: ='In prod (daily)'!$H$81 -> 0 | N12: ='In prod (daily)'!$I$81 -> 0 | O12: ='In prod (daily)'!$J$81 -> 0 | P12: ='In prod (daily)'!$K$81 -> 0 | R12: ='In prod (daily)'!$L$81 -> 0 | T12: ='In prod (daily)'!$M$81 -> 0 | V12: 168
A13: =IF(General!$J$29>0,A12+7, ) -> 00:00:00 | B13: 25 | C13: ='In prod (daily)'!$C$89 -> 0 | E13: ='In prod (daily)'!$D$89 -> 0 | G13: ='In prod (daily)'!$E$89 -> 0 | I13: ='In prod (daily)'!$F$89 -> 0 | K13: ='In prod (daily)'!$G$89 -> 0 | L13: ='In prod (daily)'!$H$89 -> 0 | N13: ='In prod (daily)'!$I$89 -> 0 | O13: ='In prod (daily)'!$J$89 -> 0 | P13: ='In prod (daily)'!$K$89 -> 0 | R13: ='In prod (daily)'!$L$89 -> 0 | T13: ='In prod (daily)'!$M$89 -> 0 | V13: 175
A14: =IF(General!$J$29>0,A13+7, ) -> 00:00:00 | B14: 26 | C14: ='In prod (daily)'!$C$97 -> 0 | E14: ='In prod (daily)'!$D$97 -> 0 | G14: ='In prod (daily)'!$E$97 -> 0 | I14: ='In prod (daily)'!$F$97 -> 0 | K14: ='In prod (daily)'!$G$97 -> 0 | L14: ='In prod (daily)'!$H$97 -> 0 | N14: ='In prod (daily)'!$I$97 -> 0 | O14: ='In prod (daily)'!$J$97 -> 0 | P14: ='In prod (daily)'!$K$97 -> 0 | R14: ='In prod (daily)'!$L$97 -> 0 | T14: ='In prod (daily)'!$M$97 -> 0 | V14: 182
A15: =IF(General!$J$29>0,A14+7, ) -> 00:00:00 | B15: 27 | C15: ='In prod (daily)'!$C$105 -> 0 | E15: ='In prod (daily)'!$D$105 -> 0 | G15: ='In prod (daily)'!$E$105 -> 0 | I15: ='In prod (daily)'!$F$105 -> 0 | K15: ='In prod (daily)'!$G$105 -> 0 | L15: ='In prod (daily)'!$H$105 -> 0 | N15: ='In prod (daily)'!$I$105 -> 0 | O15: ='In prod (daily)'!$J$105 -> 0 | P15: ='In prod (daily)'!$K$105 -> 0 | R15: ='In prod (daily)'!$L$105 -> 0 | T15: ='In prod (daily)'!$M$105 -> 0 | V15: 189
A16: =IF(General!$J$29>0,A15+7, ) -> 00:00:00 | B16: 28 | C16: ='In prod (daily)'!$C$113 -> 0 | E16: ='In prod (daily)'!$D$113 -> 0 | G16: ='In prod (daily)'!$E$113 -> 0 | I16: ='In prod (daily)'!$F$113 -> 0 | K16: ='In prod (daily)'!$G$113 -> 0 | L16: ='In prod (daily)'!$H$113 -> 0 | N16: ='In prod (daily)'!$I$113 -> 0 | O16: ='In prod (daily)'!$J$113 -> 0 | P16: ='In prod (daily)'!$K$113 -> 0 | R16: ='In prod (daily)'!$L$113 -> 0 | T16: ='In prod (daily)'!$M$113 -> 0 | V16: 196
A17: =IF(General!$J$29>0,A16+7, ) -> 00:00:00 | B17: 29 | C17: ='In prod (daily)'!$C$121 -> 0 | E17: ='In prod (daily)'!$D$121 -> 0 | G17: ='In prod (daily)'!$E$121 -> 0 | I17: ='In prod (daily)'!$F$121 -> 0 | K17: ='In prod (daily)'!$G$121 -> 0 | L17: ='In prod (daily)'!$H$121 -> 0 | N17: ='In prod (daily)'!$I$121 -> 0 | O17: ='In prod (daily)'!$J$121 -> 0 | P17: ='In prod (daily)'!$K$121 -> 0 | R17: ='In prod (daily)'!$L$121 -> 0 | T17: ='In prod (daily)'!$M$121 -> 0 | V17: 203
A18: =IF(General!$J$29>0,A17+7, ) -> 00:00:00 | B18: 30 | C18: ='In prod (daily)'!$C$129 -> 0 | E18: ='In prod (daily)'!$D$129 -> 0 | G18: ='In prod (daily)'!$E$129 -> 0 | I18: ='In prod (daily)'!$F$129 -> 0 | K18: ='In prod (daily)'!$G$129 -> 0 | L18: ='In prod (daily)'!$H$129 -> 0 | N18: ='In prod (daily)'!$I$129 -> 0 | O18: ='In prod (daily)'!$J$129 -> 0 | P18: ='In prod (daily)'!$K$129 -> 0 | R18: ='In prod (daily)'!$L$129 -> 0 | T18: ='In prod (daily)'!$M$129 -> 0 | V18: 210
A19: =IF(General!$J$29>0,A18+7, ) -> 00:00:00 | B19: 31 | C19: ='In prod (daily)'!$C$137 -> 0 | E19: ='In prod (daily)'!$D$137 -> 0 | G19: ='In prod (daily)'!$E$137 -> 0 | I19: ='In prod (daily)'!$F$137 -> 0 | K19: ='In prod (daily)'!$G$137 -> 0 | L19: ='In prod (daily)'!$H$137 -> 0 | N19: ='In prod (daily)'!$I$137 -> 0 | O19: ='In prod (daily)'!$J$137 -> 0 | P19: ='In prod (daily)'!$K$137 -> 0 | R19: ='In prod (daily)'!$L$137 -> 0 | T19: ='In prod (daily)'!$M$137 -> 0 | V19: 217
A20: =IF(General!$J$29>0,A19+7, ) -> 00:00:00 | B20: 32 | C20: ='In prod (daily)'!$C$145 -> 0 | E20: ='In prod (daily)'!$D$145 -> 0 | G20: ='In prod (daily)'!$E$145 -> 0 | I20: ='In prod (daily)'!$F$145 -> 0 | K20: ='In prod (daily)'!$G$145 -> 0 | L20: ='In prod (daily)'!$H$145 -> 0 | N20: ='In prod (daily)'!$I$145 -> 0 | O20: ='In prod (daily)'!$J$145 -> 0 | P20: ='In prod (daily)'!$K$145 -> 0 | R20: ='In prod (daily)'!$L$145 -> 0 | T20: ='In prod (daily)'!$M$145 -> 0 | V20: 224
A21: =IF(General!$J$29>0,A20+7, ) -> 00:00:00 | B21: 33 | C21: ='In prod (daily)'!$C$153 -> 0 | E21: ='In prod (daily)'!$D$153 -> 0 | G21: ='In prod (daily)'!$E$153 -> 0 | I21: ='In prod (daily)'!$F$153 -> 0 | K21: ='In prod (daily)'!$G$153 -> 0 | L21: ='In prod (daily)'!$H$153 -> 0 | N21: ='In prod (daily)'!$I$153 -> 0 | O21: ='In prod (daily)'!$J$153 -> 0 | P21: ='In prod (daily)'!$K$153 -> 0 | R21: ='In prod (daily)'!$L$153 -> 0 | T21: ='In prod (daily)'!$M$153 -> 0 | V21: 231
A22: =IF(General!$J$29>0,A21+7, ) -> 00:00:00 | B22: 34 | C22: ='In prod (daily)'!$C$161 -> 0 | E22: ='In prod (daily)'!$D$161 -> 0 | G22: ='In prod (daily)'!$E$161 -> 0 | I22: ='In prod (daily)'!$F$161 -> 0 | K22: ='In prod (daily)'!$G$161 -> 0 | L22: ='In prod (daily)'!$H$161 -> 0 | N22: ='In prod (daily)'!$I$161 -> 0 | O22: ='In prod (daily)'!$J$161 -> 0 | P22: ='In prod (daily)'!$K$161 -> 0 | R22: ='In prod (daily)'!$L$161 -> 0 | T22: ='In prod (daily)'!$M$161 -> 0 | V22: 238
A23: =IF(General!$J$29>0,A22+7, ) -> 00:00:00 | B23: 35 | C23: ='In prod (daily)'!$C$169 -> 0 | E23: ='In prod (daily)'!$D$169 -> 0 | G23: ='In prod (daily)'!$E$169 -> 0 | I23: ='In prod (daily)'!$F$169 -> 0 | K23: ='In prod (daily)'!$G$169 -> 0 | L23: ='In prod (daily)'!$H$169 -> 0 | N23: ='In prod (daily)'!$I$169 -> 0 | O23: ='In prod (daily)'!$J$169 -> 0 | P23: ='In prod (daily)'!$K$169 -> 0 | R23: ='In prod (daily)'!$L$169 -> 0 | T23: ='In prod (daily)'!$M$169 -> 0 | V23: 245
A24: =IF(General!$J$29>0,A23+7, ) -> 00:00:00 | B24: 36 | C24: ='In prod (daily)'!$C$177 -> 0 | E24: ='In prod (daily)'!$D$177 -> 0 | G24: ='In prod (daily)'!$E$177 -> 0 | I24: ='In prod (daily)'!$F$177 -> 0 | K24: ='In prod (daily)'!$G$177 -> 0 | L24: ='In prod (daily)'!$H$177 -> 0 | N24: ='In prod (daily)'!$I$177 -> 0 | O24: ='In prod (daily)'!$J$177 -> 0 | P24: ='In prod (daily)'!$K$177 -> 0 | R24: ='In prod (daily)'!$L$177 -> 0 | T24: ='In prod (daily)'!$M$177 -> 0 | V24: 252
A25: =IF(General!$J$29>0,A24+7, ) -> 00:00:00 | B25: 37 | C25: ='In prod (daily)'!$C$185 -> 0 | E25: ='In prod (daily)'!$D$185 -> 0 | G25: ='In prod (daily)'!$E$185 -> 0 | I25: ='In prod (daily)'!$F$185 -> 0 | K25: ='In prod (daily)'!$G$185 -> 0 | L25: ='In prod (daily)'!$H$185 -> 0 | N25: ='In prod (daily)'!$I$185 -> 0 | O25: ='In prod (daily)'!$J$185 -> 0 | P25: ='In prod (daily)'!$K$185 -> 0 | R25: ='In prod (daily)'!$L$185 -> 0 | T25: ='In prod (daily)'!$M$185 -> 0 | V25: 259
A26: =IF(General!$J$29>0,A25+7, ) -> 00:00:00 | B26: 38 | C26: ='In prod (daily)'!$C$193 -> 0 | E26: ='In prod (daily)'!$D$193 -> 0 | G26: ='In prod (daily)'!$E$193 -> 0 | I26: ='In prod (daily)'!$F$193 -> 0 | K26: ='In prod (daily)'!$G$193 -> 0 | L26: ='In prod (daily)'!$H$193 -> 0 | N26: ='In prod (daily)'!$I$193 -> 0 | O26: ='In prod (daily)'!$J$193 -> 0 | P26: ='In prod (daily)'!$K$193 -> 0 | R26: ='In prod (daily)'!$L$193 -> 0 | T26: ='In prod (daily)'!$M$193 -> 0 | V26: 266
A27: =IF(General!$J$29>0,A26+7, ) -> 00:00:00 | B27: 39 | C27: ='In prod (daily)'!$C$201 -> 0 | E27: ='In prod (daily)'!$D$201 -> 0 | G27: ='In prod (daily)'!$E$201 -> 0 | I27: ='In prod (daily)'!$F$201 -> 0 | K27: ='In prod (daily)'!$G$201 -> 0 | L27: ='In prod (daily)'!$H$201 -> 0 | N27: ='In prod (daily)'!$I$201 -> 0 | O27: ='In prod (daily)'!$J$201 -> 0 | P27: ='In prod (daily)'!$K$201 -> 0 | R27: ='In prod (daily)'!$L$201 -> 0 | T27: ='In prod (daily)'!$M$201 -> 0 | V27: 273
A28: =IF(General!$J$29>0,A27+7, ) -> 00:00:00 | B28: 40 | C28: ='In prod (daily)'!$C$209 -> 0 | E28: ='In prod (daily)'!$D$209 -> 0 | G28: ='In prod (daily)'!$E$209 -> 0 | I28: ='In prod (daily)'!$F$209 -> 0 | K28: ='In prod (daily)'!$G$209 -> 0 | L28: ='In prod (daily)'!$H$209 -> 0 | N28: ='In prod (daily)'!$I$209 -> 0 | O28: ='In prod (daily)'!$J$209 -> 0 | P28: ='In prod (daily)'!$K$209 -> 0 | R28: ='In prod (daily)'!$L$209 -> 0 | T28: ='In prod (daily)'!$M$209 -> 0 | V28: 280
A29: =IF(General!$J$29>0,A28+7, ) -> 00:00:00 | B29: 41 | C29: ='In prod (daily)'!$C$217 -> 0 | E29: ='In prod (daily)'!$D$217 -> 0 | G29: ='In prod (daily)'!$E$217 -> 0 | I29: ='In prod (daily)'!$F$217 -> 0 | K29: ='In prod (daily)'!$G$217 -> 0 | L29: ='In prod (daily)'!$H$217 -> 0 | N29: ='In prod (daily)'!$I$217 -> 0 | O29: ='In prod (daily)'!$J$217 -> 0 | P29: ='In prod (daily)'!$K$217 -> 0 | R29: ='In prod (daily)'!$L$217 -> 0 | T29: ='In prod (daily)'!$M$217 -> 0 | V29: 287
A30: =IF(General!$J$29>0,A29+7, ) -> 00:00:00 | B30: 42 | C30: ='In prod (daily)'!$C$225 -> 0 | E30: ='In prod (daily)'!$D$225 -> 0 | G30: ='In prod (daily)'!$E$225 -> 0 | I30: ='In prod (daily)'!$F$225 -> 0 | K30: ='In prod (daily)'!$G$225 -> 0 | L30: ='In prod (daily)'!$H$225 -> 0 | N30: ='In prod (daily)'!$I$225 -> 0 | O30: ='In prod (daily)'!$J$225 -> 0 | P30: ='In prod (daily)'!$K$225 -> 0 | R30: ='In prod (daily)'!$L$225 -> 0 | T30: ='In prod (daily)'!$M$225 -> 0 | V30: 294
A31: =IF(General!$J$29>0,A30+7, ) -> 00:00:00 | B31: 43 | C31: ='In prod (daily)'!$C$233 -> 0 | E31: ='In prod (daily)'!$D$233 -> 0 | G31: ='In prod (daily)'!$E$233 -> 0 | I31: ='In prod (daily)'!$F$233 -> 0 | K31: ='In prod (daily)'!$G$233 -> 0 | L31: ='In prod (daily)'!$H$233 -> 0 | N31: ='In prod (daily)'!$I$233 -> 0 | O31: ='In prod (daily)'!$J$233 -> 0 | P31: ='In prod (daily)'!$K$233 -> 0 | R31: ='In prod (daily)'!$L$233 -> 0 | T31: ='In prod (daily)'!$M$233 -> 0 | V31: 301
A32: =IF(General!$J$29>0,A31+7, ) -> 00:00:00 | B32: 44 | C32: ='In prod (daily)'!$C$241 -> 0 | E32: ='In prod (daily)'!$D$241 -> 0 | G32: ='In prod (daily)'!$E$241 -> 0 | I32: ='In prod (daily)'!$F$241 -> 0 | K32: ='In prod (daily)'!$G$241 -> 0 | L32: ='In prod (daily)'!$H$241 -> 0 | N32: ='In prod (daily)'!$I$241 -> 0 | O32: ='In prod (daily)'!$J$241 -> 0 | P32: ='In prod (daily)'!$K$241 -> 0 | R32: ='In prod (daily)'!$L$241 -> 0 | T32: ='In prod (daily)'!$M$241 -> 0 | V32: 308
A33: =IF(General!$J$29>0,A32+7, ) -> 00:00:00 | B33: 45 | C33: ='In prod (daily)'!$C$249 -> 0 | E33: ='In prod (daily)'!$D$249 -> 0 | G33: ='In prod (daily)'!$E$249 -> 0 | I33: ='In prod (daily)'!$F$249 -> 0 | K33: ='In prod (daily)'!$G$249 -> 0 | L33: ='In prod (daily)'!$H$249 -> 0 | N33: ='In prod (daily)'!$I$249 -> 0 | O33: ='In prod (daily)'!$J$249 -> 0 | P33: ='In prod (daily)'!$K$249 -> 0 | R33: ='In prod (daily)'!$L$249 -> 0 | T33: ='In prod (daily)'!$M$249 -> 0 | V33: 315
A34: =IF(General!$J$29>0,A33+7, ) -> 00:00:00 | B34: 46 | C34: ='In prod (daily)'!$C$257 -> 0 | E34: ='In prod (daily)'!$D$257 -> 0 | G34: ='In prod (daily)'!$E$257 -> 0 | I34: ='In prod (daily)'!$F$257 -> 0 | K34: ='In prod (daily)'!$G$257 -> 0 | L34: ='In prod (daily)'!$H$257 -> 0 | N34: ='In prod (daily)'!$I$257 -> 0 | O34: ='In prod (daily)'!$J$257 -> 0 | P34: ='In prod (daily)'!$K$257 -> 0 | R34: ='In prod (daily)'!$L$257 -> 0 | T34: ='In prod (daily)'!$M$257 -> 0 | V34: 322
A35: =IF(General!$J$29>0,A34+7, ) -> 00:00:00 | B35: 47 | C35: ='In prod (daily)'!$C$265 -> 0 | E35: ='In prod (daily)'!$D$265 -> 0 | G35: ='In prod (daily)'!$E$265 -> 0 | I35: ='In prod (daily)'!$F$265 -> 0 | K35: ='In prod (daily)'!$G$265 -> 0 | L35: ='In prod (daily)'!$H$265 -> 0 | N35: ='In prod (daily)'!$I$265 -> 0 | O35: ='In prod (daily)'!$J$265 -> 0 | P35: ='In prod (daily)'!$K$265 -> 0 | R35: ='In prod (daily)'!$L$265 -> 0 | T35: ='In prod (daily)'!$M$265 -> 0 | V35: 329
A36: =IF(General!$J$29>0,A35+7, ) -> 00:00:00 | B36: 48 | C36: ='In prod (daily)'!$C$273 -> 0 | E36: ='In prod (daily)'!$D$273 -> 0 | G36: ='In prod (daily)'!$E$273 -> 0 | I36: ='In prod (daily)'!$F$273 -> 0 | K36: ='In prod (daily)'!$G$273 -> 0 | L36: ='In prod (daily)'!$H$273 -> 0 | N36: ='In prod (daily)'!$I$273 -> 0 | O36: ='In prod (daily)'!$J$273 -> 0 | P36: ='In prod (daily)'!$K$273 -> 0 | R36: ='In prod (daily)'!$L$273 -> 0 | T36: ='In prod (daily)'!$M$273 -> 0 | V36: 336
A37: =IF(General!$J$29>0,A36+7, ) -> 00:00:00 | B37: 49 | C37: ='In prod (daily)'!$C$281 -> 0 | E37: ='In prod (daily)'!$D$281 -> 0 | G37: ='In prod (daily)'!$E$281 -> 0 | I37: ='In prod (daily)'!$F$281 -> 0 | K37: ='In prod (daily)'!$G$281 -> 0 | L37: ='In prod (daily)'!$H$281 -> 0 | N37: ='In prod (daily)'!$I$281 -> 0 | O37: ='In prod (daily)'!$J$281 -> 0 | P37: ='In prod (daily)'!$K$281 -> 0 | R37: ='In prod (daily)'!$L$281 -> 0 | T37: ='In prod (daily)'!$M$281 -> 0 | V37: 343
A38: =IF(General!$J$29>0,A37+7, ) -> 00:00:00 | B38: 50 | C38: ='In prod (daily)'!$C$289 -> 0 | E38: ='In prod (daily)'!$D$289 -> 0 | G38: ='In prod (daily)'!$E$289 -> 0 | I38: ='In prod (daily)'!$F$289 -> 0 | K38: ='In prod (daily)'!$G$289 -> 0 | L38: ='In prod (daily)'!$H$289 -> 0 | N38: ='In prod (daily)'!$I$289 -> 0 | O38: ='In prod (daily)'!$J$289 -> 0 | P38: ='In prod (daily)'!$K$289 -> 0 | R38: ='In prod (daily)'!$L$289 -> 0 | T38: ='In prod (daily)'!$M$289 -> 0 | V38: 350
A39: =IF(General!$J$29>0,A38+7, ) -> 00:00:00 | B39: 51 | C39: ='In prod (daily)'!$C$297 -> 0 | E39: ='In prod (daily)'!$D$297 -> 0 | G39: ='In prod (daily)'!$E$297 -> 0 | I39: ='In prod (daily)'!$F$297 -> 0 | K39: ='In prod (daily)'!$G$297 -> 0 | L39: ='In prod (daily)'!$H$297 -> 0 | N39: ='In prod (daily)'!$I$297 -> 0 | O39: ='In prod (daily)'!$J$297 -> 0 | P39: ='In prod (daily)'!$K$297 -> 0 | R39: ='In prod (daily)'!$L$297 -> 0 | T39: ='In prod (daily)'!$M$297 -> 0 | V39: 357
A40: =IF(General!$J$29>0,A39+7, ) -> 00:00:00 | B40: 52 | C40: ='In prod (daily)'!$C$305 -> 0 | E40: ='In prod (daily)'!$D$305 -> 0 | G40: ='In prod (daily)'!$E$305 -> 0 | I40: ='In prod (daily)'!$F$305 -> 0 | K40: ='In prod (daily)'!$G$305 -> 0 | L40: ='In prod (daily)'!$H$305 -> 0 | N40: ='In prod (daily)'!$I$305 -> 0 | O40: ='In prod (daily)'!$J$305 -> 0 | P40: ='In prod (daily)'!$K$305 -> 0 | R40: ='In prod (daily)'!$L$305 -> 0 | T40: ='In prod (daily)'!$M$305 -> 0 | V40: 364
A41: =IF(General!$J$29>0,A40+7, ) -> 00:00:00 | B41: 53 | C41: ='In prod (daily)'!$C$313 -> 0 | E41: ='In prod (daily)'!$D$313 -> 0 | G41: ='In prod (daily)'!$E$313 -> 0 | I41: ='In prod (daily)'!$F$313 -> 0 | K41: ='In prod (daily)'!$G$313 -> 0 | L41: ='In prod (daily)'!$H$313 -> 0 | N41: ='In prod (daily)'!$I$313 -> 0 | O41: ='In prod (daily)'!$J$313 -> 0 | P41: ='In prod (daily)'!$K$313 -> 0 | R41: ='In prod (daily)'!$L$313 -> 0 | T41: ='In prod (daily)'!$M$313 -> 0 | V41: 371
A42: =IF(General!$J$29>0,A41+7, ) -> 00:00:00 | B42: 54 | C42: ='In prod (daily)'!$C$321 -> 0 | E42: ='In prod (daily)'!$D$321 -> 0 | G42: ='In prod (daily)'!$E$321 -> 0 | I42: ='In prod (daily)'!$F$321 -> 0 | K42: ='In prod (daily)'!$G$321 -> 0 | L42: ='In prod (daily)'!$H$321 -> 0 | N42: ='In prod (daily)'!$I$321 -> 0 | O42: ='In prod (daily)'!$J$321 -> 0 | P42: ='In prod (daily)'!$K$321 -> 0 | R42: ='In prod (daily)'!$L$321 -> 0 | T42: ='In prod (daily)'!$M$321 -> 0 | V42: 378
A43: =IF(General!$J$29>0,A42+7, ) -> 00:00:00 | B43: 55 | C43: ='In prod (daily)'!$C$329 -> 0 | E43: ='In prod (daily)'!$D$329 -> 0 | G43: ='In prod (daily)'!$E$329 -> 0 | I43: ='In prod (daily)'!$F$329 -> 0 | K43: ='In prod (daily)'!$G$329 -> 0 | L43: ='In prod (daily)'!$H$329 -> 0 | N43: ='In prod (daily)'!$I$329 -> 0 | O43: ='In prod (daily)'!$J$329 -> 0 | P43: ='In prod (daily)'!$K$329 -> 0 | R43: ='In prod (daily)'!$L$329 -> 0 | T43: ='In prod (daily)'!$M$329 -> 0 | V43: 385
A44: =IF(General!$J$29>0,A43+7, ) -> 00:00:00 | B44: 56 | C44: ='In prod (daily)'!$C$337 -> 0 | E44: ='In prod (daily)'!$D$337 -> 0 | G44: ='In prod (daily)'!$E$337 -> 0 | I44: ='In prod (daily)'!$F$337 -> 0 | K44: ='In prod (daily)'!$G$337 -> 0 | L44: ='In prod (daily)'!$H$337 -> 0 | N44: ='In prod (daily)'!$I$337 -> 0 | O44: ='In prod (daily)'!$J$337 -> 0 | P44: ='In prod (daily)'!$K$337 -> 0 | R44: ='In prod (daily)'!$L$337 -> 0 | T44: ='In prod (daily)'!$M$337 -> 0 | V44: 392
A45: =IF(General!$J$29>0,A44+7, ) -> 00:00:00 | B45: 57 | C45: ='In prod (daily)'!$C$345 -> 0 | E45: ='In prod (daily)'!$D$345 -> 0 | G45: ='In prod (daily)'!$E$345 -> 0 | I45: ='In prod (daily)'!$F$345 -> 0 | K45: ='In prod (daily)'!$G$345 -> 0 | L45: ='In prod (daily)'!$H$345 -> 0 | N45: ='In prod (daily)'!$I$345 -> 0 | O45: ='In prod (daily)'!$J$345 -> 0 | P45: ='In prod (daily)'!$K$345 -> 0 | R45: ='In prod (daily)'!$L$345 -> 0 | T45: ='In prod (daily)'!$M$345 -> 0 | V45: 399
A46: =IF(General!$J$29>0,A45+7, ) -> 00:00:00 | B46: 58 | C46: ='In prod (daily)'!$C$353 -> 0 | E46: ='In prod (daily)'!$D$353 -> 0 | G46: ='In prod (daily)'!$E$353 -> 0 | I46: ='In prod (daily)'!$F$353 -> 0 | K46: ='In prod (daily)'!$G$353 -> 0 | L46: ='In prod (daily)'!$H$353 -> 0 | N46: ='In prod (daily)'!$I$353 -> 0 | O46: ='In prod (daily)'!$J$353 -> 0 | P46: ='In prod (daily)'!$K$353 -> 0 | R46: ='In prod (daily)'!$L$353 -> 0 | T46: ='In prod (daily)'!$M$353 -> 0 | V46: 406
A47: =IF(General!$J$29>0,A46+7, ) -> 00:00:00 | B47: 59 | C47: ='In prod (daily)'!$C$361 -> 0 | E47: ='In prod (daily)'!$D$361 -> 0 | G47: ='In prod (daily)'!$E$361 -> 0 | I47: ='In prod (daily)'!$F$361 -> 0 | K47: ='In prod (daily)'!$G$361 -> 0 | L47: ='In prod (daily)'!$H$361 -> 0 | N47: ='In prod (daily)'!$I$361 -> 0 | O47: ='In prod (daily)'!$J$361 -> 0 | P47: ='In prod (daily)'!$K$361 -> 0 | R47: ='In prod (daily)'!$L$361 -> 0 | T47: ='In prod (daily)'!$M$361 -> 0 | V47: 413
A48: =IF(General!$J$29>0,A47+7, ) -> 00:00:00 | B48: 60 | C48: ='In prod (daily)'!$C$369 -> 0 | E48: ='In prod (daily)'!$D$369 -> 0 | G48: ='In prod (daily)'!$E$369 -> 0 | I48: ='In prod (daily)'!$F$369 -> 0 | K48: ='In prod (daily)'!$G$369 -> 0 | L48: ='In prod (daily)'!$H$369 -> 0 | N48: ='In prod (daily)'!$I$369 -> 0 | O48: ='In prod (daily)'!$J$369 -> 0 | P48: ='In prod (daily)'!$K$369 -> 0 | R48: ='In prod (daily)'!$L$369 -> 0 | T48: ='In prod (daily)'!$M$369 -> 0 | V48: 420
A49: =IF(General!$J$29>0,A48+7, ) -> 00:00:00 | B49: 61 | C49: ='In prod (daily)'!$C$377 -> 0 | E49: ='In prod (daily)'!$D$377 -> 0 | G49: ='In prod (daily)'!$E$377 -> 0 | I49: ='In prod (daily)'!$F$377 -> 0 | K49: ='In prod (daily)'!$G$377 -> 0 | L49: ='In prod (daily)'!$H$377 -> 0 | N49: ='In prod (daily)'!$I$377 -> 0 | O49: ='In prod (daily)'!$J$377 -> 0 | P49: ='In prod (daily)'!$K$377 -> 0 | R49: ='In prod (daily)'!$L$377 -> 0 | T49: ='In prod (daily)'!$M$377 -> 0 | V49: 427
A50: =IF(General!$J$29>0,A49+7, ) -> 00:00:00 | B50: 62 | C50: ='In prod (daily)'!$C$385 -> 0 | E50: ='In prod (daily)'!$D$385 -> 0 | G50: ='In prod (daily)'!$E$385 -> 0 | I50: ='In prod (daily)'!$F$385 -> 0 | K50: ='In prod (daily)'!$G$385 -> 0 | L50: ='In prod (daily)'!$H$385 -> 0 | N50: ='In prod (daily)'!$I$385 -> 0 | O50: ='In prod (daily)'!$J$385 -> 0 | P50: ='In prod (daily)'!$K$385 -> 0 | R50: ='In prod (daily)'!$L$385 -> 0 | T50: ='In prod (daily)'!$M$385 -> 0 | V50: 434
A51: =IF(General!$J$29>0,A50+7, ) -> 00:00:00 | B51: 63 | C51: ='In prod (daily)'!$C$393 -> 0 | E51: ='In prod (daily)'!$D$393 -> 0 | G51: ='In prod (daily)'!$E$393 -> 0 | I51: ='In prod (daily)'!$F$393 -> 0 | K51: ='In prod (daily)'!$G$393 -> 0 | L51: ='In prod (daily)'!$H$393 -> 0 | N51: ='In prod (daily)'!$I$393 -> 0 | O51: ='In prod (daily)'!$J$393 -> 0 | P51: ='In prod (daily)'!$K$393 -> 0 | R51: ='In prod (daily)'!$L$393 -> 0 | T51: ='In prod (daily)'!$M$393 -> 0 | V51: 441
A52: =IF(General!$J$29>0,A51+7, ) -> 00:00:00 | B52: 64 | C52: ='In prod (daily)'!$C$401 -> 0 | E52: ='In prod (daily)'!$D$401 -> 0 | G52: ='In prod (daily)'!$E$401 -> 0 | I52: ='In prod (daily)'!$F$401 -> 0 | K52: ='In prod (daily)'!$G$401 -> 0 | L52: ='In prod (daily)'!$H$401 -> 0 | N52: ='In prod (daily)'!$I$401 -> 0 | O52: ='In prod (daily)'!$J$401 -> 0 | P52: ='In prod (daily)'!$K$401 -> 0 | R52: ='In prod (daily)'!$L$401 -> 0 | T52: ='In prod (daily)'!$M$401 -> 0 | V52: 448
A53: =IF(General!$J$29>0,A52+7, ) -> 00:00:00 | B53: 65 | C53: ='In prod (daily)'!$C$409 -> 0 | E53: ='In prod (daily)'!$D$409 -> 0 | G53: ='In prod (daily)'!$E$409 -> 0 | I53: ='In prod (daily)'!$F$409 -> 0 | K53: ='In prod (daily)'!$G$409 -> 0 | L53: ='In prod (daily)'!$H$409 -> 0 | N53: ='In prod (daily)'!$I$409 -> 0 | O53: ='In prod (daily)'!$J$409 -> 0 | P53: ='In prod (daily)'!$K$409 -> 0 | R53: ='In prod (daily)'!$L$409 -> 0 | T53: ='In prod (daily)'!$M$409 -> 0 | V53: 455
A54: =IF(General!$J$29>0,A53+7, ) -> 00:00:00 | B54: 66 | C54: ='In prod (daily)'!$C$417 -> 0 | E54: ='In prod (daily)'!$D$417 -> 0 | G54: ='In prod (daily)'!$E$417 -> 0 | I54: ='In prod (daily)'!$F$417 -> 0 | K54: ='In prod (daily)'!$G$417 -> 0 | L54: ='In prod (daily)'!$H$417 -> 0 | N54: ='In prod (daily)'!$I$417 -> 0 | O54: ='In prod (daily)'!$J$417 -> 0 | P54: ='In prod (daily)'!$K$417 -> 0 | R54: ='In prod (daily)'!$L$417 -> 0 | T54: ='In prod (daily)'!$M$417 -> 0 | V54: 462
A55: =IF(General!$J$29>0,A54+7, ) -> 00:00:00 | B55: 67 | C55: ='In prod (daily)'!$C$425 -> 0 | E55: ='In prod (daily)'!$D$425 -> 0 | G55: ='In prod (daily)'!$E$425 -> 0 | I55: ='In prod (daily)'!$F$425 -> 0 | K55: ='In prod (daily)'!$G$425 -> 0 | L55: ='In prod (daily)'!$H$425 -> 0 | N55: ='In prod (daily)'!$I$425 -> 0 | O55: ='In prod (daily)'!$J$425 -> 0 | P55: ='In prod (daily)'!$K$425 -> 0 | R55: ='In prod (daily)'!$L$425 -> 0 | T55: ='In prod (daily)'!$M$425 -> 0 | V55: 469
A56: =IF(General!$J$29>0,A55+7, ) -> 00:00:00 | B56: 68 | C56: ='In prod (daily)'!$C$433 -> 0 | E56: ='In prod (daily)'!$D$433 -> 0 | G56: ='In prod (daily)'!$E$433 -> 0 | I56: ='In prod (daily)'!$F$433 -> 0 | K56: ='In prod (daily)'!$G$433 -> 0 | L56: ='In prod (daily)'!$H$433 -> 0 | N56: ='In prod (daily)'!$I$433 -> 0 | O56: ='In prod (daily)'!$J$433 -> 0 | P56: ='In prod (daily)'!$K$433 -> 0 | R56: ='In prod (daily)'!$L$433 -> 0 | T56: ='In prod (daily)'!$M$433 -> 0 | V56: 476
A57: =IF(General!$J$29>0,A56+7, ) -> 00:00:00 | B57: 69 | C57: ='In prod (daily)'!$C$441 -> 0 | E57: ='In prod (daily)'!$D$441 -> 0 | G57: ='In prod (daily)'!$E$441 -> 0 | I57: ='In prod (daily)'!$F$441 -> 0 | K57: ='In prod (daily)'!$G$441 -> 0 | L57: ='In prod (daily)'!$H$441 -> 0 | N57: ='In prod (daily)'!$I$441 -> 0 | O57: ='In prod (daily)'!$J$441 -> 0 | P57: ='In prod (daily)'!$K$441 -> 0 | R57: ='In prod (daily)'!$L$441 -> 0 | T57: ='In prod (daily)'!$M$441 -> 0 | V57: 483
A58: =IF(General!$J$29>0,A57+7, ) -> 00:00:00 | B58: 70 | C58: ='In prod (daily)'!$C$449 -> 0 | E58: ='In prod (daily)'!$D$449 -> 0 | G58: ='In prod (daily)'!$E$449 -> 0 | I58: ='In prod (daily)'!$F$449 -> 0 | K58: ='In prod (daily)'!$G$449 -> 0 | L58: ='In prod (daily)'!$H$449 -> 0 | N58: ='In prod (daily)'!$I$449 -> 0 | O58: ='In prod (daily)'!$J$449 -> 0 | P58: ='In prod (daily)'!$K$449 -> 0 | R58: ='In prod (daily)'!$L$449 -> 0 | T58: ='In prod (daily)'!$M$449 -> 0 | V58: 490
A59: =IF(General!$J$29>0,A58+7, ) -> 00:00:00 | B59: 71 | C59: ='In prod (daily)'!$C$457 -> 0 | E59: ='In prod (daily)'!$D$457 -> 0 | G59: ='In prod (daily)'!$E$457 -> 0 | I59: ='In prod (daily)'!$F$457 -> 0 | K59: ='In prod (daily)'!$G$457 -> 0 | L59: ='In prod (daily)'!$H$457 -> 0 | N59: ='In prod (daily)'!$I$457 -> 0 | O59: ='In prod (daily)'!$J$457 -> 0 | P59: ='In prod (daily)'!$K$457 -> 0 | R59: ='In prod (daily)'!$L$457 -> 0 | T59: ='In prod (daily)'!$M$457 -> 0 | V59: 497
A60: =IF(General!$J$29>0,A59+7, ) -> 00:00:00 | B60: 72 | C60: ='In prod (daily)'!$C$465 -> 0 | E60: ='In prod (daily)'!$D$465 -> 0 | G60: ='In prod (daily)'!$E$465 -> 0 | I60: ='In prod (daily)'!$F$465 -> 0 | K60: ='In prod (daily)'!$G$465 -> 0 | L60: ='In prod (daily)'!$H$465 -> 0 | N60: ='In prod (daily)'!$I$465 -> 0 | O60: ='In prod (daily)'!$J$465 -> 0 | P60: ='In prod (daily)'!$K$465 -> 0 | R60: ='In prod (daily)'!$L$465 -> 0 | T60: ='In prod (daily)'!$M$465 -> 0 | V60: 504
A61: =IF(General!$J$29>0,A60+7, ) -> 00:00:00 | B61: 73 | C61: ='In prod (daily)'!$C$473 -> 0 | E61: ='In prod (daily)'!$D$473 -> 0 | G61: ='In prod (daily)'!$E$473 -> 0 | I61: ='In prod (daily)'!$F$473 -> 0 | K61: ='In prod (daily)'!$G$473 -> 0 | L61: ='In prod (daily)'!$H$473 -> 0 | N61: ='In prod (daily)'!$I$473 -> 0 | O61: ='In prod (daily)'!$J$473 -> 0 | P61: ='In prod (daily)'!$K$473 -> 0 | R61: ='In prod (daily)'!$L$473 -> 0 | T61: ='In prod (daily)'!$M$473 -> 0 | V61: 511
A62: =IF(General!$J$29>0,A61+7, ) -> 00:00:00 | B62: 74 | C62: ='In prod (daily)'!$C$481 -> 0 | E62: ='In prod (daily)'!$D$481 -> 0 | G62: ='In prod (daily)'!$E$481 -> 0 | I62: ='In prod (daily)'!$F$481 -> 0 | K62: ='In prod (daily)'!$G$481 -> 0 | L62: ='In prod (daily)'!$H$481 -> 0 | N62: ='In prod (daily)'!$I$481 -> 0 | O62: ='In prod (daily)'!$J$481 -> 0 | P62: ='In prod (daily)'!$K$481 -> 0 | R62: ='In prod (daily)'!$L$481 -> 0 | T62: ='In prod (daily)'!$M$481 -> 0 | V62: 518
A63: =IF(General!$J$29>0,A62+7, ) -> 00:00:00 | B63: 75 | C63: ='In prod (daily)'!$C$489 -> 0 | E63: ='In prod (daily)'!$D$489 -> 0 | G63: ='In prod (daily)'!$E$489 -> 0 | I63: ='In prod (daily)'!$F$489 -> 0 | K63: ='In prod (daily)'!$G$489 -> 0 | L63: ='In prod (daily)'!$H$489 -> 0 | N63: ='In prod (daily)'!$I$489 -> 0 | O63: ='In prod (daily)'!$J$489 -> 0 | P63: ='In prod (daily)'!$K$489 -> 0 | R63: ='In prod (daily)'!$L$489 -> 0 | T63: ='In prod (daily)'!$M$489 -> 0 | V63: 525
A64: =IF(General!$J$29>0,A63+7, ) -> 00:00:00 | B64: 76 | C64: ='In prod (daily)'!$C$497 -> 0 | E64: ='In prod (daily)'!$D$497 -> 0 | G64: ='In prod (daily)'!$E$497 -> 0 | I64: ='In prod (daily)'!$F$497 -> 0 | K64: ='In prod (daily)'!$G$497 -> 0 | L64: ='In prod (daily)'!$H$497 -> 0 | N64: ='In prod (daily)'!$I$497 -> 0 | O64: ='In prod (daily)'!$J$497 -> 0 | P64: ='In prod (daily)'!$K$497 -> 0 | R64: ='In prod (daily)'!$L$497 -> 0 | T64: ='In prod (daily)'!$M$497 -> 0 | V64: 532
A65: =IF(General!$J$29>0,A64+7, ) -> 00:00:00 | B65: 77 | C65: ='In prod (daily)'!$C$505 -> 0 | E65: ='In prod (daily)'!$D$505 -> 0 | G65: ='In prod (daily)'!$E$505 -> 0 | I65: ='In prod (daily)'!$F$505 -> 0 | K65: ='In prod (daily)'!$G$505 -> 0 | L65: ='In prod (daily)'!$H$505 -> 0 | N65: ='In prod (daily)'!$I$505 -> 0 | O65: ='In prod (daily)'!$J$505 -> 0 | P65: ='In prod (daily)'!$K$505 -> 0 | R65: ='In prod (daily)'!$L$505 -> 0 | T65: ='In prod (daily)'!$M$505 -> 0 | V65: 539
A66: =IF(General!$J$29>0,A65+7, ) -> 00:00:00 | B66: 78 | C66: ='In prod (daily)'!$C$513 -> 0 | E66: ='In prod (daily)'!$D$513 -> 0 | G66: ='In prod (daily)'!$E$513 -> 0 | I66: ='In prod (daily)'!$F$513 -> 0 | K66: ='In prod (daily)'!$G$513 -> 0 | L66: ='In prod (daily)'!$H$513 -> 0 | N66: ='In prod (daily)'!$I$513 -> 0 | O66: ='In prod (daily)'!$J$513 -> 0 | P66: ='In prod (daily)'!$K$513 -> 0 | R66: ='In prod (daily)'!$L$513 -> 0 | T66: ='In prod (daily)'!$M$513 -> 0 | V66: 546
A67: =IF(General!$J$29>0,A66+7, ) -> 00:00:00 | B67: 79 | C67: ='In prod (daily)'!$C$521 -> 0 | E67: ='In prod (daily)'!$D$521 -> 0 | G67: ='In prod (daily)'!$E$521 -> 0 | I67: ='In prod (daily)'!$F$521 -> 0 | K67: ='In prod (daily)'!$G$521 -> 0 | L67: ='In prod (daily)'!$H$521 -> 0 | N67: ='In prod (daily)'!$I$521 -> 0 | O67: ='In prod (daily)'!$J$521 -> 0 | P67: ='In prod (daily)'!$K$521 -> 0 | R67: ='In prod (daily)'!$L$521 -> 0 | T67: ='In prod (daily)'!$M$521 -> 0 | V67: 553
A68: =IF(General!$J$29>0,A67+7, ) -> 00:00:00 | B68: 80 | C68: ='In prod (daily)'!$C$529 -> 0 | E68: ='In prod (daily)'!$D$529 -> 0 | G68: ='In prod (daily)'!$E$529 -> 0 | I68: ='In prod (daily)'!$F$529 -> 0 | K68: ='In prod (daily)'!$G$529 -> 0 | L68: ='In prod (daily)'!$H$529 -> 0 | N68: ='In prod (daily)'!$I$529 -> 0 | O68: ='In prod (daily)'!$J$529 -> 0 | P68: ='In prod (daily)'!$K$529 -> 0 | R68: ='In prod (daily)'!$L$529 -> 0 | T68: ='In prod (daily)'!$M$529 -> 0 | V68: 560

Sheet Out rearing
C1: =Translation!B6 -> Rearing Period | G1: =Translation!B4 -> LOHMANN BROWN Parent Stock
A3: =Translation!B8 -> Country: | C3: =General!B3 -> 0 | G3: =Translation!B12 -> Hatch Date: | L3: =General!J3 -> 00:00:00
A4: =Translation!B9 -> Owner: | C4: =General!B4 -> 0 | G4: =Translation!B13 -> Date of Housing: | L4: =General!J4 -> 00:00:00
A5: =Translation!B10 -> Farm: | C5: =General!B5 -> 0 | G5: =Translation!B14 -> No. of Females Housed: | L5: =General!J5 -> 0
A6: =Translation!B11 -> Flock: | C6: =General!B6 -> 0 | G6: =Translation!B15 -> No. of Males Housed: | L6: =General!J6 -> 0
A8: =Translation!B22 -> Date | B8: =Translation!B24 -> Week of Age | C8: =Translation!B42 -> Act. No. of fem. chicks | D8: =Translation!B43 -> Act. No. of male chicks | E8: =Translation!B44 -> Fem. Mort. (%) | F8: =Translation!B45 -> Male Mort. (%) | G8: =Translation!B46 -> Std. Female Body Wt (g) | J8: =Translation!B47 -> Act. Fem. Body Wt (g) | K8: =Translation!B48 -> Act. Male Body Wt (g) | L8: =Translation!B49 -> Std. Feed cons. (g) | M8: =Translation!B50 -> Act. Feed cons. (g/bd/d) | N8: =Translation!B51 -> Std. Water cons. (ml) | O8: =Translation!B52 -> Act. Water cons. (ml/bd/d) | P8: =Translation!B53 -> Water / Feed | Q8: =Translation!B39 -> Uniformity (%) | R8: ='In rearing (weekly)'!N2 -> a trait you like | S8: bwu | T8: bwo | U8: Diff | V8: std bw min | W8: std bw max
A9: ='In rearing (daily)'!$A$9 -> 00:00:00 | B9: 1 | C9: =IF(SUM('In rearing (weekly)'!$C$3:$C$22)>0,$L$5-SUM('In rearing (weekly)'!C$3:C3),IF(SUM('In rearing (weekly)'!$D$3:$D$22)>0,$L$5-(SUM('In rearing (weekly)'!$D$3:D3)/100*$L$5),$L$5 )) -> 0 | D9: =IF(SUM('In rearing (weekly)'!$E$3:$E$22)>0,$L$6-SUM('In rearing (weekly)'!E$3:E3),IF(SUM('In rearing (weekly)'!$F$3:$F$22)>0,$L$6-(SUM('In rearing (weekly)'!$F$3:F3)/100*$L$6),$L$6 )) -> 0 | E9: =IF($L$5>0,100-C9/$L$5*100, ) -> 0 | F9: =IF($L$6>0,100-D9/$L$6*100, ) -> 0 | G9: 62 | H9: - | I9: 68 | J9: =IF(ISNUMBER('In rearing (weekly)'!G3),'In rearing (weekly)'!G3,"") -> 0 | K9: =IF(ISNUMBER('In rearing (weekly)'!H3),'In rearing (weekly)'!H3,"") -> 0 | L9: 10 | M9: =IF('In rearing (weekly)'!J3>0,'In rearing (weekly)'!J3,IF('In rearing (weekly)'!I3>0,'In rearing (weekly)'!I3*1000/7/(C9+D9), )) -> 0 | N9: 18 | O9: =IF('In rearing (weekly)'!L3>0,'In rearing (weekly)'!L3,IF('In rearing (weekly)'!K3>0,'In rearing (weekly)'!K3*1000/7/(C9+D9), )) -> 0 | P9: =IF(M9>0,IF(O9>0,O9/M9, ), ) -> 0 | Q9: =IF(ISNUMBER('In rearing (weekly)'!M3),'In rearing (weekly)'!M3,"") -> 0 | R9: =IF(ISNUMBER('In rearing (weekly)'!N3),'In rearing (weekly)'!N3,"") -> 0 | S9: =IF(G9>0,G9,V9) -> 61.8 | T9: =IF(I9>0,I9,W9) -> 68.3 | V9: 61.8 | W9: 68.3
A10: ='In rearing (daily)'!$A$17 -> 00:00:00 | B10: 2 | C10: =IF(SUM('In rearing (weekly)'!$C$3:$C$22)>0,$L$5-SUM('In rearing (weekly)'!C$3:C4),IF(SUM('In rearing (weekly)'!$D$3:$D$22)>0,$L$5-(SUM('In rearing (weekly)'!$D$3:D4)/100*$L$5),$L$5 )) -> 0 | D10: =IF(SUM('In rearing (weekly)'!$E$3:$E$22)>0,$L$6-SUM('In rearing (weekly)'!E$3:E4),IF(SUM('In rearing (weekly)'!$F$3:$F$22)>0,$L$6-(SUM('In rearing (weekly)'!$F$3:F4)/100*$L$6),$L$6 )) -> 0 | E10: =IF($L$5>0,100-C10/$L$5*100, ) -> 0 | F10: =IF($L$6>0,100-D10/$L$6*100, ) -> 0 | G10: 124 | H10: - | I10: 137 | J10: =IF(ISNUMBER('In rearing (weekly)'!G4),'In rearing (weekly)'!G4,"") -> 0 | K10: =IF(ISNUMBER('In rearing (weekly)'!H4),'In rearing (weekly)'!H4,"") -> 0 | L10: 19 | M10: =IF('In rearing (weekly)'!J4>0,'In rearing (weekly)'!J4,IF('In rearing (weekly)'!I4>0,'In rearing (weekly)'!I4*1000/7/(C10+D10), )) -> 0 | N10: 33 | O10: =IF('In rearing (weekly)'!L4>0,'In rearing (weekly)'!L4,IF('In rearing (weekly)'!K4>0,'In rearing (weekly)'!K4*1000/7/(C10+D10), )) -> 0 | P10: 0 | Q10: =IF(ISNUMBER('In rearing (weekly)'!M4),'In rearing (weekly)'!M4,"") -> 0 | R10: =IF(ISNUMBER('In rearing (weekly)'!N4),'In rearing (weekly)'!N4,"") -> 0 | S10: =IF(G10>0,G10,V10) -> 123.5 | T10: =IF(I10>0,I10,W10) -> 136.5 | V10: 123.5 | W10: 136.5
A11: ='In rearing (daily)'!$A$25 -> 00:00:00 | B11: 3 | C11: =IF(SUM('In rearing (weekly)'!$C$3:$C$22)>0,$L$5-SUM('In rearing (weekly)'!C$3:C5),IF(SUM('In rearing (weekly)'!$D$3:$D$22)>0,$L$5-(SUM('In rearing (weekly)'!$D$3:D5)/100*$L$5),$L$5 )) -> 0 | D11: =IF(SUM('In rearing (weekly)'!$E$3:$E$22)>0,$L$6-SUM('In rearing (weekly)'!E$3:E5),IF(SUM('In rearing (weekly)'!$F$3:$F$22)>0,$L$6-(SUM('In rearing (weekly)'!$F$3:F5)/100*$L$6),$L$6 )) -> 0 | E11: 0 | F11: 0 | G11: 171 | H11: - | I11: 189 | J11: =IF(ISNUMBER('In rearing (weekly)'!G5),'In rearing (weekly)'!G5,"") -> 0 | K11: =IF(ISNUMBER('In rearing (weekly)'!H5),'In rearing (weekly)'!H5,"") -> 0 | L11: 25 | M11: =IF('In rearing (weekly)'!J5>0,'In rearing (weekly)'!J5,IF('In rearing (weekly)'!I5>0,'In rearing (weekly)'!I5*1000/7/(C11+D11), )) -> 0 | N11: 44 | O11: =IF('In rearing (weekly)'!L5>0,'In rearing (weekly)'!L5,IF('In rearing (weekly)'!K5>0,'In rearing (weekly)'!K5*1000/7/(C11+D11), )) -> 0 | P11: 0 | Q11: =IF(ISNUMBER('In rearing (weekly)'!M5),'In rearing (weekly)'!M5,"") -> 0 | R11: =IF(ISNUMBER('In rearing (weekly)'!N5),'In rearing (weekly)'!N5,"") -> 0 | S11: 171.0 | T11: 189.0 | U11: =T11-S11 -> 18.0 | V11: 171.0 | W11: 189.0
A12: ='In rearing (daily)'!$A$33 -> 00:00:00 | B12: 4 | C12: =IF(SUM('In rearing (weekly)'!$C$3:$C$22)>0,$L$5-SUM('In rearing (weekly)'!C$3:C6),IF(SUM('In rearing (weekly)'!$D$3:$D$22)>0,$L$5-(SUM('In rearing (weekly)'!$D$3:D6)/100*$L$5),$L$5 )) -> 0 | D12: =IF(SUM('In rearing (weekly)'!$E$3:$E$22)>0,$L$6-SUM('In rearing (weekly)'!E$3:E6),IF(SUM('In rearing (weekly)'!$F$3:$F$22)>0,$L$6-(SUM('In rearing (weekly)'!$F$3:F6)/100*$L$6),$L$6 )) -> 0 | E12: 0 | F12: 0 | G12: 238 | H12: - | I12: 263 | J12: =IF(ISNUMBER('In rearing (weekly)'!G6),'In rearing (weekly)'!G6,"") -> 0 | K12: =IF(ISNUMBER('In rearing (weekly)'!H6),'In rearing (weekly)'!H6,"") -> 0 | L12: 30 | M12: =IF('In rearing (weekly)'!J6>0,'In rearing (weekly)'!J6,IF('In rearing (weekly)'!I6>0,'In rearing (weekly)'!I6*1000/7/(C12+D12), )) -> 0 | N12: 53 | O12: =IF('In rearing (weekly)'!L6>0,'In rearing (weekly)'!L6,IF('In rearing (weekly)'!K6>0,'In rearing (weekly)'!K6*1000/7/(C12+D12), )) -> 0 | P12: 0 | Q12: =IF(ISNUMBER('In rearing (weekly)'!M6),'In rearing (weekly)'!M6,"") -> 0 | R12: =IF(ISNUMBER('In rearing (weekly)'!N6),'In rearing (weekly)'!N6,"") -> 0 | S12: 237.5 | T12: 262.5 | U12: 25.0 | V12: 237.5 | W12: 262.5
A13: ='In rearing (daily)'!$A$41 -> 00:00:00 | B13: 5 | C13: =IF(SUM('In rearing (weekly)'!$C$3:$C$22)>0,$L$5-SUM('In rearing (weekly)'!C$3:C7),IF(SUM('In rearing (weekly)'!$D$3:$D$22)>0,$L$5-(SUM('In rearing (weekly)'!$D$3:D7)/100*$L$5),$L$5 )) -> 0 | D13: =IF(SUM('In rearing (weekly)'!$E$3:$E$22)>0,$L$6-SUM('In rearing (weekly)'!E$3:E7),IF(SUM('In rearing (weekly)'!$F$3:$F$22)>0,$L$6-(SUM('In rearing (weekly)'!$F$3:F7)/100*$L$6),$L$6 )) -> 0 | E13: 0 | F13: 0 | G13: 304 | H13: - | I13: 336 | J13: =IF(ISNUMBER('In rearing (weekly)'!G7),'In rearing (weekly)'!G7,"") -> 0 | K13: =IF(ISNUMBER('In rearing (weekly)'!H7),'In rearing (weekly)'!H7,"") -> 0 | L13: 35 | M13: =IF('In rearing (weekly)'!J7>0,'In rearing (weekly)'!J7,IF('In rearing (weekly)'!I7>0,'In rearing (weekly)'!I7*1000/7/(C13+D13), )) -> 0 | N13: 61 | O13: =IF('In rearing (weekly)'!L7>0,'In rearing (weekly)'!L7,IF('In rearing (weekly)'!K7>0,'In rearing (weekly)'!K7*1000/7/(C13+D13), )) -> 0 | P13: 0 | Q13: =IF(ISNUMBER('In rearing (weekly)'!M7),'In rearing (weekly)'!M7,"") -> 0 | R13: =IF(ISNUMBER('In rearing (weekly)'!N7),'In rearing (weekly)'!N7,"") -> 0 | S13: 304.0 | T13: 336.0 | U13: 32.0 | V13: 304.0 | W13: 336.0
A14: ='In rearing (daily)'!$A$49 -> 00:00:00 | B14: 6 | C14: =IF(SUM('In rearing (weekly)'!$C$3:$C$22)>0,$L$5-SUM('In rearing (weekly)'!C$3:C8),IF(SUM('In rearing (weekly)'!$D$3:$D$22)>0,$L$5-(SUM('In rearing (weekly)'!$D$3:D8)/100*$L$5),$L$5 )) -> 0 | D14: =IF(SUM('In rearing (weekly)'!$E$3:$E$22)>0,$L$6-SUM('In rearing (weekly)'!E$3:E8),IF(SUM('In rearing (weekly)'!$F$3:$F$22)>0,$L$6-(SUM('In rearing (weekly)'!$F$3:F8)/100*$L$6),$L$6 )) -> 0 | E14: 0 | F14: 0 | G14: 390 | H14: - | I14: 431 | J14: =IF(ISNUMBER('In rearing (weekly)'!G8),'In rearing (weekly)'!G8,"") -> 0 | K14: =IF(ISNUMBER('In rearing (weekly)'!H8),'In rearing (weekly)'!H8,"") -> 0 | L14: 40 | M14: =IF('In rearing (weekly)'!J8>0,'In rearing (weekly)'!J8,IF('In rearing (weekly)'!I8>0,'In rearing (weekly)'!I8*1000/7/(C14+D14), )) -> 0 | N14: 70 | O14: =IF('In rearing (weekly)'!L8>0,'In rearing (weekly)'!L8,IF('In rearing (weekly)'!K8>0,'In rearing (weekly)'!K8*1000/7/(C14+D14), )) -> 0 | P14: 0 | Q14: =IF(ISNUMBER('In rearing (weekly)'!M8),'In rearing (weekly)'!M8,"") -> 0 | R14: =IF(ISNUMBER('In rearing (weekly)'!N8),'In rearing (weekly)'!N8,"") -> 0 | S14: 389.5 | T14: 430.5 | U14: 41.0 | V14: 389.5 | W14: 430.5
A15: ='In rearing (daily)'!$A$57 -> 00:00:00 | B15: 7 | C15: =IF(SUM('In rearing (weekly)'!$C$3:$C$22)>0,$L$5-SUM('In rearing (weekly)'!C$3:C9),IF(SUM('In rearing (weekly)'!$D$3:$D$22)>0,$L$5-(SUM('In rearing (weekly)'!$D$3:D9)/100*$L$5),$L$5 )) -> 0 | D15: =IF(SUM('In rearing (weekly)'!$E$3:$E$22)>0,$L$6-SUM('In rearing (weekly)'!E$3:E9),IF(SUM('In rearing (weekly)'!$F$3:$F$22)>0,$L$6-(SUM('In rearing (weekly)'!$F$3:F9)/100*$L$6),$L$6 )) -> 0 | E15: 0 | F15: 0 | G15: 475 | H15: - | I15: 525 | J15: =IF(ISNUMBER('In rearing (weekly)'!G9),'In rearing (weekly)'!G9,"") -> 0 | K15: =IF(ISNUMBER('In rearing (weekly)'!H9),'In rearing (weekly)'!H9,"") -> 0 | L15: 45 | M15: =IF('In rearing (weekly)'!J9>0,'In rearing (weekly)'!J9,IF('In rearing (weekly)'!I9>0,'In rearing (weekly)'!I9*1000/7/(C15+D15), )) -> 0 | N15: 79 | O15: =IF('In rearing (weekly)'!L9>0,'In rearing (weekly)'!L9,IF('In rearing (weekly)'!K9>0,'In rearing (weekly)'!K9*1000/7/(C15+D15), )) -> 0 | P15: 0 | Q15: =IF(ISNUMBER('In rearing (weekly)'!M9),'In rearing (weekly)'!M9,"") -> 0 | R15: =IF(ISNUMBER('In rearing (weekly)'!N9),'In rearing (weekly)'!N9,"") -> 0 | S15: 475.0 | T15: 525.0 | U15: 50.0 | V15: 475.0 | W15: 525.0
A16: ='In rearing (daily)'!$A$65 -> 00:00:00 | B16: 8 | C16: =IF(SUM('In rearing (weekly)'!$C$3:$C$22)>0,$L$5-SUM('In rearing (weekly)'!C$3:C10),IF(SUM('In rearing (weekly)'!$D$3:$D$22)>0,$L$5-(SUM('In rearing (weekly)'!$D$3:D10)/100*$L$5),$L$5 )) -> 0 | D16: =IF(SUM('In rearing (weekly)'!$E$3:$E$22)>0,$L$6-SUM('In rearing (weekly)'!E$3:E10),IF(SUM('In rearing (weekly)'!$F$3:$F$22)>0,$L$6-(SUM('In rearing (weekly)'!$F$3:F10)/100*$L$6),$L$6 )) -> 0 | E16: 0 | F16: 0 | G16: 561 | H16: - | I16: 620 | J16: =IF(ISNUMBER('In rearing (weekly)'!G10),'In rearing (weekly)'!G10,"") -> 0 | K16: =IF(ISNUMBER('In rearing (weekly)'!H10),'In rearing (weekly)'!H10,"") -> 0 | L16: 50 | M16: =IF('In rearing (weekly)'!J10>0,'In rearing (weekly)'!J10,IF('In rearing (weekly)'!I10>0,'In rearing (weekly)'!I10*1000/7/(C16+D16), )) -> 0 | N16: 88 | O16: =IF('In rearing (weekly)'!L10>0,'In rearing (weekly)'!L10,IF('In rearing (weekly)'!K10>0,'In rearing (weekly)'!K10*1000/7/(C16+D16), )) -> 0 | P16: 0 | Q16: =IF(ISNUMBER('In rearing (weekly)'!M10),'In rearing (weekly)'!M10,"") -> 0 | R16: =IF(ISNUMBER('In rearing (weekly)'!N10),'In rearing (weekly)'!N10,"") -> 0 | S16: 560.5 | T16: 619.5 | U16: 59.0 | V16: 560.5 | W16: 619.5
A17: ='In rearing (daily)'!$A$73 -> 00:00:00 | B17: 9 | C17: =IF(SUM('In rearing (weekly)'!$C$3:$C$22)>0,$L$5-SUM('In rearing (weekly)'!C$3:C11),IF(SUM('In rearing (weekly)'!$D$3:$D$22)>0,$L$5-(SUM('In rearing (weekly)'!$D$3:D11)/100*$L$5),$L$5 )) -> 0 | D17: =IF(SUM('In rearing (weekly)'!$E$3:$E$22)>0,$L$6-SUM('In rearing (weekly)'!E$3:E11),IF(SUM('In rearing (weekly)'!$F$3:$F$22)>0,$L$6-(SUM('In rearing (weekly)'!$F$3:F11)/100*$L$6),$L$6 )) -> 0 | E17: 0 | F17: 0 | G17: 646 | H17: - | I17: 714 | J17: =IF(ISNUMBER('In rearing (weekly)'!G11),'In rearing (weekly)'!G11,"") -> 0 | K17: =IF(ISNUMBER('In rearing (weekly)'!H11),'In rearing (weekly)'!H11,"") -> 0 | L17: 54 | M17: =IF('In rearing (weekly)'!J11>0,'In rearing (weekly)'!J11,IF('In rearing (weekly)'!I11>0,'In rearing (weekly)'!I11*1000/7/(C17+D17), )) -> 0 | N17: 95 | O17: =IF('In rearing (weekly)'!L11>0,'In rearing (weekly)'!L11,IF('In rearing (weekly)'!K11>0,'In rearing (weekly)'!K11*1000/7/(C17+D17), )) -> 0 | P17: 0 | Q17: =IF(ISNUMBER('In rearing (weekly)'!M11),'In rearing (weekly)'!M11,"") -> 0 | R17: =IF(ISNUMBER('In rearing (weekly)'!N11),'In rearing (weekly)'!N11,"") -> 0 | S17: 646.0 | T17: 714.0 | U17: 68.0 | V17: 646.0 | W17: 714.0
A18: ='In rearing (daily)'!$A$81 -> 00:00:00 | B18: 10 | C18: =IF(SUM('In rearing (weekly)'!$C$3:$C$22)>0,$L$5-SUM('In rearing (weekly)'!C$3:C12),IF(SUM('In rearing (weekly)'!$D$3:$D$22)>0,$L$5-(SUM('In rearing (weekly)'!$D$3:D12)/100*$L$5),$L$5 )) -> 0 | D18: =IF(SUM('In rearing (weekly)'!$E$3:$E$22)>0,$L$6-SUM('In rearing (weekly)'!E$3:E12),IF(SUM('In rearing (weekly)'!$F$3:$F$22)>0,$L$6-(SUM('In rearing (weekly)'!$F$3:F12)/100*$L$6),$L$6 )) -> 0 | E18: 0 | F18: 0 | G18: 732 | H18: - | I18: 809 | J18: =IF(ISNUMBER('In rearing (weekly)'!G12),'In rearing (weekly)'!G12,"") -> 0 | K18: =IF(ISNUMBER('In rearing (weekly)'!H12),'In rearing (weekly)'!H12,"") -> 0 | L18: 57 | M18: =IF('In rearing (weekly)'!J12>0,'In rearing (weekly)'!J12,IF('In rearing (weekly)'!I12>0,'In rearing (weekly)'!I12*1000/7/(C18+D18), )) -> 0 | N18: 100 | O18: =IF('In rearing (weekly)'!L12>0,'In rearing (weekly)'!L12,IF('In rearing (weekly)'!K12>0,'In rearing (weekly)'!K12*1000/7/(C18+D18), )) -> 0 | P18: 0 | Q18: =IF(ISNUMBER('In rearing (weekly)'!M12),'In rearing (weekly)'!M12,"") -> 0 | R18: =IF(ISNUMBER('In rearing (weekly)'!N12),'In rearing (weekly)'!N12,"") -> 0 | S18: 731.5 | T18: 808.5 | U18: 77.0 | V18: 731.5 | W18: 808.5
A19: ='In rearing (daily)'!$A$89 -> 00:00:00 | B19: 11 | C19: =IF(SUM('In rearing (weekly)'!$C$3:$C$22)>0,$L$5-SUM('In rearing (weekly)'!C$3:C13),IF(SUM('In rearing (weekly)'!$D$3:$D$22)>0,$L$5-(SUM('In rearing (weekly)'!$D$3:D13)/100*$L$5),$L$5 )) -> 0 | D19: =IF(SUM('In rearing (weekly)'!$E$3:$E$22)>0,$L$6-SUM('In rearing (weekly)'!E$3:E13),IF(SUM('In rearing (weekly)'!$F$3:$F$22)>0,$L$6-(SUM('In rearing (weekly)'!$F$3:F13)/100*$L$6),$L$6 )) -> 0 | E19: 0 | F19: 0 | G19: 817 | H19: - | I19: 903 | J19: =IF(ISNUMBER('In rearing (weekly)'!G13),'In rearing (weekly)'!G13,"") -> 0 | K19: =IF(ISNUMBER('In rearing (weekly)'!H13),'In rearing (weekly)'!H13,"") -> 0 | L19: 60 | M19: =IF('In rearing (weekly)'!J13>0,'In rearing (weekly)'!J13,IF('In rearing (weekly)'!I13>0,'In rearing (weekly)'!I13*1000/7/(C19+D19), )) -> 0 | N19: 105 | O19: =IF('In rearing (weekly)'!L13>0,'In rearing (weekly)'!L13,IF('In rearing (weekly)'!K13>0,'In rearing (weekly)'!K13*1000/7/(C19+D19), )) -> 0 | P19: 0 | Q19: =IF(ISNUMBER('In rearing (weekly)'!M13),'In rearing (weekly)'!M13,"") -> 0 | R19: =IF(ISNUMBER('In rearing (weekly)'!N13),'In rearing (weekly)'!N13,"") -> 0 | S19: 817.0 | T19: 903.0 | U19: 86.0 | V19: 817.0 | W19: 903.0
A20: ='In rearing (daily)'!$A$97 -> 00:00:00 | B20: 12 | C20: =IF(SUM('In rearing (weekly)'!$C$3:$C$22)>0,$L$5-SUM('In rearing (weekly)'!C$3:C14),IF(SUM('In rearing (weekly)'!$D$3:$D$22)>0,$L$5-(SUM('In rearing (weekly)'!$D$3:D14)/100*$L$5),$L$5 )) -> 0 | D20: =IF(SUM('In rearing (weekly)'!$E$3:$E$22)>0,$L$6-SUM('In rearing (weekly)'!E$3:E14),IF(SUM('In rearing (weekly)'!$F$3:$F$22)>0,$L$6-(SUM('In rearing (weekly)'!$F$3:F14)/100*$L$6),$L$6 )) -> 0 | E20: 0 | F20: 0 | G20: 903 | H20: - | I20: 998 | J20: =IF(ISNUMBER('In rearing (weekly)'!G14),'In rearing (weekly)'!G14,"") -> 0 | K20: =IF(ISNUMBER('In rearing (weekly)'!H14),'In rearing (weekly)'!H14,"") -> 0 | L20: 63 | M20: =IF('In rearing (weekly)'!J14>0,'In rearing (weekly)'!J14,IF('In rearing (weekly)'!I14>0,'In rearing (weekly)'!I14*1000/7/(C20+D20), )) -> 0 | N20: 110 | O20: =IF('In rearing (weekly)'!L14>0,'In rearing (weekly)'!L14,IF('In rearing (weekly)'!K14>0,'In rearing (weekly)'!K14*1000/7/(C20+D20), )) -> 0 | P20: 0 | Q20: =IF(ISNUMBER('In rearing (weekly)'!M14),'In rearing (weekly)'!M14,"") -> 0 | R20: =IF(ISNUMBER('In rearing (weekly)'!N14),'In rearing (weekly)'!N14,"") -> 0 | S20: 902.5 | T20: 997.5 | U20: 95.0 | V20: 902.5 | W20: 997.5
A21: ='In rearing (daily)'!$A$105 -> 00:00:00 | B21: 13 | C21: =IF(SUM('In rearing (weekly)'!$C$3:$C$22)>0,$L$5-SUM('In rearing (weekly)'!C$3:C15),IF(SUM('In rearing (weekly)'!$D$3:$D$22)>0,$L$5-(SUM('In rearing (weekly)'!$D$3:D15)/100*$L$5),$L$5 )) -> 0 | D21: =IF(SUM('In rearing (weekly)'!$E$3:$E$22)>0,$L$6-SUM('In rearing (weekly)'!E$3:E15),IF(SUM('In rearing (weekly)'!$F$3:$F$22)>0,$L$6-(SUM('In rearing (weekly)'!$F$3:F15)/100*$L$6),$L$6 )) -> 0 | E21: 0 | F21: 0 | G21: 979 | H21: - | I21: 1082 | J21: =IF(ISNUMBER('In rearing (weekly)'!G15),'In rearing (weekly)'!G15,"") -> 0 | K21: =IF(ISNUMBER('In rearing (weekly)'!H15),'In rearing (weekly)'!H15,"") -> 0 | L21: 66 | M21: =IF('In rearing (weekly)'!J15>0,'In rearing (weekly)'!J15,IF('In rearing (weekly)'!I15>0,'In rearing (weekly)'!I15*1000/7/(C21+D21), )) -> 0 | N21: 116 | O21: =IF('In rearing (weekly)'!L15>0,'In rearing (weekly)'!L15,IF('In rearing (weekly)'!K15>0,'In rearing (weekly)'!K15*1000/7/(C21+D21), )) -> 0 | P21: 0 | Q21: =IF(ISNUMBER('In rearing (weekly)'!M15),'In rearing (weekly)'!M15,"") -> 0 | R21: =IF(ISNUMBER('In rearing (weekly)'!N15),'In rearing (weekly)'!N15,"") -> 0 | S21: 978.5 | T21: 1081.5 | U21: 103.0 | V21: 978.5 | W21: 1081.5
A22: ='In rearing (daily)'!$A$113 -> 00:00:00 | B22: 14 | C22: =IF(SUM('In rearing (weekly)'!$C$3:$C$22)>0,$L$5-SUM('In rearing (weekly)'!C$3:C16),IF(SUM('In rearing (weekly)'!$D$3:$D$22)>0,$L$5-(SUM('In rearing (weekly)'!$D$3:D16)/100*$L$5),$L$5 )) -> 0 | D22: =IF(SUM('In rearing (weekly)'!$E$3:$E$22)>0,$L$6-SUM('In rearing (weekly)'!E$3:E16),IF(SUM('In rearing (weekly)'!$F$3:$F$22)>0,$L$6-(SUM('In rearing (weekly)'!$F$3:F16)/100*$L$6),$L$6 )) -> 0 | E22: 0 | F22: 0 | G22: 1055 | H22: - | I22: 1166 | J22: =IF(ISNUMBER('In rearing (weekly)'!G16),'In rearing (weekly)'!G16,"") -> 0 | K22: =IF(ISNUMBER('In rearing (weekly)'!H16),'In rearing (weekly)'!H16,"") -> 0 | L22: 69 | M22: =IF('In rearing (weekly)'!J16>0,'In rearing (weekly)'!J16,IF('In rearing (weekly)'!I16>0,'In rearing (weekly)'!I16*1000/7/(C22+D22), )) -> 0 | N22: 121 | O22: =IF('In rearing (weekly)'!L16>0,'In rearing (weekly)'!L16,IF('In rearing (weekly)'!K16>0,'In rearing (weekly)'!K16*1000/7/(C22+D22), )) -> 0 | P22: 0 | Q22: =IF(ISNUMBER('In rearing (weekly)'!M16),'In rearing (weekly)'!M16,"") -> 0 | R22: =IF(ISNUMBER('In rearing (weekly)'!N16),'In rearing (weekly)'!N16,"") -> 0 | S22: 1054.5 | T22: 1165.5 | U22: 111.0 | V22: 1054.5 | W22: 1165.5
A23: ='In rearing (daily)'!$A$121 -> 00:00:00 | B23: 15 | C23: =IF(SUM('In rearing (weekly)'!$C$3:$C$22)>0,$L$5-SUM('In rearing (weekly)'!C$3:C17),IF(SUM('In rearing (weekly)'!$D$3:$D$22)>0,$L$5-(SUM('In rearing (weekly)'!$D$3:D17)/100*$L$5),$L$5 )) -> 0 | D23: =IF(SUM('In rearing (weekly)'!$E$3:$E$22)>0,$L$6-SUM('In rearing (weekly)'!E$3:E17),IF(SUM('In rearing (weekly)'!$F$3:$F$22)>0,$L$6-(SUM('In rearing (weekly)'!$F$3:F17)/100*$L$6),$L$6 )) -> 0 | E23: 0 | F23: 0 | G23: 1131 | H23: - | I23: 1250 | J23: =IF(ISNUMBER('In rearing (weekly)'!G17),'In rearing (weekly)'!G17,"") -> 0 | K23: =IF(ISNUMBER('In rearing (weekly)'!H17),'In rearing (weekly)'!H17,"") -> 0 | L23: 72 | M23: =IF('In rearing (weekly)'!J17>0,'In rearing (weekly)'!J17,IF('In rearing (weekly)'!I17>0,'In rearing (weekly)'!I17*1000/7/(C23+D23), )) -> 0 | N23: 126 | O23: =IF('In rearing (weekly)'!L17>0,'In rearing (weekly)'!L17,IF('In rearing (weekly)'!K17>0,'In rearing (weekly)'!K17*1000/7/(C23+D23), )) -> 0 | P23: 0 | Q23: =IF(ISNUMBER('In rearing (weekly)'!M17),'In rearing (weekly)'!M17,"") -> 0 | R23: =IF(ISNUMBER('In rearing (weekly)'!N17),'In rearing (weekly)'!N17,"") -> 0 | S23: 1130.5 | T23: 1249.5 | U23: 119.0 | V23: 1130.5 | W23: 1249.5
A24: ='In rearing (daily)'!$A$129 -> 00:00:00 | B24: 16 | C24: =IF(SUM('In rearing (weekly)'!$C$3:$C$22)>0,$L$5-SUM('In rearing (weekly)'!C$3:C18),IF(SUM('In rearing (weekly)'!$D$3:$D$22)>0,$L$5-(SUM('In rearing (weekly)'!$D$3:D18)/100*$L$5),$L$5 )) -> 0 | D24: =IF(SUM('In rearing (weekly)'!$E$3:$E$22)>0,$L$6-SUM('In rearing (weekly)'!E$3:E18),IF(SUM('In rearing (weekly)'!$F$3:$F$22)>0,$L$6-(SUM('In rearing (weekly)'!$F$3:F18)/100*$L$6),$L$6 )) -> 0 | E24: 0 | F24: 0 | G24: 1207 | H24: - | I24: 1334 | J24: =IF(ISNUMBER('In rearing (weekly)'!G18),'In rearing (weekly)'!G18,"") -> 0 | K24: =IF(ISNUMBER('In rearing (weekly)'!H18),'In rearing (weekly)'!H18,"") -> 0 | L24: 75 | M24: =IF('In rearing (weekly)'!J18>0,'In rearing (weekly)'!J18,IF('In rearing (weekly)'!I18>0,'In rearing (weekly)'!I18*1000/7/(C24+D24), )) -> 0 | N24: 131 | O24: =IF('In rearing (weekly)'!L18>0,'In rearing (weekly)'!L18,IF('In rearing (weekly)'!K18>0,'In rearing (weekly)'!K18*1000/7/(C24+D24), )) -> 0 | P24: 0 | Q24: =IF(ISNUMBER('In rearing (weekly)'!M18),'In rearing (weekly)'!M18,"") -> 0 | R24: =IF(ISNUMBER('In rearing (weekly)'!N18),'In rearing (weekly)'!N18,"") -> 0 | S24: 1206.5 | T24: 1333.5 | U24: 127.0 | V24: 1206.5 | W24: 1333.5
A25: ='In rearing (daily)'!$A$137 -> 00:00:00 | B25: 17 | C25: =IF(SUM('In rearing (weekly)'!$C$3:$C$22)>0,$L$5-SUM('In rearing (weekly)'!C$3:C19),IF(SUM('In rearing (weekly)'!$D$3:$D$22)>0,$L$5-(SUM('In rearing (weekly)'!$D$3:D19)/100*$L$5),$L$5 )) -> 0 | D25: =IF(SUM('In rearing (weekly)'!$E$3:$E$22)>0,$L$6-SUM('In rearing (weekly)'!E$3:E19),IF(SUM('In rearing (weekly)'!$F$3:$F$22)>0,$L$6-(SUM('In rearing (weekly)'!$F$3:F19)/100*$L$6),$L$6 )) -> 0 | E25: 0 | F25: 0 | G25: 1283 | H25: - | I25: 1418 | J25: =IF(ISNUMBER('In rearing (weekly)'!G19),'In rearing (weekly)'!G19,"") -> 0 | K25: =IF(ISNUMBER('In rearing (weekly)'!H19),'In rearing (weekly)'!H19,"") -> 0 | L25: 78 | M25: =IF('In rearing (weekly)'!J19>0,'In rearing (weekly)'!J19,IF('In rearing (weekly)'!I19>0,'In rearing (weekly)'!I19*1000/7/(C25+D25), )) -> 0 | N25: 137 | O25: =IF('In rearing (weekly)'!L19>0,'In rearing (weekly)'!L19,IF('In rearing (weekly)'!K19>0,'In rearing (weekly)'!K19*1000/7/(C25+D25), )) -> 0 | P25: 0 | Q25: =IF(ISNUMBER('In rearing (weekly)'!M19),'In rearing (weekly)'!M19,"") -> 0 | R25: =IF(ISNUMBER('In rearing (weekly)'!N19),'In rearing (weekly)'!N19,"") -> 0 | S25: 1282.5 | T25: 1417.5 | U25: 135.0 | V25: 1282.5 | W25: 1417.5
A26: ='In rearing (daily)'!$A$145 -> 00:00:00 | B26: 18 | C26: =IF(SUM('In rearing (weekly)'!$C$3:$C$22)>0,$L$5-SUM('In rearing (weekly)'!C$3:C20),IF(SUM('In rearing (weekly)'!$D$3:$D$22)>0,$L$5-(SUM('In rearing (weekly)'!$D$3:D20)/100*$L$5),$L$5 )) -> 0 | D26: =IF(SUM('In rearing (weekly)'!$E$3:$E$22)>0,$L$6-SUM('In rearing (weekly)'!E$3:E20),IF(SUM('In rearing (weekly)'!$F$3:$F$22)>0,$L$6-(SUM('In rearing (weekly)'!$F$3:F20)/100*$L$6),$L$6 )) -> 0 | E26: 0 | F26: 0 | G26: 1368 | H26: - | I26: 1512 | J26: =IF(ISNUMBER('In rearing (weekly)'!G20),'In rearing (weekly)'!G20,"") -> 0 | K26: =IF(ISNUMBER('In rearing (weekly)'!H20),'In rearing (weekly)'!H20,"") -> 0 | L26: 81 | M26: =IF('In rearing (weekly)'!J20>0,'In rearing (weekly)'!J20,IF('In rearing (weekly)'!I20>0,'In rearing (weekly)'!I20*1000/7/(C26+D26), )) -> 0 | N26: 142 | O26: =IF('In rearing (weekly)'!L20>0,'In rearing (weekly)'!L20,IF('In rearing (weekly)'!K20>0,'In rearing (weekly)'!K20*1000/7/(C26+D26), )) -> 0 | P26: 0 | Q26: =IF(ISNUMBER('In rearing (weekly)'!M20),'In rearing (weekly)'!M20,"") -> 0 | R26: =IF(ISNUMBER('In rearing (weekly)'!N20),'In rearing (weekly)'!N20,"") -> 0 | S26: 1368.0 | T26: 1512.0 | U26: 144.0 | V26: 1368.0 | W26: 1512.0
A27: ='In rearing (daily)'!$A$153 -> 00:00:00 | B27: 19 | C27: =IF(SUM('In rearing (weekly)'!$C$3:$C$22)>0,$L$5-SUM('In rearing (weekly)'!C$3:C21),IF(SUM('In rearing (weekly)'!$D$3:$D$22)>0,$L$5-(SUM('In rearing (weekly)'!$D$3:D21)/100*$L$5),$L$5 )) -> 0 | D27: =IF(SUM('In rearing (weekly)'!$E$3:$E$22)>0,$L$6-SUM('In rearing (weekly)'!E$3:E21),IF(SUM('In rearing (weekly)'!$F$3:$F$22)>0,$L$6-(SUM('In rearing (weekly)'!$F$3:F21)/100*$L$6),$L$6 )) -> 0 | E27: 0 | F27: 0 | G27: 1454 | H27: - | I27: 1607 | J27: =IF(ISNUMBER('In rearing (weekly)'!G21),'In rearing (weekly)'!G21,"") -> 0 | K27: =IF(ISNUMBER('In rearing (weekly)'!H21),'In rearing (weekly)'!H21,"") -> 0 | L27: 84 | M27: =IF('In rearing (weekly)'!J21>0,'In rearing (weekly)'!J21,IF('In rearing (weekly)'!I21>0,'In rearing (weekly)'!I21*1000/7/(C27+D27), )) -> 0 | N27: 147 | O27: =IF('In rearing (weekly)'!L21>0,'In rearing (weekly)'!L21,IF('In rearing (weekly)'!K21>0,'In rearing (weekly)'!K21*1000/7/(C27+D27), )) -> 0 | P27: 0 | Q27: =IF(ISNUMBER('In rearing (weekly)'!M21),'In rearing (weekly)'!M21,"") -> 0 | R27: =IF(ISNUMBER('In rearing (weekly)'!N21),'In rearing (weekly)'!N21,"") -> 0 | S27: 1453.5 | T27: 1606.5 | U27: 153.0 | V27: 1453.5 | W27: 1606.5
A28: ='In rearing (daily)'!$A$161 -> 00:00:00 | B28: 20 | C28: =IF(SUM('In rearing (weekly)'!$C$3:$C$22)>0,$L$5-SUM('In rearing (weekly)'!C$3:C22),IF(SUM('In rearing (weekly)'!$D$3:$D$22)>0,$L$5-(SUM('In rearing (weekly)'!$D$3:D22)/100*$L$5),$L$5 )) -> 0 | D28: =IF(SUM('In rearing (weekly)'!$E$3:$E$22)>0,$L$6-SUM('In rearing (weekly)'!E$3:E22),IF(SUM('In rearing (weekly)'!$F$3:$F$22)>0,$L$6-(SUM('In rearing (weekly)'!$F$3:F22)/100*$L$6),$L$6 )) -> 0 | E28: 0 | F28: 0 | G28: 1520 | H28: - | I28: 1680 | J28: =IF(ISNUMBER('In rearing (weekly)'!G22),'In rearing (weekly)'!G22,"") -> 0 | K28: =IF(ISNUMBER('In rearing (weekly)'!H22),'In rearing (weekly)'!H22,"") -> 0 | L28: 87 | M28: =IF('In rearing (weekly)'!J22>0,'In rearing (weekly)'!J22,IF('In rearing (weekly)'!I22>0,'In rearing (weekly)'!I22*1000/7/(C28+D28), )) -> 0 | N28: 152 | O28: =IF('In rearing (weekly)'!L22>0,'In rearing (weekly)'!L22,IF('In rearing (weekly)'!K22>0,'In rearing (weekly)'!K22*1000/7/(C28+D28), )) -> 0 | P28: 0 | Q28: =IF(ISNUMBER('In rearing (weekly)'!M22),'In rearing (weekly)'!M22,"") -> 0 | R28: =IF(ISNUMBER('In rearing (weekly)'!N22),'In rearing (weekly)'!N22,"") -> 0 | S28: 1520.0 | T28: 1680.0 | U28: 160.0 | V28: 1520.0 | W28: 1680.0

Sheet Out prod
B1: =Translation!B7 -> Production Period | J1: =Translation!B4 -> LOHMANN BROWN Parent Stock
A3: =Translation!B8 -> Country: | C3: =General!B3 -> 0 | G3: =Translation!B12 -> Hatch Date: | K3: =General!D27 -> 00:00:00
A4: =Translation!B9 -> Owner: | C4: =General!B4 -> 0 | G4: =Translation!B13 -> Date of Housing: | K4: =General!J28 -> 1900-05-05
A5: =Translation!B10 -> Farm: | C5: =General!B5 -> 0 | G5: =Translation!B14 -> No. of Females Housed: | K5: =General!J29 -> 0
A6: =Translation!B11 -> Flock: | C6: =General!B6 -> 0 | G6: =Translation!B15 -> No. of Males Housed: | K6: =General!J30 -> 0
B8: =Translation!B63 -> Flock Data | E8: =Translation!B64 -> Rate of Lay | H8: =Translation!B65 -> Egg Number | J8: =Translation!B66 -> Hatching Eggs | L8: =Translation!B67 -> Hatchability | N8: =Translation!B68 -> Saleable Chicks | P8: =Translation!B64 -> Rate of Lay
A9: =Translation!B69 -> Age | B9: =Translation!B71 -> Act. hen number | C9: =Translation!B72 -> Act. fem. Liveability | D9: =Translation!B73 -> Standard Liveability | E9: =Translation!B76 -> per H.D. | F9: =Translation!B70 -> Standard | G9: =Translation!B78 -> % Hatching eggs | H9: =Translation!B77 -> per H.H. | I9: =Translation!B70 -> Standard | J9: =Translation!B77 -> per H.H. | K9: =Translation!B70 -> Standard | L9: =Translation!B68 -> Saleable Chicks | M9: =Translation!B70 -> Standard | N9: =Translation!B77 -> per H.H. | O9: =Translation!B70 -> Standard | P9: =Translation!B77 -> per H.H. | Q9: =Translation!B70 -> Standard | R9: =Translation!B79 -> Std. Hatching eggs (%) | S9: =Translation!B74 -> Act. number of males | T9: =Translation!B75 -> Act. M. Liveability | U9: Schatten | V9: Prod | W9: Stdeizahl | X9: Std Küken | Y9: Std Lebensfähigkeit | Z9: Std HE | AA9: kum. Eier/HH | AB9: kum. Bruteier/HH | AC9: kum. Küken | AD9: av. Hatch | AE9: av. HE | AF9: % inc. | AH9: Hilfsspalte
A10: 15 | B10: =IF(SUM('In prod (weekly)'!C$3:C$68)>0,$K$5-SUM('In prod (weekly)'!C$3:C3),IF(SUM('In prod (weekly)'!$D$3:D68)>0,$K$5-SUM('In prod (weekly)'!$D$3:D3)/100*$K$5,$K$5)) -> 0 | C10: =IF((General!$J$5>0),B10/$K$5*100, ) -> 0 | E10: =IF(SUM('In prod (weekly)'!G$3:G$68)>0,('In prod (weekly)'!G3)/7/B10*100,IF(SUM('In prod (weekly)'!$H$3:$H$68)>0,('In prod (weekly)'!H3), )) -> 0 | G10: =IF('In prod (weekly)'!I3>0,'In prod (weekly)'!I3/'In prod (weekly)'!G3*100,IF('In prod (weekly)'!J3>0,'In prod (weekly)'!J3,R10 )) -> 0 | H10: =7*P10/100 -> 0 | I10: =IF(ISNUMBER(Q10),7*Q10/100, ) -> 0 | J10: =7*G10*P10/10000 -> 0 | K10: =IF(ISNUMBER(Q10),7*R10*Q10/10000, ) -> 0 | L10: =IF('In prod (weekly)'!M3>0,'In prod (weekly)'!M3,IF('In prod (weekly)'!K3>0,'In prod (weekly)'!L3/'In prod (weekly)'!K3*100,0)) -> 0 | N10: =7*P10*G10*L10/1000000 -> 0 | O10: =IF(ISNUMBER(M10),7*F10*R10*M10/1000000, ) -> 0 | P10: =E10*C10/100 -> 0 | Q10: =IF(ISNUMBER(F10),F10*D10/100,"") ->  | R10: 0 | S10: =IF(SUM('In prod (weekly)'!E$3:E$68)>0,$K$6-SUM('In prod (weekly)'!E$3:E3),IF(SUM('In prod (weekly)'!$F$3:F68)>0,$K$6-SUM('In prod (weekly)'!$F$3:F3)/100*$K$6,$K$6)) -> 0 | T10: =IF((General!$J$6>0),S10/$K$6*100, ) -> 0 | W10: Formel: wenn sich EZ nicht mehr ändert, soll Standard der betreffenden Woche weitergeschrieben werden (für Grafik) | Z10: Formel: wenn sich EZ nicht mehr ändert, soll Standard der betreffenden Woche weitergeschrieben werden (für Grafik) | AA10: =H10*General!$J$29 -> 0 | AB10: =J10*General!$J$29 -> 0 | AC10: =N10*General!$J$29 -> 0
A11: 16 | B11: =IF(SUM('In prod (weekly)'!C$3:C$68)>0,$K$5-SUM('In prod (weekly)'!C$3:C4),IF(SUM('In prod (weekly)'!$D$3:D69)>0,$K$5-SUM('In prod (weekly)'!$D$3:D4)/100*$K$5,$K$5)) -> 0 | C11: =IF((General!$J$5>0),B11/$K$5*100, ) -> 0 | E11: =IF(SUM('In prod (weekly)'!G$3:G$68)>0,('In prod (weekly)'!G4)/7/B11*100,IF(SUM('In prod (weekly)'!$H$3:$H$68)>0,('In prod (weekly)'!H4), )) -> 0 | G11: =IF('In prod (weekly)'!I4>0,'In prod (weekly)'!I4/'In prod (weekly)'!G4*100,IF('In prod (weekly)'!J4>0,'In prod (weekly)'!J4,R11 )) -> 0 | H11: =7*P11/100+H10 -> 0 | I11: =IF(ISNUMBER(Q11),7*Q11/100+I10, ) -> 0 | J11: =7*G11*P11/10000+J10 -> 0 | K11: =IF(ISNUMBER(Q11),7*R11*Q11/10000+K10, ) -> 0 | L11: =IF('In prod (weekly)'!M4>0,'In prod (weekly)'!M4,IF('In prod (weekly)'!K4>0,'In prod (weekly)'!L4/'In prod (weekly)'!K4*100,0)) -> 0 | N11: =7*P11*G11*L11/1000000+N10 -> 0 | O11: =IF(ISNUMBER(M11),7*F11*R11*M11/1000000+O10, ) -> 0 | P11: =E11*C11/100 -> 0 | R11: 0 | S11: =IF(SUM('In prod (weekly)'!E$3:E$68)>0,$K$6-SUM('In prod (weekly)'!E$3:E4),IF(SUM('In prod (weekly)'!$F$3:F69)>0,$K$6-SUM('In prod (weekly)'!$F$3:F4)/100*$K$6,$K$6)) -> 0 | T11: =IF((General!$J$6>0),S11/$K$6*100, ) -> 0 | AA11: =H11*General!$J$29 -> 0 | AB11: =J11*General!$J$29 -> 0 | AC11: =N11*General!$J$29 -> 0
A12: 17 | B12: =IF(SUM('In prod (weekly)'!C$3:C$68)>0,$K$5-SUM('In prod (weekly)'!C$3:C5),IF(SUM('In prod (weekly)'!$D$3:D70)>0,$K$5-SUM('In prod (weekly)'!$D$3:D5)/100*$K$5,$K$5)) -> 0 | C12: =IF((General!$J$5>0),B12/$K$5*100, ) -> 0 | E12: =IF(SUM('In prod (weekly)'!G$3:G$68)>0,('In prod (weekly)'!G5)/7/B12*100,IF(SUM('In prod (weekly)'!$H$3:$H$68)>0,('In prod (weekly)'!H5), )) -> 0 | G12: =IF('In prod (weekly)'!I5>0,'In prod (weekly)'!I5/'In prod (weekly)'!G5*100,IF('In prod (weekly)'!J5>0,'In prod (weekly)'!J5,R12 )) -> 0 | H12: 0 | I12: 0 | J12: =7*G12*P12/10000+J11 -> 0 | K12: =IF(ISNUMBER(Q12),7*R12*Q12/10000+K11, ) -> 0 | L12: =IF('In prod (weekly)'!M5>0,'In prod (weekly)'!M5,IF('In prod (weekly)'!K5>0,'In prod (weekly)'!L5/'In prod (weekly)'!K5*100,0)) -> 0 | N12: 0 | O12: =IF(ISNUMBER(M12),7*Q12*R12*M12/1000000+O11, ) -> 0 | P12: 0 | R12: 0 | S12: =IF(SUM('In prod (weekly)'!E$3:E$68)>0,$K$6-SUM('In prod (weekly)'!E$3:E5),IF(SUM('In prod (weekly)'!$F$3:F70)>0,$K$6-SUM('In prod (weekly)'!$F$3:F5)/100*$K$6,$K$6)) -> 0 | T12: =IF((General!$J$6>0),S12/$K$6*100, ) -> 0 | W12: =IF(H12>H11,I12,W11) -> 0.0 | X12: =IF(N12>N11,O12,X11) -> 0.0 | Y12: =IF(C12<C11,D12,Y11) -> 0.0 | Z12: =IF(J12>J11,K12,Z11) -> 0.0 | AA12: =H12*General!$J$29 -> 0 | AB12: =J12*General!$J$29 -> 0 | AC12: =N12*General!$J$29 -> 0
A13: 18 | B13: =IF(SUM('In prod (weekly)'!C$3:C$68)>0,$K$5-SUM('In prod (weekly)'!C$3:C6),IF(SUM('In prod (weekly)'!$D$3:D71)>0,$K$5-SUM('In prod (weekly)'!$D$3:D6)/100*$K$5,$K$5)) -> 0 | C13: =IF((General!$J$5>0),B13/$K$5*100, ) -> 0 | E13: =IF(SUM('In prod (weekly)'!G$3:G$68)>0,('In prod (weekly)'!G6)/7/B13*100,IF(SUM('In prod (weekly)'!$H$3:$H$68)>0,('In prod (weekly)'!H6), )) -> 0 | G13: =IF('In prod (weekly)'!I6>0,'In prod (weekly)'!I6/'In prod (weekly)'!G6*100,IF('In prod (weekly)'!J6>0,'In prod (weekly)'!J6,R13 )) -> 0 | H13: 0 | I13: 0 | J13: 0 | K13: =IF(ISNUMBER(Q13),7*R13*Q13/10000+K12, ) -> 0 | L13: =IF('In prod (weekly)'!M6>0,'In prod (weekly)'!M6,IF('In prod (weekly)'!K6>0,'In prod (weekly)'!L6/'In prod (weekly)'!K6*100,0)) -> 0 | N13: 0 | O13: =IF(ISNUMBER(M13),7*Q13*R13*M13/1000000+O12, ) -> 0 | P13: 0 | R13: 0 | S13: =IF(SUM('In prod (weekly)'!E$3:E$68)>0,$K$6-SUM('In prod (weekly)'!E$3:E6),IF(SUM('In prod (weekly)'!$F$3:F71)>0,$K$6-SUM('In prod (weekly)'!$F$3:F6)/100*$K$6,$K$6)) -> 0 | T13: =IF((General!$J$6>0),S13/$K$6*100, ) -> 0 | W13: 0.0 | X13: 0.0 | Y13: 0.0 | Z13: =IF(J13>J12,K13,Z12) -> 0.0 | AA13: =H13*General!$J$29 -> 0 | AB13: =J13*General!$J$29 -> 0 | AC13: =N13*General!$J$29 -> 0
A14: 19 | B14: =IF(SUM('In prod (weekly)'!C$3:C$68)>0,$K$5-SUM('In prod (weekly)'!C$3:C7),IF(SUM('In prod (weekly)'!$D$3:D72)>0,$K$5-SUM('In prod (weekly)'!$D$3:D7)/100*$K$5,$K$5)) -> 0 | C14: =IF((General!$J$5>0),B14/$K$5*100, ) -> 0 | E14: =IF(SUM('In prod (weekly)'!G$3:G$68)>0,('In prod (weekly)'!G7)/7/B14*100,IF(SUM('In prod (weekly)'!$H$3:$H$68)>0,('In prod (weekly)'!H7), )) -> 0 | G14: =IF('In prod (weekly)'!I7>0,'In prod (weekly)'!I7/'In prod (weekly)'!G7*100,IF('In prod (weekly)'!J7>0,'In prod (weekly)'!J7,R14 )) -> 0 | H14: 0 | I14: 0 | J14: 0 | K14: =IF(ISNUMBER(Q14),7*R14*Q14/10000+K13, ) -> 0 | L14: =IF('In prod (weekly)'!M7>0,'In prod (weekly)'!M7,IF('In prod (weekly)'!K7>0,'In prod (weekly)'!L7/'In prod (weekly)'!K7*100,0)) -> 0 | N14: 0 | O14: =IF(ISNUMBER(M14),7*Q14*R14*M14/1000000+O13, ) -> 0 | P14: 0 | R14: 0 | S14: =IF(SUM('In prod (weekly)'!E$3:E$68)>0,$K$6-SUM('In prod (weekly)'!E$3:E7),IF(SUM('In prod (weekly)'!$F$3:F72)>0,$K$6-SUM('In prod (weekly)'!$F$3:F7)/100*$K$6,$K$6)) -> 0 | T14: =IF((General!$J$6>0),S14/$K$6*100, ) -> 0 | W14: 0.0 | X14: 0.0 | Y14: 0.0 | Z14: 0.0 | AA14: =H14*General!$J$29 -> 0 | AB14: =J14*General!$J$29 -> 0 | AC14: =N14*General!$J$29 -> 0
A15: 20 | B15: =IF(SUM('In prod (weekly)'!C$3:C$68)>0,$K$5-SUM('In prod (weekly)'!C$3:C8),IF(SUM('In prod (weekly)'!$D$3:D73)>0,$K$5-SUM('In prod (weekly)'!$D$3:D8)/100*$K$5,$K$5)) -> 0 | C15: =IF((General!$J$5>0),B15/$K$5*100, ) -> 0 | E15: =IF(SUM('In prod (weekly)'!G$3:G$68)>0,('In prod (weekly)'!G8)/7/B15*100,IF(SUM('In prod (weekly)'!$H$3:$H$68)>0,('In prod (weekly)'!H8), )) -> 0 | G15: =IF('In prod (weekly)'!I8>0,'In prod (weekly)'!I8/'In prod (weekly)'!G8*100,IF('In prod (weekly)'!J8>0,'In prod (weekly)'!J8,R15 )) -> 0 | H15: 0 | I15: 0 | J15: 0 | K15: =IF(ISNUMBER(Q15),7*R15*Q15/10000+K14, ) -> 0 | L15: =IF('In prod (weekly)'!M8>0,'In prod (weekly)'!M8,IF('In prod (weekly)'!K8>0,'In prod (weekly)'!L8/'In prod (weekly)'!K8*100,0)) -> 0 | N15: 0 | O15: 0 | P15: 0 | R15: 0 | S15: =IF(SUM('In prod (weekly)'!E$3:E$68)>0,$K$6-SUM('In prod (weekly)'!E$3:E8),IF(SUM('In prod (weekly)'!$F$3:F73)>0,$K$6-SUM('In prod (weekly)'!$F$3:F8)/100*$K$6,$K$6)) -> 0 | T15: =IF((General!$J$6>0),S15/$K$6*100, ) -> 0 | U15: =F15-F15*0.07 -> 0.0 | V15: =F15+F15*0.03-U15 -> 0.0 | W15: 0.0 | X15: 0.0 | Y15: 0.0 | Z15: 0.0 | AA15: =H15*General!$J$29 -> 0 | AB15: =J15*General!$J$29 -> 0 | AC15: =N15*General!$J$29 -> 0 | AH15: 1
A16: 21 | B16: =IF(SUM('In prod (weekly)'!C$3:C$68)>0,$K$5-SUM('In prod (weekly)'!C$3:C9),IF(SUM('In prod (weekly)'!$D$3:D74)>0,$K$5-SUM('In prod (weekly)'!$D$3:D9)/100*$K$5,$K$5)) -> 0 | C16: =IF((General!$J$5>0),B16/$K$5*100, ) -> 0 | D16: 100.0 | E16: =IF(SUM('In prod (weekly)'!G$3:G$68)>0,('In prod (weekly)'!G9)/7/B16*100,IF(SUM('In prod (weekly)'!$H$3:$H$68)>0,('In prod (weekly)'!H9), )) -> 0 | F16: 15.0 | G16: =IF('In prod (weekly)'!I9>0,'In prod (weekly)'!I9/'In prod (weekly)'!G9*100,IF('In prod (weekly)'!J9>0,'In prod (weekly)'!J9,R16 )) -> 0 | H16: 0 | I16: 1.05 | J16: 0 | K16: =IF(ISNUMBER(Q16),7*R16*Q16/10000+K15, ) -> 0 | L16: =IF('In prod (weekly)'!M9>0,'In prod (weekly)'!M9,IF('In prod (weekly)'!K9>0,'In prod (weekly)'!L9/'In prod (weekly)'!K9*100,0)) -> 0 | M16: 0 | N16: 0 | O16: 0 | P16: 0 | Q16: 15.0 | R16: 0 | S16: =IF(SUM('In prod (weekly)'!E$3:E$68)>0,$K$6-SUM('In prod (weekly)'!E$3:E9),IF(SUM('In prod (weekly)'!$F$3:F74)>0,$K$6-SUM('In prod (weekly)'!$F$3:F9)/100*$K$6,$K$6)) -> 0 | T16: =IF((General!$J$6>0),S16/$K$6*100, ) -> 0 | U16: 14.0 | V16: 1.5 | W16: 0.0 | X16: 0.0 | Y16: 0.0 | Z16: 0.0 | AA16: =H16*General!$J$29 -> 0 | AB16: =J16*General!$J$29 -> 0 | AC16: =N16*General!$J$29 -> 0 | AH16: =AH15+1 -> 2
A17: 22 | B17: =IF(SUM('In prod (weekly)'!C$3:C$68)>0,$K$5-SUM('In prod (weekly)'!C$3:C10),IF(SUM('In prod (weekly)'!$D$3:D75)>0,$K$5-SUM('In prod (weekly)'!$D$3:D10)/100*$K$5,$K$5)) -> 0 | C17: =IF((General!$J$5>0),B17/$K$5*100, ) -> 0 | D17: 99.8 | E17: =IF(SUM('In prod (weekly)'!G$3:G$68)>0,('In prod (weekly)'!G10)/7/B17*100,IF(SUM('In prod (weekly)'!$H$3:$H$68)>0,('In prod (weekly)'!H10), )) -> 0 | F17: 40.1 | G17: =IF('In prod (weekly)'!I10>0,'In prod (weekly)'!I10/'In prod (weekly)'!G10*100,IF('In prod (weekly)'!J10>0,'In prod (weekly)'!J10,R17 )) -> 50 | H17: 0 | I17: 3.85 | J17: 0 | K17: =IF(ISNUMBER(Q17),7*R17*Q17/10000+K16, ) -> 1.4 | L17: =IF('In prod (weekly)'!M10>0,'In prod (weekly)'!M10,IF('In prod (weekly)'!K10>0,'In prod (weekly)'!L10/'In prod (weekly)'!K10*100,0)) -> 0 | M17: 34.125 | N17: 0 | O17: 0.47775 | P17: 0 | Q17: 40.0 | R17: 50 | S17: =IF(SUM('In prod (weekly)'!E$3:E$68)>0,$K$6-SUM('In prod (weekly)'!E$3:E10),IF(SUM('In prod (weekly)'!$F$3:F75)>0,$K$6-SUM('In prod (weekly)'!$F$3:F10)/100*$K$6,$K$6)) -> 0 | T17: =IF((General!$J$6>0),S17/$K$6*100, ) -> 0 | U17: 37.3 | V17: 4.0 | W17: 0.0 | X17: 0.0 | Y17: 0.0 | Z17: 0.0 | AA17: =H17*General!$J$29 -> 0 | AB17: =J17*General!$J$29 -> 0 | AC17: =N17*General!$J$29 -> 0 | AH17: =AH16+1 -> 3
A18: 23 | B18: =IF(SUM('In prod (weekly)'!C$3:C$68)>0,$K$5-SUM('In prod (weekly)'!C$3:C11),IF(SUM('In prod (weekly)'!$D$3:D76)>0,$K$5-SUM('In prod (weekly)'!$D$3:D11)/100*$K$5,$K$5)) -> 0 | C18: =IF((General!$J$5>0),B18/$K$5*100, ) -> 0 | D18: 99.7 | E18: =IF(SUM('In prod (weekly)'!G$3:G$68)>0,('In prod (weekly)'!G11)/7/B18*100,IF(SUM('In prod (weekly)'!$H$3:$H$68)>0,('In prod (weekly)'!H11), )) -> 0 | F18: 65.2 | G18: =IF('In prod (weekly)'!I11>0,'In prod (weekly)'!I11/'In prod (weekly)'!G11*100,IF('In prod (weekly)'!J11>0,'In prod (weekly)'!J11,R18 )) -> 60 | H18: 0 | I18: 8.4 | J18: 0 | K18: =IF(ISNUMBER(Q18),7*R18*Q18/10000+K17, ) -> 4.13 | L18: =IF('In prod (weekly)'!M11>0,'In prod (weekly)'!M11,IF('In prod (weekly)'!K11>0,'In prod (weekly)'!L11/'In prod (weekly)'!K11*100,0)) -> 0 | M18: 36.5625 | N18: 0 | O18: 1.47590625 | P18: 0 | Q18: 65.0 | R18: 60 | S18: =IF(SUM('In prod (weekly)'!E$3:E$68)>0,$K$6-SUM('In prod (weekly)'!E$3:E11),IF(SUM('In prod (weekly)'!$F$3:F76)>0,$K$6-SUM('In prod (weekly)'!$F$3:F11)/100*$K$6,$K$6)) -> 0 | T18: =IF((General!$J$6>0),S18/$K$6*100, ) -> 0 | U18: 60.6 | V18: 6.5 | W18: 0.0 | X18: 0.0 | Y18: 0.0 | Z18: 0.0 | AA18: =H18*General!$J$29 -> 0 | AB18: =J18*General!$J$29 -> 0 | AC18: =N18*General!$J$29 -> 0 | AH18: 4
A19: 24 | B19: =IF(SUM('In prod (weekly)'!C$3:C$68)>0,$K$5-SUM('In prod (weekly)'!C$3:C12),IF(SUM('In prod (weekly)'!$D$3:D77)>0,$K$5-SUM('In prod (weekly)'!$D$3:D12)/100*$K$5,$K$5)) -> 0 | C19: =IF((General!$J$5>0),B19/$K$5*100, ) -> 0 | D19: 99.6 | E19: =IF(SUM('In prod (weekly)'!G$3:G$68)>0,('In prod (weekly)'!G12)/7/B19*100,IF(SUM('In prod (weekly)'!$H$3:$H$68)>0,('In prod (weekly)'!H12), )) -> 0 | F19: 83.3 | G19: =IF('In prod (weekly)'!I12>0,'In prod (weekly)'!I12/'In prod (weekly)'!G12*100,IF('In prod (weekly)'!J12>0,'In prod (weekly)'!J12,R19 )) -> 70 | H19: 0 | I19: 14.21 | J19: 0 | K19: =IF(ISNUMBER(Q19),7*R19*Q19/10000+K18, ) -> 8.197 | L19: =IF('In prod (weekly)'!M12>0,'In prod (weekly)'!M12,IF('In prod (weekly)'!K12>0,'In prod (weekly)'!L12/'In prod (weekly)'!K12*100,0)) -> 0 | M19: 38.025 | N19: 0 | O19: 3.022383 | P19: 0 | Q19: 83.0 | R19: 70 | S19: =IF(SUM('In prod (weekly)'!E$3:E$68)>0,$K$6-SUM('In prod (weekly)'!E$3:E12),IF(SUM('In prod (weekly)'!$F$3:F77)>0,$K$6-SUM('In prod (weekly)'!$F$3:F12)/100*$K$6,$K$6)) -> 0 | T19: =IF((General!$J$6>0),S19/$K$6*100, ) -> 0 | U19: 77.5 | V19: 8.3 | W19: 0.0 | X19: 0.0 | Y19: 0.0 | Z19: 0.0 | AA19: =H19*General!$J$29 -> 0 | AB19: =J19*General!$J$29 -> 0 | AC19: =N19*General!$J$29 -> 0 | AH19: 5
A20: 25 | B20: =IF(SUM('In prod (weekly)'!C$3:C$68)>0,$K$5-SUM('In prod (weekly)'!C$3:C13),IF(SUM('In prod (weekly)'!$D$3:D78)>0,$K$5-SUM('In prod (weekly)'!$D$3:D13)/100*$K$5,$K$5)) -> 0 | C20: =IF((General!$J$5>0),B20/$K$5*100, ) -> 0 | D20: 99.5 | E20: =IF(SUM('In prod (weekly)'!G$3:G$68)>0,('In prod (weekly)'!G13)/7/B20*100,IF(SUM('In prod (weekly)'!$H$3:$H$68)>0,('In prod (weekly)'!H13), )) -> 0 | F20: 91.0 | G20: =IF('In prod (weekly)'!I13>0,'In prod (weekly)'!I13/'In prod (weekly)'!G13*100,IF('In prod (weekly)'!J13>0,'In prod (weekly)'!J13,R20 )) -> 80 | H20: 0 | I20: 20.545 | J20: 0 | K20: =IF(ISNUMBER(Q20),7*R20*Q20/10000+K19, ) -> 13.265 | L20: =IF('In prod (weekly)'!M13>0,'In prod (weekly)'!M13,IF('In prod (weekly)'!K13>0,'In prod (weekly)'!L13/'In prod (weekly)'!K13*100,0)) -> 0 | M20: 39 | N20: 0 | O20: 4.998903 | P20: 0 | Q20: 90.5 | R20: 80 | S20: =IF(SUM('In prod (weekly)'!E$3:E$68)>0,$K$6-SUM('In prod (weekly)'!E$3:E13),IF(SUM('In prod (weekly)'!$F$3:F78)>0,$K$6-SUM('In prod (weekly)'!$F$3:F13)/100*$K$6,$K$6)) -> 0 | T20: =IF((General!$J$6>0),S20/$K$6*100, ) -> 0 | U20: 84.6 | V20: 9.1 | W20: 0.0 | X20: 0.0 | Y20: 0.0 | Z20: 0.0 | AA20: =H20*General!$J$29 -> 0 | AB20: =J20*General!$J$29 -> 0 | AC20: =N20*General!$J$29 -> 0 | AH20: 6
A21: 26 | B21: =IF(SUM('In prod (weekly)'!C$3:C$68)>0,$K$5-SUM('In prod (weekly)'!C$3:C14),IF(SUM('In prod (weekly)'!$D$3:D79)>0,$K$5-SUM('In prod (weekly)'!$D$3:D14)/100*$K$5,$K$5)) -> 0 | C21: =IF((General!$J$5>0),B21/$K$5*100, ) -> 0 | D21: 99.4 | E21: =IF(SUM('In prod (weekly)'!G$3:G$68)>0,('In prod (weekly)'!G14)/7/B21*100,IF(SUM('In prod (weekly)'!$H$3:$H$68)>0,('In prod (weekly)'!H14), )) -> 0 | F21: 92.6 | G21: =IF('In prod (weekly)'!I14>0,'In prod (weekly)'!I14/'In prod (weekly)'!G14*100,IF('In prod (weekly)'!J14>0,'In prod (weekly)'!J14,R21 )) -> 85 | H21: 0 | I21: 26.985 | J21: 0 | K21: =IF(ISNUMBER(Q21),7*R21*Q21/10000+K20, ) -> 18.739 | L21: =IF('In prod (weekly)'!M14>0,'In prod (weekly)'!M14,IF('In prod (weekly)'!K14>0,'In prod (weekly)'!L14/'In prod (weekly)'!K14*100,0)) -> 0 | M21: 39.975 | N21: 0 | O21: 7.1871345 | P21: 0 | Q21: 92.0 | R21: 85 | S21: =IF(SUM('In prod (weekly)'!E$3:E$68)>0,$K$6-SUM('In prod (weekly)'!E$3:E14),IF(SUM('In prod (weekly)'!$F$3:F79)>0,$K$6-SUM('In prod (weekly)'!$F$3:F14)/100*$K$6,$K$6)) -> 0 | T21: =IF((General!$J$6>0),S21/$K$6*100, ) -> 0 | U21: 86.1 | V21: 9.3 | W21: 0.0 | X21: 0.0 | Y21: 0.0 | Z21: 0.0 | AA21: =H21*General!$J$29 -> 0 | AB21: =J21*General!$J$29 -> 0 | AC21: =N21*General!$J$29 -> 0 | AH21: 7
A22: 27 | B22: =IF(SUM('In prod (weekly)'!C$3:C$68)>0,$K$5-SUM('In prod (weekly)'!C$3:C15),IF(SUM('In prod (weekly)'!$D$3:D80)>0,$K$5-SUM('In prod (weekly)'!$D$3:D15)/100*$K$5,$K$5)) -> 0 | C22: =IF((General!$J$5>0),B22/$K$5*100, ) -> 0 | D22: 99.2 | E22: =IF(SUM('In prod (weekly)'!G$3:G$68)>0,('In prod (weekly)'!G15)/7/B22*100,IF(SUM('In prod (weekly)'!$H$3:$H$68)>0,('In prod (weekly)'!H15), )) -> 0 | F22: 93.2 | G22: =IF('In prod (weekly)'!I15>0,'In prod (weekly)'!I15/'In prod (weekly)'!G15*100,IF('In prod (weekly)'!J15>0,'In prod (weekly)'!J15,R22 )) -> 90 | H22: 0 | I22: 33.46 | J22: 0 | K22: =IF(ISNUMBER(Q22),7*R22*Q22/10000+K21, ) -> 24.5665 | L22: =IF('In prod (weekly)'!M15>0,'In prod (weekly)'!M15,IF('In prod (weekly)'!K15>0,'In prod (weekly)'!L15/'In prod (weekly)'!K15*100,0)) -> 0 | M22: 40.4625 | N22: 0 | O22: 9.545086688 | P22: 0 | Q22: 92.5 | R22: 90 | S22: =IF(SUM('In prod (weekly)'!E$3:E$68)>0,$K$6-SUM('In prod (weekly)'!E$3:E15),IF(SUM('In prod (weekly)'!$F$3:F80)>0,$K$6-SUM('In prod (weekly)'!$F$3:F15)/100*$K$6,$K$6)) -> 0 | T22: =IF((General!$J$6>0),S22/$K$6*100, ) -> 0 | U22: 86.7 | V22: 9.3 | W22: 0.0 | X22: 0.0 | Y22: 0.0 | Z22: 0.0 | AA22: =H22*General!$J$29 -> 0 | AB22: =J22*General!$J$29 -> 0 | AC22: =N22*General!$J$29 -> 0 | AH22: 8
A23: 28 | B23: =IF(SUM('In prod (weekly)'!C$3:C$68)>0,$K$5-SUM('In prod (weekly)'!C$3:C16),IF(SUM('In prod (weekly)'!$D$3:D81)>0,$K$5-SUM('In prod (weekly)'!$D$3:D16)/100*$K$5,$K$5)) -> 0 | C23: =IF((General!$J$5>0),B23/$K$5*100, ) -> 0 | D23: 99.3 | E23: =IF(SUM('In prod (weekly)'!G$3:G$68)>0,('In prod (weekly)'!G16)/7/B23*100,IF(SUM('In prod (weekly)'!$H$3:$H$68)>0,('In prod (weekly)'!H16), )) -> 0 | F23: 93.5 | G23: =IF('In prod (weekly)'!I16>0,'In prod (weekly)'!I16/'In prod (weekly)'!G16*100,IF('In prod (weekly)'!J16>0,'In prod (weekly)'!J16,R23 )) -> 93 | H23: 0 | I23: 39.956 | J23: 0 | K23: =IF(ISNUMBER(Q23),7*R23*Q23/10000+K22, ) -> 30.60778 | L23: =IF('In prod (weekly)'!M16>0,'In prod (weekly)'!M16,IF('In prod (weekly)'!K16>0,'In prod (weekly)'!L16/'In prod (weekly)'!K16*100,0)) -> 0 | M23: 41.925 | N23: 0 | O23: 12.07789333 | P23: 0 | Q23: 92.8 | R23: 93 | S23: =IF(SUM('In prod (weekly)'!E$3:E$68)>0,$K$6-SUM('In prod (weekly)'!E$3:E16),IF(SUM('In prod (weekly)'!$F$3:F81)>0,$K$6-SUM('In prod (weekly)'!$F$3:F16)/100*$K$6,$K$6)) -> 0 | T23: =IF((General!$J$6>0),S23/$K$6*100, ) -> 0 | U23: 87.0 | V23: 9.4 | W23: 0.0 | X23: 0.0 | Y23: 0.0 | Z23: 0.0 | AA23: =H23*General!$J$29 -> 0 | AB23: =J23*General!$J$29 -> 0 | AC23: =N23*General!$J$29 -> 0 | AH23: 9
A24: 29 | B24: =IF(SUM('In prod (weekly)'!C$3:C$68)>0,$K$5-SUM('In prod (weekly)'!C$3:C17),IF(SUM('In prod (weekly)'!$D$3:D82)>0,$K$5-SUM('In prod (weekly)'!$D$3:D17)/100*$K$5,$K$5)) -> 0 | C24: =IF((General!$J$5>0),B24/$K$5*100, ) -> 0 | D24: 99.1 | E24: =IF(SUM('In prod (weekly)'!G$3:G$68)>0,('In prod (weekly)'!G17)/7/B24*100,IF(SUM('In prod (weekly)'!$H$3:$H$68)>0,('In prod (weekly)'!H17), )) -> 0 | F24: 93.7 | G24: =IF('In prod (weekly)'!I17>0,'In prod (weekly)'!I17/'In prod (weekly)'!G17*100,IF('In prod (weekly)'!J17>0,'In prod (weekly)'!J17,R24 )) -> 94 | H24: 0 | I24: 46.459 | J24: 0 | K24: =IF(ISNUMBER(Q24),7*R24*Q24/10000+K23, ) -> 36.7206 | L24: =IF('In prod (weekly)'!M17>0,'In prod (weekly)'!M17,IF('In prod (weekly)'!K17>0,'In prod (weekly)'!L17/'In prod (weekly)'!K17*100,0)) -> 0 | M24: 42.9 | N24: 0 | O24: 14.70029311 | P24: 0 | Q24: 92.9 | R24: 94 | S24: =IF(SUM('In prod (weekly)'!E$3:E$68)>0,$K$6-SUM('In prod (weekly)'!E$3:E17),IF(SUM('In prod (weekly)'!$F$3:F82)>0,$K$6-SUM('In prod (weekly)'!$F$3:F17)/100*$K$6,$K$6)) -> 0 | T24: =IF((General!$J$6>0),S24/$K$6*100, ) -> 0 | U24: 87.1 | V24: 9.4 | W24: 0.0 | X24: 0.0 | Y24: 0.0 | Z24: 0.0 | AA24: =H24*General!$J$29 -> 0 | AB24: =J24*General!$J$29 -> 0 | AC24: =N24*General!$J$29 -> 0 | AH24: 10
A25: 30 | B25: =IF(SUM('In prod (weekly)'!C$3:C$68)>0,$K$5-SUM('In prod (weekly)'!C$3:C18),IF(SUM('In prod (weekly)'!$D$3:D83)>0,$K$5-SUM('In prod (weekly)'!$D$3:D18)/100*$K$5,$K$5)) -> 0 | C25: =IF((General!$J$5>0),B25/$K$5*100, ) -> 0 | D25: 99.0 | E25: =IF(SUM('In prod (weekly)'!G$3:G$68)>0,('In prod (weekly)'!G18)/7/B25*100,IF(SUM('In prod (weekly)'!$H$3:$H$68)>0,('In prod (weekly)'!H18), )) -> 0 | F25: 93.8 | G25: =IF('In prod (weekly)'!I18>0,'In prod (weekly)'!I18/'In prod (weekly)'!G18*100,IF('In prod (weekly)'!J18>0,'In prod (weekly)'!J18,R25 )) -> 95 | H25: 0 | I25: 52.962 | J25: 0 | K25: =IF(ISNUMBER(Q25),7*R25*Q25/10000+K24, ) -> 42.89845 | L25: =IF('In prod (weekly)'!M18>0,'In prod (weekly)'!M18,IF('In prod (weekly)'!K18>0,'In prod (weekly)'!L18/'In prod (weekly)'!K18*100,0)) -> 0 | M25: 42.9 | N25: 0 | O25: 17.35059076 | P25: 0 | Q25: 92.9 | R25: 95 | S25: =IF(SUM('In prod (weekly)'!E$3:E$68)>0,$K$6-SUM('In prod (weekly)'!E$3:E18),IF(SUM('In prod (weekly)'!$F$3:F83)>0,$K$6-SUM('In prod (weekly)'!$F$3:F18)/100*$K$6,$K$6)) -> 0 | T25: =IF((General!$J$6>0),S25/$K$6*100, ) -> 0 | U25: 87.2 | V25: 9.4 | W25: 0.0 | X25: 0.0 | Y25: 0.0 | Z25: 0.0 | AA25: =H25*General!$J$29 -> 0 | AB25: =J25*General!$J$29 -> 0 | AC25: =N25*General!$J$29 -> 0 | AH25: 11
A26: 31 | B26: =IF(SUM('In prod (weekly)'!C$3:C$68)>0,$K$5-SUM('In prod (weekly)'!C$3:C19),IF(SUM('In prod (weekly)'!$D$3:D84)>0,$K$5-SUM('In prod (weekly)'!$D$3:D19)/100*$K$5,$K$5)) -> 0 | C26: =IF((General!$J$5>0),B26/$K$5*100, ) -> 0 | D26: 98.8 | E26: =IF(SUM('In prod (weekly)'!G$3:G$68)>0,('In prod (weekly)'!G19)/7/B26*100,IF(SUM('In prod (weekly)'!$H$3:$H$68)>0,('In prod (weekly)'!H19), )) -> 0 | F26: 93.9 | G26: =IF('In prod (weekly)'!I19>0,'In prod (weekly)'!I19/'In prod (weekly)'!G19*100,IF('In prod (weekly)'!J19>0,'In prod (weekly)'!J19,R26 )) -> 95 | H26: 0 | I26: 59.458 | J26: 0 | K26: =IF(ISNUMBER(Q26),7*R26*Q26/10000+K25, ) -> 49.06965 | L26: =IF('In prod (weekly)'!M19>0,'In prod (weekly)'!M19,IF('In prod (weekly)'!K19>0,'In prod (weekly)'!L19/'In prod (weekly)'!K19*100,0)) -> 0 | M26: 42.9 | N26: 0 | O26: 19.99803556 | P26: 0 | Q26: 92.8 | R26: 95 | S26: =IF(SUM('In prod (weekly)'!E$3:E$68)>0,$K$6-SUM('In prod (weekly)'!E$3:E19),IF(SUM('In prod (weekly)'!$F$3:F84)>0,$K$6-SUM('In prod (weekly)'!$F$3:F19)/100*$K$6,$K$6)) -> 0 | T26: =IF((General!$J$6>0),S26/$K$6*100, ) -> 0 | U26: 87.3 | V26: 9.4 | W26: 0.0 | X26: 0.0 | Y26: 0.0 | Z26: 0.0 | AA26: =H26*General!$J$29 -> 0 | AB26: =J26*General!$J$29 -> 0 | AC26: =N26*General!$J$29 -> 0 | AH26: 12
A27: 32 | B27: =IF(SUM('In prod (weekly)'!C$3:C$68)>0,$K$5-SUM('In prod (weekly)'!C$3:C20),IF(SUM('In prod (weekly)'!$D$3:D85)>0,$K$5-SUM('In prod (weekly)'!$D$3:D20)/100*$K$5,$K$5)) -> 0 | C27: =IF((General!$J$5>0),B27/$K$5*100, ) -> 0 | D27: 98.7 | E27: =IF(SUM('In prod (weekly)'!G$3:G$68)>0,('In prod (weekly)'!G20)/7/B27*100,IF(SUM('In prod (weekly)'!$H$3:$H$68)>0,('In prod (weekly)'!H20), )) -> 0 | F27: 94.0 | G27: =IF('In prod (weekly)'!I20>0,'In prod (weekly)'!I20/'In prod (weekly)'!G20*100,IF('In prod (weekly)'!J20>0,'In prod (weekly)'!J20,R27 )) -> 95 | H27: 0 | I27: 65.954 | J27: 0 | K27: =IF(ISNUMBER(Q27),7*R27*Q27/10000+K26, ) -> 55.24085 | L27: =IF('In prod (weekly)'!M20>0,'In prod (weekly)'!M20,IF('In prod (weekly)'!K20>0,'In prod (weekly)'!L20/'In prod (weekly)'!K20*100,0)) -> 0 | M27: 42.9 | N27: 0 | O27: 22.64548036 | P27: 0 | Q27: 92.8 | R27: 95 | S27: =IF(SUM('In prod (weekly)'!E$3:E$68)>0,$K$6-SUM('In prod (weekly)'!E$3:E20),IF(SUM('In prod (weekly)'!$F$3:F85)>0,$K$6-SUM('In prod (weekly)'!$F$3:F20)/100*$K$6,$K$6)) -> 0 | T27: =IF((General!$J$6>0),S27/$K$6*100, ) -> 0 | U27: 87.4 | V27: 9.4 | W27: 0.0 | X27: 0.0 | Y27: 0.0 | Z27: 0.0 | AA27: =H27*General!$J$29 -> 0 | AB27: =J27*General!$J$29 -> 0 | AC27: =N27*General!$J$29 -> 0 | AH27: 13
A28: 33 | B28: =IF(SUM('In prod (weekly)'!C$3:C$68)>0,$K$5-SUM('In prod (weekly)'!C$3:C21),IF(SUM('In prod (weekly)'!$D$3:D86)>0,$K$5-SUM('In prod (weekly)'!$D$3:D21)/100*$K$5,$K$5)) -> 0 | C28: =IF((General!$J$5>0),B28/$K$5*100, ) -> 0 | D28: 98.5 | E28: =IF(SUM('In prod (weekly)'!G$3:G$68)>0,('In prod (weekly)'!G21)/7/B28*100,IF(SUM('In prod (weekly)'!$H$3:$H$68)>0,('In prod (weekly)'!H21), )) -> 0 | F28: 93.9 | G28: =IF('In prod (weekly)'!I21>0,'In prod (weekly)'!I21/'In prod (weekly)'!G21*100,IF('In prod (weekly)'!J21>0,'In prod (weekly)'!J21,R28 )) -> 95 | H28: 0 | I28: 72.429 | J28: 0 | K28: =IF(ISNUMBER(Q28),7*R28*Q28/10000+K27, ) -> 61.3921 | L28: =IF('In prod (weekly)'!M21>0,'In prod (weekly)'!M21,IF('In prod (weekly)'!K21>0,'In prod (weekly)'!L21/'In prod (weekly)'!K21*100,0)) -> 0 | M28: 42.9 | N28: 0 | O28: 25.28436661 | P28: 0 | Q28: 92.5 | R28: 95 | S28: =IF(SUM('In prod (weekly)'!E$3:E$68)>0,$K$6-SUM('In prod (weekly)'!E$3:E21),IF(SUM('In prod (weekly)'!$F$3:F86)>0,$K$6-SUM('In prod (weekly)'!$F$3:F21)/100*$K$6,$K$6)) -> 0 | T28: =IF((General!$J$6>0),S28/$K$6*100, ) -> 0 | U28: 87.3 | V28: 9.4 | W28: 0.0 | X28: 0.0 | Y28: 0.0 | Z28: 0.0 | AA28: =H28*General!$J$29 -> 0 | AB28: =J28*General!$J$29 -> 0 | AC28: =N28*General!$J$29 -> 0 | AH28: 14
A29: 34 | B29: =IF(SUM('In prod (weekly)'!C$3:C$68)>0,$K$5-SUM('In prod (weekly)'!C$3:C22),IF(SUM('In prod (weekly)'!$D$3:D87)>0,$K$5-SUM('In prod (weekly)'!$D$3:D22)/100*$K$5,$K$5)) -> 0 | C29: =IF((General!$J$5>0),B29/$K$5*100, ) -> 0 | D29: 98.4 | E29: =IF(SUM('In prod (weekly)'!G$3:G$68)>0,('In prod (weekly)'!G22)/7/B29*100,IF(SUM('In prod (weekly)'!$H$3:$H$68)>0,('In prod (weekly)'!H22), )) -> 0 | F29: 93.8 | G29: =IF('In prod (weekly)'!I22>0,'In prod (weekly)'!I22/'In prod (weekly)'!G22*100,IF('In prod (weekly)'!J22>0,'In prod (weekly)'!J22,R29 )) -> 95 | H29: 0 | I29: 78.89 | J29: 0 | K29: =IF(ISNUMBER(Q29),7*R29*Q29/10000+K28, ) -> 67.53005 | L29: =IF('In prod (weekly)'!M22>0,'In prod (weekly)'!M22,IF('In prod (weekly)'!K22>0,'In prod (weekly)'!L22/'In prod (weekly)'!K22*100,0)) -> 0 | M29: 42.9 | N29: 0 | O29: 27.91754716 | P29: 0 | Q29: 92.3 | R29: 95 | S29: =IF(SUM('In prod (weekly)'!E$3:E$68)>0,$K$6-SUM('In prod (weekly)'!E$3:E22),IF(SUM('In prod (weekly)'!$F$3:F87)>0,$K$6-SUM('In prod (weekly)'!$F$3:F22)/100*$K$6,$K$6)) -> 0 | T29: =IF((General!$J$6>0),S29/$K$6*100, ) -> 0 | U29: 87.2 | V29: 9.4 | W29: 0.0 | X29: 0.0 | Y29: 0.0 | Z29: 0.0 | AA29: =H29*General!$J$29 -> 0 | AB29: =J29*General!$J$29 -> 0 | AC29: =N29*General!$J$29 -> 0 | AH29: 15
A30: 35 | B30: =IF(SUM('In prod (weekly)'!C$3:C$68)>0,$K$5-SUM('In prod (weekly)'!C$3:C23),IF(SUM('In prod (weekly)'!$D$3:D88)>0,$K$5-SUM('In prod (weekly)'!$D$3:D23)/100*$K$5,$K$5)) -> 0 | C30: =IF((General!$J$5>0),B30/$K$5*100, ) -> 0 | D30: 98.3 | E30: =IF(SUM('In prod (weekly)'!G$3:G$68)>0,('In prod (weekly)'!G23)/7/B30*100,IF(SUM('In prod (weekly)'!$H$3:$H$68)>0,('In prod (weekly)'!H23), )) -> 0 | F30: 93.7 | G30: =IF('In prod (weekly)'!I23>0,'In prod (weekly)'!I23/'In prod (weekly)'!G23*100,IF('In prod (weekly)'!J23>0,'In prod (weekly)'!J23,R30 )) -> 96 | H30: 0 | I30: 85.337 | J30: 0 | K30: =IF(ISNUMBER(Q30),7*R30*Q30/10000+K29, ) -> 73.71917 | L30: =IF('In prod (weekly)'!M23>0,'In prod (weekly)'!M23,IF('In prod (weekly)'!K23>0,'In prod (weekly)'!L23/'In prod (weekly)'!K23*100,0)) -> 0 | M30: 42.9 | N30: 0 | O30: =IF(ISNUMBER(M30),7*Q30*R30*M30/1000000+O29, ) -> 30.57267964 | P30: 0 | Q30: 92.1 | R30: 96 | S30: =IF(SUM('In prod (weekly)'!E$3:E$68)>0,$K$6-SUM('In prod (weekly)'!E$3:E23),IF(SUM('In prod (weekly)'!$F$3:F88)>0,$K$6-SUM('In prod (weekly)'!$F$3:F23)/100*$K$6,$K$6)) -> 0 | T30: =IF((General!$J$6>0),S30/$K$6*100, ) -> 0 | U30: 87.1 | V30: 9.4 | W30: 0.0 | X30: 0.0 | Y30: 0.0 | Z30: 0.0 | AA30: =H30*General!$J$29 -> 0 | AB30: =J30*General!$J$29 -> 0 | AC30: =N30*General!$J$29 -> 0 | AH30: 16
A31: 36 | B31: =IF(SUM('In prod (weekly)'!C$3:C$68)>0,$K$5-SUM('In prod (weekly)'!C$3:C24),IF(SUM('In prod (weekly)'!$D$3:D89)>0,$K$5-SUM('In prod (weekly)'!$D$3:D24)/100*$K$5,$K$5)) -> 0 | C31: =IF((General!$J$5>0),B31/$K$5*100, ) -> 0 | D31: 98.1 | E31: =IF(SUM('In prod (weekly)'!G$3:G$68)>0,('In prod (weekly)'!G24)/7/B31*100,IF(SUM('In prod (weekly)'!$H$3:$H$68)>0,('In prod (weekly)'!H24), )) -> 0 | F31: 93.6 | G31: =IF('In prod (weekly)'!I24>0,'In prod (weekly)'!I24/'In prod (weekly)'!G24*100,IF('In prod (weekly)'!J24>0,'In prod (weekly)'!J24,R31 )) -> 96 | H31: 0 | I31: 91.763 | J31: 0 | K31: =IF(ISNUMBER(Q31),7*R31*Q31/10000+K30, ) -> 79.88813 | L31: =IF('In prod (weekly)'!M24>0,'In prod (weekly)'!M24,IF('In prod (weekly)'!K24>0,'In prod (weekly)'!L24/'In prod (weekly)'!K24*100,0)) -> 0 | M31: 42.9 | N31: 0 | O31: 33.21916348 | P31: 0 | Q31: 91.8 | R31: 96 | S31: =IF(SUM('In prod (weekly)'!E$3:E$68)>0,$K$6-SUM('In prod (weekly)'!E$3:E24),IF(SUM('In prod (weekly)'!$F$3:F89)>0,$K$6-SUM('In prod (weekly)'!$F$3:F24)/100*$K$6,$K$6)) -> 0 | T31: =IF((General!$J$6>0),S31/$K$6*100, ) -> 0 | U31: 87.0 | V31: 9.4 | W31: 0.0 | X31: 0.0 | Y31: 0.0 | Z31: 0.0 | AA31: =H31*General!$J$29 -> 0 | AB31: =J31*General!$J$29 -> 0 | AC31: =N31*General!$J$29 -> 0 | AH31: 17
A32: 37 | B32: =IF(SUM('In prod (weekly)'!C$3:C$68)>0,$K$5-SUM('In prod (weekly)'!C$3:C25),IF(SUM('In prod (weekly)'!$D$3:D90)>0,$K$5-SUM('In prod (weekly)'!$D$3:D25)/100*$K$5,$K$5)) -> 0 | C32: =IF((General!$J$5>0),B32/$K$5*100, ) -> 0 | D32: 98.0 | E32: =IF(SUM('In prod (weekly)'!G$3:G$68)>0,('In prod (weekly)'!G25)/7/B32*100,IF(SUM('In prod (weekly)'!$H$3:$H$68)>0,('In prod (weekly)'!H25), )) -> 0 | F32: 93.5 | G32: =IF('In prod (weekly)'!I25>0,'In prod (weekly)'!I25/'In prod (weekly)'!G25*100,IF('In prod (weekly)'!J25>0,'In prod (weekly)'!J25,R32 )) -> 96 | H32: 0 | I32: 98.175 | J32: 0 | K32: =IF(ISNUMBER(Q32),7*R32*Q32/10000+K31, ) -> 86.04365 | L32: =IF('In prod (weekly)'!M25>0,'In prod (weekly)'!M25,IF('In prod (weekly)'!K25>0,'In prod (weekly)'!L25/'In prod (weekly)'!K25*100,0)) -> 0 | M32: 42.9 | N32: 0 | O32: 35.85988156 | P32: 0 | Q32: 91.6 | R32: 96 | S32: =IF(SUM('In prod (weekly)'!E$3:E$68)>0,$K$6-SUM('In prod (weekly)'!E$3:E25),IF(SUM('In prod (weekly)'!$F$3:F90)>0,$K$6-SUM('In prod (weekly)'!$F$3:F25)/100*$K$6,$K$6)) -> 0 | T32: =IF((General!$J$6>0),S32/$K$6*100, ) -> 0 | U32: 87.0 | V32: 9.4 | W32: 0.0 | X32: 0.0 | Y32: 0.0 | Z32: 0.0 | AA32: =H32*General!$J$29 -> 0 | AB32: =J32*General!$J$29 -> 0 | AC32: =N32*General!$J$29 -> 0 | AH32: 18
A33: 38 | B33: =IF(SUM('In prod (weekly)'!C$3:C$68)>0,$K$5-SUM('In prod (weekly)'!C$3:C26),IF(SUM('In prod (weekly)'!$D$3:D91)>0,$K$5-SUM('In prod (weekly)'!$D$3:D26)/100*$K$5,$K$5)) -> 0 | C33: =IF((General!$J$5>0),B33/$K$5*100, ) -> 0 | D33: 97.8 | E33: =IF(SUM('In prod (weekly)'!G$3:G$68)>0,('In prod (weekly)'!G26)/7/B33*100,IF(SUM('In prod (weekly)'!$H$3:$H$68)>0,('In prod (weekly)'!H26), )) -> 0 | F33: 93.4 | G33: =IF('In prod (weekly)'!I26>0,'In prod (weekly)'!I26/'In prod (weekly)'!G26*100,IF('In prod (weekly)'!J26>0,'In prod (weekly)'!J26,R33 )) -> 96 | H33: 0 | I33: 104.566 | J33: 0 | K33: =IF(ISNUMBER(Q33),7*R33*Q33/10000+K32, ) -> 92.17901 | L33: =IF('In prod (weekly)'!M26>0,'In prod (weekly)'!M26,IF('In prod (weekly)'!K26>0,'In prod (weekly)'!L26/'In prod (weekly)'!K26*100,0)) -> 0 | M33: 42.9 | N33: 0 | O33: 38.491951 | P33: 0 | Q33: 91.3 | R33: 96 | S33: =IF(SUM('In prod (weekly)'!E$3:E$68)>0,$K$6-SUM('In prod (weekly)'!E$3:E26),IF(SUM('In prod (weekly)'!$F$3:F91)>0,$K$6-SUM('In prod (weekly)'!$F$3:F26)/100*$K$6,$K$6)) -> 0 | T33: =IF((General!$J$6>0),S33/$K$6*100, ) -> 0 | U33: 86.9 | V33: 9.3 | W33: 0.0 | X33: 0.0 | Y33: 0.0 | Z33: 0.0 | AA33: =H33*General!$J$29 -> 0 | AB33: =J33*General!$J$29 -> 0 | AC33: =N33*General!$J$29 -> 0 | AH33: 19
A34: 39 | B34: =IF(SUM('In prod (weekly)'!C$3:C$68)>0,$K$5-SUM('In prod (weekly)'!C$3:C27),IF(SUM('In prod (weekly)'!$D$3:D92)>0,$K$5-SUM('In prod (weekly)'!$D$3:D27)/100*$K$5,$K$5)) -> 0 | C34: =IF((General!$J$5>0),B34/$K$5*100, ) -> 0 | D34: 97.6 | E34: =IF(SUM('In prod (weekly)'!G$3:G$68)>0,('In prod (weekly)'!G27)/7/B34*100,IF(SUM('In prod (weekly)'!$H$3:$H$68)>0,('In prod (weekly)'!H27), )) -> 0 | F34: 93.3 | G34: =IF('In prod (weekly)'!I27>0,'In prod (weekly)'!I27/'In prod (weekly)'!G27*100,IF('In prod (weekly)'!J27>0,'In prod (weekly)'!J27,R34 )) -> 96 | H34: 0 | I34: 110.943 | J34: 0 | K34: =IF(ISNUMBER(Q34),7*R34*Q34/10000+K33, ) -> 98.30093 | L34: =IF('In prod (weekly)'!M27>0,'In prod (weekly)'!M27,IF('In prod (weekly)'!K27>0,'In prod (weekly)'!L27/'In prod (weekly)'!K27*100,0)) -> 0 | M34: 42.9 | N34: 0 | O34: 41.11825468 | P34: 0 | Q34: 91.1 | R34: 96 | S34: =IF(SUM('In prod (weekly)'!E$3:E$68)>0,$K$6-SUM('In prod (weekly)'!E$3:E27),IF(SUM('In prod (weekly)'!$F$3:F92)>0,$K$6-SUM('In prod (weekly)'!$F$3:F27)/100*$K$6,$K$6)) -> 0 | T34: =IF((General!$J$6>0),S34/$K$6*100, ) -> 0 | U34: 86.8 | V34: 9.3 | W34: 0.0 | X34: 0.0 | Y34: 0.0 | Z34: 0.0 | AA34: =H34*General!$J$29 -> 0 | AB34: =J34*General!$J$29 -> 0 | AC34: =N34*General!$J$29 -> 0 | AH34: 20
A35: 40 | B35: =IF(SUM('In prod (weekly)'!C$3:C$68)>0,$K$5-SUM('In prod (weekly)'!C$3:C28),IF(SUM('In prod (weekly)'!$D$3:D93)>0,$K$5-SUM('In prod (weekly)'!$D$3:D28)/100*$K$5,$K$5)) -> 0 | C35: =IF((General!$J$5>0),B35/$K$5*100, ) -> 0 | D35: 97.5 | E35: =IF(SUM('In prod (weekly)'!G$3:G$68)>0,('In prod (weekly)'!G28)/7/B35*100,IF(SUM('In prod (weekly)'!$H$3:$H$68)>0,('In prod (weekly)'!H28), )) -> 0 | F35: 93.1 | G35: =IF('In prod (weekly)'!I28>0,'In prod (weekly)'!I28/'In prod (weekly)'!G28*100,IF('In prod (weekly)'!J28>0,'In prod (weekly)'!J28,R35 )) -> 96 | H35: 0 | I35: 117.299 | J35: 0 | K35: =IF(ISNUMBER(Q35),7*R35*Q35/10000+K34, ) -> 104.40269 | L35: =IF('In prod (weekly)'!M28>0,'In prod (weekly)'!M28,IF('In prod (weekly)'!K28>0,'In prod (weekly)'!L28/'In prod (weekly)'!K28*100,0)) -> 0 | M35: 42.9 | N35: 0 | O35: 43.73590972 | P35: 0 | Q35: 90.8 | R35: 96 | S35: =IF(SUM('In prod (weekly)'!E$3:E$68)>0,$K$6-SUM('In prod (weekly)'!E$3:E28),IF(SUM('In prod (weekly)'!$F$3:F93)>0,$K$6-SUM('In prod (weekly)'!$F$3:F28)/100*$K$6,$K$6)) -> 0 | T35: =IF((General!$J$6>0),S35/$K$6*100, ) -> 0 | U35: 86.6 | V35: 9.3 | W35: 0.0 | X35: 0.0 | Y35: 0.0 | Z35: 0.0 | AA35: =H35*General!$J$29 -> 0 | AB35: =J35*General!$J$29 -> 0 | AC35: =N35*General!$J$29 -> 0 | AH35: 21
A36: 41 | B36: =IF(SUM('In prod (weekly)'!C$3:C$68)>0,$K$5-SUM('In prod (weekly)'!C$3:C29),IF(SUM('In prod (weekly)'!$D$3:D94)>0,$K$5-SUM('In prod (weekly)'!$D$3:D29)/100*$K$5,$K$5)) -> 0 | C36: =IF((General!$J$5>0),B36/$K$5*100, ) -> 0 | D36: 97.3 | E36: =IF(SUM('In prod (weekly)'!G$3:G$68)>0,('In prod (weekly)'!G29)/7/B36*100,IF(SUM('In prod (weekly)'!$H$3:$H$68)>0,('In prod (weekly)'!H29), )) -> 0 | F36: 92.9 | G36: =IF('In prod (weekly)'!I29>0,'In prod (weekly)'!I29/'In prod (weekly)'!G29*100,IF('In prod (weekly)'!J29>0,'In prod (weekly)'!J29,R36 )) -> 95 | H36: 0 | I36: 123.627 | J36: 0 | K36: =IF(ISNUMBER(Q36),7*R36*Q36/10000+K35, ) -> 110.41429 | L36: =IF('In prod (weekly)'!M29>0,'In prod (weekly)'!M29,IF('In prod (weekly)'!K29>0,'In prod (weekly)'!L29/'In prod (weekly)'!K29*100,0)) -> 0 | M36: 42.9 | N36: 0 | O36: 46.31488612 | P36: 0 | Q36: 90.4 | R36: 95 | S36: =IF(SUM('In prod (weekly)'!E$3:E$68)>0,$K$6-SUM('In prod (weekly)'!E$3:E29),IF(SUM('In prod (weekly)'!$F$3:F94)>0,$K$6-SUM('In prod (weekly)'!$F$3:F29)/100*$K$6,$K$6)) -> 0 | T36: =IF((General!$J$6>0),S36/$K$6*100, ) -> 0 | U36: 86.4 | V36: 9.3 | W36: 0.0 | X36: 0.0 | Y36: 0.0 | Z36: 0.0 | AA36: =H36*General!$J$29 -> 0 | AB36: =J36*General!$J$29 -> 0 | AC36: =N36*General!$J$29 -> 0 | AH36: 22
A37: 42 | B37: =IF(SUM('In prod (weekly)'!C$3:C$68)>0,$K$5-SUM('In prod (weekly)'!C$3:C30),IF(SUM('In prod (weekly)'!$D$3:D95)>0,$K$5-SUM('In prod (weekly)'!$D$3:D30)/100*$K$5,$K$5)) -> 0 | C37: =IF((General!$J$5>0),B37/$K$5*100, ) -> 0 | D37: 97.1 | E37: =IF(SUM('In prod (weekly)'!G$3:G$68)>0,('In prod (weekly)'!G30)/7/B37*100,IF(SUM('In prod (weekly)'!$H$3:$H$68)>0,('In prod (weekly)'!H30), )) -> 0 | F37: 92.7 | G37: =IF('In prod (weekly)'!I30>0,'In prod (weekly)'!I30/'In prod (weekly)'!G30*100,IF('In prod (weekly)'!J30>0,'In prod (weekly)'!J30,R37 )) -> 95 | H37: 0 | I37: 129.927 | J37: 0 | K37: =IF(ISNUMBER(Q37),7*R37*Q37/10000+K36, ) -> 116.39929 | L37: =IF('In prod (weekly)'!M30>0,'In prod (weekly)'!M30,IF('In prod (weekly)'!K30>0,'In prod (weekly)'!L30/'In prod (weekly)'!K30*100,0)) -> 0 | M37: 42.9 | N37: 0 | O37: 48.88245112 | P37: 0 | Q37: 90.0 | R37: 95 | S37: =IF(SUM('In prod (weekly)'!E$3:E$68)>0,$K$6-SUM('In prod (weekly)'!E$3:E30),IF(SUM('In prod (weekly)'!$F$3:F95)>0,$K$6-SUM('In prod (weekly)'!$F$3:F30)/100*$K$6,$K$6)) -> 0 | T37: =IF((General!$J$6>0),S37/$K$6*100, ) -> 0 | U37: 86.2 | V37: 9.3 | W37: 0.0 | X37: 0.0 | Y37: 0.0 | Z37: 0.0 | AA37: =H37*General!$J$29 -> 0 | AB37: =J37*General!$J$29 -> 0 | AC37: =N37*General!$J$29 -> 0 | AH37: =IF(E37=0,"",AH36+1) -> 
A38: 43 | B38: =IF(SUM('In prod (weekly)'!C$3:C$68)>0,$K$5-SUM('In prod (weekly)'!C$3:C31),IF(SUM('In prod (weekly)'!$D$3:D96)>0,$K$5-SUM('In prod (weekly)'!$D$3:D31)/100*$K$5,$K$5)) -> 0 | C38: =IF((General!$J$5>0),B38/$K$5*100, ) -> 0 | D38: 96.9 | E38: =IF(SUM('In prod (weekly)'!G$3:G$68)>0,('In prod (weekly)'!G31)/7/B38*100,IF(SUM('In prod (weekly)'!$H$3:$H$68)>0,('In prod (weekly)'!H31), )) -> 0 | F38: 92.4 | G38: =IF('In prod (weekly)'!I31>0,'In prod (weekly)'!I31/'In prod (weekly)'!G31*100,IF('In prod (weekly)'!J31>0,'In prod (weekly)'!J31,R38 )) -> 95 | H38: 0 | I38: 136.192 | J38: 0 | K38: =IF(ISNUMBER(Q38),7*R38*Q38/10000+K37, ) -> 122.35104 | L38: =IF('In prod (weekly)'!M31>0,'In prod (weekly)'!M31,IF('In prod (weekly)'!K31>0,'In prod (weekly)'!L31/'In prod (weekly)'!K31*100,0)) -> 0 | M38: 42.9 | N38: 0 | O38: 51.43575187 | P38: 0 | Q38: 89.5 | R38: 95 | S38: =IF(SUM('In prod (weekly)'!E$3:E$68)>0,$K$6-SUM('In prod (weekly)'!E$3:E31),IF(SUM('In prod (weekly)'!$F$3:F96)>0,$K$6-SUM('In prod (weekly)'!$F$3:F31)/100*$K$6,$K$6)) -> 0 | T38: =IF((General!$J$6>0),S38/$K$6*100, ) -> 0 | U38: 85.9 | V38: 9.2 | W38: 0.0 | X38: 0.0 | Y38: 0.0 | Z38: 0.0 | AA38: =H38*General!$J$29 -> 0 | AB38: =J38*General!$J$29 -> 0 | AC38: =N38*General!$J$29 -> 0 | AH38: =IF(E38=0,"",AH37+1) -> 
A39: 44 | B39: =IF(SUM('In prod (weekly)'!C$3:C$68)>0,$K$5-SUM('In prod (weekly)'!C$3:C32),IF(SUM('In prod (weekly)'!$D$3:D97)>0,$K$5-SUM('In prod (weekly)'!$D$3:D32)/100*$K$5,$K$5)) -> 0 | C39: =IF((General!$J$5>0),B39/$K$5*100, ) -> 0 | D39: 96.7 | E39: =IF(SUM('In prod (weekly)'!G$3:G$68)>0,('In prod (weekly)'!G32)/7/B39*100,IF(SUM('In prod (weekly)'!$H$3:$H$68)>0,('In prod (weekly)'!H32), )) -> 0 | F39: 92.1 | G39: =IF('In prod (weekly)'!I32>0,'In prod (weekly)'!I32/'In prod (weekly)'!G32*100,IF('In prod (weekly)'!J32>0,'In prod (weekly)'!J32,R39 )) -> 95 | H39: 0 | I39: 142.429 | J39: 0 | K39: =IF(ISNUMBER(Q39),7*R39*Q39/10000+K38, ) -> 128.27619 | L39: =IF('In prod (weekly)'!M32>0,'In prod (weekly)'!M32,IF('In prod (weekly)'!K32>0,'In prod (weekly)'!L32/'In prod (weekly)'!K32*100,0)) -> 0 | M39: 42.9 | N39: 0 | O39: 53.97764122 | P39: 0 | Q39: 89.1 | R39: 95 | S39: =IF(SUM('In prod (weekly)'!E$3:E$68)>0,$K$6-SUM('In prod (weekly)'!E$3:E32),IF(SUM('In prod (weekly)'!$F$3:F97)>0,$K$6-SUM('In prod (weekly)'!$F$3:F32)/100*$K$6,$K$6)) -> 0 | T39: =IF((General!$J$6>0),S39/$K$6*100, ) -> 0 | U39: 85.7 | V39: 9.2 | W39: 0.0 | X39: 0.0 | Y39: 0.0 | Z39: 0.0 | AA39: =H39*General!$J$29 -> 0 | AB39: =J39*General!$J$29 -> 0 | AC39: =N39*General!$J$29 -> 0 | AH39: =IF(E39=0,"",AH38+1) -> 
A40: 45 | B40: =IF(SUM('In prod (weekly)'!C$3:C$68)>0,$K$5-SUM('In prod (weekly)'!C$3:C33),IF(SUM('In prod (weekly)'!$D$3:D98)>0,$K$5-SUM('In prod (weekly)'!$D$3:D33)/100*$K$5,$K$5)) -> 0 | C40: =IF((General!$J$5>0),B40/$K$5*100, ) -> 0 | D40: 96.5 | E40: =IF(SUM('In prod (weekly)'!G$3:G$68)>0,('In prod (weekly)'!G33)/7/B40*100,IF(SUM('In prod (weekly)'!$H$3:$H$68)>0,('In prod (weekly)'!H33), )) -> 0 | F40: 91.8 | G40: =IF('In prod (weekly)'!I33>0,'In prod (weekly)'!I33/'In prod (weekly)'!G33*100,IF('In prod (weekly)'!J33>0,'In prod (weekly)'!J33,R40 )) -> 95 | H40: 0 | I40: 148.631 | J40: 0 | K40: =IF(ISNUMBER(Q40),7*R40*Q40/10000+K39, ) -> 134.16809 | L40: =IF('In prod (weekly)'!M33>0,'In prod (weekly)'!M33,IF('In prod (weekly)'!K33>0,'In prod (weekly)'!L33/'In prod (weekly)'!K33*100,0)) -> 0 | M40: 42.4125 | N40: 0 | O40: 56.4765433 | P40: 0 | Q40: 88.6 | R40: 95 | S40: =IF(SUM('In prod (weekly)'!E$3:E$68)>0,$K$6-SUM('In prod (weekly)'!E$3:E33),IF(SUM('In prod (weekly)'!$F$3:F98)>0,$K$6-SUM('In prod (weekly)'!$F$3:F33)/100*$K$6,$K$6)) -> 0 | T40: =IF((General!$J$6>0),S40/$K$6*100, ) -> 0 | U40: 85.4 | V40: 9.2 | W40: 0.0 | X40: 0.0 | Y40: 0.0 | Z40: 0.0 | AA40: =H40*General!$J$29 -> 0 | AB40: =J40*General!$J$29 -> 0 | AC40: =N40*General!$J$29 -> 0
A41: 46 | B41: =IF(SUM('In prod (weekly)'!C$3:C$68)>0,$K$5-SUM('In prod (weekly)'!C$3:C34),IF(SUM('In prod (weekly)'!$D$3:D99)>0,$K$5-SUM('In prod (weekly)'!$D$3:D34)/100*$K$5,$K$5)) -> 0 | C41: =IF((General!$J$5>0),B41/$K$5*100, ) -> 0 | D41: 96.3 | E41: =IF(SUM('In prod (weekly)'!G$3:G$68)>0,('In prod (weekly)'!G34)/7/B41*100,IF(SUM('In prod (weekly)'!$H$3:$H$68)>0,('In prod (weekly)'!H34), )) -> 0 | F41: 91.5 | G41: =IF('In prod (weekly)'!I34>0,'In prod (weekly)'!I34/'In prod (weekly)'!G34*100,IF('In prod (weekly)'!J34>0,'In prod (weekly)'!J34,R41 )) -> 95 | H41: 0 | I41: 154.798 | J41: 0 | K41: =IF(ISNUMBER(Q41),7*R41*Q41/10000+K40, ) -> 140.02674 | L41: =IF('In prod (weekly)'!M34>0,'In prod (weekly)'!M34,IF('In prod (weekly)'!K34>0,'In prod (weekly)'!L34/'In prod (weekly)'!K34*100,0)) -> 0 | M41: 42.4125 | N41: 0 | O41: 58.96134324 | P41: 0 | Q41: 88.1 | R41: 95 | S41: =IF(SUM('In prod (weekly)'!E$3:E$68)>0,$K$6-SUM('In prod (weekly)'!E$3:E34),IF(SUM('In prod (weekly)'!$F$3:F99)>0,$K$6-SUM('In prod (weekly)'!$F$3:F34)/100*$K$6,$K$6)) -> 0 | T41: =IF((General!$J$6>0),S41/$K$6*100, ) -> 0 | U41: 85.1 | V41: 9.2 | W41: 0.0 | X41: 0.0 | Y41: 0.0 | Z41: 0.0 | AA41: =H41*General!$J$29 -> 0 | AB41: =J41*General!$J$29 -> 0 | AC41: =N41*General!$J$29 -> 0
A42: 47 | B42: =IF(SUM('In prod (weekly)'!C$3:C$68)>0,$K$5-SUM('In prod (weekly)'!C$3:C35),IF(SUM('In prod (weekly)'!$D$3:D100)>0,$K$5-SUM('In prod (weekly)'!$D$3:D35)/100*$K$5,$K$5)) -> 0 | C42: =IF((General!$J$5>0),B42/$K$5*100, ) -> 0 | D42: 96.1 | E42: =IF(SUM('In prod (weekly)'!G$3:G$68)>0,('In prod (weekly)'!G35)/7/B42*100,IF(SUM('In prod (weekly)'!$H$3:$H$68)>0,('In prod (weekly)'!H35), )) -> 0 | F42: 91.2 | G42: =IF('In prod (weekly)'!I35>0,'In prod (weekly)'!I35/'In prod (weekly)'!G35*100,IF('In prod (weekly)'!J35>0,'In prod (weekly)'!J35,R42 )) -> 95 | H42: 0 | I42: 160.93 | J42: 0 | K42: =IF(ISNUMBER(Q42),7*R42*Q42/10000+K41, ) -> 145.85214 | L42: =IF('In prod (weekly)'!M35>0,'In prod (weekly)'!M35,IF('In prod (weekly)'!K35>0,'In prod (weekly)'!L35/'In prod (weekly)'!K35*100,0)) -> 0 | M42: 41.925 | N42: 0 | O42: 61.40364219 | P42: 0 | Q42: =IF(ISNUMBER(F42),F42*D42/100,"") -> 87.6 | R42: 95 | S42: =IF(SUM('In prod (weekly)'!E$3:E$68)>0,$K$6-SUM('In prod (weekly)'!E$3:E35),IF(SUM('In prod (weekly)'!$F$3:F100)>0,$K$6-SUM('In prod (weekly)'!$F$3:F35)/100*$K$6,$K$6)) -> 0 | T42: =IF((General!$J$6>0),S42/$K$6*100, ) -> 0 | U42: 84.8 | V42: 9.1 | W42: 0.0 | X42: 0.0 | Y42: 0.0 | Z42: 0.0 | AA42: =H42*General!$J$29 -> 0 | AB42: =J42*General!$J$29 -> 0 | AC42: =N42*General!$J$29 -> 0
A43: 48 | B43: =IF(SUM('In prod (weekly)'!C$3:C$68)>0,$K$5-SUM('In prod (weekly)'!C$3:C36),IF(SUM('In prod (weekly)'!$D$3:D101)>0,$K$5-SUM('In prod (weekly)'!$D$3:D36)/100*$K$5,$K$5)) -> 0 | C43: =IF((General!$J$5>0),B43/$K$5*100, ) -> 0 | D43: 95.8 | E43: =IF(SUM('In prod (weekly)'!G$3:G$68)>0,('In prod (weekly)'!G36)/7/B43*100,IF(SUM('In prod (weekly)'!$H$3:$H$68)>0,('In prod (weekly)'!H36), )) -> 0 | F43: 90.8 | G43: =IF('In prod (weekly)'!I36>0,'In prod (weekly)'!I36/'In prod (weekly)'!G36*100,IF('In prod (weekly)'!J36>0,'In prod (weekly)'!J36,R43 )) -> 95 | H43: =7*P43/100+H42 -> 0 | I43: =IF(ISNUMBER(Q43),7*Q43/100+I42, ) -> 167.02 | J43: 0 | K43: =IF(ISNUMBER(Q43),7*R43*Q43/10000+K42, ) -> 151.63764 | L43: =IF('In prod (weekly)'!M36>0,'In prod (weekly)'!M36,IF('In prod (weekly)'!K36>0,'In prod (weekly)'!L36/'In prod (weekly)'!K36*100,0)) -> 0 | M43: 41.925 | N43: =7*P43*G43*L43/1000000+N42 -> 0 | O43: 63.82921306 | P43: 0 | Q43: 87.0 | R43: 95 | S43: =IF(SUM('In prod (weekly)'!E$3:E$68)>0,$K$6-SUM('In prod (weekly)'!E$3:E36),IF(SUM('In prod (weekly)'!$F$3:F101)>0,$K$6-SUM('In prod (weekly)'!$F$3:F36)/100*$K$6,$K$6)) -> 0 | T43: =IF((General!$J$6>0),S43/$K$6*100, ) -> 0 | U43: 84.4 | V43: 9.1 | W43: 0.0 | X43: 0.0 | Y43: 0.0 | Z43: 0.0 | AA43: =H43*General!$J$29 -> 0 | AB43: =J43*General!$J$29 -> 0 | AC43: =N43*General!$J$29 -> 0
A44: 49 | B44: =IF(SUM('In prod (weekly)'!C$3:C$68)>0,$K$5-SUM('In prod (weekly)'!C$3:C37),IF(SUM('In prod (weekly)'!$D$3:D102)>0,$K$5-SUM('In prod (weekly)'!$D$3:D37)/100*$K$5,$K$5)) -> 0 | C44: =IF((General!$J$5>0),B44/$K$5*100, ) -> 0 | D44: 95.6 | E44: =IF(SUM('In prod (weekly)'!G$3:G$68)>0,('In prod (weekly)'!G37)/7/B44*100,IF(SUM('In prod (weekly)'!$H$3:$H$68)>0,('In prod (weekly)'!H37), )) -> 0 | F44: 90.4 | G44: =IF('In prod (weekly)'!I37>0,'In prod (weekly)'!I37/'In prod (weekly)'!G37*100,IF('In prod (weekly)'!J37>0,'In prod (weekly)'!J37,R44 )) -> 95 | H44: 0 | I44: 173.068 | J44: 0 | K44: =IF(ISNUMBER(Q44),7*R44*Q44/10000+K43, ) -> 157.38324 | L44: =IF('In prod (weekly)'!M37>0,'In prod (weekly)'!M37,IF('In prod (weekly)'!K37>0,'In prod (weekly)'!L37/'In prod (weekly)'!K37*100,0)) -> 0 | M44: 41.4375 | N44: 0 | O44: 66.21004606 | P44: 0 | Q44: 86.4 | R44: 95 | S44: =IF(SUM('In prod (weekly)'!E$3:E$68)>0,$K$6-SUM('In prod (weekly)'!E$3:E37),IF(SUM('In prod (weekly)'!$F$3:F102)>0,$K$6-SUM('In prod (weekly)'!$F$3:F37)/100*$K$6,$K$6)) -> 0 | T44: =IF((General!$J$6>0),S44/$K$6*100, ) -> 0 | U44: 84.1 | V44: 9.0 | W44: =IF(H44>H43,I44,W43) -> 0.0 | X44: =IF(N44>N43,O44,X43) -> 0.0 | Y44: =IF(C44<C43,D44,Y43) -> 0.0 | Z44: 0.0 | AA44: =H44*General!$J$29 -> 0 | AB44: =J44*General!$J$29 -> 0 | AC44: =N44*General!$J$29 -> 0
A45: 50 | B45: =IF(SUM('In prod (weekly)'!C$3:C$68)>0,$K$5-SUM('In prod (weekly)'!C$3:C38),IF(SUM('In prod (weekly)'!$D$3:D103)>0,$K$5-SUM('In prod (weekly)'!$D$3:D38)/100*$K$5,$K$5)) -> 0 | C45: =IF((General!$J$5>0),B45/$K$5*100, ) -> 0 | D45: 95.3 | E45: =IF(SUM('In prod (weekly)'!G$3:G$68)>0,('In prod (weekly)'!G38)/7/B45*100,IF(SUM('In prod (weekly)'!$H$3:$H$68)>0,('In prod (weekly)'!H38), )) -> 0 | F45: 89.9 | G45: =IF('In prod (weekly)'!I38>0,'In prod (weekly)'!I38/'In prod (weekly)'!G38*100,IF('In prod (weekly)'!J38>0,'In prod (weekly)'!J38,R45 )) -> 95 | H45: 0 | I45: 179.067 | J45: 0 | K45: =IF(ISNUMBER(Q45),7*R45*Q45/10000+K44, ) -> 163.08229 | L45: =IF('In prod (weekly)'!M38>0,'In prod (weekly)'!M38,IF('In prod (weekly)'!K38>0,'In prod (weekly)'!L38/'In prod (weekly)'!K38*100,0)) -> 0 | M45: 41.4375 | N45: 0 | O45: 68.5715899 | P45: 0 | Q45: 85.7 | R45: 95 | S45: =IF(SUM('In prod (weekly)'!E$3:E$68)>0,$K$6-SUM('In prod (weekly)'!E$3:E38),IF(SUM('In prod (weekly)'!$F$3:F103)>0,$K$6-SUM('In prod (weekly)'!$F$3:F38)/100*$K$6,$K$6)) -> 0 | T45: =IF((General!$J$6>0),S45/$K$6*100, ) -> 0 | U45: 83.6 | V45: 9.0 | W45: 0.0 | X45: 0.0 | Y45: 0.0 | Z45: 0.0 | AA45: =H45*General!$J$29 -> 0 | AB45: =J45*General!$J$29 -> 0 | AC45: =N45*General!$J$29 -> 0
A46: 51 | B46: =IF(SUM('In prod (weekly)'!C$3:C$68)>0,$K$5-SUM('In prod (weekly)'!C$3:C39),IF(SUM('In prod (weekly)'!$D$3:D104)>0,$K$5-SUM('In prod (weekly)'!$D$3:D39)/100*$K$5,$K$5)) -> 0 | C46: =IF((General!$J$5>0),B46/$K$5*100, ) -> 0 | D46: 95.1 | E46: =IF(SUM('In prod (weekly)'!G$3:G$68)>0,('In prod (weekly)'!G39)/7/B46*100,IF(SUM('In prod (weekly)'!$H$3:$H$68)>0,('In prod (weekly)'!H39), )) -> 0 | F46: 89.4 | G46: =IF('In prod (weekly)'!I39>0,'In prod (weekly)'!I39/'In prod (weekly)'!G39*100,IF('In prod (weekly)'!J39>0,'In prod (weekly)'!J39,R46 )) -> 94 | H46: 0 | I46: 185.017 | J46: 0 | K46: =IF(ISNUMBER(Q46),7*R46*Q46/10000+K45, ) -> 168.67529 | L46: =IF('In prod (weekly)'!M39>0,'In prod (weekly)'!M39,IF('In prod (weekly)'!K39>0,'In prod (weekly)'!L39/'In prod (weekly)'!K39*100,0)) -> 0 | M46: 40.95 | N46: 0 | O46: =IF(ISNUMBER(M46),7*Q46*R46*M46/1000000+O45, ) -> 70.8619234 | P46: 0 | Q46: 85.0 | R46: 94 | S46: =IF(SUM('In prod (weekly)'!E$3:E$68)>0,$K$6-SUM('In prod (weekly)'!E$3:E39),IF(SUM('In prod (weekly)'!$F$3:F104)>0,$K$6-SUM('In prod (weekly)'!$F$3:F39)/100*$K$6,$K$6)) -> 0 | T46: =IF((General!$J$6>0),S46/$K$6*100, ) -> 0 | U46: 83.1 | V46: 8.9 | W46: 0.0 | X46: 0.0 | Y46: 0.0 | Z46: 0.0 | AA46: =H46*General!$J$29 -> 0 | AB46: =J46*General!$J$29 -> 0 | AC46: =N46*General!$J$29 -> 0
A47: 52 | B47: =IF(SUM('In prod (weekly)'!C$3:C$68)>0,$K$5-SUM('In prod (weekly)'!C$3:C40),IF(SUM('In prod (weekly)'!$D$3:D105)>0,$K$5-SUM('In prod (weekly)'!$D$3:D40)/100*$K$5,$K$5)) -> 0 | C47: =IF((General!$J$5>0),B47/$K$5*100, ) -> 0 | D47: 94.8 | E47: =IF(SUM('In prod (weekly)'!G$3:G$68)>0,('In prod (weekly)'!G40)/7/B47*100,IF(SUM('In prod (weekly)'!$H$3:$H$68)>0,('In prod (weekly)'!H40), )) -> 0 | F47: 88.9 | G47: =IF('In prod (weekly)'!I40>0,'In prod (weekly)'!I40/'In prod (weekly)'!G40*100,IF('In prod (weekly)'!J40>0,'In prod (weekly)'!J40,R47 )) -> 94 | H47: 0 | I47: 190.918 | J47: 0 | K47: =IF(ISNUMBER(Q47),7*R47*Q47/10000+K46, ) -> 174.22223 | L47: =IF('In prod (weekly)'!M40>0,'In prod (weekly)'!M40,IF('In prod (weekly)'!K40>0,'In prod (weekly)'!L40/'In prod (weekly)'!K40*100,0)) -> 0 | M47: 40.4625 | N47: 0 | O47: 73.106354 | P47: 0 | Q47: 84.3 | R47: 94 | S47: =IF(SUM('In prod (weekly)'!E$3:E$68)>0,$K$6-SUM('In prod (weekly)'!E$3:E40),IF(SUM('In prod (weekly)'!$F$3:F105)>0,$K$6-SUM('In prod (weekly)'!$F$3:F40)/100*$K$6,$K$6)) -> 0 | T47: =IF((General!$J$6>0),S47/$K$6*100, ) -> 0 | U47: =F47-F47*0.07 -> 82.7 | V47: =F47+F47*0.03-U47 -> 8.9 | W47: 0.0 | X47: 0.0 | Y47: 0.0 | Z47: 0.0 | AA47: =H47*General!$J$29 -> 0 | AB47: =J47*General!$J$29 -> 0 | AC47: =N47*General!$J$29 -> 0
A48: 53 | B48: =IF(SUM('In prod (weekly)'!C$3:C$68)>0,$K$5-SUM('In prod (weekly)'!C$3:C41),IF(SUM('In prod (weekly)'!$D$3:D106)>0,$K$5-SUM('In prod (weekly)'!$D$3:D41)/100*$K$5,$K$5)) -> 0 | C48: =IF((General!$J$5>0),B48/$K$5*100, ) -> 0 | D48: 94.6 | E48: =IF(SUM('In prod (weekly)'!G$3:G$68)>0,('In prod (weekly)'!G41)/7/B48*100,IF(SUM('In prod (weekly)'!$H$3:$H$68)>0,('In prod (weekly)'!H41), )) -> 0 | F48: 88.4 | G48: =IF('In prod (weekly)'!I41>0,'In prod (weekly)'!I41/'In prod (weekly)'!G41*100,IF('In prod (weekly)'!J41>0,'In prod (weekly)'!J41,R48 )) -> 94 | H48: 0 | I48: 196.77 | J48: 0 | K48: =IF(ISNUMBER(Q48),7*R48*Q48/10000+K47, ) -> 179.72311 | L48: =IF('In prod (weekly)'!M41>0,'In prod (weekly)'!M41,IF('In prod (weekly)'!K41>0,'In prod (weekly)'!L41/'In prod (weekly)'!K41*100,0)) -> 0 | M48: 39.975 | N48: 0 | O48: 75.30533078 | P48: 0 | Q48: 83.6 | R48: 94 | S48: =IF(SUM('In prod (weekly)'!E$3:E$68)>0,$K$6-SUM('In prod (weekly)'!E$3:E41),IF(SUM('In prod (weekly)'!$F$3:F106)>0,$K$6-SUM('In prod (weekly)'!$F$3:F41)/100*$K$6,$K$6)) -> 0 | T48: =IF((General!$J$6>0),S48/$K$6*100, ) -> 0 | U48: 82.2 | V48: 8.8 | W48: 0.0 | X48: 0.0 | Y48: 0.0 | Z48: 0.0 | AA48: =H48*General!$J$29 -> 0 | AB48: =J48*General!$J$29 -> 0 | AC48: =N48*General!$J$29 -> 0
A49: 54 | B49: =IF(SUM('In prod (weekly)'!C$3:C$68)>0,$K$5-SUM('In prod (weekly)'!C$3:C42),IF(SUM('In prod (weekly)'!$D$3:D107)>0,$K$5-SUM('In prod (weekly)'!$D$3:D42)/100*$K$5,$K$5)) -> 0 | C49: =IF((General!$J$5>0),B49/$K$5*100, ) -> 0 | D49: 94.3 | E49: =IF(SUM('In prod (weekly)'!G$3:G$68)>0,('In prod (weekly)'!G42)/7/B49*100,IF(SUM('In prod (weekly)'!$H$3:$H$68)>0,('In prod (weekly)'!H42), )) -> 0 | F49: 87.9 | G49: =IF('In prod (weekly)'!I42>0,'In prod (weekly)'!I42/'In prod (weekly)'!G42*100,IF('In prod (weekly)'!J42>0,'In prod (weekly)'!J42,R49 )) -> 94 | H49: 0 | I49: 202.573 | J49: 0 | K49: =IF(ISNUMBER(Q49),7*R49*Q49/10000+K48, ) -> 185.17793 | L49: =IF('In prod (weekly)'!M42>0,'In prod (weekly)'!M42,IF('In prod (weekly)'!K42>0,'In prod (weekly)'!L42/'In prod (weekly)'!K42*100,0)) -> 0 | M49: 39 | N49: 0 | O49: 77.43271058 | P49: 0 | Q49: 82.9 | R49: 94 | S49: =IF(SUM('In prod (weekly)'!E$3:E$68)>0,$K$6-SUM('In prod (weekly)'!E$3:E42),IF(SUM('In prod (weekly)'!$F$3:F107)>0,$K$6-SUM('In prod (weekly)'!$F$3:F42)/100*$K$6,$K$6)) -> 0 | T49: =IF((General!$J$6>0),S49/$K$6*100, ) -> 0 | U49: 81.7 | V49: 8.8 | W49: 0.0 | X49: 0.0 | Y49: 0.0 | Z49: 0.0 | AA49: =H49*General!$J$29 -> 0 | AB49: =J49*General!$J$29 -> 0 | AC49: =N49*General!$J$29 -> 0
A50: 55 | B50: =IF(SUM('In prod (weekly)'!C$3:C$68)>0,$K$5-SUM('In prod (weekly)'!C$3:C43),IF(SUM('In prod (weekly)'!$D$3:D108)>0,$K$5-SUM('In prod (weekly)'!$D$3:D43)/100*$K$5,$K$5)) -> 0 | C50: =IF((General!$J$5>0),B50/$K$5*100, ) -> 0 | D50: 94.0 | E50: =IF(SUM('In prod (weekly)'!G$3:G$68)>0,('In prod (weekly)'!G43)/7/B50*100,IF(SUM('In prod (weekly)'!$H$3:$H$68)>0,('In prod (weekly)'!H43), )) -> 0 | F50: 87.3 | G50: =IF('In prod (weekly)'!I43>0,'In prod (weekly)'!I43/'In prod (weekly)'!G43*100,IF('In prod (weekly)'!J43>0,'In prod (weekly)'!J43,R50 )) -> 94 | H50: 0 | I50: 208.32 | J50: 0 | K50: =IF(ISNUMBER(Q50),7*R50*Q50/10000+K49, ) -> 190.58011 | L50: =IF('In prod (weekly)'!M43>0,'In prod (weekly)'!M43,IF('In prod (weekly)'!K43>0,'In prod (weekly)'!L43/'In prod (weekly)'!K43*100,0)) -> 0 | M50: 39 | N50: 0 | O50: 79.53956078 | P50: 0 | Q50: 82.1 | R50: 94 | S50: =IF(SUM('In prod (weekly)'!E$3:E$68)>0,$K$6-SUM('In prod (weekly)'!E$3:E43),IF(SUM('In prod (weekly)'!$F$3:F108)>0,$K$6-SUM('In prod (weekly)'!$F$3:F43)/100*$K$6,$K$6)) -> 0 | T50: =IF((General!$J$6>0),S50/$K$6*100, ) -> 0 | U50: 81.2 | V50: 8.7 | W50: 0.0 | X50: 0.0 | Y50: 0.0 | Z50: 0.0 | AA50: =H50*General!$J$29 -> 0 | AB50: =J50*General!$J$29 -> 0 | AC50: =N50*General!$J$29 -> 0
A51: 56 | B51: =IF(SUM('In prod (weekly)'!C$3:C$68)>0,$K$5-SUM('In prod (weekly)'!C$3:C44),IF(SUM('In prod (weekly)'!$D$3:D109)>0,$K$5-SUM('In prod (weekly)'!$D$3:D44)/100*$K$5,$K$5)) -> 0 | C51: =IF((General!$J$5>0),B51/$K$5*100, ) -> 0 | D51: 93.9 | E51: =IF(SUM('In prod (weekly)'!G$3:G$68)>0,('In prod (weekly)'!G44)/7/B51*100,IF(SUM('In prod (weekly)'!$H$3:$H$68)>0,('In prod (weekly)'!H44), )) -> 0 | F51: 86.7 | G51: =IF('In prod (weekly)'!I44>0,'In prod (weekly)'!I44/'In prod (weekly)'!G44*100,IF('In prod (weekly)'!J44>0,'In prod (weekly)'!J44,R51 )) -> 94 | H51: 0 | I51: 214.018 | J51: 0 | K51: =IF(ISNUMBER(Q51),7*R51*Q51/10000+K50, ) -> 195.93623 | L51: =IF('In prod (weekly)'!M44>0,'In prod (weekly)'!M44,IF('In prod (weekly)'!K44>0,'In prod (weekly)'!L44/'In prod (weekly)'!K44*100,0)) -> 0 | M51: 39 | N51: 0 | O51: 81.62844758 | P51: 0 | Q51: 81.4 | R51: 94 | S51: =IF(SUM('In prod (weekly)'!E$3:E$68)>0,$K$6-SUM('In prod (weekly)'!E$3:E44),IF(SUM('In prod (weekly)'!$F$3:F109)>0,$K$6-SUM('In prod (weekly)'!$F$3:F44)/100*$K$6,$K$6)) -> 0 | T51: =IF((General!$J$6>0),S51/$K$6*100, ) -> 0 | U51: 80.6 | V51: 8.7 | W51: 0.0 | X51: 0.0 | Y51: 0.0 | Z51: 0.0 | AA51: =H51*General!$J$29 -> 0 | AB51: =J51*General!$J$29 -> 0 | AC51: =N51*General!$J$29 -> 0
A52: 57 | B52: =IF(SUM('In prod (weekly)'!C$3:C$68)>0,$K$5-SUM('In prod (weekly)'!C$3:C45),IF(SUM('In prod (weekly)'!$D$3:D110)>0,$K$5-SUM('In prod (weekly)'!$D$3:D45)/100*$K$5,$K$5)) -> 0 | C52: =IF((General!$J$5>0),B52/$K$5*100, ) -> 0 | D52: 93.6 | E52: =IF(SUM('In prod (weekly)'!G$3:G$68)>0,('In prod (weekly)'!G45)/7/B52*100,IF(SUM('In prod (weekly)'!$H$3:$H$68)>0,('In prod (weekly)'!H45), )) -> 0 | F52: 86.1 | G52: =IF('In prod (weekly)'!I45>0,'In prod (weekly)'!I45/'In prod (weekly)'!G45*100,IF('In prod (weekly)'!J45>0,'In prod (weekly)'!J45,R52 )) -> 94 | H52: 0 | I52: 219.66 | J52: 0 | K52: =IF(ISNUMBER(Q52),7*R52*Q52/10000+K51, ) -> 201.23971 | L52: =IF('In prod (weekly)'!M45>0,'In prod (weekly)'!M45,IF('In prod (weekly)'!K45>0,'In prod (weekly)'!L45/'In prod (weekly)'!K45*100,0)) -> 0 | M52: 39 | N52: 0 | O52: 83.69680478 | P52: 0 | Q52: 80.6 | R52: 94 | S52: =IF(SUM('In prod (weekly)'!E$3:E$68)>0,$K$6-SUM('In prod (weekly)'!E$3:E45),IF(SUM('In prod (weekly)'!$F$3:F110)>0,$K$6-SUM('In prod (weekly)'!$F$3:F45)/100*$K$6,$K$6)) -> 0 | T52: =IF((General!$J$6>0),S52/$K$6*100, ) -> 0 | U52: 80.1 | V52: 8.6 | W52: 0.0 | X52: 0.0 | Y52: 0.0 | Z52: 0.0 | AA52: =H52*General!$J$29 -> 0 | AB52: =J52*General!$J$29 -> 0 | AC52: =N52*General!$J$29 -> 0
A53: 58 | B53: =IF(SUM('In prod (weekly)'!C$3:C$68)>0,$K$5-SUM('In prod (weekly)'!C$3:C46),IF(SUM('In prod (weekly)'!$D$3:D111)>0,$K$5-SUM('In prod (weekly)'!$D$3:D46)/100*$K$5,$K$5)) -> 0 | C53: =IF((General!$J$5>0),B53/$K$5*100, ) -> 0 | D53: 93.3 | E53: =IF(SUM('In prod (weekly)'!G$3:G$68)>0,('In prod (weekly)'!G46)/7/B53*100,IF(SUM('In prod (weekly)'!$H$3:$H$68)>0,('In prod (weekly)'!H46), )) -> 0 | F53: 85.5 | G53: =IF('In prod (weekly)'!I46>0,'In prod (weekly)'!I46/'In prod (weekly)'!G46*100,IF('In prod (weekly)'!J46>0,'In prod (weekly)'!J46,R53 )) -> 93 | H53: 0 | I53: 225.246 | J53: 0 | K53: =IF(ISNUMBER(Q53),7*R53*Q53/10000+K52, ) -> 206.43469 | L53: =IF('In prod (weekly)'!M46>0,'In prod (weekly)'!M46,IF('In prod (weekly)'!K46>0,'In prod (weekly)'!L46/'In prod (weekly)'!K46*100,0)) -> 0 | M53: 39 | N53: 0 | O53: 85.72284698 | P53: 0 | Q53: 79.8 | R53: 93 | S53: =IF(SUM('In prod (weekly)'!E$3:E$68)>0,$K$6-SUM('In prod (weekly)'!E$3:E46),IF(SUM('In prod (weekly)'!$F$3:F111)>0,$K$6-SUM('In prod (weekly)'!$F$3:F46)/100*$K$6,$K$6)) -> 0 | T53: =IF((General!$J$6>0),S53/$K$6*100, ) -> 0 | U53: 79.5 | V53: 8.6 | W53: 0.0 | X53: 0.0 | Y53: 0.0 | Z53: 0.0 | AA53: =H53*General!$J$29 -> 0 | AB53: =J53*General!$J$29 -> 0 | AC53: =N53*General!$J$29 -> 0
A54: 59 | B54: =IF(SUM('In prod (weekly)'!C$3:C$68)>0,$K$5-SUM('In prod (weekly)'!C$3:C47),IF(SUM('In prod (weekly)'!$D$3:D112)>0,$K$5-SUM('In prod (weekly)'!$D$3:D47)/100*$K$5,$K$5)) -> 0 | C54: =IF((General!$J$5>0),B54/$K$5*100, ) -> 0 | D54: 93.1 | E54: =IF(SUM('In prod (weekly)'!G$3:G$68)>0,('In prod (weekly)'!G47)/7/B54*100,IF(SUM('In prod (weekly)'!$H$3:$H$68)>0,('In prod (weekly)'!H47), )) -> 0 | F54: 84.9 | G54: =IF('In prod (weekly)'!I47>0,'In prod (weekly)'!I47/'In prod (weekly)'!G47*100,IF('In prod (weekly)'!J47>0,'In prod (weekly)'!J47,R54 )) -> 93 | H54: 0 | I54: 230.776 | J54: 0 | K54: =IF(ISNUMBER(Q54),7*R54*Q54/10000+K53, ) -> 211.57759 | L54: =IF('In prod (weekly)'!M47>0,'In prod (weekly)'!M47,IF('In prod (weekly)'!K47>0,'In prod (weekly)'!L47/'In prod (weekly)'!K47*100,0)) -> 0 | M54: 39 | N54: 0 | O54: 87.72857798 | P54: 0 | Q54: 79.0 | R54: 93 | S54: =IF(SUM('In prod (weekly)'!E$3:E$68)>0,$K$6-SUM('In prod (weekly)'!E$3:E47),IF(SUM('In prod (weekly)'!$F$3:F112)>0,$K$6-SUM('In prod (weekly)'!$F$3:F47)/100*$K$6,$K$6)) -> 0 | T54: =IF((General!$J$6>0),S54/$K$6*100, ) -> 0 | U54: 79.0 | V54: 8.5 | W54: 0.0 | X54: 0.0 | Y54: 0.0 | Z54: 0.0 | AA54: =H54*General!$J$29 -> 0 | AB54: =J54*General!$J$29 -> 0 | AC54: =N54*General!$J$29 -> 0
A55: 60 | B55: =IF(SUM('In prod (weekly)'!C$3:C$68)>0,$K$5-SUM('In prod (weekly)'!C$3:C48),IF(SUM('In prod (weekly)'!$D$3:D113)>0,$K$5-SUM('In prod (weekly)'!$D$3:D48)/100*$K$5,$K$5)) -> 0 | C55: =IF((General!$J$5>0),B55/$K$5*100, ) -> 0 | D55: 92.9 | E55: =IF(SUM('In prod (weekly)'!G$3:G$68)>0,('In prod (weekly)'!G48)/7/B55*100,IF(SUM('In prod (weekly)'!$H$3:$H$68)>0,('In prod (weekly)'!H48), )) -> 0 | F55: 84.3 | G55: =IF('In prod (weekly)'!I48>0,'In prod (weekly)'!I48/'In prod (weekly)'!G48*100,IF('In prod (weekly)'!J48>0,'In prod (weekly)'!J48,R55 )) -> 92 | H55: 0 | I55: 236.257 | J55: 0 | K55: =IF(ISNUMBER(Q55),7*R55*Q55/10000+K54, ) -> 216.62011 | L55: =IF('In prod (weekly)'!M48>0,'In prod (weekly)'!M48,IF('In prod (weekly)'!K48>0,'In prod (weekly)'!L48/'In prod (weekly)'!K48*100,0)) -> 0 | M55: 39 | N55: 0 | O55: 89.69516078 | P55: 0 | Q55: 78.3 | R55: 92 | S55: =IF(SUM('In prod (weekly)'!E$3:E$68)>0,$K$6-SUM('In prod (weekly)'!E$3:E48),IF(SUM('In prod (weekly)'!$F$3:F113)>0,$K$6-SUM('In prod (weekly)'!$F$3:F48)/100*$K$6,$K$6)) -> 0 | T55: =IF((General!$J$6>0),S55/$K$6*100, ) -> 0 | U55: 78.4 | V55: 8.4 | W55: 0.0 | X55: 0.0 | Y55: 0.0 | Z55: 0.0 | AA55: =H55*General!$J$29 -> 0 | AB55: =J55*General!$J$29 -> 0 | AC55: =N55*General!$J$29 -> 0
A56: 61 | B56: =IF(SUM('In prod (weekly)'!C$3:C$68)>0,$K$5-SUM('In prod (weekly)'!C$3:C49),IF(SUM('In prod (weekly)'!$D$3:D114)>0,$K$5-SUM('In prod (weekly)'!$D$3:D49)/100*$K$5,$K$5)) -> 0 | C56: =IF((General!$J$5>0),B56/$K$5*100, ) -> 0 | D56: 92.6 | E56: =IF(SUM('In prod (weekly)'!G$3:G$68)>0,('In prod (weekly)'!G49)/7/B56*100,IF(SUM('In prod (weekly)'!$H$3:$H$68)>0,('In prod (weekly)'!H49), )) -> 0 | F56: 83.7 | G56: =IF('In prod (weekly)'!I49>0,'In prod (weekly)'!I49/'In prod (weekly)'!G49*100,IF('In prod (weekly)'!J49>0,'In prod (weekly)'!J49,R56 )) -> 92 | H56: 0 | I56: 241.682 | J56: 0 | K56: =IF(ISNUMBER(Q56),7*R56*Q56/10000+K55, ) -> 221.61111 | L56: =IF('In prod (weekly)'!M49>0,'In prod (weekly)'!M49,IF('In prod (weekly)'!K49>0,'In prod (weekly)'!L49/'In prod (weekly)'!K49*100,0)) -> 0 | M56: 39 | N56: 0 | O56: 91.64165078 | P56: 0 | Q56: 77.5 | R56: 92 | S56: =IF(SUM('In prod (weekly)'!E$3:E$68)>0,$K$6-SUM('In prod (weekly)'!E$3:E49),IF(SUM('In prod (weekly)'!$F$3:F114)>0,$K$6-SUM('In prod (weekly)'!$F$3:F49)/100*$K$6,$K$6)) -> 0 | T56: =IF((General!$J$6>0),S56/$K$6*100, ) -> 0 | U56: 77.8 | V56: 8.4 | W56: 0.0 | X56: 0.0 | Y56: 0.0 | Z56: 0.0 | AA56: =H56*General!$J$29 -> 0 | AB56: =J56*General!$J$29 -> 0 | AC56: =N56*General!$J$29 -> 0
A57: 62 | B57: =IF(SUM('In prod (weekly)'!C$3:C$68)>0,$K$5-SUM('In prod (weekly)'!C$3:C50),IF(SUM('In prod (weekly)'!$D$3:D115)>0,$K$5-SUM('In prod (weekly)'!$D$3:D50)/100*$K$5,$K$5)) -> 0 | C57: =IF((General!$J$5>0),B57/$K$5*100, ) -> 0 | D57: 92.3 | E57: =IF(SUM('In prod (weekly)'!G$3:G$68)>0,('In prod (weekly)'!G50)/7/B57*100,IF(SUM('In prod (weekly)'!$H$3:$H$68)>0,('In prod (weekly)'!H50), )) -> 0 | F57: 83.1 | G57: =IF('In prod (weekly)'!I50>0,'In prod (weekly)'!I50/'In prod (weekly)'!G50*100,IF('In prod (weekly)'!J50>0,'In prod (weekly)'!J50,R57 )) -> 92 | H57: 0 | I57: 247.051 | J57: 0 | K57: =IF(ISNUMBER(Q57),7*R57*Q57/10000+K56, ) -> 226.55059 | L57: =IF('In prod (weekly)'!M50>0,'In prod (weekly)'!M50,IF('In prod (weekly)'!K50>0,'In prod (weekly)'!L50/'In prod (weekly)'!K50*100,0)) -> 0 | M57: 38.025 | N57: 0 | O57: 93.51988805 | P57: 0 | Q57: 76.7 | R57: 92 | S57: =IF(SUM('In prod (weekly)'!E$3:E$68)>0,$K$6-SUM('In prod (weekly)'!E$3:E50),IF(SUM('In prod (weekly)'!$F$3:F115)>0,$K$6-SUM('In prod (weekly)'!$F$3:F50)/100*$K$6,$K$6)) -> 0 | T57: =IF((General!$J$6>0),S57/$K$6*100, ) -> 0 | U57: 77.3 | V57: 8.3 | W57: 0.0 | X57: 0.0 | Y57: 0.0 | Z57: 0.0 | AA57: =H57*General!$J$29 -> 0 | AB57: =J57*General!$J$29 -> 0 | AC57: =N57*General!$J$29 -> 0
A58: 63 | B58: =IF(SUM('In prod (weekly)'!C$3:C$68)>0,$K$5-SUM('In prod (weekly)'!C$3:C51),IF(SUM('In prod (weekly)'!$D$3:D116)>0,$K$5-SUM('In prod (weekly)'!$D$3:D51)/100*$K$5,$K$5)) -> 0 | C58: =IF((General!$J$5>0),B58/$K$5*100, ) -> 0 | D58: 92.1 | E58: =IF(SUM('In prod (weekly)'!G$3:G$68)>0,('In prod (weekly)'!G51)/7/B58*100,IF(SUM('In prod (weekly)'!$H$3:$H$68)>0,('In prod (weekly)'!H51), )) -> 0 | F58: 82.5 | G58: =IF('In prod (weekly)'!I51>0,'In prod (weekly)'!I51/'In prod (weekly)'!G51*100,IF('In prod (weekly)'!J51>0,'In prod (weekly)'!J51,R58 )) -> 92 | H58: 0 | I58: 252.371 | J58: 0 | K58: =IF(ISNUMBER(Q58),7*R58*Q58/10000+K57, ) -> 231.44499 | L58: =IF('In prod (weekly)'!M51>0,'In prod (weekly)'!M51,IF('In prod (weekly)'!K51>0,'In prod (weekly)'!L51/'In prod (weekly)'!K51*100,0)) -> 0 | M58: 38.025 | N58: 0 | O58: 95.38098365 | P58: 0 | Q58: 76.0 | R58: 92 | S58: =IF(SUM('In prod (weekly)'!E$3:E$68)>0,$K$6-SUM('In prod (weekly)'!E$3:E51),IF(SUM('In prod (weekly)'!$F$3:F116)>0,$K$6-SUM('In prod (weekly)'!$F$3:F51)/100*$K$6,$K$6)) -> 0 | T58: =IF((General!$J$6>0),S58/$K$6*100, ) -> 0 | U58: 76.7 | V58: 8.3 | W58: 0.0 | X58: 0.0 | Y58: 0.0 | Z58: 0.0 | AA58: =H58*General!$J$29 -> 0 | AB58: =J58*General!$J$29 -> 0 | AC58: =N58*General!$J$29 -> 0
A59: 64 | B59: =IF(SUM('In prod (weekly)'!C$3:C$68)>0,$K$5-SUM('In prod (weekly)'!C$3:C52),IF(SUM('In prod (weekly)'!$D$3:D117)>0,$K$5-SUM('In prod (weekly)'!$D$3:D52)/100*$K$5,$K$5)) -> 0 | C59: =IF((General!$J$5>0),B59/$K$5*100, ) -> 0 | D59: 91.8 | E59: =IF(SUM('In prod (weekly)'!G$3:G$68)>0,('In prod (weekly)'!G52)/7/B59*100,IF(SUM('In prod (weekly)'!$H$3:$H$68)>0,('In prod (weekly)'!H52), )) -> 0 | F59: 81.9 | G59: =IF('In prod (weekly)'!I52>0,'In prod (weekly)'!I52/'In prod (weekly)'!G52*100,IF('In prod (weekly)'!J52>0,'In prod (weekly)'!J52,R59 )) -> 92 | H59: 0 | I59: 257.635 | J59: 0 | K59: =IF(ISNUMBER(Q59),7*R59*Q59/10000+K58, ) -> 236.28787 | L59: =IF('In prod (weekly)'!M52>0,'In prod (weekly)'!M52,IF('In prod (weekly)'!K52>0,'In prod (weekly)'!L52/'In prod (weekly)'!K52*100,0)) -> 0 | M59: 38.025 | N59: 0 | O59: 97.22248877 | P59: 0 | Q59: 75.2 | R59: 92 | S59: =IF(SUM('In prod (weekly)'!E$3:E$68)>0,$K$6-SUM('In prod (weekly)'!E$3:E52),IF(SUM('In prod (weekly)'!$F$3:F117)>0,$K$6-SUM('In prod (weekly)'!$F$3:F52)/100*$K$6,$K$6)) -> 0 | T59: =IF((General!$J$6>0),S59/$K$6*100, ) -> 0 | U59: 76.2 | V59: 8.2 | W59: 0.0 | X59: 0.0 | Y59: 0.0 | Z59: 0.0 | AA59: =H59*General!$J$29 -> 0 | AB59: =J59*General!$J$29 -> 0 | AC59: =N59*General!$J$29 -> 0
A60: 65 | B60: =IF(SUM('In prod (weekly)'!C$3:C$68)>0,$K$5-SUM('In prod (weekly)'!C$3:C53),IF(SUM('In prod (weekly)'!$D$3:D118)>0,$K$5-SUM('In prod (weekly)'!$D$3:D53)/100*$K$5,$K$5)) -> 0 | C60: =IF((General!$J$5>0),B60/$K$5*100, ) -> 0 | D60: 91.6 | E60: =IF(SUM('In prod (weekly)'!G$3:G$68)>0,('In prod (weekly)'!G53)/7/B60*100,IF(SUM('In prod (weekly)'!$H$3:$H$68)>0,('In prod (weekly)'!H53), )) -> 0 | F60: 81.3 | G60: =IF('In prod (weekly)'!I53>0,'In prod (weekly)'!I53/'In prod (weekly)'!G53*100,IF('In prod (weekly)'!J53>0,'In prod (weekly)'!J53,R60 )) -> 90 | H60: 0 | I60: 262.85 | J60: 0 | K60: =IF(ISNUMBER(Q60),7*R60*Q60/10000+K59, ) -> 240.98137 | L60: =IF('In prod (weekly)'!M53>0,'In prod (weekly)'!M53,IF('In prod (weekly)'!K53>0,'In prod (weekly)'!L53/'In prod (weekly)'!K53*100,0)) -> 0 | M60: 37.05 | N60: 0 | O60: 98.96143052 | P60: 0 | Q60: 74.5 | R60: 90 | S60: =IF(SUM('In prod (weekly)'!E$3:E$68)>0,$K$6-SUM('In prod (weekly)'!E$3:E53),IF(SUM('In prod (weekly)'!$F$3:F118)>0,$K$6-SUM('In prod (weekly)'!$F$3:F53)/100*$K$6,$K$6)) -> 0 | T60: =IF((General!$J$6>0),S60/$K$6*100, ) -> 0 | U60: 75.6 | V60: 8.1 | W60: 0.0 | X60: 0.0 | Y60: 0.0 | Z60: 0.0 | AA60: =H60*General!$J$29 -> 0 | AB60: =J60*General!$J$29 -> 0 | AC60: =N60*General!$J$29 -> 0
A61: 66 | B61: =IF(SUM('In prod (weekly)'!C$3:C$68)>0,$K$5-SUM('In prod (weekly)'!C$3:C54),IF(SUM('In prod (weekly)'!$D$3:D119)>0,$K$5-SUM('In prod (weekly)'!$D$3:D54)/100*$K$5,$K$5)) -> 0 | C61: =IF((General!$J$5>0),B61/$K$5*100, ) -> 0 | D61: 91.3 | E61: =IF(SUM('In prod (weekly)'!G$3:G$68)>0,('In prod (weekly)'!G54)/7/B61*100,IF(SUM('In prod (weekly)'!$H$3:$H$68)>0,('In prod (weekly)'!H54), )) -> 0 | F61: 80.6 | G61: =IF('In prod (weekly)'!I54>0,'In prod (weekly)'!I54/'In prod (weekly)'!G54*100,IF('In prod (weekly)'!J54>0,'In prod (weekly)'!J54,R61 )) -> 90 | H61: 0 | I61: 268.002 | J61: 0 | K61: =IF(ISNUMBER(Q61),7*R61*Q61/10000+K60, ) -> 245.61817 | L61: =IF('In prod (weekly)'!M54>0,'In prod (weekly)'!M54,IF('In prod (weekly)'!K54>0,'In prod (weekly)'!L54/'In prod (weekly)'!K54*100,0)) -> 0 | M61: 37.05 | N61: 0 | O61: 100.6793649 | P61: 0 | Q61: 73.6 | R61: 90 | S61: =IF(SUM('In prod (weekly)'!E$3:E$68)>0,$K$6-SUM('In prod (weekly)'!E$3:E54),IF(SUM('In prod (weekly)'!$F$3:F119)>0,$K$6-SUM('In prod (weekly)'!$F$3:F54)/100*$K$6,$K$6)) -> 0 | T61: =IF((General!$J$6>0),S61/$K$6*100, ) -> 0 | U61: 75.0 | V61: 8.1 | W61: 0.0 | X61: 0.0 | Y61: 0.0 | Z61: 0.0 | AA61: =H61*General!$J$29 -> 0 | AB61: =J61*General!$J$29 -> 0 | AC61: =N61*General!$J$29 -> 0
A62: 67 | B62: =IF(SUM('In prod (weekly)'!C$3:C$68)>0,$K$5-SUM('In prod (weekly)'!C$3:C55),IF(SUM('In prod (weekly)'!$D$3:D120)>0,$K$5-SUM('In prod (weekly)'!$D$3:D55)/100*$K$5,$K$5)) -> 0 | C62: =IF((General!$J$5>0),B62/$K$5*100, ) -> 0 | D62: 91.0 | E62: =IF(SUM('In prod (weekly)'!G$3:G$68)>0,('In prod (weekly)'!G55)/7/B62*100,IF(SUM('In prod (weekly)'!$H$3:$H$68)>0,('In prod (weekly)'!H55), )) -> 0 | F62: 79.9 | G62: =IF('In prod (weekly)'!I55>0,'In prod (weekly)'!I55/'In prod (weekly)'!G55*100,IF('In prod (weekly)'!J55>0,'In prod (weekly)'!J55,R62 )) -> 90 | H62: 0 | I62: 273.091 | J62: 0 | K62: =IF(ISNUMBER(Q62),7*R62*Q62/10000+K61, ) -> 250.19827 | L62: =IF('In prod (weekly)'!M55>0,'In prod (weekly)'!M55,IF('In prod (weekly)'!K55>0,'In prod (weekly)'!L55/'In prod (weekly)'!K55*100,0)) -> 0 | M62: 37.05 | N62: 0 | O62: =IF(ISNUMBER(M62),7*Q62*R62*M62/1000000+O61, ) -> 102.376292 | P62: 0 | Q62: 72.7 | R62: 90 | S62: =IF(SUM('In prod (weekly)'!E$3:E$68)>0,$K$6-SUM('In prod (weekly)'!E$3:E55),IF(SUM('In prod (weekly)'!$F$3:F120)>0,$K$6-SUM('In prod (weekly)'!$F$3:F55)/100*$K$6,$K$6)) -> 0 | T62: =IF((General!$J$6>0),S62/$K$6*100, ) -> 0 | U62: 74.3 | V62: 8.0 | W62: 0.0 | X62: 0.0 | Y62: 0.0 | Z62: 0.0 | AA62: =H62*General!$J$29 -> 0 | AB62: =J62*General!$J$29 -> 0 | AC62: =N62*General!$J$29 -> 0
A63: 68 | B63: =IF(SUM('In prod (weekly)'!C$3:C$68)>0,$K$5-SUM('In prod (weekly)'!C$3:C56),IF(SUM('In prod (weekly)'!$D$3:D121)>0,$K$5-SUM('In prod (weekly)'!$D$3:D56)/100*$K$5,$K$5)) -> 0 | C63: =IF((General!$J$5>0),B63/$K$5*100, ) -> 0 | D63: 90.8 | E63: =IF(SUM('In prod (weekly)'!G$3:G$68)>0,('In prod (weekly)'!G56)/7/B63*100,IF(SUM('In prod (weekly)'!$H$3:$H$68)>0,('In prod (weekly)'!H56), )) -> 0 | F63: 79.2 | G63: =IF('In prod (weekly)'!I56>0,'In prod (weekly)'!I56/'In prod (weekly)'!G56*100,IF('In prod (weekly)'!J56>0,'In prod (weekly)'!J56,R63 )) -> 90 | H63: 0 | I63: 278.124 | J63: 0 | K63: =IF(ISNUMBER(Q63),7*R63*Q63/10000+K62, ) -> 254.72797 | L63: =IF('In prod (weekly)'!M56>0,'In prod (weekly)'!M56,IF('In prod (weekly)'!K56>0,'In prod (weekly)'!L56/'In prod (weekly)'!K56*100,0)) -> 0 | M63: 36.075 | N63: 0 | O63: 104.0103812 | P63: 0 | Q63: 71.9 | R63: 90 | S63: =IF(SUM('In prod (weekly)'!E$3:E$68)>0,$K$6-SUM('In prod (weekly)'!E$3:E56),IF(SUM('In prod (weekly)'!$F$3:F121)>0,$K$6-SUM('In prod (weekly)'!$F$3:F56)/100*$K$6,$K$6)) -> 0 | T63: =IF((General!$J$6>0),S63/$K$6*100, ) -> 0 | U63: 73.7 | V63: 7.9 | W63: 0.0 | X63: 0.0 | Y63: 0.0 | Z63: 0.0 | AA63: =H63*General!$J$29 -> 0 | AB63: =J63*General!$J$29 -> 0 | AC63: =N63*General!$J$29 -> 0
A64: 69 | B64: =IF(SUM('In prod (weekly)'!C$3:C$68)>0,$K$5-SUM('In prod (weekly)'!C$3:C57),IF(SUM('In prod (weekly)'!$D$3:D122)>0,$K$5-SUM('In prod (weekly)'!$D$3:D57)/100*$K$5,$K$5)) -> 0 | C64: =IF((General!$J$5>0),B64/$K$5*100, ) -> 0 | D64: 90.4 | E64: =IF(SUM('In prod (weekly)'!G$3:G$68)>0,('In prod (weekly)'!G57)/7/B64*100,IF(SUM('In prod (weekly)'!$H$3:$H$68)>0,('In prod (weekly)'!H57), )) -> 0 | F64: 78.5 | G64: =IF('In prod (weekly)'!I57>0,'In prod (weekly)'!I57/'In prod (weekly)'!G57*100,IF('In prod (weekly)'!J57>0,'In prod (weekly)'!J57,R64 )) -> 90 | H64: 0 | I64: 283.094 | J64: 0 | K64: =IF(ISNUMBER(Q64),7*R64*Q64/10000+K63, ) -> 259.20097 | L64: =IF('In prod (weekly)'!M57>0,'In prod (weekly)'!M57,IF('In prod (weekly)'!K57>0,'In prod (weekly)'!L57/'In prod (weekly)'!K57*100,0)) -> 0 | M64: 36.075 | N64: 0 | O64: 105.624016 | P64: 0 | Q64: 71.0 | R64: 90 | S64: =IF(SUM('In prod (weekly)'!E$3:E$68)>0,$K$6-SUM('In prod (weekly)'!E$3:E57),IF(SUM('In prod (weekly)'!$F$3:F122)>0,$K$6-SUM('In prod (weekly)'!$F$3:F57)/100*$K$6,$K$6)) -> 0 | T64: =IF((General!$J$6>0),S64/$K$6*100, ) -> 0 | U64: 73.0 | V64: 7.9 | W64: 0.0 | X64: 0.0 | Y64: 0.0 | Z64: 0.0 | AA64: =H64*General!$J$29 -> 0 | AB64: =J64*General!$J$29 -> 0 | AC64: =N64*General!$J$29 -> 0
A65: 70 | B65: =IF(SUM('In prod (weekly)'!C$3:C$68)>0,$K$5-SUM('In prod (weekly)'!C$3:C58),IF(SUM('In prod (weekly)'!$D$3:D123)>0,$K$5-SUM('In prod (weekly)'!$D$3:D58)/100*$K$5,$K$5)) -> 0 | C65: =IF((General!$J$5>0),B65/$K$5*100, ) -> 0 | D65: 90.1 | E65: =IF(SUM('In prod (weekly)'!G$3:G$68)>0,('In prod (weekly)'!G58)/7/B65*100,IF(SUM('In prod (weekly)'!$H$3:$H$68)>0,('In prod (weekly)'!H58), )) -> 0 | F65: 77.8 | G65: =IF('In prod (weekly)'!I58>0,'In prod (weekly)'!I58/'In prod (weekly)'!G58*100,IF('In prod (weekly)'!J58>0,'In prod (weekly)'!J58,R65 )) -> 90 | H65: 0 | I65: 288.001 | J65: 0 | K65: =IF(ISNUMBER(Q65),7*R65*Q65/10000+K64, ) -> 263.61727 | L65: =IF('In prod (weekly)'!M58>0,'In prod (weekly)'!M58,IF('In prod (weekly)'!K58>0,'In prod (weekly)'!L58/'In prod (weekly)'!K58*100,0)) -> 0 | M65: 35.1 | N65: 0 | O65: 107.1741373 | P65: 0 | Q65: 70.1 | R65: 90 | S65: =IF(SUM('In prod (weekly)'!E$3:E$68)>0,$K$6-SUM('In prod (weekly)'!E$3:E58),IF(SUM('In prod (weekly)'!$F$3:F123)>0,$K$6-SUM('In prod (weekly)'!$F$3:F58)/100*$K$6,$K$6)) -> 0 | T65: =IF((General!$J$6>0),S65/$K$6*100, ) -> 0 | U65: 72.4 | V65: 7.8 | W65: 0.0 | X65: 0.0 | Y65: 0.0 | Z65: 0.0 | AA65: =H65*General!$J$29 -> 0 | AB65: =J65*General!$J$29 -> 0 | AC65: =N65*General!$J$29 -> 0
A66: 71 | B66: =IF(SUM('In prod (weekly)'!C$3:C$68)>0,$K$5-SUM('In prod (weekly)'!C$3:C59),IF(SUM('In prod (weekly)'!$D$3:D124)>0,$K$5-SUM('In prod (weekly)'!$D$3:D59)/100*$K$5,$K$5)) -> 0 | C66: =IF((General!$J$5>0),B66/$K$5*100, ) -> 0 | D66: 89.9 | E66: =IF(SUM('In prod (weekly)'!G$3:G$68)>0,('In prod (weekly)'!G59)/7/B66*100,IF(SUM('In prod (weekly)'!$H$3:$H$68)>0,('In prod (weekly)'!H59), )) -> 0 | F66: 77.1 | G66: =IF('In prod (weekly)'!I59>0,'In prod (weekly)'!I59/'In prod (weekly)'!G59*100,IF('In prod (weekly)'!J59>0,'In prod (weekly)'!J59,R66 )) -> 90 | H66: 0 | I66: 292.852 | J66: 0 | K66: =IF(ISNUMBER(Q66),7*R66*Q66/10000+K65, ) -> 267.98317 | L66: =IF('In prod (weekly)'!M59>0,'In prod (weekly)'!M59,IF('In prod (weekly)'!K59>0,'In prod (weekly)'!L59/'In prod (weekly)'!K59*100,0)) -> 0 | M66: 35.1 | N66: 0 | O66: 108.7065682 | P66: 0 | Q66: 69.3 | R66: 90 | S66: =IF(SUM('In prod (weekly)'!E$3:E$68)>0,$K$6-SUM('In prod (weekly)'!E$3:E59),IF(SUM('In prod (weekly)'!$F$3:F124)>0,$K$6-SUM('In prod (weekly)'!$F$3:F59)/100*$K$6,$K$6)) -> 0 | T66: =IF((General!$J$6>0),S66/$K$6*100, ) -> 0 | U66: 71.7 | V66: 7.7 | W66: 0.0 | X66: 0.0 | Y66: 0.0 | Z66: 0.0 | AA66: =H66*General!$J$29 -> 0 | AB66: =J66*General!$J$29 -> 0 | AC66: =N66*General!$J$29 -> 0
A67: 72 | B67: =IF(SUM('In prod (weekly)'!C$3:C$68)>0,$K$5-SUM('In prod (weekly)'!C$3:C60),IF(SUM('In prod (weekly)'!$D$3:D125)>0,$K$5-SUM('In prod (weekly)'!$D$3:D60)/100*$K$5,$K$5)) -> 0 | C67: =IF((General!$J$5>0),B67/$K$5*100, ) -> 0 | D67: 89.5 | E67: =IF(SUM('In prod (weekly)'!G$3:G$68)>0,('In prod (weekly)'!G60)/7/B67*100,IF(SUM('In prod (weekly)'!$H$3:$H$68)>0,('In prod (weekly)'!H60), )) -> 0 | F67: 76.4 | G67: =IF('In prod (weekly)'!I60>0,'In prod (weekly)'!I60/'In prod (weekly)'!G60*100,IF('In prod (weekly)'!J60>0,'In prod (weekly)'!J60,R67 )) -> 90 | H67: 0 | I67: 297.64 | J67: 0 | K67: =IF(ISNUMBER(Q67),7*R67*Q67/10000+K66, ) -> 272.29237 | L67: =IF('In prod (weekly)'!M60>0,'In prod (weekly)'!M60,IF('In prod (weekly)'!K60>0,'In prod (weekly)'!L60/'In prod (weekly)'!K60*100,0)) -> 0 | M67: 34.125 | N67: 0 | O67: 110.1770827 | P67: 0 | Q67: 68.4 | R67: 90 | S67: =IF(SUM('In prod (weekly)'!E$3:E$68)>0,$K$6-SUM('In prod (weekly)'!E$3:E60),IF(SUM('In prod (weekly)'!$F$3:F125)>0,$K$6-SUM('In prod (weekly)'!$F$3:F60)/100*$K$6,$K$6)) -> 0 | T67: =IF((General!$J$6>0),S67/$K$6*100, ) -> 0 | U67: 71.1 | V67: 7.6 | W67: 0.0 | X67: 0.0 | Y67: 0.0 | Z67: 0.0 | AA67: =H67*General!$J$29 -> 0 | AB67: =J67*General!$J$29 -> 0 | AC67: =N67*General!$J$29 -> 0
A68: 73 | B68: =IF(SUM('In prod (weekly)'!C$3:C$68)>0,$K$5-SUM('In prod (weekly)'!C$3:C61),IF(SUM('In prod (weekly)'!$D$3:D126)>0,$K$5-SUM('In prod (weekly)'!$D$3:D61)/100*$K$5,$K$5)) -> 0 | C68: =IF((General!$J$5>0),B68/$K$5*100, ) -> 0 | E68: =IF(SUM('In prod (weekly)'!G$3:G$68)>0,('In prod (weekly)'!G61)/7/B68*100,IF(SUM('In prod (weekly)'!$H$3:$H$68)>0,('In prod (weekly)'!H61), )) -> 0 | G68: =IF('In prod (weekly)'!I61>0,'In prod (weekly)'!I61/'In prod (weekly)'!G61*100,IF('In prod (weekly)'!J61>0,'In prod (weekly)'!J61,R68 )) -> 0 | H68: 0 | I68: 0 | J68: 0 | K68: =IF(ISNUMBER(Q68),7*R68*Q68/10000+K67, ) -> 0 | L68: =IF('In prod (weekly)'!M61>0,'In prod (weekly)'!M61,IF('In prod (weekly)'!K61>0,'In prod (weekly)'!L61/'In prod (weekly)'!K61*100,0)) -> 0 | N68: 0 | O68: 0 | P68: 0 | R68: 0 | S68: =IF(SUM('In prod (weekly)'!E$3:E$68)>0,$K$6-SUM('In prod (weekly)'!E$3:E61),IF(SUM('In prod (weekly)'!$F$3:F126)>0,$K$6-SUM('In prod (weekly)'!$F$3:F61)/100*$K$6,$K$6)) -> 0 | T68: =IF((General!$J$6>0),S68/$K$6*100, ) -> 0 | W68: 0.0 | X68: 0.0 | Y68: 0.0 | Z68: 0.0 | AA68: =H68*General!$J$29 -> 0 | AB68: =J68*General!$J$29 -> 0 | AC68: =N68*General!$J$29 -> 0
A69: 74 | B69: =IF(SUM('In prod (weekly)'!C$3:C$68)>0,$K$5-SUM('In prod (weekly)'!C$3:C62),IF(SUM('In prod (weekly)'!$D$3:D127)>0,$K$5-SUM('In prod (weekly)'!$D$3:D62)/100*$K$5,$K$5)) -> 0 | C69: =IF((General!$J$5>0),B69/$K$5*100, ) -> 0 | E69: =IF(SUM('In prod (weekly)'!G$3:G$68)>0,('In prod (weekly)'!G62)/7/B69*100,IF(SUM('In prod (weekly)'!$H$3:$H$68)>0,('In prod (weekly)'!H62), )) -> 0 | G69: =IF('In prod (weekly)'!I62>0,'In prod (weekly)'!I62/'In prod (weekly)'!G62*100,IF('In prod (weekly)'!J62>0,'In prod (weekly)'!J62,R69 )) -> 0 | H69: 0 | I69: 0 | J69: 0 | K69: =IF(ISNUMBER(Q69),7*R69*Q69/10000+K68, ) -> 0 | L69: =IF('In prod (weekly)'!M62>0,'In prod (weekly)'!M62,IF('In prod (weekly)'!K62>0,'In prod (weekly)'!L62/'In prod (weekly)'!K62*100,0)) -> 0 | N69: 0 | O69: 0 | P69: 0 | R69: 0 | S69: =IF(SUM('In prod (weekly)'!E$3:E$68)>0,$K$6-SUM('In prod (weekly)'!E$3:E62),IF(SUM('In prod (weekly)'!$F$3:F127)>0,$K$6-SUM('In prod (weekly)'!$F$3:F62)/100*$K$6,$K$6)) -> 0 | T69: =IF((General!$J$6>0),S69/$K$6*100, ) -> 0 | W69: 0.0 | X69: 0.0 | Y69: 0.0 | Z69: 0.0 | AA69: =H69*General!$J$29 -> 0 | AB69: =J69*General!$J$29 -> 0 | AC69: =N69*General!$J$29 -> 0
A70: 75 | B70: =IF(SUM('In prod (weekly)'!C$3:C$68)>0,$K$5-SUM('In prod (weekly)'!C$3:C63),IF(SUM('In prod (weekly)'!$D$3:D128)>0,$K$5-SUM('In prod (weekly)'!$D$3:D63)/100*$K$5,$K$5)) -> 0 | C70: =IF((General!$J$5>0),B70/$K$5*100, ) -> 0 | E70: =IF(SUM('In prod (weekly)'!G$3:G$68)>0,('In prod (weekly)'!G63)/7/B70*100,IF(SUM('In prod (weekly)'!$H$3:$H$68)>0,('In prod (weekly)'!H63), )) -> 0 | G70: =IF('In prod (weekly)'!I63>0,'In prod (weekly)'!I63/'In prod (weekly)'!G63*100,IF('In prod (weekly)'!J63>0,'In prod (weekly)'!J63,R70 )) -> 0 | H70: 0 | I70: 0 | J70: 0 | K70: =IF(ISNUMBER(Q70),7*R70*Q70/10000+K69, ) -> 0 | L70: =IF('In prod (weekly)'!M63>0,'In prod (weekly)'!M63,IF('In prod (weekly)'!K63>0,'In prod (weekly)'!L63/'In prod (weekly)'!K63*100,0)) -> 0 | N70: 0 | O70: 0 | P70: 0 | R70: 0 | S70: =IF(SUM('In prod (weekly)'!E$3:E$68)>0,$K$6-SUM('In prod (weekly)'!E$3:E63),IF(SUM('In prod (weekly)'!$F$3:F128)>0,$K$6-SUM('In prod (weekly)'!$F$3:F63)/100*$K$6,$K$6)) -> 0 | T70: =IF((General!$J$6>0),S70/$K$6*100, ) -> 0 | W70: 0.0 | X70: 0.0 | Y70: 0.0 | Z70: 0.0 | AA70: =H70*General!$J$29 -> 0 | AB70: =J70*General!$J$29 -> 0 | AC70: =N70*General!$J$29 -> 0
A71: 76 | B71: =IF(SUM('In prod (weekly)'!C$3:C$68)>0,$K$5-SUM('In prod (weekly)'!C$3:C64),IF(SUM('In prod (weekly)'!$D$3:D129)>0,$K$5-SUM('In prod (weekly)'!$D$3:D64)/100*$K$5,$K$5)) -> 0 | C71: =IF((General!$J$5>0),B71/$K$5*100, ) -> 0 | E71: =IF(SUM('In prod (weekly)'!G$3:G$68)>0,('In prod (weekly)'!G64)/7/B71*100,IF(SUM('In prod (weekly)'!$H$3:$H$68)>0,('In prod (weekly)'!H64), )) -> 0 | G71: =IF('In prod (weekly)'!I64>0,'In prod (weekly)'!I64/'In prod (weekly)'!G64*100,IF('In prod (weekly)'!J64>0,'In prod (weekly)'!J64,R71 )) -> 0 | H71: 0 | I71: 0 | J71: 0 | K71: =IF(ISNUMBER(Q71),7*R71*Q71/10000+K70, ) -> 0 | L71: =IF('In prod (weekly)'!M64>0,'In prod (weekly)'!M64,IF('In prod (weekly)'!K64>0,'In prod (weekly)'!L64/'In prod (weekly)'!K64*100,0)) -> 0 | N71: 0 | O71: 0 | P71: 0 | R71: 0 | S71: =IF(SUM('In prod (weekly)'!E$3:E$68)>0,$K$6-SUM('In prod (weekly)'!E$3:E64),IF(SUM('In prod (weekly)'!$F$3:F129)>0,$K$6-SUM('In prod (weekly)'!$F$3:F64)/100*$K$6,$K$6)) -> 0 | T71: =IF((General!$J$6>0),S71/$K$6*100, ) -> 0 | W71: 0.0 | X71: 0.0 | Y71: 0.0 | Z71: 0.0 | AA71: =H71*General!$J$29 -> 0 | AB71: =J71*General!$J$29 -> 0 | AC71: =N71*General!$J$29 -> 0
A72: 77 | B72: =IF(SUM('In prod (weekly)'!C$3:C$68)>0,$K$5-SUM('In prod (weekly)'!C$3:C65),IF(SUM('In prod (weekly)'!$D$3:D130)>0,$K$5-SUM('In prod (weekly)'!$D$3:D65)/100*$K$5,$K$5)) -> 0 | C72: =IF((General!$J$5>0),B72/$K$5*100, ) -> 0 | E72: =IF(SUM('In prod (weekly)'!G$3:G$68)>0,('In prod (weekly)'!G65)/7/B72*100,IF(SUM('In prod (weekly)'!$H$3:$H$68)>0,('In prod (weekly)'!H65), )) -> 0 | G72: =IF('In prod (weekly)'!I65>0,'In prod (weekly)'!I65/'In prod (weekly)'!G65*100,IF('In prod (weekly)'!J65>0,'In prod (weekly)'!J65,R72 )) -> 0 | H72: 0 | I72: 0 | J72: 0 | K72: =IF(ISNUMBER(Q72),7*R72*Q72/10000+K71, ) -> 0 | L72: =IF('In prod (weekly)'!M65>0,'In prod (weekly)'!M65,IF('In prod (weekly)'!K65>0,'In prod (weekly)'!L65/'In prod (weekly)'!K65*100,0)) -> 0 | N72: 0 | O72: 0 | P72: 0 | R72: 0 | S72: =IF(SUM('In prod (weekly)'!E$3:E$68)>0,$K$6-SUM('In prod (weekly)'!E$3:E65),IF(SUM('In prod (weekly)'!$F$3:F130)>0,$K$6-SUM('In prod (weekly)'!$F$3:F65)/100*$K$6,$K$6)) -> 0 | T72: =IF((General!$J$6>0),S72/$K$6*100, ) -> 0 | W72: 0.0 | X72: 0.0 | Y72: 0.0 | Z72: 0.0 | AA72: =H72*General!$J$29 -> 0 | AB72: =J72*General!$J$29 -> 0 | AC72: =N72*General!$J$29 -> 0
A73: 78 | B73: =IF(SUM('In prod (weekly)'!C$3:C$68)>0,$K$5-SUM('In prod (weekly)'!C$3:C66),IF(SUM('In prod (weekly)'!$D$3:D131)>0,$K$5-SUM('In prod (weekly)'!$D$3:D66)/100*$K$5,$K$5)) -> 0 | C73: =IF((General!$J$5>0),B73/$K$5*100, ) -> 0 | E73: =IF(SUM('In prod (weekly)'!G$3:G$68)>0,('In prod (weekly)'!G66)/7/B73*100,IF(SUM('In prod (weekly)'!$H$3:$H$68)>0,('In prod (weekly)'!H66), )) -> 0 | G73: =IF('In prod (weekly)'!I66>0,'In prod (weekly)'!I66/'In prod (weekly)'!G66*100,IF('In prod (weekly)'!J66>0,'In prod (weekly)'!J66,R73 )) -> 0 | H73: 0 | I73: 0 | J73: 0 | K73: =IF(ISNUMBER(Q73),7*R73*Q73/10000+K72, ) -> 0 | L73: =IF('In prod (weekly)'!M66>0,'In prod (weekly)'!M66,IF('In prod (weekly)'!K66>0,'In prod (weekly)'!L66/'In prod (weekly)'!K66*100,0)) -> 0 | N73: 0 | O73: 0 | P73: 0 | R73: 0 | S73: =IF(SUM('In prod (weekly)'!E$3:E$68)>0,$K$6-SUM('In prod (weekly)'!E$3:E66),IF(SUM('In prod (weekly)'!$F$3:F131)>0,$K$6-SUM('In prod (weekly)'!$F$3:F66)/100*$K$6,$K$6)) -> 0 | T73: =IF((General!$J$6>0),S73/$K$6*100, ) -> 0 | W73: 0.0 | X73: 0.0 | Y73: 0.0 | Z73: 0.0 | AA73: =H73*General!$J$29 -> 0 | AB73: =J73*General!$J$29 -> 0 | AC73: =N73*General!$J$29 -> 0
A74: 79 | B74: =IF(SUM('In prod (weekly)'!C$3:C$68)>0,$K$5-SUM('In prod (weekly)'!C$3:C67),IF(SUM('In prod (weekly)'!$D$3:D132)>0,$K$5-SUM('In prod (weekly)'!$D$3:D67)/100*$K$5,$K$5)) -> 0 | C74: =IF((General!$J$5>0),B74/$K$5*100, ) -> 0 | E74: =IF(SUM('In prod (weekly)'!G$3:G$68)>0,('In prod (weekly)'!G67)/7/B74*100,IF(SUM('In prod (weekly)'!$H$3:$H$68)>0,('In prod (weekly)'!H67), )) -> 0 | G74: =IF('In prod (weekly)'!I67>0,'In prod (weekly)'!I67/'In prod (weekly)'!G67*100,IF('In prod (weekly)'!J67>0,'In prod (weekly)'!J67,R74 )) -> 0 | H74: 0 | I74: 0 | J74: 0 | K74: =IF(ISNUMBER(Q74),7*R74*Q74/10000+K73, ) -> 0 | L74: =IF('In prod (weekly)'!M67>0,'In prod (weekly)'!M67,IF('In prod (weekly)'!K67>0,'In prod (weekly)'!L67/'In prod (weekly)'!K67*100,0)) -> 0 | N74: 0 | O74: 0 | P74: 0 | R74: 0 | S74: =IF(SUM('In prod (weekly)'!E$3:E$68)>0,$K$6-SUM('In prod (weekly)'!E$3:E67),IF(SUM('In prod (weekly)'!$F$3:F132)>0,$K$6-SUM('In prod (weekly)'!$F$3:F67)/100*$K$6,$K$6)) -> 0 | T74: =IF((General!$J$6>0),S74/$K$6*100, ) -> 0 | W74: 0.0 | X74: 0.0 | Y74: 0.0 | Z74: 0.0 | AA74: =H74*General!$J$29 -> 0 | AB74: =J74*General!$J$29 -> 0 | AC74: =N74*General!$J$29 -> 0
A75: 80 | B75: =IF(SUM('In prod (weekly)'!C$3:C$68)>0,$K$5-SUM('In prod (weekly)'!C$3:C68),IF(SUM('In prod (weekly)'!$D$3:D133)>0,$K$5-SUM('In prod (weekly)'!$D$3:D68)/100*$K$5,$K$5)) -> 0 | C75: =IF((General!$J$5>0),B75/$K$5*100, ) -> 0 | E75: =IF(SUM('In prod (weekly)'!G$3:G$68)>0,('In prod (weekly)'!G68)/7/B75*100,IF(SUM('In prod (weekly)'!$H$3:$H$68)>0,('In prod (weekly)'!H68), )) -> 0 | G75: =IF('In prod (weekly)'!I68>0,'In prod (weekly)'!I68/'In prod (weekly)'!G68*100,IF('In prod (weekly)'!J68>0,'In prod (weekly)'!J68,R75 )) -> 0 | H75: 0 | I75: 0 | J75: 0 | K75: =IF(ISNUMBER(Q75),7*R75*Q75/10000+K74, ) -> 0 | L75: =IF('In prod (weekly)'!M68>0,'In prod (weekly)'!M68,IF('In prod (weekly)'!K68>0,'In prod (weekly)'!L68/'In prod (weekly)'!K68*100,0)) -> 0 | N75: 0 | O75: 0 | P75: =E75*C75/100 -> 0 | R75: 0 | S75: =IF(SUM('In prod (weekly)'!E$3:E$68)>0,$K$6-SUM('In prod (weekly)'!E$3:E68),IF(SUM('In prod (weekly)'!$F$3:F133)>0,$K$6-SUM('In prod (weekly)'!$F$3:F68)/100*$K$6,$K$6)) -> 0 | T75: =IF((General!$J$6>0),S75/$K$6*100, ) -> 0 | W75: 0.0 | X75: 0.0 | Y75: 0.0 | Z75: 0.0 | AA75: =H75*General!$J$29 -> 0 | AB75: =J75*General!$J$29 -> 0 | AC75: =N75*General!$J$29 -> 0 | AD75: =(SUM('In prod (weekly)'!L3:L68)/SUM('In prod (weekly)'!K3:K68))*100 ->  | AE75: =(AB75/AA75)*100 ->  | AF75: =(AC75/AB75)*100 -> 

Sheet Out bwt,fc,wc
D1: =Translation!B4 -> LOHMANN BROWN Parent Stock
A3: =Translation!B8 -> Country: | C3: =General!B3 -> 0 | G3: =Translation!B12 -> Hatch Date: | J3: =General!D27 -> 00:00:00
A4: =Translation!B9 -> Owner: | C4: =General!B4 -> 0 | G4: =Translation!B13 -> Date of Housing: | J4: =General!J28 -> 1900-05-05
A5: =Translation!B10 -> Farm: | C5: =General!B5 -> 0 | G5: =Translation!B14 -> No. of Females Housed: | J5: =General!J29 -> 0
A6: =Translation!B11 -> Flock: | C6: =General!B6 -> 0 | G6: =Translation!B15 -> No. of Males Housed: | J6: =General!J30 -> 0
C8: =Translation!B81 -> Feed and water consumption | H8: =Translation!B82 -> Feed conversion | J8: =Translation!B83 -> Body weight
A9: =Translation!B69 -> Age | B9: =Translation!B71 -> Act. hen number | C9: =Translation!B84 -> kg per week | D9: =Translation!B85 -> per day (g/bird) | E9: =Translation!B86 -> cumul. cons. | F9: =Translation!B87 -> Water cons./ day (ml/bird) | G9: =Translation!B53 -> Water / Feed | H9: =Translation!B88 -> g / egg | I9: =Translation!B89 -> g / hatching egg | J9: =Translation!B90 -> actual (g/10) females | K9: =Translation!B91 -> standard (g/10) | N9: =Translation!B92 -> actual (g/10) males | O9: ='In prod (weekly)'!T2 -> a trait you like | P9: KGW Min | Q9: KGW Max | R9: Diff | S9: g/Ei | T9: g/BE | U9: Std BW min | V9: Std BW max
A10: 15 | B10: ='Out prod'!B10 -> 0 | C10: =IF('In prod (weekly)'!P3>0,'In prod (weekly)'!P3,IF('In prod (weekly)'!Q3>0,'In prod (weekly)'!Q3*7*('Out prod'!B10+'Out prod'!S10)/1000, )) -> 0 | D10: =IF('In prod (weekly)'!Q3>0,'In prod (weekly)'!Q3,IF('In prod (weekly)'!P3>0,'In prod (weekly)'!P3*1000/7/('Out prod'!S10+'Out prod'!B10), )) -> 0 | E10: =IF(C10>0,SUM(C$10:C10), ) -> 0 | F10: =IF('In prod (weekly)'!S3>0,'In prod (weekly)'!S3,IF('In prod (weekly)'!R3>0,'In prod (weekly)'!R3*1000/7/('Out prod'!B10+'Out prod'!S10), )) -> 0 | G10: =IF(D10>0,IF(F10>0,F10/D10, ), ) -> 0 | H10: =IF(E10>0,(E10/'Out prod'!AA10)*1000, ) -> 0 | I10: =IF(E10>0,E10/'Out prod'!AB10*1000, ) -> 0 | J10: ='In prod (weekly)'!N3/10 -> 0 | K10: 113 | L10: - | M10: 125 | N10: ='In prod (weekly)'!O3/10 -> 0 | O10: ='In prod (weekly)'!T3 -> 0 | P10: =IF(K10>0,K10,U10/10) -> 113.0 | Q10: =IF(M10>0,M10,V10/10) -> 125.0 | R10: =Q10-P10 -> 12.0 | U10: 1130.5 | V10: 1249.5
A11: 16 | B11: ='Out prod'!B11 -> 0 | C11: =IF('In prod (weekly)'!P4>0,'In prod (weekly)'!P4,IF('In prod (weekly)'!Q4>0,'In prod (weekly)'!Q4*7*('Out prod'!B11+'Out prod'!S11)/1000, )) -> 0 | D11: =IF('In prod (weekly)'!Q4>0,'In prod (weekly)'!Q4,IF('In prod (weekly)'!P4>0,'In prod (weekly)'!P4*1000/7/('Out prod'!S11+'Out prod'!B11), )) -> 0 | E11: =IF(C11>0,SUM(C$10:C11), ) -> 0 | F11: =IF('In prod (weekly)'!S4>0,'In prod (weekly)'!S4,IF('In prod (weekly)'!R4>0,'In prod (weekly)'!R4*1000/7/('Out prod'!B11+'Out prod'!S11), )) -> 0 | G11: =IF(D11>0,IF(F11>0,F11/D11, ), ) -> 0 | H11: =IF(E11>0,(E11/'Out prod'!AA11)*1000, ) -> 0 | I11: =IF(E11>0,(E11/'Out prod'!AB11)*1000, ) -> 0 | J11: ='In prod (weekly)'!N4/10 -> 0 | K11: 121 | L11: - | M11: 133 | N11: ='In prod (weekly)'!O4/10 -> 0 | O11: ='In prod (weekly)'!T4 -> 0 | P11: =IF(K11>0,K11,U11/10) -> 121.0 | Q11: =IF(M11>0,M11,V11/10) -> 133.0 | R11: =Q11-P11 -> 12.0 | S11: =IF(H11<>0,H11,S10) -> 0.0 | T11: 0.0 | U11: 1206.5 | V11: 1333.5
A12: 17 | B12: ='Out prod'!B12 -> 0 | C12: =IF('In prod (weekly)'!P5>0,'In prod (weekly)'!P5,IF('In prod (weekly)'!Q5>0,'In prod (weekly)'!Q5*7*('Out prod'!B12+'Out prod'!S12)/1000, )) -> 0 | D12: =IF('In prod (weekly)'!Q5>0,'In prod (weekly)'!Q5,IF('In prod (weekly)'!P5>0,'In prod (weekly)'!P5*1000/7/('Out prod'!S12+'Out prod'!B12), )) -> 0 | E12: =IF(C12>0,SUM(C$10:C12), ) -> 0 | F12: =IF('In prod (weekly)'!S5>0,'In prod (weekly)'!S5,IF('In prod (weekly)'!R5>0,'In prod (weekly)'!R5*1000/7/('Out prod'!B12+'Out prod'!S12), )) -> 0 | G12: 0 | H12: =IF(E12>0,(E12/'Out prod'!AA12)*1000, ) -> 0 | I12: =IF(E12>0,(E12/'Out prod'!AB12)*1000, ) -> 0 | J12: ='In prod (weekly)'!N5/10 -> 0 | K12: 128 | L12: - | M12: 142 | N12: ='In prod (weekly)'!O5/10 -> 0 | O12: ='In prod (weekly)'!T5 -> 0 | P12: 128.0 | Q12: 142.0 | R12: =Q12-P12 -> 14.0 | S12: 0.0 | T12: 0.0 | U12: 1282.5 | V12: 1417.5
A13: 18 | B13: ='Out prod'!B13 -> 0 | C13: =IF('In prod (weekly)'!P6>0,'In prod (weekly)'!P6,IF('In prod (weekly)'!Q6>0,'In prod (weekly)'!Q6*7*('Out prod'!B13+'Out prod'!S13)/1000, )) -> 0 | D13: =IF('In prod (weekly)'!Q6>0,'In prod (weekly)'!Q6,IF('In prod (weekly)'!P6>0,'In prod (weekly)'!P6*1000/7/('Out prod'!S13+'Out prod'!B13), )) -> 0 | E13: =IF(C13>0,SUM(C$10:C13), ) -> 0 | F13: =IF('In prod (weekly)'!S6>0,'In prod (weekly)'!S6,IF('In prod (weekly)'!R6>0,'In prod (weekly)'!R6*1000/7/('Out prod'!B13+'Out prod'!S13), )) -> 0 | G13: 0 | H13: =IF(E13>0,(E13/'Out prod'!AA13)*1000, ) -> 0 | I13: =IF(E13>0,(E13/'Out prod'!AB13)*1000, ) -> 0 | J13: ='In prod (weekly)'!N6/10 -> 0 | K13: 137 | L13: - | M13: 151 | N13: ='In prod (weekly)'!O6/10 -> 0 | O13: ='In prod (weekly)'!T6 -> 0 | P13: 137.0 | Q13: 151.0 | R13: =Q13-P13 -> 14.0 | S13: 0.0 | T13: 0.0 | U13: 1368 | V13: 1512
A14: 19 | B14: ='Out prod'!B14 -> 0 | C14: =IF('In prod (weekly)'!P7>0,'In prod (weekly)'!P7,IF('In prod (weekly)'!Q7>0,'In prod (weekly)'!Q7*7*('Out prod'!B14+'Out prod'!S14)/1000, )) -> 0 | D14: =IF('In prod (weekly)'!Q7>0,'In prod (weekly)'!Q7,IF('In prod (weekly)'!P7>0,'In prod (weekly)'!P7*1000/7/('Out prod'!S14+'Out prod'!B14), )) -> 0 | E14: =IF(C14>0,SUM(C$10:C14), ) -> 0 | F14: =IF('In prod (weekly)'!S7>0,'In prod (weekly)'!S7,IF('In prod (weekly)'!R7>0,'In prod (weekly)'!R7*1000/7/('Out prod'!B14+'Out prod'!S14), )) -> 0 | G14: 0 | H14: =IF(E14>0,(E14/'Out prod'!AA14)*1000, ) -> 0 | I14: =IF(E14>0,(E14/'Out prod'!AB14)*1000, ) -> 0 | J14: ='In prod (weekly)'!N7/10 -> 0 | K14: 145 | L14: - | M14: 161 | N14: ='In prod (weekly)'!O7/10 -> 0 | O14: ='In prod (weekly)'!T7 -> 0 | P14: 145.0 | Q14: 161.0 | R14: =Q14-P14 -> 16.0 | S14: 0.0 | T14: 0.0 | U14: 1453.5 | V14: 1606.5
A15: 20 | B15: ='Out prod'!B15 -> 0 | C15: =IF('In prod (weekly)'!P8>0,'In prod (weekly)'!P8,IF('In prod (weekly)'!Q8>0,'In prod (weekly)'!Q8*7*('Out prod'!B15+'Out prod'!S15)/1000, )) -> 0 | D15: =IF('In prod (weekly)'!Q8>0,'In prod (weekly)'!Q8,IF('In prod (weekly)'!P8>0,'In prod (weekly)'!P8*1000/7/('Out prod'!S15+'Out prod'!B15), )) -> 0 | E15: =IF(C15>0,SUM(C$10:C15), ) -> 0 | F15: =IF('In prod (weekly)'!S8>0,'In prod (weekly)'!S8,IF('In prod (weekly)'!R8>0,'In prod (weekly)'!R8*1000/7/('Out prod'!B15+'Out prod'!S15), )) -> 0 | G15: 0 | H15: =IF(E15>0,(E15/'Out prod'!AA15)*1000, ) -> 0 | I15: =IF(E15>0,(E15/'Out prod'!AB15)*1000, ) -> 0 | J15: ='In prod (weekly)'!N8/10 -> 0 | K15: 152 | L15: - | M15: 168 | N15: ='In prod (weekly)'!O8/10 -> 0 | O15: ='In prod (weekly)'!T8 -> 0 | P15: 152.0 | Q15: 168.0 | R15: =Q15-P15 -> 16.0 | S15: 0.0 | T15: 0.0 | U15: 1520 | V15: 1680
A16: 21 | B16: ='Out prod'!B16 -> 0 | C16: =IF('In prod (weekly)'!P9>0,'In prod (weekly)'!P9,IF('In prod (weekly)'!Q9>0,'In prod (weekly)'!Q9*7*('Out prod'!B16+'Out prod'!S16)/1000, )) -> 0 | D16: =IF('In prod (weekly)'!Q9>0,'In prod (weekly)'!Q9,IF('In prod (weekly)'!P9>0,'In prod (weekly)'!P9*1000/7/('Out prod'!S16+'Out prod'!B16), )) -> 0 | E16: =IF(C16>0,SUM(C$10:C16), ) -> 0 | F16: =IF('In prod (weekly)'!S9>0,'In prod (weekly)'!S9,IF('In prod (weekly)'!R9>0,'In prod (weekly)'!R9*1000/7/('Out prod'!B16+'Out prod'!S16), )) -> 0 | G16: 0 | H16: =IF(E16>0,(E16/'Out prod'!AA16)*1000, ) -> 0 | I16: =IF(E16>0,(E16/'Out prod'!AB16)*1000, ) -> 0 | J16: ='In prod (weekly)'!N9/10 -> 0 | N16: ='In prod (weekly)'!O9/10 -> 0 | O16: ='In prod (weekly)'!T9 -> 0 | P16: 156.8 | Q16: 173.3 | R16: 16.5 | S16: 0.0 | T16: 0.0 | U16: 1567.5 | V16: 1732.5
A17: 22 | B17: ='Out prod'!B17 -> 0 | C17: =IF('In prod (weekly)'!P10>0,'In prod (weekly)'!P10,IF('In prod (weekly)'!Q10>0,'In prod (weekly)'!Q10*7*('Out prod'!B17+'Out prod'!S17)/1000, )) -> 0 | D17: =IF('In prod (weekly)'!Q10>0,'In prod (weekly)'!Q10,IF('In prod (weekly)'!P10>0,'In prod (weekly)'!P10*1000/7/('Out prod'!S17+'Out prod'!B17), )) -> 0 | E17: =IF(C17>0,SUM(C$10:C17), ) -> 0 | F17: =IF('In prod (weekly)'!S10>0,'In prod (weekly)'!S10,IF('In prod (weekly)'!R10>0,'In prod (weekly)'!R10*1000/7/('Out prod'!B17+'Out prod'!S17), )) -> 0 | G17: 0 | H17: =IF(E17>0,(E17/'Out prod'!AA17)*1000, ) -> 0 | I17: =IF(E17>0,(E17/'Out prod'!AB17)*1000, ) -> 0 | J17: ='In prod (weekly)'!N10/10 -> 0 | N17: ='In prod (weekly)'!O10/10 -> 0 | O17: ='In prod (weekly)'!T10 -> 0 | P17: 161.0 | Q17: 178.0 | R17: 17.0 | S17: 0.0 | T17: 0.0 | U17: 1610.25 | V17: 1779.75
A18: 23 | B18: ='Out prod'!B18 -> 0 | C18: =IF('In prod (weekly)'!P11>0,'In prod (weekly)'!P11,IF('In prod (weekly)'!Q11>0,'In prod (weekly)'!Q11*7*('Out prod'!B18+'Out prod'!S18)/1000, )) -> 0 | D18: =IF('In prod (weekly)'!Q11>0,'In prod (weekly)'!Q11,IF('In prod (weekly)'!P11>0,'In prod (weekly)'!P11*1000/7/('Out prod'!S18+'Out prod'!B18), )) -> 0 | E18: =IF(C18>0,SUM(C$10:C18), ) -> 0 | F18: =IF('In prod (weekly)'!S11>0,'In prod (weekly)'!S11,IF('In prod (weekly)'!R11>0,'In prod (weekly)'!R11*1000/7/('Out prod'!B18+'Out prod'!S18), )) -> 0 | G18: 0 | H18: =IF(E18>0,(E18/'Out prod'!AA18)*1000, ) -> 0 | I18: =IF(E18>0,(E18/'Out prod'!AB18)*1000, ) -> 0 | J18: ='In prod (weekly)'!N11/10 -> 0 | N18: ='In prod (weekly)'!O11/10 -> 0 | O18: ='In prod (weekly)'!T11 -> 0 | P18: 164.8 | Q18: 182.2 | R18: 17.4 | S18: 0.0 | T18: 0.0 | U18: 1648.25 | V18: 1821.75
A19: 24 | B19: ='Out prod'!B19 -> 0 | C19: =IF('In prod (weekly)'!P12>0,'In prod (weekly)'!P12,IF('In prod (weekly)'!Q12>0,'In prod (weekly)'!Q12*7*('Out prod'!B19+'Out prod'!S19)/1000, )) -> 0 | D19: =IF('In prod (weekly)'!Q12>0,'In prod (weekly)'!Q12,IF('In prod (weekly)'!P12>0,'In prod (weekly)'!P12*1000/7/('Out prod'!S19+'Out prod'!B19), )) -> 0 | E19: =IF(C19>0,SUM(C$10:C19), ) -> 0 | F19: =IF('In prod (weekly)'!S12>0,'In prod (weekly)'!S12,IF('In prod (weekly)'!R12>0,'In prod (weekly)'!R12*1000/7/('Out prod'!B19+'Out prod'!S19), )) -> 0 | G19: 0 | H19: =IF(E19>0,(E19/'Out prod'!AA19)*1000, ) -> 0 | I19: =IF(E19>0,(E19/'Out prod'!AB19)*1000, ) -> 0 | J19: ='In prod (weekly)'!N12/10 -> 0 | N19: ='In prod (weekly)'!O12/10 -> 0 | O19: ='In prod (weekly)'!T12 -> 0 | P19: 168.4 | Q19: 186.2 | R19: 17.7 | S19: 0.0 | T19: 0.0 | U19: 1684.35 | V19: 1861.65
A20: 25 | B20: ='Out prod'!B20 -> 0 | C20: =IF('In prod (weekly)'!P13>0,'In prod (weekly)'!P13,IF('In prod (weekly)'!Q13>0,'In prod (weekly)'!Q13*7*('Out prod'!B20+'Out prod'!S20)/1000, )) -> 0 | D20: =IF('In prod (weekly)'!Q13>0,'In prod (weekly)'!Q13,IF('In prod (weekly)'!P13>0,'In prod (weekly)'!P13*1000/7/('Out prod'!S20+'Out prod'!B20), )) -> 0 | E20: =IF(C20>0,SUM(C$10:C20), ) -> 0 | F20: =IF('In prod (weekly)'!S13>0,'In prod (weekly)'!S13,IF('In prod (weekly)'!R13>0,'In prod (weekly)'!R13*1000/7/('Out prod'!B20+'Out prod'!S20), )) -> 0 | G20: 0 | H20: =IF(E20>0,(E20/'Out prod'!AA20)*1000, ) -> 0 | I20: =IF(E20>0,(E20/'Out prod'!AB20)*1000, ) -> 0 | J20: ='In prod (weekly)'!N13/10 -> 0 | N20: ='In prod (weekly)'!O13/10 -> 0 | O20: ='In prod (weekly)'!T13 -> 0 | P20: 171.8 | Q20: 189.8 | R20: 18.1 | S20: 0.0 | T20: 0.0 | U20: 1717.6 | V20: 1898.4
A21: 26 | B21: ='Out prod'!B21 -> 0 | C21: =IF('In prod (weekly)'!P14>0,'In prod (weekly)'!P14,IF('In prod (weekly)'!Q14>0,'In prod (weekly)'!Q14*7*('Out prod'!B21+'Out prod'!S21)/1000, )) -> 0 | D21: =IF('In prod (weekly)'!Q14>0,'In prod (weekly)'!Q14,IF('In prod (weekly)'!P14>0,'In prod (weekly)'!P14*1000/7/('Out prod'!S21+'Out prod'!B21), )) -> 0 | E21: =IF(C21>0,SUM(C$10:C21), ) -> 0 | F21: =IF('In prod (weekly)'!S14>0,'In prod (weekly)'!S14,IF('In prod (weekly)'!R14>0,'In prod (weekly)'!R14*1000/7/('Out prod'!B21+'Out prod'!S21), )) -> 0 | G21: 0 | H21: =IF(E21>0,(E21/'Out prod'!AA21)*1000, ) -> 0 | I21: =IF(E21>0,(E21/'Out prod'!AB21)*1000, ) -> 0 | J21: ='In prod (weekly)'!N14/10 -> 0 | N21: ='In prod (weekly)'!O14/10 -> 0 | O21: ='In prod (weekly)'!T14 -> 0 | P21: 173.7 | Q21: 191.9 | R21: 18.3 | S21: 0.0 | T21: 0.0 | U21: 1736.6 | V21: 1919.4
A22: 27 | B22: ='Out prod'!B22 -> 0 | C22: =IF('In prod (weekly)'!P15>0,'In prod (weekly)'!P15,IF('In prod (weekly)'!Q15>0,'In prod (weekly)'!Q15*7*('Out prod'!B22+'Out prod'!S22)/1000, )) -> 0 | D22: =IF('In prod (weekly)'!Q15>0,'In prod (weekly)'!Q15,IF('In prod (weekly)'!P15>0,'In prod (weekly)'!P15*1000/7/('Out prod'!S22+'Out prod'!B22), )) -> 0 | E22: =IF(C22>0,SUM(C$10:C22), ) -> 0 | F22: =IF('In prod (weekly)'!S15>0,'In prod (weekly)'!S15,IF('In prod (weekly)'!R15>0,'In prod (weekly)'!R15*1000/7/('Out prod'!B22+'Out prod'!S22), )) -> 0 | G22: 0 | H22: =IF(E22>0,(E22/'Out prod'!AA22)*1000, ) -> 0 | I22: =IF(E22>0,(E22/'Out prod'!AB22)*1000, ) -> 0 | J22: ='In prod (weekly)'!N15/10 -> 0 | N22: ='In prod (weekly)'!O15/10 -> 0 | O22: ='In prod (weekly)'!T15 -> 0 | P22: 175.1 | Q22: 193.5 | R22: 18.4 | S22: 0.0 | T22: 0.0 | U22: 1750.85 | V22: 1935.15
A23: 28 | B23: ='Out prod'!B23 -> 0 | C23: =IF('In prod (weekly)'!P16>0,'In prod (weekly)'!P16,IF('In prod (weekly)'!Q16>0,'In prod (weekly)'!Q16*7*('Out prod'!B23+'Out prod'!S23)/1000, )) -> 0 | D23: =IF('In prod (weekly)'!Q16>0,'In prod (weekly)'!Q16,IF('In prod (weekly)'!P16>0,'In prod (weekly)'!P16*1000/7/('Out prod'!S23+'Out prod'!B23), )) -> 0 | E23: =IF(C23>0,SUM(C$10:C23), ) -> 0 | F23: =IF('In prod (weekly)'!S16>0,'In prod (weekly)'!S16,IF('In prod (weekly)'!R16>0,'In prod (weekly)'!R16*1000/7/('Out prod'!B23+'Out prod'!S23), )) -> 0 | G23: 0 | H23: =IF(E23>0,(E23/'Out prod'!AA23)*1000, ) -> 0 | I23: =IF(E23>0,(E23/'Out prod'!AB23)*1000, ) -> 0 | J23: ='In prod (weekly)'!N16/10 -> 0 | N23: ='In prod (weekly)'!O16/10 -> 0 | O23: ='In prod (weekly)'!T16 -> 0 | P23: 176.2 | Q23: 194.8 | R23: 18.6 | S23: 0.0 | T23: 0.0 | U23: 1762.25 | V23: 1947.75
A24: 29 | B24: ='Out prod'!B24 -> 0 | C24: =IF('In prod (weekly)'!P17>0,'In prod (weekly)'!P17,IF('In prod (weekly)'!Q17>0,'In prod (weekly)'!Q17*7*('Out prod'!B24+'Out prod'!S24)/1000, )) -> 0 | D24: =IF('In prod (weekly)'!Q17>0,'In prod (weekly)'!Q17,IF('In prod (weekly)'!P17>0,'In prod (weekly)'!P17*1000/7/('Out prod'!S24+'Out prod'!B24), )) -> 0 | E24: =IF(C24>0,SUM(C$10:C24), ) -> 0 | F24: =IF('In prod (weekly)'!S17>0,'In prod (weekly)'!S17,IF('In prod (weekly)'!R17>0,'In prod (weekly)'!R17*1000/7/('Out prod'!B24+'Out prod'!S24), )) -> 0 | G24: 0 | H24: =IF(E24>0,(E24/'Out prod'!AA24)*1000, ) -> 0 | I24: =IF(E24>0,(E24/'Out prod'!AB24)*1000, ) -> 0 | J24: ='In prod (weekly)'!N17/10 -> 0 | N24: ='In prod (weekly)'!O17/10 -> 0 | O24: ='In prod (weekly)'!T17 -> 0 | P24: 176.9 | Q24: 195.5 | R24: 18.6 | S24: 0.0 | T24: 0.0 | U24: 1768.9 | V24: 1955.1
A25: 30 | B25: ='Out prod'!B25 -> 0 | C25: =IF('In prod (weekly)'!P18>0,'In prod (weekly)'!P18,IF('In prod (weekly)'!Q18>0,'In prod (weekly)'!Q18*7*('Out prod'!B25+'Out prod'!S25)/1000, )) -> 0 | D25: =IF('In prod (weekly)'!Q18>0,'In prod (weekly)'!Q18,IF('In prod (weekly)'!P18>0,'In prod (weekly)'!P18*1000/7/('Out prod'!S25+'Out prod'!B25), )) -> 0 | E25: =IF(C25>0,SUM(C$10:C25), ) -> 0 | F25: =IF('In prod (weekly)'!S18>0,'In prod (weekly)'!S18,IF('In prod (weekly)'!R18>0,'In prod (weekly)'!R18*1000/7/('Out prod'!B25+'Out prod'!S25), )) -> 0 | G25: 0 | H25: =IF(E25>0,(E25/'Out prod'!AA25)*1000, ) -> 0 | I25: =IF(E25>0,(E25/'Out prod'!AB25)*1000, ) -> 0 | J25: ='In prod (weekly)'!N18/10 -> 0 | K25: 178 | L25: - | M25: 196 | N25: ='In prod (weekly)'!O18/10 -> 0 | O25: ='In prod (weekly)'!T18 -> 0 | P25: 178.0 | Q25: 196.0 | R25: 18.0 | S25: 0.0 | T25: 0.0 | U25: 1776.5 | V25: 1963.5
A26: 31 | B26: ='Out prod'!B26 -> 0 | C26: =IF('In prod (weekly)'!P19>0,'In prod (weekly)'!P19,IF('In prod (weekly)'!Q19>0,'In prod (weekly)'!Q19*7*('Out prod'!B26+'Out prod'!S26)/1000, )) -> 0 | D26: =IF('In prod (weekly)'!Q19>0,'In prod (weekly)'!Q19,IF('In prod (weekly)'!P19>0,'In prod (weekly)'!P19*1000/7/('Out prod'!S26+'Out prod'!B26), )) -> 0 | E26: =IF(C26>0,SUM(C$10:C26), ) -> 0 | F26: =IF('In prod (weekly)'!S19>0,'In prod (weekly)'!S19,IF('In prod (weekly)'!R19>0,'In prod (weekly)'!R19*1000/7/('Out prod'!B26+'Out prod'!S26), )) -> 0 | G26: 0 | H26: =IF(E26>0,(E26/'Out prod'!AA26)*1000, ) -> 0 | I26: =IF(E26>0,(E26/'Out prod'!AB26)*1000, ) -> 0 | J26: ='In prod (weekly)'!N19/10 -> 0 | N26: ='In prod (weekly)'!O19/10 -> 0 | O26: ='In prod (weekly)'!T19 -> 0 | P26: 177.9 | Q26: 196.7 | R26: 18.7 | S26: 0.0 | T26: 0.0 | U26: 1779.35 | V26: 1966.65
A27: 32 | B27: ='Out prod'!B27 -> 0 | C27: =IF('In prod (weekly)'!P20>0,'In prod (weekly)'!P20,IF('In prod (weekly)'!Q20>0,'In prod (weekly)'!Q20*7*('Out prod'!B27+'Out prod'!S27)/1000, )) -> 0 | D27: =IF('In prod (weekly)'!Q20>0,'In prod (weekly)'!Q20,IF('In prod (weekly)'!P20>0,'In prod (weekly)'!P20*1000/7/('Out prod'!S27+'Out prod'!B27), )) -> 0 | E27: =IF(C27>0,SUM(C$10:C27), ) -> 0 | F27: =IF('In prod (weekly)'!S20>0,'In prod (weekly)'!S20,IF('In prod (weekly)'!R20>0,'In prod (weekly)'!R20*1000/7/('Out prod'!B27+'Out prod'!S27), )) -> 0 | G27: =IF(D27>0,IF(F27>0,F27/D27, ), ) -> 0 | H27: =IF(E27>0,(E27/'Out prod'!AA27)*1000, ) -> 0 | I27: =IF(E27>0,(E27/'Out prod'!AB27)*1000, ) -> 0 | J27: ='In prod (weekly)'!N20/10 -> 0 | N27: ='In prod (weekly)'!O20/10 -> 0 | O27: ='In prod (weekly)'!T20 -> 0 | P27: 178.2 | Q27: 197.0 | R27: 18.8 | S27: =IF(H27<>0,H27,S26) -> 0.0 | T27: 0.0 | U27: 1782.2 | V27: 1969.8
A28: 33 | B28: ='Out prod'!B28 -> 0 | C28: =IF('In prod (weekly)'!P21>0,'In prod (weekly)'!P21,IF('In prod (weekly)'!Q21>0,'In prod (weekly)'!Q21*7*('Out prod'!B28+'Out prod'!S28)/1000, )) -> 0 | D28: =IF('In prod (weekly)'!Q21>0,'In prod (weekly)'!Q21,IF('In prod (weekly)'!P21>0,'In prod (weekly)'!P21*1000/7/('Out prod'!S28+'Out prod'!B28), )) -> 0 | E28: =IF(C28>0,SUM(C$10:C28), ) -> 0 | F28: =IF('In prod (weekly)'!S21>0,'In prod (weekly)'!S21,IF('In prod (weekly)'!R21>0,'In prod (weekly)'!R21*1000/7/('Out prod'!B28+'Out prod'!S28), )) -> 0 | G28: 0 | H28: =IF(E28>0,(E28/'Out prod'!AA28)*1000, ) -> 0 | I28: =IF(E28>0,(E28/'Out prod'!AB28)*1000, ) -> 0 | J28: ='In prod (weekly)'!N21/10 -> 0 | N28: ='In prod (weekly)'!O21/10 -> 0 | O28: ='In prod (weekly)'!T21 -> 0 | P28: 178.5 | Q28: 197.3 | R28: 18.8 | S28: 0.0 | T28: 0.0 | U28: 1785.05 | V28: 1972.95
A29: 34 | B29: ='Out prod'!B29 -> 0 | C29: =IF('In prod (weekly)'!P22>0,'In prod (weekly)'!P22,IF('In prod (weekly)'!Q22>0,'In prod (weekly)'!Q22*7*('Out prod'!B29+'Out prod'!S29)/1000, )) -> 0 | D29: =IF('In prod (weekly)'!Q22>0,'In prod (weekly)'!Q22,IF('In prod (weekly)'!P22>0,'In prod (weekly)'!P22*1000/7/('Out prod'!S29+'Out prod'!B29), )) -> 0 | E29: =IF(C29>0,SUM(C$10:C29), ) -> 0 | F29: =IF('In prod (weekly)'!S22>0,'In prod (weekly)'!S22,IF('In prod (weekly)'!R22>0,'In prod (weekly)'!R22*1000/7/('Out prod'!B29+'Out prod'!S29), )) -> 0 | G29: 0 | H29: =IF(E29>0,(E29/'Out prod'!AA29)*1000, ) -> 0 | I29: =IF(E29>0,(E29/'Out prod'!AB29)*1000, ) -> 0 | J29: ='In prod (weekly)'!N22/10 -> 0 | N29: ='In prod (weekly)'!O22/10 -> 0 | O29: ='In prod (weekly)'!T22 -> 0 | P29: 178.8 | Q29: 197.6 | R29: 18.8 | S29: 0.0 | T29: 0.0 | U29: 1787.9 | V29: 1976.1
A30: 35 | B30: ='Out prod'!B30 -> 0 | C30: =IF('In prod (weekly)'!P23>0,'In prod (weekly)'!P23,IF('In prod (weekly)'!Q23>0,'In prod (weekly)'!Q23*7*('Out prod'!B30+'Out prod'!S30)/1000, )) -> 0 | D30: =IF('In prod (weekly)'!Q23>0,'In prod (weekly)'!Q23,IF('In prod (weekly)'!P23>0,'In prod (weekly)'!P23*1000/7/('Out prod'!S30+'Out prod'!B30), )) -> 0 | E30: =IF(C30>0,SUM(C$10:C30), ) -> 0 | F30: =IF('In prod (weekly)'!S23>0,'In prod (weekly)'!S23,IF('In prod (weekly)'!R23>0,'In prod (weekly)'!R23*1000/7/('Out prod'!B30+'Out prod'!S30), )) -> 0 | G30: 0 | H30: =IF(E30>0,(E30/'Out prod'!AA30)*1000, ) -> 0 | I30: =IF(E30>0,(E30/'Out prod'!AB30)*1000, ) -> 0 | J30: ='In prod (weekly)'!N23/10 -> 0 | N30: ='In prod (weekly)'!O23/10 -> 0 | O30: ='In prod (weekly)'!T23 -> 0 | P30: 179.1 | Q30: 197.9 | R30: 18.9 | S30: 0.0 | T30: 0.0 | U30: 1790.75 | V30: 1979.25
A31: 36 | B31: ='Out prod'!B31 -> 0 | C31: =IF('In prod (weekly)'!P24>0,'In prod (weekly)'!P24,IF('In prod (weekly)'!Q24>0,'In prod (weekly)'!Q24*7*('Out prod'!B31+'Out prod'!S31)/1000, )) -> 0 | D31: =IF('In prod (weekly)'!Q24>0,'In prod (weekly)'!Q24,IF('In prod (weekly)'!P24>0,'In prod (weekly)'!P24*1000/7/('Out prod'!S31+'Out prod'!B31), )) -> 0 | E31: =IF(C31>0,SUM(C$10:C31), ) -> 0 | F31: =IF('In prod (weekly)'!S24>0,'In prod (weekly)'!S24,IF('In prod (weekly)'!R24>0,'In prod (weekly)'!R24*1000/7/('Out prod'!B31+'Out prod'!S31), )) -> 0 | G31: 0 | H31: =IF(E31>0,(E31/'Out prod'!AA31)*1000, ) -> 0 | I31: =IF(E31>0,(E31/'Out prod'!AB31)*1000, ) -> 0 | J31: ='In prod (weekly)'!N24/10 -> 0 | N31: ='In prod (weekly)'!O24/10 -> 0 | O31: ='In prod (weekly)'!T24 -> 0 | P31: 179.4 | Q31: 198.2 | R31: 18.9 | S31: 0.0 | T31: 0.0 | U31: 1793.6 | V31: 1982.4
A32: 37 | B32: ='Out prod'!B32 -> 0 | C32: =IF('In prod (weekly)'!P25>0,'In prod (weekly)'!P25,IF('In prod (weekly)'!Q25>0,'In prod (weekly)'!Q25*7*('Out prod'!B32+'Out prod'!S32)/1000, )) -> 0 | D32: =IF('In prod (weekly)'!Q25>0,'In prod (weekly)'!Q25,IF('In prod (weekly)'!P25>0,'In prod (weekly)'!P25*1000/7/('Out prod'!S32+'Out prod'!B32), )) -> 0 | E32: =IF(C32>0,SUM(C$10:C32), ) -> 0 | F32: =IF('In prod (weekly)'!S25>0,'In prod (weekly)'!S25,IF('In prod (weekly)'!R25>0,'In prod (weekly)'!R25*1000/7/('Out prod'!B32+'Out prod'!S32), )) -> 0 | G32: 0 | H32: =IF(E32>0,(E32/'Out prod'!AA32)*1000, ) -> 0 | I32: =IF(E32>0,(E32/'Out prod'!AB32)*1000, ) -> 0 | J32: ='In prod (weekly)'!N25/10 -> 0 | N32: ='In prod (weekly)'!O25/10 -> 0 | O32: ='In prod (weekly)'!T25 -> 0 | P32: 179.6 | Q32: 198.6 | R32: 18.9 | S32: 0.0 | T32: 0.0 | U32: 1796.45 | V32: 1985.55
A33: 38 | B33: ='Out prod'!B33 -> 0 | C33: =IF('In prod (weekly)'!P26>0,'In prod (weekly)'!P26,IF('In prod (weekly)'!Q26>0,'In prod (weekly)'!Q26*7*('Out prod'!B33+'Out prod'!S33)/1000, )) -> 0 | D33: =IF('In prod (weekly)'!Q26>0,'In prod (weekly)'!Q26,IF('In prod (weekly)'!P26>0,'In prod (weekly)'!P26*1000/7/('Out prod'!S33+'Out prod'!B33), )) -> 0 | E33: =IF(C33>0,SUM(C$10:C33), ) -> 0 | F33: =IF('In prod (weekly)'!S26>0,'In prod (weekly)'!S26,IF('In prod (weekly)'!R26>0,'In prod (weekly)'!R26*1000/7/('Out prod'!B33+'Out prod'!S33), )) -> 0 | G33: 0 | H33: =IF(E33>0,(E33/'Out prod'!AA33)*1000, ) -> 0 | I33: =IF(E33>0,(E33/'Out prod'!AB33)*1000, ) -> 0 | J33: ='In prod (weekly)'!N26/10 -> 0 | N33: ='In prod (weekly)'!O26/10 -> 0 | O33: ='In prod (weekly)'!T26 -> 0 | P33: 179.9 | Q33: 198.9 | R33: 18.9 | S33: 0.0 | T33: 0.0 | U33: 1799.3 | V33: 1988.7
A34: 39 | B34: ='Out prod'!B34 -> 0 | C34: =IF('In prod (weekly)'!P27>0,'In prod (weekly)'!P27,IF('In prod (weekly)'!Q27>0,'In prod (weekly)'!Q27*7*('Out prod'!B34+'Out prod'!S34)/1000, )) -> 0 | D34: =IF('In prod (weekly)'!Q27>0,'In prod (weekly)'!Q27,IF('In prod (weekly)'!P27>0,'In prod (weekly)'!P27*1000/7/('Out prod'!S34+'Out prod'!B34), )) -> 0 | E34: =IF(C34>0,SUM(C$10:C34), ) -> 0 | F34: =IF('In prod (weekly)'!S27>0,'In prod (weekly)'!S27,IF('In prod (weekly)'!R27>0,'In prod (weekly)'!R27*1000/7/('Out prod'!B34+'Out prod'!S34), )) -> 0 | G34: 0 | H34: =IF(E34>0,(E34/'Out prod'!AA34)*1000, ) -> 0 | I34: =IF(E34>0,(E34/'Out prod'!AB34)*1000, ) -> 0 | J34: ='In prod (weekly)'!N27/10 -> 0 | N34: ='In prod (weekly)'!O27/10 -> 0 | O34: ='In prod (weekly)'!T27 -> 0 | P34: 180.2 | Q34: 199.2 | R34: 19.0 | S34: 0.0 | T34: 0.0 | U34: 1802.15 | V34: 1991.85
A35: 40 | B35: ='Out prod'!B35 -> 0 | C35: =IF('In prod (weekly)'!P28>0,'In prod (weekly)'!P28,IF('In prod (weekly)'!Q28>0,'In prod (weekly)'!Q28*7*('Out prod'!B35+'Out prod'!S35)/1000, )) -> 0 | D35: =IF('In prod (weekly)'!Q28>0,'In prod (weekly)'!Q28,IF('In prod (weekly)'!P28>0,'In prod (weekly)'!P28*1000/7/('Out prod'!S35+'Out prod'!B35), )) -> 0 | E35: =IF(C35>0,SUM(C$10:C35), ) -> 0 | F35: =IF('In prod (weekly)'!S28>0,'In prod (weekly)'!S28,IF('In prod (weekly)'!R28>0,'In prod (weekly)'!R28*1000/7/('Out prod'!B35+'Out prod'!S35), )) -> 0 | G35: 0 | H35: =IF(E35>0,(E35/'Out prod'!AA35)*1000, ) -> 0 | I35: =IF(E35>0,(E35/'Out prod'!AB35)*1000, ) -> 0 | J35: ='In prod (weekly)'!N28/10 -> 0 | K35: 180 | L35: - | M35: 200 | N35: ='In prod (weekly)'!O28/10 -> 0 | O35: ='In prod (weekly)'!T28 -> 0 | P35: 180.0 | Q35: 200.0 | R35: 20.0 | S35: 0.0 | T35: 0.0 | U35: 1805 | V35: 1995
A36: 41 | B36: ='Out prod'!B36 -> 0 | C36: =IF('In prod (weekly)'!P29>0,'In prod (weekly)'!P29,IF('In prod (weekly)'!Q29>0,'In prod (weekly)'!Q29*7*('Out prod'!B36+'Out prod'!S36)/1000, )) -> 0 | D36: =IF('In prod (weekly)'!Q29>0,'In prod (weekly)'!Q29,IF('In prod (weekly)'!P29>0,'In prod (weekly)'!P29*1000/7/('Out prod'!S36+'Out prod'!B36), )) -> 0 | E36: =IF(C36>0,SUM(C$10:C36), ) -> 0 | F36: =IF('In prod (weekly)'!S29>0,'In prod (weekly)'!S29,IF('In prod (weekly)'!R29>0,'In prod (weekly)'!R29*1000/7/('Out prod'!B36+'Out prod'!S36), )) -> 0 | G36: 0 | H36: =IF(E36>0,(E36/'Out prod'!AA36)*1000, ) -> 0 | I36: =IF(E36>0,(E36/'Out prod'!AB36)*1000, ) -> 0 | J36: ='In prod (weekly)'!N29/10 -> 0 | N36: ='In prod (weekly)'!O29/10 -> 0 | O36: ='In prod (weekly)'!T29 -> 0 | P36: 180.7 | Q36: 199.7 | R36: 19.0 | S36: 0.0 | T36: 0.0 | U36: 1806.9 | V36: 1997.1
A37: 42 | B37: ='Out prod'!B37 -> 0 | C37: =IF('In prod (weekly)'!P30>0,'In prod (weekly)'!P30,IF('In prod (weekly)'!Q30>0,'In prod (weekly)'!Q30*7*('Out prod'!B37+'Out prod'!S37)/1000, )) -> 0 | D37: =IF('In prod (weekly)'!Q30>0,'In prod (weekly)'!Q30,IF('In prod (weekly)'!P30>0,'In prod (weekly)'!P30*1000/7/('Out prod'!S37+'Out prod'!B37), )) -> 0 | E37: =IF(C37>0,SUM(C$10:C37), ) -> 0 | F37: =IF('In prod (weekly)'!S30>0,'In prod (weekly)'!S30,IF('In prod (weekly)'!R30>0,'In prod (weekly)'!R30*1000/7/('Out prod'!B37+'Out prod'!S37), )) -> 0 | G37: 0 | H37: =IF(E37>0,(E37/'Out prod'!AA37)*1000, ) -> 0 | I37: =IF(E37>0,(E37/'Out prod'!AB37)*1000, ) -> 0 | J37: ='In prod (weekly)'!N30/10 -> 0 | N37: ='In prod (weekly)'!O30/10 -> 0 | O37: ='In prod (weekly)'!T30 -> 0 | P37: 180.9 | Q37: 199.9 | R37: 19.0 | S37: 0.0 | T37: 0.0 | U37: 1808.8 | V37: 1999.2
A38: 43 | B38: ='Out prod'!B38 -> 0 | C38: =IF('In prod (weekly)'!P31>0,'In prod (weekly)'!P31,IF('In prod (weekly)'!Q31>0,'In prod (weekly)'!Q31*7*('Out prod'!B38+'Out prod'!S38)/1000, )) -> 0 | D38: =IF('In prod (weekly)'!Q31>0,'In prod (weekly)'!Q31,IF('In prod (weekly)'!P31>0,'In prod (weekly)'!P31*1000/7/('Out prod'!S38+'Out prod'!B38), )) -> 0 | E38: =IF(C38>0,SUM(C$10:C38), ) -> 0 | F38: =IF('In prod (weekly)'!S31>0,'In prod (weekly)'!S31,IF('In prod (weekly)'!R31>0,'In prod (weekly)'!R31*1000/7/('Out prod'!B38+'Out prod'!S38), )) -> 0 | G38: 0 | H38: =IF(E38>0,(E38/'Out prod'!AA38)*1000, ) -> 0 | I38: =IF(E38>0,(E38/'Out prod'!AB38)*1000, ) -> 0 | J38: ='In prod (weekly)'!N31/10 -> 0 | N38: ='In prod (weekly)'!O31/10 -> 0 | O38: ='In prod (weekly)'!T31 -> 0 | P38: 181.1 | Q38: 200.1 | R38: 19.1 | S38: 0.0 | T38: 0.0 | U38: 1810.7 | V38: 2001.3
A39: 44 | B39: ='Out prod'!B39 -> 0 | C39: =IF('In prod (weekly)'!P32>0,'In prod (weekly)'!P32,IF('In prod (weekly)'!Q32>0,'In prod (weekly)'!Q32*7*('Out prod'!B39+'Out prod'!S39)/1000, )) -> 0 | D39: =IF('In prod (weekly)'!Q32>0,'In prod (weekly)'!Q32,IF('In prod (weekly)'!P32>0,'In prod (weekly)'!P32*1000/7/('Out prod'!S39+'Out prod'!B39), )) -> 0 | E39: =IF(C39>0,SUM(C$10:C39), ) -> 0 | F39: =IF('In prod (weekly)'!S32>0,'In prod (weekly)'!S32,IF('In prod (weekly)'!R32>0,'In prod (weekly)'!R32*1000/7/('Out prod'!B39+'Out prod'!S39), )) -> 0 | G39: 0 | H39: =IF(E39>0,(E39/'Out prod'!AA39)*1000, ) -> 0 | I39: =IF(E39>0,(E39/'Out prod'!AB39)*1000, ) -> 0 | J39: ='In prod (weekly)'!N32/10 -> 0 | N39: ='In prod (weekly)'!O32/10 -> 0 | O39: ='In prod (weekly)'!T32 -> 0 | P39: 181.3 | Q39: 200.3 | R39: 19.1 | S39: 0.0 | T39: 0.0 | U39: 1812.6 | V39: 2003.4
A40: 45 | B40: ='Out prod'!B40 -> 0 | C40: =IF('In prod (weekly)'!P33>0,'In prod (weekly)'!P33,IF('In prod (weekly)'!Q33>0,'In prod (weekly)'!Q33*7*('Out prod'!B40+'Out prod'!S40)/1000, )) -> 0 | D40: =IF('In prod (weekly)'!Q33>0,'In prod (weekly)'!Q33,IF('In prod (weekly)'!P33>0,'In prod (weekly)'!P33*1000/7/('Out prod'!S40+'Out prod'!B40), )) -> 0 | E40: =IF(C40>0,SUM(C$10:C40), ) -> 0 | F40: =IF('In prod (weekly)'!S33>0,'In prod (weekly)'!S33,IF('In prod (weekly)'!R33>0,'In prod (weekly)'!R33*1000/7/('Out prod'!B40+'Out prod'!S40), )) -> 0 | G40: 0 | H40: =IF(E40>0,(E40/'Out prod'!AA40)*1000, ) -> 0 | I40: =IF(E40>0,(E40/'Out prod'!AB40)*1000, ) -> 0 | J40: ='In prod (weekly)'!N33/10 -> 0 | N40: ='In prod (weekly)'!O33/10 -> 0 | O40: ='In prod (weekly)'!T33 -> 0 | P40: 181.5 | Q40: 200.6 | R40: 19.1 | S40: 0.0 | T40: 0.0 | U40: 1814.5 | V40: 2005.5
A41: 46 | B41: ='Out prod'!B41 -> 0 | C41: =IF('In prod (weekly)'!P34>0,'In prod (weekly)'!P34,IF('In prod (weekly)'!Q34>0,'In prod (weekly)'!Q34*7*('Out prod'!B41+'Out prod'!S41)/1000, )) -> 0 | D41: =IF('In prod (weekly)'!Q34>0,'In prod (weekly)'!Q34,IF('In prod (weekly)'!P34>0,'In prod (weekly)'!P34*1000/7/('Out prod'!S41+'Out prod'!B41), )) -> 0 | E41: =IF(C41>0,SUM(C$10:C41), ) -> 0 | F41: =IF('In prod (weekly)'!S34>0,'In prod (weekly)'!S34,IF('In prod (weekly)'!R34>0,'In prod (weekly)'!R34*1000/7/('Out prod'!B41+'Out prod'!S41), )) -> 0 | G41: 0 | H41: =IF(E41>0,(E41/'Out prod'!AA41)*1000, ) -> 0 | I41: =IF(E41>0,(E41/'Out prod'!AB41)*1000, ) -> 0 | J41: ='In prod (weekly)'!N34/10 -> 0 | N41: ='In prod (weekly)'!O34/10 -> 0 | O41: ='In prod (weekly)'!T34 -> 0 | P41: 181.6 | Q41: 200.8 | R41: 19.1 | S41: 0.0 | T41: 0.0 | U41: 1816.4 | V41: 2007.6
A42: 47 | B42: ='Out prod'!B42 -> 0 | C42: =IF('In prod (weekly)'!P35>0,'In prod (weekly)'!P35,IF('In prod (weekly)'!Q35>0,'In prod (weekly)'!Q35*7*('Out prod'!B42+'Out prod'!S42)/1000, )) -> 0 | D42: =IF('In prod (weekly)'!Q35>0,'In prod (weekly)'!Q35,IF('In prod (weekly)'!P35>0,'In prod (weekly)'!P35*1000/7/('Out prod'!S42+'Out prod'!B42), )) -> 0 | E42: =IF(C42>0,SUM(C$10:C42), ) -> 0 | F42: =IF('In prod (weekly)'!S35>0,'In prod (weekly)'!S35,IF('In prod (weekly)'!R35>0,'In prod (weekly)'!R35*1000/7/('Out prod'!B42+'Out prod'!S42), )) -> 0 | G42: 0 | H42: =IF(E42>0,(E42/'Out prod'!AA42)*1000, ) -> 0 | I42: =IF(E42>0,(E42/'Out prod'!AB42)*1000, ) -> 0 | J42: ='In prod (weekly)'!N35/10 -> 0 | N42: ='In prod (weekly)'!O35/10 -> 0 | O42: ='In prod (weekly)'!T35 -> 0 | P42: 181.8 | Q42: 201.0 | R42: 19.1 | S42: 0.0 | T42: 0.0 | U42: 1818.3 | V42: 2009.7
A43: 48 | B43: ='Out prod'!B43 -> 0 | C43: =IF('In prod (weekly)'!P36>0,'In prod (weekly)'!P36,IF('In prod (weekly)'!Q36>0,'In prod (weekly)'!Q36*7*('Out prod'!B43+'Out prod'!S43)/1000, )) -> 0 | D43: =IF('In prod (weekly)'!Q36>0,'In prod (weekly)'!Q36,IF('In prod (weekly)'!P36>0,'In prod (weekly)'!P36*1000/7/('Out prod'!S43+'Out prod'!B43), )) -> 0 | E43: =IF(C43>0,SUM(C$10:C43), ) -> 0 | F43: =IF('In prod (weekly)'!S36>0,'In prod (weekly)'!S36,IF('In prod (weekly)'!R36>0,'In prod (weekly)'!R36*1000/7/('Out prod'!B43+'Out prod'!S43), )) -> 0 | G43: =IF(D43>0,IF(F43>0,F43/D43, ), ) -> 0 | H43: =IF(E43>0,(E43/'Out prod'!AA43)*1000, ) -> 0 | I43: =IF(E43>0,(E43/'Out prod'!AB43)*1000, ) -> 0 | J43: ='In prod (weekly)'!N36/10 -> 0 | N43: ='In prod (weekly)'!O36/10 -> 0 | O43: ='In prod (weekly)'!T36 -> 0 | P43: 182.0 | Q43: 201.2 | R43: 19.2 | S43: =IF(H43<>0,H43,S42) -> 0.0 | T43: 0.0 | U43: 1820.2 | V43: 2011.8
A44: 49 | B44: ='Out prod'!B44 -> 0 | C44: =IF('In prod (weekly)'!P37>0,'In prod (weekly)'!P37,IF('In prod (weekly)'!Q37>0,'In prod (weekly)'!Q37*7*('Out prod'!B44+'Out prod'!S44)/1000, )) -> 0 | D44: =IF('In prod (weekly)'!Q37>0,'In prod (weekly)'!Q37,IF('In prod (weekly)'!P37>0,'In prod (weekly)'!P37*1000/7/('Out prod'!S44+'Out prod'!B44), )) -> 0 | E44: =IF(C44>0,SUM(C$10:C44), ) -> 0 | F44: =IF('In prod (weekly)'!S37>0,'In prod (weekly)'!S37,IF('In prod (weekly)'!R37>0,'In prod (weekly)'!R37*1000/7/('Out prod'!B44+'Out prod'!S44), )) -> 0 | G44: 0 | H44: =IF(E44>0,(E44/'Out prod'!AA44)*1000, ) -> 0 | I44: =IF(E44>0,(E44/'Out prod'!AB44)*1000, ) -> 0 | J44: ='In prod (weekly)'!N37/10 -> 0 | N44: ='In prod (weekly)'!O37/10 -> 0 | O44: ='In prod (weekly)'!T37 -> 0 | P44: 182.2 | Q44: 201.4 | R44: 19.2 | S44: 0.0 | T44: 0.0 | U44: 1822.1 | V44: 2013.9
A45: 50 | B45: ='Out prod'!B45 -> 0 | C45: =IF('In prod (weekly)'!P38>0,'In prod (weekly)'!P38,IF('In prod (weekly)'!Q38>0,'In prod (weekly)'!Q38*7*('Out prod'!B45+'Out prod'!S45)/1000, )) -> 0 | D45: =IF('In prod (weekly)'!Q38>0,'In prod (weekly)'!Q38,IF('In prod (weekly)'!P38>0,'In prod (weekly)'!P38*1000/7/('Out prod'!S45+'Out prod'!B45), )) -> 0 | E45: =IF(C45>0,SUM(C$10:C45), ) -> 0 | F45: =IF('In prod (weekly)'!S38>0,'In prod (weekly)'!S38,IF('In prod (weekly)'!R38>0,'In prod (weekly)'!R38*1000/7/('Out prod'!B45+'Out prod'!S45), )) -> 0 | G45: 0 | H45: =IF(E45>0,(E45/'Out prod'!AA45)*1000, ) -> 0 | I45: =IF(E45>0,(E45/'Out prod'!AB45)*1000, ) -> 0 | J45: ='In prod (weekly)'!N38/10 -> 0 | K45: 182 | L45: - | M45: 202 | N45: ='In prod (weekly)'!O38/10 -> 0 | O45: ='In prod (weekly)'!T38 -> 0 | P45: 182.0 | Q45: 202.0 | R45: 20.0 | S45: 0.0 | T45: 0.0 | U45: 1824 | V45: 2016
A46: 51 | B46: ='Out prod'!B46 -> 0 | C46: =IF('In prod (weekly)'!P39>0,'In prod (weekly)'!P39,IF('In prod (weekly)'!Q39>0,'In prod (weekly)'!Q39*7*('Out prod'!B46+'Out prod'!S46)/1000, )) -> 0 | D46: =IF('In prod (weekly)'!Q39>0,'In prod (weekly)'!Q39,IF('In prod (weekly)'!P39>0,'In prod (weekly)'!P39*1000/7/('Out prod'!S46+'Out prod'!B46), )) -> 0 | E46: =IF(C46>0,SUM(C$10:C46), ) -> 0 | F46: =IF('In prod (weekly)'!S39>0,'In prod (weekly)'!S39,IF('In prod (weekly)'!R39>0,'In prod (weekly)'!R39*1000/7/('Out prod'!B46+'Out prod'!S46), )) -> 0 | G46: 0 | H46: =IF(E46>0,(E46/'Out prod'!AA46)*1000, ) -> 0 | I46: =IF(E46>0,(E46/'Out prod'!AB46)*1000, ) -> 0 | J46: ='In prod (weekly)'!N39/10 -> 0 | N46: ='In prod (weekly)'!O39/10 -> 0 | O46: ='In prod (weekly)'!T39 -> 0 | P46: 182.6 | Q46: 201.9 | R46: 19.2 | S46: 0.0 | T46: 0.0 | U46: 1826.375 | V46: 2018.625
A47: 52 | B47: ='Out prod'!B47 -> 0 | C47: =IF('In prod (weekly)'!P40>0,'In prod (weekly)'!P40,IF('In prod (weekly)'!Q40>0,'In prod (weekly)'!Q40*7*('Out prod'!B47+'Out prod'!S47)/1000, )) -> 0 | D47: =IF('In prod (weekly)'!Q40>0,'In prod (weekly)'!Q40,IF('In prod (weekly)'!P40>0,'In prod (weekly)'!P40*1000/7/('Out prod'!S47+'Out prod'!B47), )) -> 0 | E47: =IF(C47>0,SUM(C$10:C47), ) -> 0 | F47: =IF('In prod (weekly)'!S40>0,'In prod (weekly)'!S40,IF('In prod (weekly)'!R40>0,'In prod (weekly)'!R40*1000/7/('Out prod'!B47+'Out prod'!S47), )) -> 0 | G47: 0 | H47: =IF(E47>0,(E47/'Out prod'!AA47)*1000, ) -> 0 | I47: =IF(E47>0,(E47/'Out prod'!AB47)*1000, ) -> 0 | J47: ='In prod (weekly)'!N40/10 -> 0 | N47: ='In prod (weekly)'!O40/10 -> 0 | O47: ='In prod (weekly)'!T40 -> 0 | P47: 182.9 | Q47: 202.1 | R47: 19.3 | S47: 0.0 | T47: 0.0 | U47: 1828.75 | V47: 2021.25
A48: 53 | B48: ='Out prod'!B48 -> 0 | C48: =IF('In prod (weekly)'!P41>0,'In prod (weekly)'!P41,IF('In prod (weekly)'!Q41>0,'In prod (weekly)'!Q41*7*('Out prod'!B48+'Out prod'!S48)/1000, )) -> 0 | D48: =IF('In prod (weekly)'!Q41>0,'In prod (weekly)'!Q41,IF('In prod (weekly)'!P41>0,'In prod (weekly)'!P41*1000/7/('Out prod'!S48+'Out prod'!B48), )) -> 0 | E48: =IF(C48>0,SUM(C$10:C48), ) -> 0 | F48: =IF('In prod (weekly)'!S41>0,'In prod (weekly)'!S41,IF('In prod (weekly)'!R41>0,'In prod (weekly)'!R41*1000/7/('Out prod'!B48+'Out prod'!S48), )) -> 0 | G48: 0 | H48: =IF(E48>0,(E48/'Out prod'!AA48)*1000, ) -> 0 | I48: =IF(E48>0,(E48/'Out prod'!AB48)*1000, ) -> 0 | J48: ='In prod (weekly)'!N41/10 -> 0 | N48: ='In prod (weekly)'!O41/10 -> 0 | O48: ='In prod (weekly)'!T41 -> 0 | P48: 183.1 | Q48: 202.4 | R48: 19.3 | S48: 0.0 | T48: 0.0 | U48: 1831.125 | V48: 2023.875
A49: 54 | B49: ='Out prod'!B49 -> 0 | C49: =IF('In prod (weekly)'!P42>0,'In prod (weekly)'!P42,IF('In prod (weekly)'!Q42>0,'In prod (weekly)'!Q42*7*('Out prod'!B49+'Out prod'!S49)/1000, )) -> 0 | D49: =IF('In prod (weekly)'!Q42>0,'In prod (weekly)'!Q42,IF('In prod (weekly)'!P42>0,'In prod (weekly)'!P42*1000/7/('Out prod'!S49+'Out prod'!B49), )) -> 0 | E49: =IF(C49>0,SUM(C$10:C49), ) -> 0 | F49: =IF('In prod (weekly)'!S42>0,'In prod (weekly)'!S42,IF('In prod (weekly)'!R42>0,'In prod (weekly)'!R42*1000/7/('Out prod'!B49+'Out prod'!S49), )) -> 0 | G49: 0 | H49: =IF(E49>0,(E49/'Out prod'!AA49)*1000, ) -> 0 | I49: =IF(E49>0,(E49/'Out prod'!AB49)*1000, ) -> 0 | J49: ='In prod (weekly)'!N42/10 -> 0 | N49: ='In prod (weekly)'!O42/10 -> 0 | O49: ='In prod (weekly)'!T42 -> 0 | P49: 183.4 | Q49: 202.7 | R49: 19.3 | S49: 0.0 | T49: 0.0 | U49: 1833.5 | V49: 2026.5
A50: 55 | B50: ='Out prod'!B50 -> 0 | C50: =IF('In prod (weekly)'!P43>0,'In prod (weekly)'!P43,IF('In prod (weekly)'!Q43>0,'In prod (weekly)'!Q43*7*('Out prod'!B50+'Out prod'!S50)/1000, )) -> 0 | D50: =IF('In prod (weekly)'!Q43>0,'In prod (weekly)'!Q43,IF('In prod (weekly)'!P43>0,'In prod (weekly)'!P43*1000/7/('Out prod'!S50+'Out prod'!B50), )) -> 0 | E50: =IF(C50>0,SUM(C$10:C50), ) -> 0 | F50: =IF('In prod (weekly)'!S43>0,'In prod (weekly)'!S43,IF('In prod (weekly)'!R43>0,'In prod (weekly)'!R43*1000/7/('Out prod'!B50+'Out prod'!S50), )) -> 0 | G50: 0 | H50: =IF(E50>0,(E50/'Out prod'!AA50)*1000, ) -> 0 | I50: =IF(E50>0,(E50/'Out prod'!AB50)*1000, ) -> 0 | J50: ='In prod (weekly)'!N43/10 -> 0 | N50: ='In prod (weekly)'!O43/10 -> 0 | O50: ='In prod (weekly)'!T43 -> 0 | P50: 183.6 | Q50: 202.9 | R50: 19.3 | S50: 0.0 | T50: 0.0 | U50: 1835.875 | V50: 2029.125
A51: 56 | B51: ='Out prod'!B51 -> 0 | C51: =IF('In prod (weekly)'!P44>0,'In prod (weekly)'!P44,IF('In prod (weekly)'!Q44>0,'In prod (weekly)'!Q44*7*('Out prod'!B51+'Out prod'!S51)/1000, )) -> 0 | D51: =IF('In prod (weekly)'!Q44>0,'In prod (weekly)'!Q44,IF('In prod (weekly)'!P44>0,'In prod (weekly)'!P44*1000/7/('Out prod'!S51+'Out prod'!B51), )) -> 0 | E51: =IF(C51>0,SUM(C$10:C51), ) -> 0 | F51: =IF('In prod (weekly)'!S44>0,'In prod (weekly)'!S44,IF('In prod (weekly)'!R44>0,'In prod (weekly)'!R44*1000/7/('Out prod'!B51+'Out prod'!S51), )) -> 0 | G51: 0 | H51: =IF(E51>0,(E51/'Out prod'!AA51)*1000, ) -> 0 | I51: =IF(E51>0,(E51/'Out prod'!AB51)*1000, ) -> 0 | J51: ='In prod (weekly)'!N44/10 -> 0 | N51: ='In prod (weekly)'!O44/10 -> 0 | O51: ='In prod (weekly)'!T44 -> 0 | P51: 183.8 | Q51: 203.2 | R51: 19.4 | S51: 0.0 | T51: 0.0 | U51: 1838.25 | V51: 2031.75
A52: 57 | B52: ='Out prod'!B52 -> 0 | C52: =IF('In prod (weekly)'!P45>0,'In prod (weekly)'!P45,IF('In prod (weekly)'!Q45>0,'In prod (weekly)'!Q45*7*('Out prod'!B52+'Out prod'!S52)/1000, )) -> 0 | D52: =IF('In prod (weekly)'!Q45>0,'In prod (weekly)'!Q45,IF('In prod (weekly)'!P45>0,'In prod (weekly)'!P45*1000/7/('Out prod'!S52+'Out prod'!B52), )) -> 0 | E52: =IF(C52>0,SUM(C$10:C52), ) -> 0 | F52: =IF('In prod (weekly)'!S45>0,'In prod (weekly)'!S45,IF('In prod (weekly)'!R45>0,'In prod (weekly)'!R45*1000/7/('Out prod'!B52+'Out prod'!S52), )) -> 0 | G52: 0 | H52: =IF(E52>0,(E52/'Out prod'!AA52)*1000, ) -> 0 | I52: =IF(E52>0,(E52/'Out prod'!AB52)*1000, ) -> 0 | J52: ='In prod (weekly)'!N45/10 -> 0 | N52: ='In prod (weekly)'!O45/10 -> 0 | O52: ='In prod (weekly)'!T45 -> 0 | P52: 184.1 | Q52: 203.4 | R52: 19.4 | S52: 0.0 | T52: 0.0 | U52: 1840.625 | V52: 2034.375
A53: 58 | B53: ='Out prod'!B53 -> 0 | C53: =IF('In prod (weekly)'!P46>0,'In prod (weekly)'!P46,IF('In prod (weekly)'!Q46>0,'In prod (weekly)'!Q46*7*('Out prod'!B53+'Out prod'!S53)/1000, )) -> 0 | D53: =IF('In prod (weekly)'!Q46>0,'In prod (weekly)'!Q46,IF('In prod (weekly)'!P46>0,'In prod (weekly)'!P46*1000/7/('Out prod'!S53+'Out prod'!B53), )) -> 0 | E53: =IF(C53>0,SUM(C$10:C53), ) -> 0 | F53: =IF('In prod (weekly)'!S46>0,'In prod (weekly)'!S46,IF('In prod (weekly)'!R46>0,'In prod (weekly)'!R46*1000/7/('Out prod'!B53+'Out prod'!S53), )) -> 0 | G53: 0 | H53: =IF(E53>0,(E53/'Out prod'!AA53)*1000, ) -> 0 | I53: =IF(E53>0,(E53/'Out prod'!AB53)*1000, ) -> 0 | J53: ='In prod (weekly)'!N46/10 -> 0 | N53: ='In prod (weekly)'!O46/10 -> 0 | O53: ='In prod (weekly)'!T46 -> 0 | P53: 184.3 | Q53: 203.7 | R53: 19.4 | S53: 0.0 | T53: 0.0 | U53: 1843 | V53: 2037
A54: 59 | B54: ='Out prod'!B54 -> 0 | C54: =IF('In prod (weekly)'!P47>0,'In prod (weekly)'!P47,IF('In prod (weekly)'!Q47>0,'In prod (weekly)'!Q47*7*('Out prod'!B54+'Out prod'!S54)/1000, )) -> 0 | D54: =IF('In prod (weekly)'!Q47>0,'In prod (weekly)'!Q47,IF('In prod (weekly)'!P47>0,'In prod (weekly)'!P47*1000/7/('Out prod'!S54+'Out prod'!B54), )) -> 0 | E54: =IF(C54>0,SUM(C$10:C54), ) -> 0 | F54: =IF('In prod (weekly)'!S47>0,'In prod (weekly)'!S47,IF('In prod (weekly)'!R47>0,'In prod (weekly)'!R47*1000/7/('Out prod'!B54+'Out prod'!S54), )) -> 0 | G54: 0 | H54: =IF(E54>0,(E54/'Out prod'!AA54)*1000, ) -> 0 | I54: =IF(E54>0,(E54/'Out prod'!AB54)*1000, ) -> 0 | J54: ='In prod (weekly)'!N47/10 -> 0 | N54: ='In prod (weekly)'!O47/10 -> 0 | O54: ='In prod (weekly)'!T47 -> 0 | P54: 184.5 | Q54: 204.0 | R54: 19.4 | S54: 0.0 | T54: 0.0 | U54: 1845.375 | V54: 2039.625
A55: 60 | B55: ='Out prod'!B55 -> 0 | C55: =IF('In prod (weekly)'!P48>0,'In prod (weekly)'!P48,IF('In prod (weekly)'!Q48>0,'In prod (weekly)'!Q48*7*('Out prod'!B55+'Out prod'!S55)/1000, )) -> 0 | D55: =IF('In prod (weekly)'!Q48>0,'In prod (weekly)'!Q48,IF('In prod (weekly)'!P48>0,'In prod (weekly)'!P48*1000/7/('Out prod'!S55+'Out prod'!B55), )) -> 0 | E55: =IF(C55>0,SUM(C$10:C55), ) -> 0 | F55: =IF('In prod (weekly)'!S48>0,'In prod (weekly)'!S48,IF('In prod (weekly)'!R48>0,'In prod (weekly)'!R48*1000/7/('Out prod'!B55+'Out prod'!S55), )) -> 0 | G55: 0 | H55: =IF(E55>0,(E55/'Out prod'!AA55)*1000, ) -> 0 | I55: =IF(E55>0,(E55/'Out prod'!AB55)*1000, ) -> 0 | J55: ='In prod (weekly)'!N48/10 -> 0 | K55: 185 | L55: - | M55: 204 | N55: ='In prod (weekly)'!O48/10 -> 0 | O55: ='In prod (weekly)'!T48 -> 0 | P55: 185.0 | Q55: 204.0 | R55: 19.0 | S55: 0.0 | T55: 0.0 | U55: 1847.86875 | V55: 2042.38125
A56: 61 | B56: ='Out prod'!B56 -> 0 | C56: =IF('In prod (weekly)'!P49>0,'In prod (weekly)'!P49,IF('In prod (weekly)'!Q49>0,'In prod (weekly)'!Q49*7*('Out prod'!B56+'Out prod'!S56)/1000, )) -> 0 | D56: =IF('In prod (weekly)'!Q49>0,'In prod (weekly)'!Q49,IF('In prod (weekly)'!P49>0,'In prod (weekly)'!P49*1000/7/('Out prod'!S56+'Out prod'!B56), )) -> 0 | E56: =IF(C56>0,SUM(C$10:C56), ) -> 0 | F56: =IF('In prod (weekly)'!S49>0,'In prod (weekly)'!S49,IF('In prod (weekly)'!R49>0,'In prod (weekly)'!R49*1000/7/('Out prod'!B56+'Out prod'!S56), )) -> 0 | G56: 0 | H56: =IF(E56>0,(E56/'Out prod'!AA56)*1000, ) -> 0 | I56: =IF(E56>0,(E56/'Out prod'!AB56)*1000, ) -> 0 | J56: ='In prod (weekly)'!N49/10 -> 0 | N56: ='In prod (weekly)'!O49/10 -> 0 | O56: ='In prod (weekly)'!T49 -> 0 | P56: 185.0 | Q56: 204.5 | R56: 19.5 | S56: 0.0 | T56: 0.0 | U56: 1850.24375 | V56: 2045.00625
A57: 62 | B57: ='Out prod'!B57 -> 0 | C57: =IF('In prod (weekly)'!P50>0,'In prod (weekly)'!P50,IF('In prod (weekly)'!Q50>0,'In prod (weekly)'!Q50*7*('Out prod'!B57+'Out prod'!S57)/1000, )) -> 0 | D57: =IF('In prod (weekly)'!Q50>0,'In prod (weekly)'!Q50,IF('In prod (weekly)'!P50>0,'In prod (weekly)'!P50*1000/7/('Out prod'!S57+'Out prod'!B57), )) -> 0 | E57: =IF(C57>0,SUM(C$10:C57), ) -> 0 | F57: =IF('In prod (weekly)'!S50>0,'In prod (weekly)'!S50,IF('In prod (weekly)'!R50>0,'In prod (weekly)'!R50*1000/7/('Out prod'!B57+'Out prod'!S57), )) -> 0 | G57: 0 | H57: =IF(E57>0,(E57/'Out prod'!AA57)*1000, ) -> 0 | I57: =IF(E57>0,(E57/'Out prod'!AB57)*1000, ) -> 0 | J57: ='In prod (weekly)'!N50/10 -> 0 | N57: ='In prod (weekly)'!O50/10 -> 0 | O57: ='In prod (weekly)'!T50 -> 0 | P57: 185.3 | Q57: 204.8 | R57: 19.5 | S57: 0.0 | T57: 0.0 | U57: 1852.61875 | V57: 2047.63125
A58: 63 | B58: ='Out prod'!B58 -> 0 | C58: =IF('In prod (weekly)'!P51>0,'In prod (weekly)'!P51,IF('In prod (weekly)'!Q51>0,'In prod (weekly)'!Q51*7*('Out prod'!B58+'Out prod'!S58)/1000, )) -> 0 | D58: =IF('In prod (weekly)'!Q51>0,'In prod (weekly)'!Q51,IF('In prod (weekly)'!P51>0,'In prod (weekly)'!P51*1000/7/('Out prod'!S58+'Out prod'!B58), )) -> 0 | E58: =IF(C58>0,SUM(C$10:C58), ) -> 0 | F58: =IF('In prod (weekly)'!S51>0,'In prod (weekly)'!S51,IF('In prod (weekly)'!R51>0,'In prod (weekly)'!R51*1000/7/('Out prod'!B58+'Out prod'!S58), )) -> 0 | G58: 0 | H58: =IF(E58>0,(E58/'Out prod'!AA58)*1000, ) -> 0 | I58: =IF(E58>0,(E58/'Out prod'!AB58)*1000, ) -> 0 | J58: ='In prod (weekly)'!N51/10 -> 0 | N58: ='In prod (weekly)'!O51/10 -> 0 | O58: ='In prod (weekly)'!T51 -> 0 | P58: 185.5 | Q58: 205.0 | R58: 19.5 | S58: 0.0 | T58: 0.0 | U58: 1854.99375 | V58: 2050.25625
A59: 64 | B59: ='Out prod'!B59 -> 0 | C59: =IF('In prod (weekly)'!P52>0,'In prod (weekly)'!P52,IF('In prod (weekly)'!Q52>0,'In prod (weekly)'!Q52*7*('Out prod'!B59+'Out prod'!S59)/1000, )) -> 0 | D59: =IF('In prod (weekly)'!Q52>0,'In prod (weekly)'!Q52,IF('In prod (weekly)'!P52>0,'In prod (weekly)'!P52*1000/7/('Out prod'!S59+'Out prod'!B59), )) -> 0 | E59: =IF(C59>0,SUM(C$10:C59), ) -> 0 | F59: =IF('In prod (weekly)'!S52>0,'In prod (weekly)'!S52,IF('In prod (weekly)'!R52>0,'In prod (weekly)'!R52*1000/7/('Out prod'!B59+'Out prod'!S59), )) -> 0 | G59: =IF(D59>0,IF(F59>0,F59/D59, ), ) -> 0 | H59: =IF(E59>0,(E59/'Out prod'!AA59)*1000, ) -> 0 | I59: =IF(E59>0,(E59/'Out prod'!AB59)*1000, ) -> 0 | J59: ='In prod (weekly)'!N52/10 -> 0 | N59: ='In prod (weekly)'!O52/10 -> 0 | O59: ='In prod (weekly)'!T52 -> 0 | P59: 185.7 | Q59: 205.3 | R59: 19.6 | S59: =IF(H59<>0,H59,S58) -> 0.0 | T59: 0.0 | U59: 1857.36875 | V59: 2052.88125
A60: 65 | B60: ='Out prod'!B60 -> 0 | C60: =IF('In prod (weekly)'!P53>0,'In prod (weekly)'!P53,IF('In prod (weekly)'!Q53>0,'In prod (weekly)'!Q53*7*('Out prod'!B60+'Out prod'!S60)/1000, )) -> 0 | D60: =IF('In prod (weekly)'!Q53>0,'In prod (weekly)'!Q53,IF('In prod (weekly)'!P53>0,'In prod (weekly)'!P53*1000/7/('Out prod'!S60+'Out prod'!B60), )) -> 0 | E60: =IF(C60>0,SUM(C$10:C60), ) -> 0 | F60: =IF('In prod (weekly)'!S53>0,'In prod (weekly)'!S53,IF('In prod (weekly)'!R53>0,'In prod (weekly)'!R53*1000/7/('Out prod'!B60+'Out prod'!S60), )) -> 0 | G60: 0 | H60: =IF(E60>0,(E60/'Out prod'!AA60)*1000, ) -> 0 | I60: =IF(E60>0,(E60/'Out prod'!AB60)*1000, ) -> 0 | J60: ='In prod (weekly)'!N53/10 -> 0 | N60: ='In prod (weekly)'!O53/10 -> 0 | O60: ='In prod (weekly)'!T53 -> 0 | P60: 186.0 | Q60: 205.6 | R60: 19.6 | S60: 0.0 | T60: 0.0 | U60: 1859.74375 | V60: 2055.50625
A61: 66 | B61: ='Out prod'!B61 -> 0 | C61: =IF('In prod (weekly)'!P54>0,'In prod (weekly)'!P54,IF('In prod (weekly)'!Q54>0,'In prod (weekly)'!Q54*7*('Out prod'!B61+'Out prod'!S61)/1000, )) -> 0 | D61: =IF('In prod (weekly)'!Q54>0,'In prod (weekly)'!Q54,IF('In prod (weekly)'!P54>0,'In prod (weekly)'!P54*1000/7/('Out prod'!S61+'Out prod'!B61), )) -> 0 | E61: =IF(C61>0,SUM(C$10:C61), ) -> 0 | F61: =IF('In prod (weekly)'!S54>0,'In prod (weekly)'!S54,IF('In prod (weekly)'!R54>0,'In prod (weekly)'!R54*1000/7/('Out prod'!B61+'Out prod'!S61), )) -> 0 | G61: 0 | H61: =IF(E61>0,(E61/'Out prod'!AA61)*1000, ) -> 0 | I61: =IF(E61>0,(E61/'Out prod'!AB61)*1000, ) -> 0 | J61: ='In prod (weekly)'!N54/10 -> 0 | N61: ='In prod (weekly)'!O54/10 -> 0 | O61: ='In prod (weekly)'!T54 -> 0 | P61: 186.2 | Q61: 205.8 | R61: 19.6 | S61: 0.0 | T61: 0.0 | U61: 1862.11875 | V61: 2058.13125
A62: 67 | B62: ='Out prod'!B62 -> 0 | C62: =IF('In prod (weekly)'!P55>0,'In prod (weekly)'!P55,IF('In prod (weekly)'!Q55>0,'In prod (weekly)'!Q55*7*('Out prod'!B62+'Out prod'!S62)/1000, )) -> 0 | D62: =IF('In prod (weekly)'!Q55>0,'In prod (weekly)'!Q55,IF('In prod (weekly)'!P55>0,'In prod (weekly)'!P55*1000/7/('Out prod'!S62+'Out prod'!B62), )) -> 0 | E62: =IF(C62>0,SUM(C$10:C62), ) -> 0 | F62: =IF('In prod (weekly)'!S55>0,'In prod (weekly)'!S55,IF('In prod (weekly)'!R55>0,'In prod (weekly)'!R55*1000/7/('Out prod'!B62+'Out prod'!S62), )) -> 0 | G62: 0 | H62: =IF(E62>0,(E62/'Out prod'!AA62)*1000, ) -> 0 | I62: =IF(E62>0,(E62/'Out prod'!AB62)*1000, ) -> 0 | J62: ='In prod (weekly)'!N55/10 -> 0 | N62: ='In prod (weekly)'!O55/10 -> 0 | O62: ='In prod (weekly)'!T55 -> 0 | P62: 186.4 | Q62: 206.1 | R62: 19.6 | S62: 0.0 | T62: 0.0 | U62: 1864.49375 | V62: 2060.75625
A63: 68 | B63: ='Out prod'!B63 -> 0 | C63: =IF('In prod (weekly)'!P56>0,'In prod (weekly)'!P56,IF('In prod (weekly)'!Q56>0,'In prod (weekly)'!Q56*7*('Out prod'!B63+'Out prod'!S63)/1000, )) -> 0 | D63: =IF('In prod (weekly)'!Q56>0,'In prod (weekly)'!Q56,IF('In prod (weekly)'!P56>0,'In prod (weekly)'!P56*1000/7/('Out prod'!S63+'Out prod'!B63), )) -> 0 | E63: =IF(C63>0,SUM(C$10:C63), ) -> 0 | F63: =IF('In prod (weekly)'!S56>0,'In prod (weekly)'!S56,IF('In prod (weekly)'!R56>0,'In prod (weekly)'!R56*1000/7/('Out prod'!B63+'Out prod'!S63), )) -> 0 | G63: 0 | H63: =IF(E63>0,(E63/'Out prod'!AA63)*1000, ) -> 0 | I63: =IF(E63>0,(E63/'Out prod'!AB63)*1000, ) -> 0 | J63: ='In prod (weekly)'!N56/10 -> 0 | N63: ='In prod (weekly)'!O56/10 -> 0 | O63: ='In prod (weekly)'!T56 -> 0 | P63: 186.7 | Q63: 206.3 | R63: 19.7 | S63: 0.0 | T63: 0.0 | U63: 1866.86875 | V63: 2063.38125
A64: 69 | B64: ='Out prod'!B64 -> 0 | C64: =IF('In prod (weekly)'!P57>0,'In prod (weekly)'!P57,IF('In prod (weekly)'!Q57>0,'In prod (weekly)'!Q57*7*('Out prod'!B64+'Out prod'!S64)/1000, )) -> 0 | D64: =IF('In prod (weekly)'!Q57>0,'In prod (weekly)'!Q57,IF('In prod (weekly)'!P57>0,'In prod (weekly)'!P57*1000/7/('Out prod'!S64+'Out prod'!B64), )) -> 0 | E64: =IF(C64>0,SUM(C$10:C64), ) -> 0 | F64: =IF('In prod (weekly)'!S57>0,'In prod (weekly)'!S57,IF('In prod (weekly)'!R57>0,'In prod (weekly)'!R57*1000/7/('Out prod'!B64+'Out prod'!S64), )) -> 0 | G64: 0 | H64: =IF(E64>0,(E64/'Out prod'!AA64)*1000, ) -> 0 | I64: =IF(E64>0,(E64/'Out prod'!AB64)*1000, ) -> 0 | J64: ='In prod (weekly)'!N57/10 -> 0 | N64: ='In prod (weekly)'!O57/10 -> 0 | O64: ='In prod (weekly)'!T57 -> 0 | P64: 186.9 | Q64: 206.6 | R64: 19.7 | S64: 0.0 | T64: 0.0 | U64: 1869.24375 | V64: 2066.00625
A65: 70 | B65: ='Out prod'!B65 -> 0 | C65: =IF('In prod (weekly)'!P58>0,'In prod (weekly)'!P58,IF('In prod (weekly)'!Q58>0,'In prod (weekly)'!Q58*7*('Out prod'!B65+'Out prod'!S65)/1000, )) -> 0 | D65: =IF('In prod (weekly)'!Q58>0,'In prod (weekly)'!Q58,IF('In prod (weekly)'!P58>0,'In prod (weekly)'!P58*1000/7/('Out prod'!S65+'Out prod'!B65), )) -> 0 | E65: =IF(C65>0,SUM(C$10:C65), ) -> 0 | F65: =IF('In prod (weekly)'!S58>0,'In prod (weekly)'!S58,IF('In prod (weekly)'!R58>0,'In prod (weekly)'!R58*1000/7/('Out prod'!B65+'Out prod'!S65), )) -> 0 | G65: 0 | H65: =IF(E65>0,(E65/'Out prod'!AA65)*1000, ) -> 0 | I65: =IF(E65>0,(E65/'Out prod'!AB65)*1000, ) -> 0 | J65: ='In prod (weekly)'!N58/10 -> 0 | K65: 187 | L65: - | M65: 207 | N65: ='In prod (weekly)'!O58/10 -> 0 | O65: ='In prod (weekly)'!T58 -> 0 | P65: 187.0 | Q65: 207.0 | R65: 20.0 | S65: 0.0 | T65: 0.0 | U65: 1871.025 | V65: 2067.975
A66: 71 | B66: ='Out prod'!B66 -> 0 | C66: =IF('In prod (weekly)'!P59>0,'In prod (weekly)'!P59,IF('In prod (weekly)'!Q59>0,'In prod (weekly)'!Q59*7*('Out prod'!B66+'Out prod'!S66)/1000, )) -> 0 | D66: =IF('In prod (weekly)'!Q59>0,'In prod (weekly)'!Q59,IF('In prod (weekly)'!P59>0,'In prod (weekly)'!P59*1000/7/('Out prod'!S66+'Out prod'!B66), )) -> 0 | E66: =IF(C66>0,SUM(C$10:C66), ) -> 0 | F66: =IF('In prod (weekly)'!S59>0,'In prod (weekly)'!S59,IF('In prod (weekly)'!R59>0,'In prod (weekly)'!R59*1000/7/('Out prod'!B66+'Out prod'!S66), )) -> 0 | G66: 0 | H66: =IF(E66>0,(E66/'Out prod'!AA66)*1000, ) -> 0 | I66: =IF(E66>0,(E66/'Out prod'!AB66)*1000, ) -> 0 | J66: ='In prod (weekly)'!N59/10 -> 0 | N66: ='In prod (weekly)'!O59/10 -> 0 | O66: ='In prod (weekly)'!T59 -> 0 | P66: 187.3 | Q66: 207.0 | R66: 19.7 | S66: 0.0 | T66: 0.0 | U66: 1872.925 | V66: 2070.075
A67: 72 | B67: ='Out prod'!B67 -> 0 | C67: =IF('In prod (weekly)'!P60>0,'In prod (weekly)'!P60,IF('In prod (weekly)'!Q60>0,'In prod (weekly)'!Q60*7*('Out prod'!B67+'Out prod'!S67)/1000, )) -> 0 | D67: =IF('In prod (weekly)'!Q60>0,'In prod (weekly)'!Q60,IF('In prod (weekly)'!P60>0,'In prod (weekly)'!P60*1000/7/('Out prod'!S67+'Out prod'!B67), )) -> 0 | E67: =IF(C67>0,SUM(C$10:C67), ) -> 0 | F67: =IF('In prod (weekly)'!S60>0,'In prod (weekly)'!S60,IF('In prod (weekly)'!R60>0,'In prod (weekly)'!R60*1000/7/('Out prod'!B67+'Out prod'!S67), )) -> 0 | G67: 0 | H67: =IF(E67>0,(E67/'Out prod'!AA67)*1000, ) -> 0 | I67: =IF(E67>0,(E67/'Out prod'!AB67)*1000, ) -> 0 | J67: ='In prod (weekly)'!N60/10 -> 0 | N67: ='In prod (weekly)'!O60/10 -> 0 | O67: ='In prod (weekly)'!T60 -> 0 | P67: 187.5 | Q67: 207.2 | R67: 19.7 | S67: 0.0 | T67: 0.0 | U67: 1874.825 | V67: 2072.175
A68: 73 | B68: ='Out prod'!B68 -> 0 | C68: =IF('In prod (weekly)'!P61>0,'In prod (weekly)'!P61,IF('In prod (weekly)'!Q61>0,'In prod (weekly)'!Q61*7*('Out prod'!B68+'Out prod'!S68)/1000, )) -> 0 | D68: =IF('In prod (weekly)'!Q61>0,'In prod (weekly)'!Q61,IF('In prod (weekly)'!P61>0,'In prod (weekly)'!P61*1000/7/('Out prod'!S68+'Out prod'!B68), )) -> 0 | E68: =IF(C68>0,SUM(C$10:C68), ) -> 0 | F68: =IF('In prod (weekly)'!S61>0,'In prod (weekly)'!S61,IF('In prod (weekly)'!R61>0,'In prod (weekly)'!R61*1000/7/('Out prod'!B68+'Out prod'!S68), )) -> 0 | G68: 0 | H68: =IF(E68>0,(E68/'Out prod'!AA68)*1000, ) -> 0 | I68: =IF(E68>0,(E68/'Out prod'!AB68)*1000, ) -> 0 | J68: ='In prod (weekly)'!N61/10 -> 0 | N68: ='In prod (weekly)'!O61/10 -> 0 | O68: ='In prod (weekly)'!T61 -> 0 | P68: 0.0 | Q68: 0.0 | R68: 0.0 | S68: 0.0 | T68: 0.0
A69: 74 | B69: ='Out prod'!B69 -> 0 | C69: =IF('In prod (weekly)'!P62>0,'In prod (weekly)'!P62,IF('In prod (weekly)'!Q62>0,'In prod (weekly)'!Q62*7*('Out prod'!B69+'Out prod'!S69)/1000, )) -> 0 | D69: =IF('In prod (weekly)'!Q62>0,'In prod (weekly)'!Q62,IF('In prod (weekly)'!P62>0,'In prod (weekly)'!P62*1000/7/('Out prod'!S69+'Out prod'!B69), )) -> 0 | E69: =IF(C69>0,SUM(C$10:C69), ) -> 0 | F69: =IF('In prod (weekly)'!S62>0,'In prod (weekly)'!S62,IF('In prod (weekly)'!R62>0,'In prod (weekly)'!R62*1000/7/('Out prod'!B69+'Out prod'!S69), )) -> 0 | G69: 0 | H69: =IF(E69>0,(E69/'Out prod'!AA69)*1000, ) -> 0 | I69: =IF(E69>0,(E69/'Out prod'!AB69)*1000, ) -> 0 | J69: ='In prod (weekly)'!N62/10 -> 0 | N69: ='In prod (weekly)'!O62/10 -> 0 | O69: ='In prod (weekly)'!T62 -> 0 | P69: 0.0 | Q69: 0.0 | R69: 0.0 | S69: 0.0 | T69: 0.0
A70: 75 | B70: ='Out prod'!B70 -> 0 | C70: =IF('In prod (weekly)'!P63>0,'In prod (weekly)'!P63,IF('In prod (weekly)'!Q63>0,'In prod (weekly)'!Q63*7*('Out prod'!B70+'Out prod'!S70)/1000, )) -> 0 | D70: =IF('In prod (weekly)'!Q63>0,'In prod (weekly)'!Q63,IF('In prod (weekly)'!P63>0,'In prod (weekly)'!P63*1000/7/('Out prod'!S70+'Out prod'!B70), )) -> 0 | E70: =IF(C70>0,SUM(C$10:C70), ) -> 0 | F70: =IF('In prod (weekly)'!S63>0,'In prod (weekly)'!S63,IF('In prod (weekly)'!R63>0,'In prod (weekly)'!R63*1000/7/('Out prod'!B70+'Out prod'!S70), )) -> 0 | G70: 0 | H70: =IF(E70>0,(E70/'Out prod'!AA70)*1000, ) -> 0 | I70: =IF(E70>0,(E70/'Out prod'!AB70)*1000, ) -> 0 | J70: ='In prod (weekly)'!N63/10 -> 0 | N70: ='In prod (weekly)'!O63/10 -> 0 | O70: ='In prod (weekly)'!T63 -> 0 | P70: 0.0 | Q70: 0.0 | R70: 0.0 | S70: 0.0 | T70: 0.0
A71: 76 | B71: ='Out prod'!B71 -> 0 | C71: =IF('In prod (weekly)'!P64>0,'In prod (weekly)'!P64,IF('In prod (weekly)'!Q64>0,'In prod (weekly)'!Q64*7*('Out prod'!B71+'Out prod'!S71)/1000, )) -> 0 | D71: =IF('In prod (weekly)'!Q64>0,'In prod (weekly)'!Q64,IF('In prod (weekly)'!P64>0,'In prod (weekly)'!P64*1000/7/('Out prod'!S71+'Out prod'!B71), )) -> 0 | E71: =IF(C71>0,SUM(C$10:C71), ) -> 0 | F71: =IF('In prod (weekly)'!S64>0,'In prod (weekly)'!S64,IF('In prod (weekly)'!R64>0,'In prod (weekly)'!R64*1000/7/('Out prod'!B71+'Out prod'!S71), )) -> 0 | G71: 0 | H71: =IF(E71>0,(E71/'Out prod'!AA71)*1000, ) -> 0 | I71: =IF(E71>0,(E71/'Out prod'!AB71)*1000, ) -> 0 | J71: ='In prod (weekly)'!N64/10 -> 0 | N71: ='In prod (weekly)'!O64/10 -> 0 | O71: ='In prod (weekly)'!T64 -> 0 | P71: 0.0 | Q71: 0.0 | R71: 0.0 | S71: 0.0 | T71: 0.0
A72: 77 | B72: ='Out prod'!B72 -> 0 | C72: =IF('In prod (weekly)'!P65>0,'In prod (weekly)'!P65,IF('In prod (weekly)'!Q65>0,'In prod (weekly)'!Q65*7*('Out prod'!B72+'Out prod'!S72)/1000, )) -> 0 | D72: =IF('In prod (weekly)'!Q65>0,'In prod (weekly)'!Q65,IF('In prod (weekly)'!P65>0,'In prod (weekly)'!P65*1000/7/('Out prod'!S72+'Out prod'!B72), )) -> 0 | E72: =IF(C72>0,SUM(C$10:C72), ) -> 0 | F72: =IF('In prod (weekly)'!S65>0,'In prod (weekly)'!S65,IF('In prod (weekly)'!R65>0,'In prod (weekly)'!R65*1000/7/('Out prod'!B72+'Out prod'!S72), )) -> 0 | G72: 0 | H72: =IF(E72>0,(E72/'Out prod'!AA72)*1000, ) -> 0 | I72: =IF(E72>0,(E72/'Out prod'!AB72)*1000, ) -> 0 | J72: ='In prod (weekly)'!N65/10 -> 0 | N72: ='In prod (weekly)'!O65/10 -> 0 | O72: ='In prod (weekly)'!T65 -> 0 | P72: 0.0 | Q72: 0.0 | R72: 0.0 | S72: 0.0 | T72: 0.0
A73: 78 | B73: ='Out prod'!B73 -> 0 | C73: =IF('In prod (weekly)'!P66>0,'In prod (weekly)'!P66,IF('In prod (weekly)'!Q66>0,'In prod (weekly)'!Q66*7*('Out prod'!B73+'Out prod'!S73)/1000, )) -> 0 | D73: =IF('In prod (weekly)'!Q66>0,'In prod (weekly)'!Q66,IF('In prod (weekly)'!P66>0,'In prod (weekly)'!P66*1000/7/('Out prod'!S73+'Out prod'!B73), )) -> 0 | E73: =IF(C73>0,SUM(C$10:C73), ) -> 0 | F73: =IF('In prod (weekly)'!S66>0,'In prod (weekly)'!S66,IF('In prod (weekly)'!R66>0,'In prod (weekly)'!R66*1000/7/('Out prod'!B73+'Out prod'!S73), )) -> 0 | G73: 0 | H73: =IF(E73>0,(E73/'Out prod'!AA73)*1000, ) -> 0 | I73: =IF(E73>0,(E73/'Out prod'!AB73)*1000, ) -> 0 | J73: ='In prod (weekly)'!N66/10 -> 0 | N73: ='In prod (weekly)'!O66/10 -> 0 | O73: ='In prod (weekly)'!T66 -> 0 | P73: 0.0 | Q73: 0.0 | R73: 0.0 | S73: 0.0 | T73: 0.0
A74: 79 | B74: ='Out prod'!B74 -> 0 | C74: =IF('In prod (weekly)'!P67>0,'In prod (weekly)'!P67,IF('In prod (weekly)'!Q67>0,'In prod (weekly)'!Q67*7*('Out prod'!B74+'Out prod'!S74)/1000, )) -> 0 | D74: =IF('In prod (weekly)'!Q67>0,'In prod (weekly)'!Q67,IF('In prod (weekly)'!P67>0,'In prod (weekly)'!P67*1000/7/('Out prod'!S74+'Out prod'!B74), )) -> 0 | E74: =IF(C74>0,SUM(C$10:C74), ) -> 0 | F74: =IF('In prod (weekly)'!S67>0,'In prod (weekly)'!S67,IF('In prod (weekly)'!R67>0,'In prod (weekly)'!R67*1000/7/('Out prod'!B74+'Out prod'!S74), )) -> 0 | G74: 0 | H74: =IF(E74>0,(E74/'Out prod'!AA74)*1000, ) -> 0 | I74: =IF(E74>0,(E74/'Out prod'!AB74)*1000, ) -> 0 | J74: ='In prod (weekly)'!N67/10 -> 0 | N74: ='In prod (weekly)'!O67/10 -> 0 | O74: ='In prod (weekly)'!T67 -> 0 | P74: 0.0 | Q74: 0.0 | R74: 0.0 | S74: 0.0 | T74: 0.0
A75: 80 | B75: ='Out prod'!B75 -> 0 | C75: =IF('In prod (weekly)'!P68>0,'In prod (weekly)'!P68,IF('In prod (weekly)'!Q68>0,'In prod (weekly)'!Q68*7*('Out prod'!B75+'Out prod'!S75)/1000, )) -> 0 | D75: =IF('In prod (weekly)'!Q68>0,'In prod (weekly)'!Q68,IF('In prod (weekly)'!P68>0,'In prod (weekly)'!P68*1000/7/('Out prod'!S75+'Out prod'!B75), )) -> 0 | E75: =IF(C75>0,SUM(C$10:C75), ) -> 0 | F75: =IF('In prod (weekly)'!S68>0,'In prod (weekly)'!S68,IF('In prod (weekly)'!R68>0,'In prod (weekly)'!R68*1000/7/('Out prod'!B75+'Out prod'!S75), )) -> 0 | G75: =IF(D75>0,IF(F75>0,F75/D75, ), ) -> 0 | H75: =IF(E75>0,(E75/'Out prod'!AA75)*1000, ) -> 0 | I75: =IF(E75>0,(E75/'Out prod'!AB75)*1000, ) -> 0 | J75: ='In prod (weekly)'!N68/10 -> 0 | N75: ='In prod (weekly)'!O68/10 -> 0 | O75: ='In prod (weekly)'!T68 -> 0 | P75: =IF(K75>0,K75,U75/10) -> 0.0 | Q75: =IF(M75>0,M75,V75/10) -> 0.0 | R75: 0.0 | S75: =IF(H75<>0,H75,S74) -> 0.0 | T75: 0.0

Sheet Translation
A1: English Version | B1: Translation
A3: Field data | B3: Field data
A4: LOHMANN BROWN Parent Stock | B4: LOHMANN BROWN Parent Stock
A6: Rearing Period | B6: Rearing Period
A7: Production Period | B7: Production Period
A8: Country: | B8: Country:
A9: Owner: | B9: Owner:
A10: Farm: | B10: Farm:
A11: Flock: | B11: Flock:
A12: Hatch Date: | B12: Hatch Date:
A13: Date of Housing: | B13: Date of Housing:
A14: No. of Females Housed: | B14: No. of Females Housed:
A15: No. of Males Housed: | B15: No. of Males Housed:
A16: Remarks: | B16: Remarks:
A17: Date 18 wks + 0: | B17: Date 18 wks + 0:
A18: No. of hens with 18 weeks: | B18: No. of hens with 18 weeks:
A19: No. of males with 18 weeks: | B19: No. of males with 18 weeks:
A21: alternative | B21: alternative
A22: Date | B22: Date
A23: Age (days) | B23: Age (days)
A24: Week of Age | B24: Week of Age
A25: Wk of Age | B25: Wk of Age
A26: Wk | B26: Wk
A27: No. of dead females | B27: No. of dead females
A28: % fem. mortality / week | B28: % fem. mortality / week
A29: No. of dead males | B29: No. of dead males
A30: % male mortality / week | B30: % male mortality / week
A31: Female Body Wt (g) | B31: Female Body Wt (g)
A32: Male Body Wt (g) | B32: Male Body Wt (g)
A33: Feed cons. (kg/day) | B33: Feed cons. (kg/day)
A34: Feed cons. (kg/wk) | B34: Feed cons. (kg/wk)
A35: Feed cons. (g/bd/d) | B35: Feed cons. (g/bd/d)
A36: Water cons. (l/day) | B36: Water cons. (l/day)
A37: Water cons. (l/wk) | B37: Water cons. (l/wk)
A38: Water cons. (ml/bd/d) | B38: Water cons. (ml/bd/d)
A39: Uniformity (%) | B39: Uniformity (%)
A40: a trait you like | B40: a trait you like
A42: Act. No. of fem. chicks | B42: Act. No. of fem. chicks
A43: Act. No. of male chicks | B43: Act. No. of male chicks
A44: Fem. Mort. (%) | B44: Fem. Mort. (%)
A45: Male Mort. (%) | B45: Male Mort. (%)
A46: Std. Female Body Wt (g) | B46: Std. Female Body Wt (g)
A47: Act. Fem. Body Wt (g) | B47: Act. Fem. Body Wt (g)
A48: Act. Male Body Wt (g) | B48: Act. Male Body Wt (g)
A49: Std. Feed cons. (g) | B49: Std. Feed cons. (g)
A50: Act. Feed cons. (g/bd/d) | B50: Act. Feed cons. (g/bd/d)
A51: Std. Water cons. (ml) | B51: Std. Water cons. (ml)
A52: Act. Water cons. (ml/bd/d) | B52: Act. Water cons. (ml/bd/d)
A53: Water / Feed | B53: Water / Feed
A55: No. of eggs/ week | B55: No. of eggs/ week
A56: % prod. /HD | B56: % prod. /HD
A57: No. of hatching eggs/wk | B57: No. of hatching eggs/wk
A58: % hatching eggs / wk | B58: % hatching eggs / wk
A59: No. of eggs set | B59: No. of eggs set
A60: No. of fem. chicks hatched | B60: No. of fem. chicks hatched
A61: % fem. hatch | B61: % fem. hatch
A63: Flock Data | B63: Flock Data
A64: Rate of Lay | B64: Rate of Lay
A65: Egg Number | B65: Egg Number
A66: Hatching Eggs | B66: Hatching Eggs
A67: Hatchability | B67: Hatchability
A68: Saleable Chicks | B68: Saleable Chicks
A69: Age | B69: Age
A70: Standard | B70: Standard
A71: Act. hen number | B71: Act. hen number
A72: Act. fem. Liveability | B72: Act. fem. Liveability
A73: Standard Liveability | B73: Standard Liveability
A74: Act. number of males | B74: Act. number of males
A75: Act. M. Liveability | B75: Act. M. Liveability
A76: per H.D. | B76: per H.D.
A77: per H.H. | B77: per H.H.
A78: % Hatching eggs | B78: % Hatching eggs
A79: Std. Hatching eggs (%) | B79: Std. Hatching eggs (%)
A81: Feed and water consumption | B81: Feed and water consumption
A82: Feed conversion | B82: Feed conversion
A83: Body weight | B83: Body weight
A84: kg per week | B84: kg per week
A85: per day (g/bird) | B85: per day (g/bird)
A86: cumul. cons. | B86: cumul. cons.
A87: Water cons./ day (ml/bird) | B87: Water cons./ day (ml/bird)
A88: g / egg | B88: g / egg
A89: g / hatching egg | B89: g / hatching egg
A90: actual (g/10) females | B90: actual (g/10) females
A91: standard (g/10) | B91: standard (g/10)
A92: actual (g/10) males | B92: actual (g/10) males
A94: Mortality % cum. | B94: Mortality % cum.
A95: Fem. Mort (%) | B95: Fem. Mort (%)
A96: Male Mort. (%) | B96: Male Mort. (%)
A97: Act. Fem. Body Wt (g) | B97: Act. Fem. Body Wt (g)
A98: Act. Male Body Wt (g) | B98: Act. Male Body Wt (g)
A100: Egg Production per HD | B100: Egg Production per HD
A101: Hatchability | B101: Hatchability
A102: Act. Prod. | B102: Act. Prod.
A103: Act. A1-Hatch | B103: Act. A1-Hatch
A104: No. Eggs / HH | B104: No. Eggs / HH
A105: No. Chx / HH | B105: No. Chx / HH
A106: Liveability | B106: Liveability
A107: Body weight (g) | B107: Body weight (g)
A108: Body weight (g/10) - Feed and Water consumption (g/hen/day) | B108: Body weight (g/10) - Feed and Water consumption (g/hen/day)
A109: Fem. Body Weight | B109: Fem. Body Weight
A110: Male Body Weight | B110: Male Body Weight
A111: Feed consumption | B111: Feed consumption
A112: Water consumption | B112: Water consumption
A113: additional trait | B113: additional trait

Sheet Tabelle6 (hidden)

Sheet Tabelle7 (hidden)

Sheet Tabelle8 (hidden)

Sheet Tabelle9 (hidden)

Sheet Tabelle10 (hidden)

Sheet Tabelle11 (hidden)

Sheet Tabelle12 (hidden)

Sheet Tabelle13 (hidden)

Sheet Tabelle14 (hidden)

Sheet Tabelle15 (hidden)

Sheet Tabelle16 (hidden)

Sheet Tabelle17 (hidden)

Sheet Tabelle18 (hidden)

Sheet Tabelle19 (hidden)

Sheet Tabelle20 (hidden)

Sheet Tabelle21 (hidden)

Sheet Tabelle22 (hidden)

Sheet Tabelle23 (hidden)

Sheet Tabelle24 (hidden)

Sheet Tabelle25 (hidden)

Sheet Tabelle26 (hidden)

Sheet Tabelle27 (hidden)

Sheet Tabelle28 (hidden)

Sheet Tabelle29 (hidden)

Sheet Tabelle30 (hidden)

Sheet Tabelle31 (hidden)

Sheet Tabelle32 (hidden)

Sheet Tabelle33 (hidden)

Sheet Tabelle34 (hidden)

Sheet Tabelle35 (hidden)

Sheet Tabelle36 (hidden)

Sheet Tabelle37 (hidden)

Sheet Tabelle38 (hidden)

Sheet Tabelle39 (hidden)

Sheet Tabelle40 (hidden)

Sheet Tabelle41 (hidden)

Sheet Tabelle42 (hidden)

Sheet Tabelle43 (hidden)

Sheet Tabelle44 (hidden)

Sheet Tabelle45 (hidden)

Sheet Tabelle46 (hidden)

Sheet Tabelle47 (hidden)

Sheet Tabelle48 (hidden)

Sheet Tabelle49 (hidden)

Sheet Tabelle50 (hidden)

Sheet Tabelle51 (hidden)

Sheet Tabelle52 (hidden)

Sheet Tabelle53 (hidden)

Sheet Tabelle54 (hidden)

Sheet Tabelle55 (hidden)

Sheet Tabelle56 (hidden)

Sheet Tabelle57 (hidden)

Sheet Tabelle58 (hidden)

Sheet Tabelle59 (hidden)

Sheet Tabelle60 (hidden)

Sheet Tabelle61 (hidden)

Sheet Tabelle62 (hidden)

Sheet Tabelle63 (hidden)

Sheet Tabelle64 (hidden)

Sheet Tabelle65 (hidden)

Sheet Tabelle66 (hidden)

Sheet Tabelle67 (hidden)

Sheet Tabelle68 (hidden)

Sheet Tabelle69 (hidden)

Sheet Tabelle70 (hidden)

Sheet Tabelle71 (hidden)

Sheet Tabelle72 (hidden)

Sheet Tabelle73 (hidden)

Sheet Tabelle74 (hidden)

Sheet Tabelle75 (hidden)

Sheet Tabelle76 (hidden)

Sheet Tabelle77 (hidden)

Sheet Tabelle78 (hidden)

Sheet Tabelle79 (hidden)

Sheet Tabelle80 (hidden)

Sheet Tabelle81 (hidden)

Sheet Tabelle82 (hidden)

Sheet Tabelle83 (hidden)

Sheet Tabelle84 (hidden)

Sheet Tabelle85 (hidden)

Sheet Tabelle86 (hidden)

Sheet Tabelle87 (hidden)

Sheet Tabelle88 (hidden)

Sheet Tabelle89 (hidden)

Sheet Tabelle90 (hidden)

Sheet Tabelle91 (hidden)

Sheet Tabelle92 (hidden)

Sheet Tabelle93 (hidden)

Sheet Tabelle94 (hidden)

Sheet Tabelle95 (hidden)

Sheet Tabelle96 (hidden)

Sheet Tabelle97 (hidden)

Sheet Tabelle98 (hidden)

Sheet Tabelle99 (hidden)

Sheet Tabelle100 (hidden)
